Workbook

Sheet ReadMe
A1: Revision HIstory
A2: Date | B2: Who | C2: Comments
A3: 2026-03-22 | B3: Dean Banerjee | C3: Initial Worksheet
A4: 2026-04-15 | B4: Dean Banerjee | C4: Updated Calculations for Gamma
A13: Stationary No Air Model
A14: Sheet | B14: Stationary No Air Model
A15: Supporting Sheets | B15: None
A16: Comments | B16: This is the simplest case with no air resistance and simple closed-form solutions. Calculations are easily visible. It has the option to choose to solve for the angle or velocity. Also it includes manual mode that simply plots the trajectory and does the calculations.
A18: Moving No Air Model
A19: Sheet | B19: Stationary No Air Model
A20: Supporting Sheets | B20: 4th Order Polynomial Solver
A21: Comments | B21: This accounts for the case of a moving vehicle. The math is more involved for this as it requires the 4th Order Polynomial Solver sheet to calculate.
A23: Air Resistance Model
A24: Sheets | B24: Air Resistance Model
A25: Supporting Sheets | B25: Parameters, Raw Data
A26: Comments | B26: This covers all 4 cases, but requires numerical methods and also excel macros to be enabled. The approach is that it allows the user to calculate the trajectories and also tune coeficients to hit the target or match measured data. The Raw Data sheet is for the case of matching or comparing to raw data. The parameters has the information on the constants and the target. Although the air constants are also on the main sheet, the parameters tab shows some more intermediate steps on how to calculate them. This sheet covers all 4 cases of with/without air resistance and with/without motion.

Sheet Air Resistance Model
A1: Parameter | B1: Symbol | C1: Value | D1: Unit | E1: Options | H1: x | I1: With Air Resistance | J1: No Air Resistance | K1: Measurement | L1: Target | N1: x | O1: With Air Resistance | P1: No Air Resistance | Q1: Target | R1: Target | W1: Drop Menu Options (Do not Delete!)
A2: Initial Velocity | B2: v0 | C2: 6.4 | D2: m/s | E2: 1 | H2: 0 | I2: 0 | J2: 0 | N2: 0 | W2: Simulate
A3: Launch Angle | B3: q | C3: 72.4 | D3: deg | E3: TRUE | H3: 0.006130653881 | I3: 0.01096465502 | J3: 0.01095833961 | N3: 0.006130653881 | W3: Calculate Velocity
A4: Acceleration Due to Gravity | B4: g | C4: 9.8 | D4: m/s2 | E4: FALSE | H4: 0.01225399441 | I4: 0.02189711674 | J4: 0.02187194949 | N4: 0.01225399441 | W4: Calculate Theta
A5: Target Distance | B5: d | C5: 3 | D5: m | E5: FALSE | H5: 0.01837004553 | I5: 0.03279739988 | J5: 0.03274098551 | N5: 0.01837004553 | W5: Calculate Phi
A6: Target Height | B6: h | C6: 1.2 | D6: m | E6: TRUE | H6: 0.02447883116 | I6: 0.04366551906 | J6: 0.04356560284 | N6: 0.02447883116 | W6: Calculate W0
A7: Azimuth Angle | B7: f | C7: -30 | D7: deg | E7: TRUE | H7: 0.03058037517 | I7: 0.05450148889 | J7: 0.05434595594 | N7: 0.03058037517 | W7: Calculate Tau
A8: Vehicle Heading | B8: fm | C8: 30 | D8: deg | H8: 0.03667470141 | I8: 0.0653053239 | J8: 0.0650821986 | N8: 0.03667470141 | W8: Calculate Alpha
A9: Vehicle Speed | B9: vm | C9: 2 | D9: m/s | H9: 0.04208584016 | I9: 0.07488176713 | J9: 0.07458861821 | N9: 0.04208584016 | W9: Calculate Beta
A10: Mass of Ball | B10: m | C10: 0.23 | D10: kg | E10: TRUE | H10: 0.04816659773 | I10: 0.08562494254 | J10: 0.08524195832 | N10: 0.04816659773 | W10: Calculate Gamma
A11: Rotational velocity | B11: w / (2p) | C11: 15 | D11: rev/s | H11: 0.05424020619 | I11: 0.09633602486 | J11: 0.09585162841 | N11: 0.05424020619 | W11: Calculate Theta and Phi
A12: Spin Decay Coefficient | B12: t | C12: 10 | D12: s | H12: 0.06030668924 | I12: 0.1070150284 | J12: 0.1064177796 | N12: 0.06030668924
A13: Quadratic Drag Term | B13: a | C13: =Parameters!C18 -> 0.005775386125 | D13: N(s/m)2 | H13: 0.06636607053 | I13: 0.1176619676 | J13: 0.1169405624 | N13: 0.06636607053
A14: Linear Drag Term | B14: b | C14: =Parameters!C19 -> 2.544690049e-05 | D14: N(s/m) | H14: 0.07241837368 | I14: 0.1282768565 | J14: 0.1274201265 | N14: 0.07241837368
A15: Magnus Force Drag Term | B15: g | C15: =Parameters!C20 -> 0.0006663907067 | D15: N(s/m) | H15: 0.0784636223 | I15: 0.1388597094 | J15: 0.1378566211 | N15: 0.0784636223
H16: 0.08450183993 | I16: 0.1494105404 | J16: 0.1482501945 | N16: 0.08450183993
A17: Parameters with No Air Resistance | H17: 0.09053305009 | I17: 0.1599293636 | J17: 0.1586009946 | N17: 0.09053305009
A18: Parameter | B18: Formula | C18: Value | D18: Unit | H18: 0.09655727626 | I18: 0.1704161931 | J18: 0.1689091685 | N18: 0.09655727626
A19: Peak Time | C19: 0.6224918684 | D19: s | H19: 0.1025745419 | I19: 0.1808710428 | J19: 0.1791748625 | N19: 0.1025745419
A20: Peak Height | C20: 1.898731018 | D20: m | H20: 0.1085848704 | I20: 0.1912939268 | J20: 0.1893982226 | N20: 0.1085848704
A21: Time to Target | C21: 0.8802933817 | D21: s | H21: 0.1145882851 | I21: 0.2016848588 | J21: 0.1995793937 | N21: 0.1145882851
A22: Y Target Error | C22: 0.3730690789 | D22: m | H22: 0.1205848094 | I22: 0.2120438528 | J22: 0.2097185205 | N22: 0.1205848094
A23: Z Target Error | C23: 0.02853594852 | D23: m | H23: 0.1265744666 | I23: 0.2223709224 | J23: 0.2198157467 | N23: 0.1265744666
A24: Time to Hit Ground | C24: 1.244983737 | D24: s | H24: 0.13255728 | I24: 0.2326660816 | J24: 0.2298712154 | N24: 0.13255728
A25: X Range | C25: 4.242848223 | D25: m | H25: 0.1385332727 | I25: 0.2429293439 | J25: 0.2398850692 | N25: 0.1385332727
H26: 0.1445024681 | I26: 0.253160723 | J26: 0.2498574501 | N26: 0.1445024681
A27: Parameters with Air Resistance | H27: 0.1504648891 | I27: 0.2633602325 | J27: 0.2597884991 | N27: 0.1504648891
A28: Parameter | B28: Formula | D28: Unit | H28: 0.1564205591 | I28: 0.273527886 | J28: 0.269678357 | N28: 0.1564205591
A29: Peak Time | C29: 0.6482 | D29: s | H29: 0.162369501 | I29: 0.2836636969 | J29: 0.2795271636 | N29: 0.162369501
A30: Peak Height | C30: 1.949108859 | D30: m | H30: 0.168311738 | I30: 0.2937676787 | J30: 0.2893350583 | N30: 0.168311738
A31: Time to Target | C31: 1.057 | D31: s | H31: 0.1742472931 | I31: 0.3038398448 | J31: 0.2991021798 | N31: 0.1742472931
A32: Y Target Error | C32: -0.004799807577 | D32: m | H32: 0.1801761892 | I32: 0.3138802085 | J32: 0.3088286662 | N32: 0.1801761892
A33: Z Target Error | C33: 0.03213728692 | D33: m | H33: 0.1860984493 | I33: 0.3238887832 | J33: 0.3185146548 | N33: 0.1860984493
A34: Time to Hit Ground | C34: 1.3092 | D34: s | H34: 0.1920140964 | I34: 0.333865582 | J34: 0.3281602825 | N34: 0.1920140964
A35: Range | C35: 3.720406694 | D35: m | H35: 0.1985793094 | I35: 0.3449136622 | J35: 0.3388304754 | N35: 0.1985793094
H36: 0.2044810706 | I36: 0.3548234221 | J36: 0.3483913432 | N36: 0.2044810706
A37: Model Fitting Constant | B37: Calculated from Simulator | C37: n/a | D37: n/a | H37: 0.21037629 | I37: 0.3647014472 | J37: 0.3579122717 | N37: 0.21037629
H38: 0.2162649902 | I38: 0.3745477504 | J38: 0.3673933952 | N38: 0.2162649902
A39: Analog Derivations | H39: 0.2221471939 | I39: 0.3843623447 | J39: 0.3768348474 | N39: 0.2221471939
D40: Vo | E40: =C2 -> 6.4 | H40: 0.228022924 | I40: 0.3941452432 | J40: 0.3862367611 | N40: 0.228022924
D41: Theta | E41: =PI()/180*C3 -> 1.263618378 | H41: 0.2345439479 | I41: 0.404977972 | J41: 0.3966371209 | N41: 0.2345439479
D42: Vox | E42: =E40*COS(E41) -> 1.935167301 | H42: 0.2404060857 | I42: 0.4146939993 | J42: 0.4059559989 | N42: 0.2404060857
D43: Voy | E43: =E40*SIN(E41) -> 6.100420274 | H43: 0.2462618203 | I43: 0.4243783708 | J43: 0.4152357485 | N43: 0.2462618203
H44: 0.2521111742 | I44: 0.4340310992 | J44: 0.4244765003 | N44: 0.2521111742
D45: tp | E45: =E43/9.8 -> 0.6224918647 | H45: 0.2586030003 | I45: 0.4447192561 | J45: 0.4346984221 | N45: 0.2586030003
D46: h | E46: =E45*E43-4.9*E45^2 -> 1.898730996 | H46: 0.2644389579 | I46: 0.4543052241 | J46: 0.4438572711 | N46: 0.2644389579
D47: tt | E47: =3/E42 -> 1.550253561 | H47: 0.270268605 | I47: 0.4638595883 | J47: 0.4529775245 | N47: 0.270268605
A48: Discrete Derivations with Air Resistance | D48: d | E48: =E47*E42 -> 3 | H48: 0.2760919639 | I48: 0.4733823614 | J48: 0.4620593105 | N48: 0.2760919639
D49: yt | E49: =E43*E47-4.9*E47^2 -> -2.318903657 | H49: 0.2825550149 | I49: 0.4839261843 | J49: 0.4721052226 | N49: 0.2825550149
H50: 0.2883651724 | I50: 0.493382306 | J50: 0.4811062173 | N50: 0.2883651724
H51: 0.2941691113 | I51: 0.5028068754 | J51: 0.4900691393 | N51: 0.2941691113
H52: 0.3006106662 | I52: 0.5132416284 | J52: 0.499983441 | N52: 0.3006106662
H53: 0.3064015503 | I53: 0.5225996278 | J53: 0.5088663989 | N53: 0.3064015503
H54: 0.3121862853 | I54: 0.5319261131 | J54: 0.5177116731 | N54: 0.3121862853
H55: 0.3186065835 | I55: 0.5422519286 | J55: 0.5274957092 | N55: 0.3186065835
H56: 0.3243784097 | I56: 0.5515119245 | J56: 0.5362618348 | N56: 0.3243784097
H57: 0.3301441557 | I57: 0.5607404442 | J57: 0.54499066 | N57: 0.3301441557
H58: 0.3365434359 | I58: 0.5709574532 | J58: 0.5546457558 | N58: 0.3365434359
H59: 0.3422964184 | I59: 0.5801195629 | J59: 0.563296236 | N59: 0.3422964184
H60: 0.3480433894 | I60: 0.5892502338 | J60: 0.5719097937 | N60: 0.3480433894
H61: 0.3544218891 | I61: 0.5993585657 | J61: 0.5814372556 | N61: 0.3544218891
H62: 0.3601562414 | I62: 0.6084229051 | J62: 0.5899732602 | N62: 0.3601562414
H63: 0.3665207746 | I63: 0.6184575647 | J63: 0.5994148475 | N63: 0.3665207746
H64: 0.3722426061 | I64: 0.6274556254 | J64: 0.6078738299 | N64: 0.3722426061
H65: 0.3785932815 | I65: 0.6374166711 | J65: 0.6172301296 | N65: 0.3785932815
H66: 0.3843026896 | I66: 0.6463485053 | J66: 0.6256126153 | N66: 0.3843026896
H67: 0.3900062469 | I67: 0.6552489873 | J67: 0.6339590476 | N67: 0.3900062469
H68: 0.3963366974 | I68: 0.6651016547 | J68: 0.6431907177 | N68: 0.3963366974
H69: 0.4020279746 | I69: 0.6739359866 | J69: 0.6514614184 | N69: 0.4020279746
H70: 0.4083448343 | I70: 0.6837151823 | J70: 0.6606092278 | N70: 0.4083448343
H71: 0.4140239282 | I71: 0.6924834154 | J71: 0.6688047094 | N71: 0.4140239282
H72: 0.4203273045 | I72: 0.7021891963 | J72: 0.677869225 | N72: 0.4203273045
H73: 0.4266236274 | I73: 0.7118563604 | J73: 0.6868901273 | N73: 0.4266236274
H74: 0.4322843118 | I74: 0.7205238035 | J74: 0.694971778 | N74: 0.4322843118
H75: 0.4385673147 | I75: 0.7301176384 | J75: 0.7039102407 | N75: 0.4385673147
H76: 0.4442160591 | I76: 0.7387191103 | J76: 0.711917945 | N76: 0.4442160591
H77: 0.4504858487 | I77: 0.7482396715 | J77: 0.7207745207 | N77: 0.4504858487
H78: 0.456122749 | I78: 0.7567752219 | J78: 0.7287087734 | N78: 0.456122749
H79: 0.4623794314 | I79: 0.7662225644 | J79: 0.737484009 | N79: 0.4623794314
H80: 0.4680045831 | I80: 0.7746922425 | J80: 0.7453453 | N80: 0.4680045831
H81: 0.4742482645 | I81: 0.784066421 | J81: 0.7540397371 | N81: 0.4742482645
H82: 0.4804851458 | I82: 0.7934021137 | J82: 0.7626918642 | N82: 0.4804851458
H83: 0.4860925489 | I83: 0.8017713443 | J83: 0.7704427257 | N83: 0.4860925489
H84: 0.4923165903 | I84: 0.8110339554 | J84: 0.7790148703 | N84: 0.4923165903
H85: 0.4985339161 | I85: 0.8202581239 | J85: 0.787545131 | N85: 0.4985339161
H86: 0.5041237916 | I86: 0.8285270193 | J86: 0.7951866751 | N86: 0.5041237916
H87: 0.510328438 | I87: 0.8376781874 | J87: 0.8036377565 | N87: 0.510328438
H88: 0.5165264532 | I88: 0.8467909555 | J88: 0.8120473735 | N88: 0.5165264532
H89: 0.5220990211 | I89: 0.8549596267 | J89: 0.8195806951 | N89: 0.5220990211
H90: 0.5282845166 | I90: 0.8639994746 | J90: 0.8279119235 | N90: 0.5282845166
H91: 0.5344634648 | I91: 0.8730009644 | J91: 0.8362021006 | N91: 0.5344634648
H92: 0.5400189439 | I92: 0.881069521 | J92: 0.8436282774 | N92: 0.5400189439
H93: 0.5461855315 | I93: 0.8899981698 | J93: 0.8518408443 | N93: 0.5461855315
H94: 0.5523456553 | I94: 0.898888502 | J94: 0.8600127662 | N94: 0.5523456553
H95: 0.5584993439 | I95: 0.9077405315 | J95: 0.8681441819 | N95: 0.5584993439
H96: 0.5640321853 | I96: 0.9156746211 | J96: 0.8754279371 | N96: 0.5640321853
H97: 0.5701737262 | I97: 0.9244539145 | J97: 0.8834827702 | N97: 0.5701737262
H98: 0.576308915 | I98: 0.9331949459 | J98: 0.8914974948 | N98: 0.576308915
H99: 0.5824377802 | I99: 0.9418977293 | J99: 0.8994722468 | N99: 0.5824377802
H100: 0.5885603504 | I100: 0.9505622785 | J100: 0.907407161 | N100: 0.5885603504
H101: 0.5940653049 | I101: 0.9583276938 | J101: 0.9145146336 | N101: 0.5940653049
H102: 0.600175993 | I102: 0.9669196357 | J102: 0.9223742254 | N102: 0.600175993
H103: 0.6062804685 | I103: 0.9754733831 | J103: 0.9301943667 | N103: 0.6062804685
H104: 0.6123787597 | I104: 0.9839889495 | J104: 0.9379751896 | N104: 0.6123787597
H105: 0.618470895 | I105: 0.9924663484 | J105: 0.9457168255 | N105: 0.618470895
H106: 0.6245569026 | I106: 1.000905593 | J106: 0.9534194051 | N106: 0.6245569026
H107: 0.6300290935 | I107: 1.008468303 | J107: 0.9603184408 | N107: 0.6300290935
H108: 0.6361035362 | I108: 1.016835092 | J108: 0.9679471704 | N108: 0.6361035362
H109: 0.6421719328 | I109: 1.025163765 | J109: 0.9755372183 | N109: 0.6421719328
H110: 0.6482343116 | I110: 1.033454337 | J110: 0.9830887123 | N110: 0.6482343116
H111: 0.6542907005 | I111: 1.041706819 | J111: 0.9906017795 | N111: 0.6542907005
H112: 0.6603411276 | I112: 1.049921225 | J112: 0.9980765462 | N112: 0.6603411276
H113: 0.6663856208 | I113: 1.058097567 | J113: 1.005513138 | N113: 0.6663856208
H114: 0.6724242081 | I114: 1.06623586 | J114: 1.01291168 | N114: 0.6724242081
H115: 0.6784569173 | I115: 1.074336115 | J115: 1.020272297 | N115: 0.6784569173
H116: 0.6844837763 | I116: 1.082398346 | J116: 1.027595111 | N116: 0.6844837763
H117: 0.6905048129 | I117: 1.090422564 | J117: 1.034880246 | N117: 0.6905048129
H118: 0.6965200549 | I118: 1.098408784 | J118: 1.042127824 | N118: 0.6965200549
H119: 0.7025295299 | I119: 1.106357017 | J119: 1.049337966 | N119: 0.7025295299
H120: 0.7085332656 | I120: 1.114267276 | J120: 1.056510793 | N120: 0.7085332656
H121: 0.7145312898 | I121: 1.122139573 | J121: 1.063646425 | N121: 0.7145312898
H122: 0.72052363 | I122: 1.129973921 | J122: 1.070744981 | N122: 0.72052363
H123: 0.7265103137 | I123: 1.137770333 | J123: 1.07780658 | N123: 0.7265103137
H124: 0.7324913684 | I124: 1.14552882 | J124: 1.084831341 | N124: 0.7324913684
H125: 0.7384668217 | I125: 1.153249394 | J125: 1.091819379 | N125: 0.7384668217
H126: 0.744436701 | I126: 1.160932069 | J126: 1.098770813 | N126: 0.744436701
H127: 0.7504010337 | I127: 1.168576855 | J127: 1.105685757 | N127: 0.7504010337
H128: 0.7563598471 | I128: 1.176183765 | J128: 1.112564328 | N128: 0.7563598471
H129: 0.7623131686 | I129: 1.183752812 | J129: 1.119406639 | N129: 0.7623131686
H130: 0.7682610253 | I130: 1.191284006 | J130: 1.126212804 | N130: 0.7682610253
H131: 0.7742034447 | I131: 1.19877736 | J131: 1.132982938 | N131: 0.7742034447
H132: 0.7801404538 | I132: 1.206232885 | J132: 1.139717152 | N132: 0.7801404538 | O132: 0.007818760639 | P132: 0.007420682608
H133: 0.7860720798 | I133: 1.213650594 | J133: 1.146415558 | N133: 0.7860720798 | O133: 0.007881115884 | P133: 0.007477104133
H134: 0.7925906834 | I134: 1.221766409 | J134: 1.153742579 | N134: 0.7925906834 | O134: 0.007949687991 | P134: 0.007539108978
H135: 0.7985110931 | I135: 1.22910474 | J135: 1.16036615 | N135: 0.7985110931 | O135: 0.008012009368 | P135: 0.007595423814
H136: 0.8044262038 | I136: 1.23640529 | J136: 1.166954256 | N136: 0.8044262038 | O136: 0.008074314704 | P136: 0.007651688245
H137: 0.8103360422 | I137: 1.243668072 | J137: 1.173507007 | N137: 0.8103360422 | O137: 0.008136604056 | P137: 0.007707902528
H138: 0.8162406355 | I138: 1.250893095 | J138: 1.18002451 | N138: 0.8162406355 | O138: 0.00819887748 | P138: 0.007764066918
H139: 0.8221400105 | I139: 1.258080371 | J139: 1.186506874 | N139: 0.8221400105 | O139: 0.00826113503 | P139: 0.007820181671
H140: 0.8280341942 | I140: 1.265229912 | J140: 1.192954206 | N140: 0.8280341942 | O140: 0.008323376764 | P140: 0.007876247045
H141: 0.8345118321 | I141: 1.273050837 | J141: 1.200005936 | N141: 0.8345118321 | O141: 0.008391824469 | P141: 0.007937862226
H142: 0.8403952011 | I142: 1.28012117 | J142: 1.206380047 | N142: 0.8403952011 | O142: 0.008454033168 | P142: 0.007993824731
H143: 0.8462734618 | I143: 1.287153803 | J143: 1.212719454 | N143: 0.8462734618 | O143: 0.008516226222 | P143: 0.008049738645
H144: 0.8521466408 | I144: 1.294148746 | J144: 1.219024262 | N144: 0.8521466408 | O144: 0.008578403684 | P144: 0.008105604224
H145: 0.858014765 | I145: 1.301106011 | J145: 1.225294575 | N145: 0.858014765 | O145: 0.008640565612 | P145: 0.00816142172
H146: 0.8644638948 | I146: 1.308715496 | J146: 1.232152201 | N146: 0.8644638948 | O146: 0.008708925853 | P146: 0.008222765733
H147: 0.8703214903 | I147: 1.31559367 | J147: 1.23835041 | N147: 0.8703214903 | O147: 0.008771055333 | P147: 0.00827848308
H148: 0.8761741133 | I148: 1.3224342 | J148: 1.244514443 | N148: 0.8761741133 | O148: 0.008833169447 | P148: 0.008334153129
H149: 0.8820217903 | I149: 1.329237095 | J149: 1.2506444 | N149: 0.8820217903 | O149: 0.008895268248 | P149: 0.008389776133
H150: 0.8884485541 | I150: 1.336676825 | J150: 1.257348116 | N150: 0.8884485541 | O150: 0.008963559308 | P150: 0.0084509074
H151: 0.8942859308 | I151: 1.343400723 | J151: 1.263406843 | N151: 0.8942859308 | O151: 0.009025626129 | P151: 0.008506432427
H152: 0.9001184435 | I152: 1.350087019 | J152: 1.269431804 | N152: 0.9001184435 | O152: 0.009087677804 | P152: 0.008561911188
H153: 0.9065286211 | I153: 1.357398528 | J153: 1.276020382 | N153: 0.9065286211 | O153: 0.009155917219 | P153: 0.008622884687
H154: 0.9123510053 | I154: 1.364005896 | J154: 1.281974758 | N154: 0.9123510053 | O154: 0.009217937263 | P154: 0.008678267105
H155: 0.918168607 | I155: 1.370575694 | J155: 1.287895674 | N155: 0.918168607 | O155: 0.009279942328 | P155: 0.008733604033
H156: 0.9245624767 | I156: 1.377759092 | J156: 1.294370151 | N156: 0.9245624767 | O156: 0.009348130661 | P156: 0.008794422411
H157: 0.9303701208 | I157: 1.384250029 | J157: 1.300221115 | N157: 0.9303701208 | O157: 0.00941010444 | P157: 0.008849664623
H158: 0.9361730639 | I158: 1.390703428 | J158: 1.306038917 | N158: 0.9361730639 | O158: 0.009472063404 | P158: 0.008904862118
H159: 0.9425509026 | I159: 1.397758824 | J159: 1.31240031 | N159: 0.9425509026 | O159: 0.009540201215 | P159: 0.00896552801
H160: 0.9483440582 | I160: 1.404133427 | J160: 1.318148781 | N160: 0.9483440582 | O160: 0.009602129236 | P160: 0.009020632407
H161: 0.9541325936 | I161: 1.410470525 | J161: 1.323864383 | N161: 0.9541325936 | O161: 0.009664042604 | P161: 0.009075692856
H162: 0.9604946771 | I162: 1.417398024 | J162: 1.330113692 | N162: 0.9604946771 | O162: 0.009732130446 | P162: 0.009136208886
H163: 0.9662735946 | I163: 1.423656391 | J163: 1.335760571 | N163: 0.9662735946 | O163: 0.009794013211 | P163: 0.009191177849
H164: 0.9720479723 | I164: 1.429877282 | J164: 1.341374868 | N164: 0.9720479723 | O164: 0.009855881484 | P164: 0.009246103631
H165: 0.9783945752 | I165: 1.43667699 | J165: 1.347513071 | N165: 0.9783945752 | O165: 0.009923919906 | P165: 0.009306472409
H166: 0.9841595036 | I166: 1.442819214 | J166: 1.353059241 | N166: 0.9841595036 | O166: 0.009985757912 | P166: 0.009361308309
H167: 0.990495775 | I167: 1.449532412 | J167: 1.359122725 | N167: 0.990495775 | O167: 0.01005376316 | P167: 0.009421578814
H168: 0.996251368 | I168: 1.455596011 | J168: 1.364601167 | N168: 0.996251368 | O168: 0.01011557113 | P168: 0.009476325916
H169: 1.002002555 | I169: 1.461622186 | J169: 1.370047496 | N169: 1.002002555 | O169: 0.01017736487 | P169: 0.009531031112
H170: 1.008323804 | I170: 1.468207762 | J170: 1.376001471 | N170: 1.008323804 | O170: 0.01024532161 | P170: 0.009591158719
H171: 1.014065823 | I171: 1.474155374 | J171: 1.381380647 | N171: 1.014065823 | O171: 0.01030708564 | P171: 0.00964577671
H172: 1.020377049 | I172: 1.480654554 | J172: 1.387260967 | N172: 1.020377049 | O172: 0.01037500982 | P172: 0.009705808982
H173: 1.026110014 | I173: 1.486523644 | J173: 1.392573375 | N173: 1.026110014 | O173: 0.01043674436 | P173: 0.009760340842
H174: 1.032411341 | I174: 1.492936474 | J174: 1.39838046 | N174: 1.032411341 | O174: 0.01050463622 | P174: 0.009820278959
H175: 1.038135363 | I175: 1.498727083 | J175: 1.403626478 | N175: 1.038135363 | O175: 0.01056634149 | P175: 0.009874725759
H176: 1.044426916 | I176: 1.505053606 | J176: 1.40936074 | N176: 1.044426916 | O176: 0.01063420128 | P176: 0.009934570898
H177: 1.050142108 | I177: 1.510765774 | J177: 1.414540743 | N177: 1.050142108 | O177: 0.0106958775 | P177: 0.009988933706
H178: 1.056424009 | I178: 1.517006034 | J178: 1.42020259 | N178: 1.056424009 | O178: 0.01076370545 | P178: 0.01004868704
H179: 1.062130482 | I179: 1.522639802 | J179: 1.425316944 | N179: 1.062130482 | O179: 0.01082535284 | P179: 0.01010296692
H180: 1.068402855 | I180: 1.528793842 | J180: 1.430906779 | N180: 1.068402855 | O180: 0.01089314919 | P180: 0.01016262962
H181: 1.074100722 | I181: 1.534349247 | J181: 1.435955848 | N181: 1.074100722 | O181: 0.01095476796 | P181: 0.01021682763
H182: 1.080363688 | I182: 1.540417111 | J182: 1.441474066 | N182: 1.080363688 | O182: 0.01102253296 | P182: 0.01027640086
H183: 1.08605306 | I183: 1.545894193 | J183: 1.446458208 | N183: 1.08605306 | O183: 0.01108412332 | P183: 0.01033051807
H184: 1.092306743 | I184: 1.551875922 | J184: 1.451905199 | N184: 1.092306743 | O184: 0.01115185719 | P184: 0.01039000299
H185: 1.098555611 | I185: 1.55781255 | J185: 1.457315036 | N185: 1.098555611 | O185: 0.01121957484 | P185: 0.01044944212
H186: 1.104232251 | I186: 1.563170356 | J186: 1.462200916 | N186: 1.104232251 | O186: 0.01128112233 | P186: 0.01050343822
H187: 1.110472021 | I187: 1.569020912 | J187: 1.467540112 | N187: 1.110472021 | O187: 0.0113488092 | P187: 0.0105627908
H188: 1.116140444 | I188: 1.574300489 | J188: 1.472361943 | N188: 1.116140444 | O188: 0.01141032882 | P188: 0.01061670875
H189: 1.122371237 | I189: 1.580065015 | J189: 1.477630873 | N189: 1.122371237 | O189: 0.01147798515 | P189: 0.01067597595
H190: 1.128031555 | I190: 1.585266402 | J190: 1.482388996 | N190: 1.128031555 | O190: 0.0115394771 | P190: 0.01072981679
H191: 1.134253491 | I191: 1.590944937 | J191: 1.487588031 | N191: 1.134253491 | O191: 0.01160710311 | P191: 0.01078899974
H192: 1.140470837 | I192: 1.596578445 | J192: 1.4927506 | N192: 1.140470837 | O192: 0.01167471334 | P192: 0.01084813903
H193: 1.146119013 | I193: 1.601660753 | J193: 1.497412285 | N193: 1.146119013 | O193: 0.01173616352 | P193: 0.01090186438
H194: 1.152327686 | I194: 1.607208332 | J194: 1.502505513 | N194: 1.152327686 | O194: 0.01180374377 | P194: 0.01096092117
H195: 1.158531863 | I195: 1.612710915 | J195: 1.507562563 | N195: 1.158531863 | O195: 0.0118713084 | P195: 0.0110199352
H196: 1.164168152 | I196: 1.617674227 | J196: 1.512128568 | N196: 1.164168152 | O196: 0.0119327173 | P196: 0.01107354748
H197: 1.170363839 | I197: 1.623090939 | J197: 1.517116819 | N197: 1.170363839 | O197: 0.01200025229 | P197: 0.01113248075
H198: 1.176555126 | I198: 1.628462686 | J198: 1.522069172 | N198: 1.176555126 | O198: 0.01206777185 | P198: 0.01119137217
H199: 1.182179779 | I199: 1.633307083 | J199: 1.526540239 | N199: 1.182179779 | O199: 0.01212913992 | P199: 0.01124487377
H200: 1.188362758 | I200: 1.638593017 | J200: 1.531424321 | N200: 1.188362758 | O200: 0.01219663017 | P200: 0.01130368616
... 461 more rows

Sheet Stationary Turret No Air Model
A1: Parameter | B1: Symbol | C1: Value | D1: Unit | F1: 1 | I1: Parameter | J1: High Angle | K1: Low Angle
A2: Velocity | B2: V | C2: 7.5 | D2: m/s | I2: Velocity | J2: =IF($F$1=2,C10,V) -> 7.5 | K2: =IF($F$1=2,D10,V) -> 7.5
A3: Angle | B3: q | C3: 60 | D3: deg | I3: Angle | J3: =IF($F$1=1,C11*PI()/180,Theta) -> 1.246655424 | K3: =IF($F$1=1,D11*PI()/180,Theta) -> 0.7046472799
A4: Target Height | B4: h | C4: 1.2 | D4: m
A5: Target Distance | B5: d | C5: 3 | D5: m
A6: Acceleration Due to Gravity | B6: g | C6: 9.8 | D6: m/s2 | I6: x | J6: High Angle | K6: Low Angle | L6: Target
I7: 0 | J7: =$I7*TAN(J$3)-0.5*g*$I7^2/(J$2*COS(J$3))^2 -> 0 | K7: 0 | L7: =IF(ABS($I7-$C$5-Parameters!$C$21)>Parameters!$C$22,-100,IF($I7-$C$5-Parameters!$C$21<-Parameters!$C$23,Parameters!$C$24 + Parameters!$C$25 / (Parameters!$C$23 - Parameters!$C$22) * (($I7-$C$5-Parameters!$C$21) + Parameters!$C$23),IF($I7-$C$5-Parameters!$C$21<Parameters!$C$23,Parameters!$C$24,Parameters!$C$24 - Parameters!$C$25 / (Parameters!$C$23 - Parameters!$C$22) * (($I7-$C$5-Parameters!$C$21) - Parameters!$C$23)))) -> -100
A8: Calculated Values | I8: =I7+0.01 -> 0.01 | J8: 0.02967679108 | K8: 0.008487630685 | L8: =IF(ABS($I8-$C$5-Parameters!$C$21)>Parameters!$C$22,-100,IF($I8-$C$5-Parameters!$C$21<-Parameters!$C$23,Parameters!$C$24 + Parameters!$C$25 / (Parameters!$C$23 - Parameters!$C$22) * (($I8-$C$5-Parameters!$C$21) + Parameters!$C$23),IF($I8-$C$5-Parameters!$C$21<Parameters!$C$23,Parameters!$C$24,Parameters!$C$24 - Parameters!$C$25 / (Parameters!$C$23 - Parameters!$C$22) * (($I8-$C$5-Parameters!$C$21) - Parameters!$C$23)))) -> -100
A9: Parameter | B9: Symbol | C9: High Value | D9: Low Value | E9: Unit | I9: =I8+0.01 -> 0.02 | J9: 0.05918183106 | K9: 0.01694524377 | L9: =IF(ABS($I9-$C$5-Parameters!$C$21)>Parameters!$C$22,-100,IF($I9-$C$5-Parameters!$C$21<-Parameters!$C$23,Parameters!$C$24 + Parameters!$C$25 / (Parameters!$C$23 - Parameters!$C$22) * (($I9-$C$5-Parameters!$C$21) + Parameters!$C$23),IF($I9-$C$5-Parameters!$C$21<Parameters!$C$23,Parameters!$C$24,Parameters!$C$24 - Parameters!$C$25 / (Parameters!$C$23 - Parameters!$C$22) * (($I9-$C$5-Parameters!$C$21) - Parameters!$C$23)))) -> -100
A10: Velocity to Target | B10: V1,2 | C10: =IF(F1=2,B26,V) -> 7.5 | D10: =C10 -> 7.5 | E10: m/s | I10: 0.03 | J10: 0.08851511992 | K10: 0.02537283926 | L10: =IF(ABS($I10-$C$5-Parameters!$C$21)>Parameters!$C$22,-100,IF($I10-$C$5-Parameters!$C$21<-Parameters!$C$23,Parameters!$C$24 + Parameters!$C$25 / (Parameters!$C$23 - Parameters!$C$22) * (($I10-$C$5-Parameters!$C$21) + Parameters!$C$23),IF($I10-$C$5-Parameters!$C$21<Parameters!$C$23,Parameters!$C$24,Parameters!$C$24 - Parameters!$C$25 / (Parameters!$C$23 - Parameters!$C$22) * (($I10-$C$5-Parameters!$C$21) - Parameters!$C$23)))) -> -100
A11: Angle to Target | B11: q1,2 | C11: =IF(F1=1,B37,C3) -> 71.4280943 | D11: =IF(F1=1,B38,C3) -> 40.37331518 | E11: deg | I11: 0.04 | J11: 0.1176766577 | K11: 0.03377041716 | L11: =IF(ABS($I11-$C$5-Parameters!$C$21)>Parameters!$C$22,-100,IF($I11-$C$5-Parameters!$C$21<-Parameters!$C$23,Parameters!$C$24 + Parameters!$C$25 / (Parameters!$C$23 - Parameters!$C$22) * (($I11-$C$5-Parameters!$C$21) + Parameters!$C$23),IF($I11-$C$5-Parameters!$C$21<Parameters!$C$23,Parameters!$C$24,Parameters!$C$24 - Parameters!$C$25 / (Parameters!$C$23 - Parameters!$C$22) * (($I11-$C$5-Parameters!$C$21) - Parameters!$C$23)))) -> -100
A12: Target Strike Angle | B12: f1,2 | C12: =B44 -> -124.6908949 | D12: -2.8799121 | E12: deg | I12: 0.05 | J12: 0.1466664443 | K12: 0.04213797746 | L12: =IF(ABS($I12-$C$5-Parameters!$C$21)>Parameters!$C$22,-100,IF($I12-$C$5-Parameters!$C$21<-Parameters!$C$23,Parameters!$C$24 + Parameters!$C$25 / (Parameters!$C$23 - Parameters!$C$22) * (($I12-$C$5-Parameters!$C$21) + Parameters!$C$23),IF($I12-$C$5-Parameters!$C$21<Parameters!$C$23,Parameters!$C$24,Parameters!$C$24 - Parameters!$C$25 / (Parameters!$C$23 - Parameters!$C$22) * (($I12-$C$5-Parameters!$C$21) - Parameters!$C$23)))) -> -100
A13: Time to Target | B13: t1,2 | C13: 1.255908484 | D13: 0.5250445744 | E13: s | I13: 0.06 | J13: 0.1754844798 | K13: 0.05047552016 | L13: =IF(ABS($I13-$C$5-Parameters!$C$21)>Parameters!$C$22,-100,IF($I13-$C$5-Parameters!$C$21<-Parameters!$C$23,Parameters!$C$24 + Parameters!$C$25 / (Parameters!$C$23 - Parameters!$C$22) * (($I13-$C$5-Parameters!$C$21) + Parameters!$C$23),IF($I13-$C$5-Parameters!$C$21<Parameters!$C$23,Parameters!$C$24,Parameters!$C$24 - Parameters!$C$25 / (Parameters!$C$23 - Parameters!$C$22) * (($I13-$C$5-Parameters!$C$21) - Parameters!$C$23)))) -> -100
A14: Peak Time | B14: tp1,2 | C14: 0.7254525719 | D14: 0.4957386379 | E14: s | I14: 0.07 | J14: 0.2041307643 | K14: 0.05878304527 | L14: =IF(ABS($I14-$C$5-Parameters!$C$21)>Parameters!$C$22,-100,IF($I14-$C$5-Parameters!$C$21<-Parameters!$C$23,Parameters!$C$24 + Parameters!$C$25 / (Parameters!$C$23 - Parameters!$C$22) * (($I14-$C$5-Parameters!$C$21) + Parameters!$C$23),IF($I14-$C$5-Parameters!$C$21<Parameters!$C$23,Parameters!$C$24,Parameters!$C$24 - Parameters!$C$25 / (Parameters!$C$23 - Parameters!$C$22) * (($I14-$C$5-Parameters!$C$21) - Parameters!$C$23)))) -> -100
A15: Peak Height | B15: h1,2 | C15: 2.578779027 | D15: 1.204208306 | E15: m/s | I15: 0.08 | J15: 0.2326052976 | K15: 0.06706055277 | L15: =IF(ABS($I15-$C$5-Parameters!$C$21)>Parameters!$C$22,-100,IF($I15-$C$5-Parameters!$C$21<-Parameters!$C$23,Parameters!$C$24 + Parameters!$C$25 / (Parameters!$C$23 - Parameters!$C$22) * (($I15-$C$5-Parameters!$C$21) + Parameters!$C$23),IF($I15-$C$5-Parameters!$C$21<Parameters!$C$23,Parameters!$C$24,Parameters!$C$24 - Parameters!$C$25 / (Parameters!$C$23 - Parameters!$C$22) * (($I15-$C$5-Parameters!$C$21) - Parameters!$C$23)))) -> -100
I16: 0.09 | J16: 0.2609080798 | K16: 0.07530804269 | L16: =IF(ABS($I16-$C$5-Parameters!$C$21)>Parameters!$C$22,-100,IF($I16-$C$5-Parameters!$C$21<-Parameters!$C$23,Parameters!$C$24 + Parameters!$C$25 / (Parameters!$C$23 - Parameters!$C$22) * (($I16-$C$5-Parameters!$C$21) + Parameters!$C$23),IF($I16-$C$5-Parameters!$C$21<Parameters!$C$23,Parameters!$C$24,Parameters!$C$24 - Parameters!$C$25 / (Parameters!$C$23 - Parameters!$C$22) * (($I16-$C$5-Parameters!$C$21) - Parameters!$C$23)))) -> -100
A17: General Derivations | I17: 0.1 | J17: 0.2890391108 | K17: 0.083525515 | L17: =IF(ABS($I17-$C$5-Parameters!$C$21)>Parameters!$C$22,-100,IF($I17-$C$5-Parameters!$C$21<-Parameters!$C$23,Parameters!$C$24 + Parameters!$C$25 / (Parameters!$C$23 - Parameters!$C$22) * (($I17-$C$5-Parameters!$C$21) + Parameters!$C$23),IF($I17-$C$5-Parameters!$C$21<Parameters!$C$23,Parameters!$C$24,Parameters!$C$24 - Parameters!$C$25 / (Parameters!$C$23 - Parameters!$C$22) * (($I17-$C$5-Parameters!$C$21) - Parameters!$C$23)))) -> -100
I18: 0.11 | J18: 0.3169983908 | K18: 0.09171296972 | L18: =IF(ABS($I18-$C$5-Parameters!$C$21)>Parameters!$C$22,-100,IF($I18-$C$5-Parameters!$C$21<-Parameters!$C$23,Parameters!$C$24 + Parameters!$C$25 / (Parameters!$C$23 - Parameters!$C$22) * (($I18-$C$5-Parameters!$C$21) + Parameters!$C$23),IF($I18-$C$5-Parameters!$C$21<Parameters!$C$23,Parameters!$C$24,Parameters!$C$24 - Parameters!$C$25 / (Parameters!$C$23 - Parameters!$C$22) * (($I18-$C$5-Parameters!$C$21) - Parameters!$C$23)))) -> -100
I19: 0.12 | J19: 0.3447859197 | K19: 0.09987040685 | L19: =IF(ABS($I19-$C$5-Parameters!$C$21)>Parameters!$C$22,-100,IF($I19-$C$5-Parameters!$C$21<-Parameters!$C$23,Parameters!$C$24 + Parameters!$C$25 / (Parameters!$C$23 - Parameters!$C$22) * (($I19-$C$5-Parameters!$C$21) + Parameters!$C$23),IF($I19-$C$5-Parameters!$C$21<Parameters!$C$23,Parameters!$C$24,Parameters!$C$24 - Parameters!$C$25 / (Parameters!$C$23 - Parameters!$C$22) * (($I19-$C$5-Parameters!$C$21) - Parameters!$C$23)))) -> -100
I20: 0.13 | J20: 0.3724016974 | K20: 0.1079978264 | L20: =IF(ABS($I20-$C$5-Parameters!$C$21)>Parameters!$C$22,-100,IF($I20-$C$5-Parameters!$C$21<-Parameters!$C$23,Parameters!$C$24 + Parameters!$C$25 / (Parameters!$C$23 - Parameters!$C$22) * (($I20-$C$5-Parameters!$C$21) + Parameters!$C$23),IF($I20-$C$5-Parameters!$C$21<Parameters!$C$23,Parameters!$C$24,Parameters!$C$24 - Parameters!$C$25 / (Parameters!$C$23 - Parameters!$C$22) * (($I20-$C$5-Parameters!$C$21) - Parameters!$C$23)))) -> -100
I21: 0.14 | J21: 0.3998457241 | K21: 0.1160952283 | L21: =IF(ABS($I21-$C$5-Parameters!$C$21)>Parameters!$C$22,-100,IF($I21-$C$5-Parameters!$C$21<-Parameters!$C$23,Parameters!$C$24 + Parameters!$C$25 / (Parameters!$C$23 - Parameters!$C$22) * (($I21-$C$5-Parameters!$C$21) + Parameters!$C$23),IF($I21-$C$5-Parameters!$C$21<Parameters!$C$23,Parameters!$C$24,Parameters!$C$24 - Parameters!$C$25 / (Parameters!$C$23 - Parameters!$C$22) * (($I21-$C$5-Parameters!$C$21) - Parameters!$C$23)))) -> -100
I22: 0.15 | J22: 0.4271179996 | K22: 0.1241626126 | L22: =IF(ABS($I22-$C$5-Parameters!$C$21)>Parameters!$C$22,-100,IF($I22-$C$5-Parameters!$C$21<-Parameters!$C$23,Parameters!$C$24 + Parameters!$C$25 / (Parameters!$C$23 - Parameters!$C$22) * (($I22-$C$5-Parameters!$C$21) + Parameters!$C$23),IF($I22-$C$5-Parameters!$C$21<Parameters!$C$23,Parameters!$C$24,Parameters!$C$24 - Parameters!$C$25 / (Parameters!$C$23 - Parameters!$C$22) * (($I22-$C$5-Parameters!$C$21) - Parameters!$C$23)))) -> -100
A23: Calculate Velocity if angle is known | I23: 0.16 | J23: 0.454218524 | K23: 0.1321999794 | L23: =IF(ABS($I23-$C$5-Parameters!$C$21)>Parameters!$C$22,-100,IF($I23-$C$5-Parameters!$C$21<-Parameters!$C$23,Parameters!$C$24 + Parameters!$C$25 / (Parameters!$C$23 - Parameters!$C$22) * (($I23-$C$5-Parameters!$C$21) + Parameters!$C$23),IF($I23-$C$5-Parameters!$C$21<Parameters!$C$23,Parameters!$C$24,Parameters!$C$24 - Parameters!$C$25 / (Parameters!$C$23 - Parameters!$C$22) * (($I23-$C$5-Parameters!$C$21) - Parameters!$C$23)))) -> -100
A24: Formula | B24: Value | C24: Unit | I24: 0.17 | J24: 0.4811472973 | K24: 0.1402073285 | L24: =IF(ABS($I24-$C$5-Parameters!$C$21)>Parameters!$C$22,-100,IF($I24-$C$5-Parameters!$C$21<-Parameters!$C$23,Parameters!$C$24 + Parameters!$C$25 / (Parameters!$C$23 - Parameters!$C$22) * (($I24-$C$5-Parameters!$C$21) + Parameters!$C$23),IF($I24-$C$5-Parameters!$C$21<Parameters!$C$23,Parameters!$C$24,Parameters!$C$24 - Parameters!$C$25 / (Parameters!$C$23 - Parameters!$C$22) * (($I24-$C$5-Parameters!$C$21) - Parameters!$C$23)))) -> -100
A25: q | B25: =C3*PI()/180 -> 1.047197551 | C25: rad | I25: 0.18 | J25: 0.5079043195 | K25: 0.1481846601 | L25: =IF(ABS($I25-$C$5-Parameters!$C$21)>Parameters!$C$22,-100,IF($I25-$C$5-Parameters!$C$21<-Parameters!$C$23,Parameters!$C$24 + Parameters!$C$25 / (Parameters!$C$23 - Parameters!$C$22) * (($I25-$C$5-Parameters!$C$21) + Parameters!$C$23),IF($I25-$C$5-Parameters!$C$21<Parameters!$C$23,Parameters!$C$24,Parameters!$C$24 - Parameters!$C$25 / (Parameters!$C$23 - Parameters!$C$22) * (($I25-$C$5-Parameters!$C$21) - Parameters!$C$23)))) -> -100
B26: =IF(E2,C2,d/COS(Theta)*SQRT(0.5*g/(d*TAN(Theta)-h))) -> 6.643979258 | C26: m/s | I26: 0.19 | J26: 0.5344895906 | K26: 0.156131974 | L26: =IF(ABS($I26-$C$5-Parameters!$C$21)>Parameters!$C$22,-100,IF($I26-$C$5-Parameters!$C$21<-Parameters!$C$23,Parameters!$C$24 + Parameters!$C$25 / (Parameters!$C$23 - Parameters!$C$22) * (($I26-$C$5-Parameters!$C$21) + Parameters!$C$23),IF($I26-$C$5-Parameters!$C$21<Parameters!$C$23,Parameters!$C$24,Parameters!$C$24 - Parameters!$C$25 / (Parameters!$C$23 - Parameters!$C$22) * (($I26-$C$5-Parameters!$C$21) - Parameters!$C$23)))) -> -100
I27: 0.2 | J27: =$I27*TAN(J$3)-0.5*g*$I27^2/(J$2*COS(J$3))^2 -> 0.5609031106 | K27: 0.1640492704 | L27: =IF(ABS($I27-$C$5-Parameters!$C$21)>Parameters!$C$22,-100,IF($I27-$C$5-Parameters!$C$21<-Parameters!$C$23,Parameters!$C$24 + Parameters!$C$25 / (Parameters!$C$23 - Parameters!$C$22) * (($I27-$C$5-Parameters!$C$21) + Parameters!$C$23),IF($I27-$C$5-Parameters!$C$21<Parameters!$C$23,Parameters!$C$24,Parameters!$C$24 - Parameters!$C$25 / (Parameters!$C$23 - Parameters!$C$22) * (($I27-$C$5-Parameters!$C$21) - Parameters!$C$23)))) -> -100
A28: Calculate Angle if Velocity is known | I28: 0.21 | J28: 0.5871448795 | K28: 0.1719365491 | L28: =IF(ABS($I28-$C$5-Parameters!$C$21)>Parameters!$C$22,-100,IF($I28-$C$5-Parameters!$C$21<-Parameters!$C$23,Parameters!$C$24 + Parameters!$C$25 / (Parameters!$C$23 - Parameters!$C$22) * (($I28-$C$5-Parameters!$C$21) + Parameters!$C$23),IF($I28-$C$5-Parameters!$C$21<Parameters!$C$23,Parameters!$C$24,Parameters!$C$24 - Parameters!$C$25 / (Parameters!$C$23 - Parameters!$C$22) * (($I28-$C$5-Parameters!$C$21) - Parameters!$C$23)))) -> -100
I29: 0.22 | J29: 0.6132148972 | K29: 0.1797938103 | L29: =IF(ABS($I29-$C$5-Parameters!$C$21)>Parameters!$C$22,-100,IF($I29-$C$5-Parameters!$C$21<-Parameters!$C$23,Parameters!$C$24 + Parameters!$C$25 / (Parameters!$C$23 - Parameters!$C$22) * (($I29-$C$5-Parameters!$C$21) + Parameters!$C$23),IF($I29-$C$5-Parameters!$C$21<Parameters!$C$23,Parameters!$C$24,Parameters!$C$24 - Parameters!$C$25 / (Parameters!$C$23 - Parameters!$C$22) * (($I29-$C$5-Parameters!$C$21) - Parameters!$C$23)))) -> -100
I30: 0.23 | J30: 0.6391131639 | K30: 0.1876210538 | L30: =IF(ABS($I30-$C$5-Parameters!$C$21)>Parameters!$C$22,-100,IF($I30-$C$5-Parameters!$C$21<-Parameters!$C$23,Parameters!$C$24 + Parameters!$C$25 / (Parameters!$C$23 - Parameters!$C$22) * (($I30-$C$5-Parameters!$C$21) + Parameters!$C$23),IF($I30-$C$5-Parameters!$C$21<Parameters!$C$23,Parameters!$C$24,Parameters!$C$24 - Parameters!$C$25 / (Parameters!$C$23 - Parameters!$C$22) * (($I30-$C$5-Parameters!$C$21) - Parameters!$C$23)))) -> -100
I31: 0.24 | J31: 0.6648396794 | K31: 0.1954182798 | L31: =IF(ABS($I31-$C$5-Parameters!$C$21)>Parameters!$C$22,-100,IF($I31-$C$5-Parameters!$C$21<-Parameters!$C$23,Parameters!$C$24 + Parameters!$C$25 / (Parameters!$C$23 - Parameters!$C$22) * (($I31-$C$5-Parameters!$C$21) + Parameters!$C$23),IF($I31-$C$5-Parameters!$C$21<Parameters!$C$23,Parameters!$C$24,Parameters!$C$24 - Parameters!$C$25 / (Parameters!$C$23 - Parameters!$C$22) * (($I31-$C$5-Parameters!$C$21) - Parameters!$C$23)))) -> -100
B32: Value | C32: Unit | I32: 0.25 | J32: 0.6903944438 | K32: 0.2031854882 | L32: =IF(ABS($I32-$C$5-Parameters!$C$21)>Parameters!$C$22,-100,IF($I32-$C$5-Parameters!$C$21<-Parameters!$C$23,Parameters!$C$24 + Parameters!$C$25 / (Parameters!$C$23 - Parameters!$C$22) * (($I32-$C$5-Parameters!$C$21) + Parameters!$C$23),IF($I32-$C$5-Parameters!$C$21<Parameters!$C$23,Parameters!$C$24,Parameters!$C$24 - Parameters!$C$25 / (Parameters!$C$23 - Parameters!$C$22) * (($I32-$C$5-Parameters!$C$21) - Parameters!$C$23)))) -> -100
B33: =g*d^2 -> 88.2 | C33: m3/s2 | I33: 0.26 | J33: 0.7157774571 | K33: 0.2109226789 | L33: =IF(ABS($I33-$C$5-Parameters!$C$21)>Parameters!$C$22,-100,IF($I33-$C$5-Parameters!$C$21<-Parameters!$C$23,Parameters!$C$24 + Parameters!$C$25 / (Parameters!$C$23 - Parameters!$C$22) * (($I33-$C$5-Parameters!$C$21) + Parameters!$C$23),IF($I33-$C$5-Parameters!$C$21<Parameters!$C$23,Parameters!$C$24,Parameters!$C$24 - Parameters!$C$25 / (Parameters!$C$23 - Parameters!$C$22) * (($I33-$C$5-Parameters!$C$21) - Parameters!$C$23)))) -> -100
B34: =-2*V^2*d -> -337.5 | C34: m3/s2 | I34: 0.27 | J34: 0.7409887193 | K34: 0.2186298521 | L34: =IF(ABS($I34-$C$5-Parameters!$C$21)>Parameters!$C$22,-100,IF($I34-$C$5-Parameters!$C$21<-Parameters!$C$23,Parameters!$C$24 + Parameters!$C$25 / (Parameters!$C$23 - Parameters!$C$22) * (($I34-$C$5-Parameters!$C$21) + Parameters!$C$23),IF($I34-$C$5-Parameters!$C$21<Parameters!$C$23,Parameters!$C$24,Parameters!$C$24 - Parameters!$C$25 / (Parameters!$C$23 - Parameters!$C$22) * (($I34-$C$5-Parameters!$C$21) - Parameters!$C$23)))) -> -100
B35: =2*V^2*h+g*d^2 -> 223.2 | C35: m3/s2 | I35: 0.28 | J35: 0.7660282304 | K35: 0.2263070077 | L35: =IF(ABS($I35-$C$5-Parameters!$C$21)>Parameters!$C$22,-100,IF($I35-$C$5-Parameters!$C$21<-Parameters!$C$23,Parameters!$C$24 + Parameters!$C$25 / (Parameters!$C$23 - Parameters!$C$22) * (($I35-$C$5-Parameters!$C$21) + Parameters!$C$23),IF($I35-$C$5-Parameters!$C$21<Parameters!$C$23,Parameters!$C$24,Parameters!$C$24 - Parameters!$C$25 / (Parameters!$C$23 - Parameters!$C$22) * (($I35-$C$5-Parameters!$C$21) - Parameters!$C$23)))) -> -100
I36: 0.29 | J36: 0.7908959904 | K36: 0.2339541457 | L36: =IF(ABS($I36-$C$5-Parameters!$C$21)>Parameters!$C$22,-100,IF($I36-$C$5-Parameters!$C$21<-Parameters!$C$23,Parameters!$C$24 + Parameters!$C$25 / (Parameters!$C$23 - Parameters!$C$22) * (($I36-$C$5-Parameters!$C$21) + Parameters!$C$23),IF($I36-$C$5-Parameters!$C$21<Parameters!$C$23,Parameters!$C$24,Parameters!$C$24 - Parameters!$C$25 / (Parameters!$C$23 - Parameters!$C$22) * (($I36-$C$5-Parameters!$C$21) - Parameters!$C$23)))) -> -100
B37: =180/PI()*ATAN( (-B$34+SQRT(B$34^2-4*B$33*B$35))/(2*B$33) ) -> 71.4280943 | C37: deg | I37: 0.3 | J37: 0.8155919993 | K37: 0.241571266 | L37: =IF(ABS($I37-$C$5-Parameters!$C$21)>Parameters!$C$22,-100,IF($I37-$C$5-Parameters!$C$21<-Parameters!$C$23,Parameters!$C$24 + Parameters!$C$25 / (Parameters!$C$23 - Parameters!$C$22) * (($I37-$C$5-Parameters!$C$21) + Parameters!$C$23),IF($I37-$C$5-Parameters!$C$21<Parameters!$C$23,Parameters!$C$24,Parameters!$C$24 - Parameters!$C$25 / (Parameters!$C$23 - Parameters!$C$22) * (($I37-$C$5-Parameters!$C$21) - Parameters!$C$23)))) -> -100
B38: =180/PI()*ATAN( (-B$34-SQRT(B$34^2-4*B$33*B$35))/(2*B$33)) -> 40.37331518 | C38: deg | I38: 0.31 | J38: 0.840116257 | K38: 0.2491583688 | L38: =IF(ABS($I38-$C$5-Parameters!$C$21)>Parameters!$C$22,-100,IF($I38-$C$5-Parameters!$C$21<-Parameters!$C$23,Parameters!$C$24 + Parameters!$C$25 / (Parameters!$C$23 - Parameters!$C$22) * (($I38-$C$5-Parameters!$C$21) + Parameters!$C$23),IF($I38-$C$5-Parameters!$C$21<Parameters!$C$23,Parameters!$C$24,Parameters!$C$24 - Parameters!$C$25 / (Parameters!$C$23 - Parameters!$C$22) * (($I38-$C$5-Parameters!$C$21) - Parameters!$C$23)))) -> -100
I39: 0.32 | J39: 0.8644687637 | K39: 0.256715454 | L39: =IF(ABS($I39-$C$5-Parameters!$C$21)>Parameters!$C$22,-100,IF($I39-$C$5-Parameters!$C$21<-Parameters!$C$23,Parameters!$C$24 + Parameters!$C$25 / (Parameters!$C$23 - Parameters!$C$22) * (($I39-$C$5-Parameters!$C$21) + Parameters!$C$23),IF($I39-$C$5-Parameters!$C$21<Parameters!$C$23,Parameters!$C$24,Parameters!$C$24 - Parameters!$C$25 / (Parameters!$C$23 - Parameters!$C$22) * (($I39-$C$5-Parameters!$C$21) - Parameters!$C$23)))) -> -100
A40: Other Calculations | I40: 0.33 | J40: 0.8886495192 | K40: 0.2642425216 | L40: =IF(ABS($I40-$C$5-Parameters!$C$21)>Parameters!$C$22,-100,IF($I40-$C$5-Parameters!$C$21<-Parameters!$C$23,Parameters!$C$24 + Parameters!$C$25 / (Parameters!$C$23 - Parameters!$C$22) * (($I40-$C$5-Parameters!$C$21) + Parameters!$C$23),IF($I40-$C$5-Parameters!$C$21<Parameters!$C$23,Parameters!$C$24,Parameters!$C$24 - Parameters!$C$25 / (Parameters!$C$23 - Parameters!$C$22) * (($I40-$C$5-Parameters!$C$21) - Parameters!$C$23)))) -> -100
A41: Equation | B41: High Value | C41: Low Value | D41: Unit | I41: 0.34 | J41: 0.9126585236 | K41: 0.2717395716 | L41: =IF(ABS($I41-$C$5-Parameters!$C$21)>Parameters!$C$22,-100,IF($I41-$C$5-Parameters!$C$21<-Parameters!$C$23,Parameters!$C$24 + Parameters!$C$25 / (Parameters!$C$23 - Parameters!$C$22) * (($I41-$C$5-Parameters!$C$21) + Parameters!$C$23),IF($I41-$C$5-Parameters!$C$21<Parameters!$C$23,Parameters!$C$24,Parameters!$C$24 - Parameters!$C$25 / (Parameters!$C$23 - Parameters!$C$22) * (($I41-$C$5-Parameters!$C$21) - Parameters!$C$23)))) -> -100
B42: =PI()/180*C11 -> 1.246655424 | C42: =PI()/180*D11 -> 0.7046472799 | D42: radian | E42: Launch Angle | I42: 0.35 | J42: 0.9364957769 | K42: 0.279206604 | L42: =IF(ABS($I42-$C$5-Parameters!$C$21)>Parameters!$C$22,-100,IF($I42-$C$5-Parameters!$C$21<-Parameters!$C$23,Parameters!$C$24 + Parameters!$C$25 / (Parameters!$C$23 - Parameters!$C$22) * (($I42-$C$5-Parameters!$C$21) + Parameters!$C$23),IF($I42-$C$5-Parameters!$C$21<Parameters!$C$23,Parameters!$C$24,Parameters!$C$24 - Parameters!$C$25 / (Parameters!$C$23 - Parameters!$C$22) * (($I42-$C$5-Parameters!$C$21) - Parameters!$C$23)))) -> -100
B43: =TAN(B42)-g*d/(C10*COS(B42))^2 -> -2.176266664 | C43: =TAN(C42)-g*d/(D10*COS(C42))^2 -> -0.05026394831 | D43: n/a | E43: Landing Slope | I43: 0.36 | J43: 0.9601612791 | K43: 0.2866436188 | L43: =IF(ABS($I43-$C$5-Parameters!$C$21)>Parameters!$C$22,-100,IF($I43-$C$5-Parameters!$C$21<-Parameters!$C$23,Parameters!$C$24 + Parameters!$C$25 / (Parameters!$C$23 - Parameters!$C$22) * (($I43-$C$5-Parameters!$C$21) + Parameters!$C$23),IF($I43-$C$5-Parameters!$C$21<Parameters!$C$23,Parameters!$C$24,Parameters!$C$24 - Parameters!$C$25 / (Parameters!$C$23 - Parameters!$C$22) * (($I43-$C$5-Parameters!$C$21) - Parameters!$C$23)))) -> -100
B44: =180/PI()*B43 -> -124.6908949 | C44: =180/PI()*C43 -> -2.8799121 | E44: Landing Angle | I44: 0.37 | J44: 0.9836550302 | K44: 0.294050616 | L44: =IF(ABS($I44-$C$5-Parameters!$C$21)>Parameters!$C$22,-100,IF($I44-$C$5-Parameters!$C$21<-Parameters!$C$23,Parameters!$C$24 + Parameters!$C$25 / (Parameters!$C$23 - Parameters!$C$22) * (($I44-$C$5-Parameters!$C$21) + Parameters!$C$23),IF($I44-$C$5-Parameters!$C$21<Parameters!$C$23,Parameters!$C$24,Parameters!$C$24 - Parameters!$C$25 / (Parameters!$C$23 - Parameters!$C$22) * (($I44-$C$5-Parameters!$C$21) - Parameters!$C$23)))) -> -100
B45: =d/(V*COS(C11*PI()/180)) -> 1.255908484 | C45: =d/(V*COS(D11*PI()/180)) -> 0.5250445744 | D45: s | E45: Time to Target | I45: 0.38 | J45: 1.00697703 | K45: 0.3014275956 | L45: =IF(ABS($I45-$C$5-Parameters!$C$21)>Parameters!$C$22,-100,IF($I45-$C$5-Parameters!$C$21<-Parameters!$C$23,Parameters!$C$24 + Parameters!$C$25 / (Parameters!$C$23 - Parameters!$C$22) * (($I45-$C$5-Parameters!$C$21) + Parameters!$C$23),IF($I45-$C$5-Parameters!$C$21<Parameters!$C$23,Parameters!$C$24,Parameters!$C$24 - Parameters!$C$25 / (Parameters!$C$23 - Parameters!$C$22) * (($I45-$C$5-Parameters!$C$21) - Parameters!$C$23)))) -> -100
B46: =V*SIN(B42)/g -> 0.7254525719 | C46: =V*SIN(C42)/g -> 0.4957386379 | D46: s | E46: Peak Time | I46: 0.39 | J46: 1.030127279 | K46: 0.3087745577 | L46: =IF(ABS($I46-$C$5-Parameters!$C$21)>Parameters!$C$22,-100,IF($I46-$C$5-Parameters!$C$21<-Parameters!$C$23,Parameters!$C$24 + Parameters!$C$25 / (Parameters!$C$23 - Parameters!$C$22) * (($I46-$C$5-Parameters!$C$21) + Parameters!$C$23),IF($I46-$C$5-Parameters!$C$21<Parameters!$C$23,Parameters!$C$24,Parameters!$C$24 - Parameters!$C$25 / (Parameters!$C$23 - Parameters!$C$22) * (($I46-$C$5-Parameters!$C$21) - Parameters!$C$23)))) -> -100
B47: =V*SIN(B42)*B46-0.5*g*B46^2 -> 2.578779027 | C47: =V*SIN(C42)*C46-0.5*g*C46^2 -> 1.204208306 | D47: m | E47: Peak Height | I47: 0.4 | J47: =$I47*TAN(J$3)-0.5*g*$I47^2/(J$2*COS(J$3))^2 -> 1.053105777 | K47: 0.3160915021 | L47: =IF(ABS($I47-$C$5-Parameters!$C$21)>Parameters!$C$22,-100,IF($I47-$C$5-Parameters!$C$21<-Parameters!$C$23,Parameters!$C$24 + Parameters!$C$25 / (Parameters!$C$23 - Parameters!$C$22) * (($I47-$C$5-Parameters!$C$21) + Parameters!$C$23),IF($I47-$C$5-Parameters!$C$21<Parameters!$C$23,Parameters!$C$24,Parameters!$C$24 - Parameters!$C$25 / (Parameters!$C$23 - Parameters!$C$22) * (($I47-$C$5-Parameters!$C$21) - Parameters!$C$23)))) -> -100
I48: 0.41 | J48: 1.075912523 | K48: 0.3233784289 | L48: =IF(ABS($I48-$C$5-Parameters!$C$21)>Parameters!$C$22,-100,IF($I48-$C$5-Parameters!$C$21<-Parameters!$C$23,Parameters!$C$24 + Parameters!$C$25 / (Parameters!$C$23 - Parameters!$C$22) * (($I48-$C$5-Parameters!$C$21) + Parameters!$C$23),IF($I48-$C$5-Parameters!$C$21<Parameters!$C$23,Parameters!$C$24,Parameters!$C$24 - Parameters!$C$25 / (Parameters!$C$23 - Parameters!$C$22) * (($I48-$C$5-Parameters!$C$21) - Parameters!$C$23)))) -> -100
I49: 0.42 | J49: 1.098547519 | K49: 0.3306353381 | L49: =IF(ABS($I49-$C$5-Parameters!$C$21)>Parameters!$C$22,-100,IF($I49-$C$5-Parameters!$C$21<-Parameters!$C$23,Parameters!$C$24 + Parameters!$C$25 / (Parameters!$C$23 - Parameters!$C$22) * (($I49-$C$5-Parameters!$C$21) + Parameters!$C$23),IF($I49-$C$5-Parameters!$C$21<Parameters!$C$23,Parameters!$C$24,Parameters!$C$24 - Parameters!$C$25 / (Parameters!$C$23 - Parameters!$C$22) * (($I49-$C$5-Parameters!$C$21) - Parameters!$C$23)))) -> -100
I50: 0.43 | J50: 1.121010763 | K50: 0.3378622298 | L50: =IF(ABS($I50-$C$5-Parameters!$C$21)>Parameters!$C$22,-100,IF($I50-$C$5-Parameters!$C$21<-Parameters!$C$23,Parameters!$C$24 + Parameters!$C$25 / (Parameters!$C$23 - Parameters!$C$22) * (($I50-$C$5-Parameters!$C$21) + Parameters!$C$23),IF($I50-$C$5-Parameters!$C$21<Parameters!$C$23,Parameters!$C$24,Parameters!$C$24 - Parameters!$C$25 / (Parameters!$C$23 - Parameters!$C$22) * (($I50-$C$5-Parameters!$C$21) - Parameters!$C$23)))) -> -100
I51: 0.44 | J51: 1.143302257 | K51: 0.3450591038 | L51: =IF(ABS($I51-$C$5-Parameters!$C$21)>Parameters!$C$22,-100,IF($I51-$C$5-Parameters!$C$21<-Parameters!$C$23,Parameters!$C$24 + Parameters!$C$25 / (Parameters!$C$23 - Parameters!$C$22) * (($I51-$C$5-Parameters!$C$21) + Parameters!$C$23),IF($I51-$C$5-Parameters!$C$21<Parameters!$C$23,Parameters!$C$24,Parameters!$C$24 - Parameters!$C$25 / (Parameters!$C$23 - Parameters!$C$22) * (($I51-$C$5-Parameters!$C$21) - Parameters!$C$23)))) -> -100
I52: 0.45 | J52: 1.165421999 | K52: 0.3522259602 | L52: =IF(ABS($I52-$C$5-Parameters!$C$21)>Parameters!$C$22,-100,IF($I52-$C$5-Parameters!$C$21<-Parameters!$C$23,Parameters!$C$24 + Parameters!$C$25 / (Parameters!$C$23 - Parameters!$C$22) * (($I52-$C$5-Parameters!$C$21) + Parameters!$C$23),IF($I52-$C$5-Parameters!$C$21<Parameters!$C$23,Parameters!$C$24,Parameters!$C$24 - Parameters!$C$25 / (Parameters!$C$23 - Parameters!$C$22) * (($I52-$C$5-Parameters!$C$21) - Parameters!$C$23)))) -> -100
I53: 0.46 | J53: 1.18736999 | K53: 0.3593627991 | L53: =IF(ABS($I53-$C$5-Parameters!$C$21)>Parameters!$C$22,-100,IF($I53-$C$5-Parameters!$C$21<-Parameters!$C$23,Parameters!$C$24 + Parameters!$C$25 / (Parameters!$C$23 - Parameters!$C$22) * (($I53-$C$5-Parameters!$C$21) + Parameters!$C$23),IF($I53-$C$5-Parameters!$C$21<Parameters!$C$23,Parameters!$C$24,Parameters!$C$24 - Parameters!$C$25 / (Parameters!$C$23 - Parameters!$C$22) * (($I53-$C$5-Parameters!$C$21) - Parameters!$C$23)))) -> -100
I54: 0.47 | J54: 1.20914623 | K54: 0.3664696203 | L54: =IF(ABS($I54-$C$5-Parameters!$C$21)>Parameters!$C$22,-100,IF($I54-$C$5-Parameters!$C$21<-Parameters!$C$23,Parameters!$C$24 + Parameters!$C$25 / (Parameters!$C$23 - Parameters!$C$22) * (($I54-$C$5-Parameters!$C$21) + Parameters!$C$23),IF($I54-$C$5-Parameters!$C$21<Parameters!$C$23,Parameters!$C$24,Parameters!$C$24 - Parameters!$C$25 / (Parameters!$C$23 - Parameters!$C$22) * (($I54-$C$5-Parameters!$C$21) - Parameters!$C$23)))) -> -100
I55: 0.48 | J55: 1.230750719 | K55: 0.373546424 | L55: =IF(ABS($I55-$C$5-Parameters!$C$21)>Parameters!$C$22,-100,IF($I55-$C$5-Parameters!$C$21<-Parameters!$C$23,Parameters!$C$24 + Parameters!$C$25 / (Parameters!$C$23 - Parameters!$C$22) * (($I55-$C$5-Parameters!$C$21) + Parameters!$C$23),IF($I55-$C$5-Parameters!$C$21<Parameters!$C$23,Parameters!$C$24,Parameters!$C$24 - Parameters!$C$25 / (Parameters!$C$23 - Parameters!$C$22) * (($I55-$C$5-Parameters!$C$21) - Parameters!$C$23)))) -> -100
I56: 0.49 | J56: 1.252183457 | K56: 0.38059321 | L56: =IF(ABS($I56-$C$5-Parameters!$C$21)>Parameters!$C$22,-100,IF($I56-$C$5-Parameters!$C$21<-Parameters!$C$23,Parameters!$C$24 + Parameters!$C$25 / (Parameters!$C$23 - Parameters!$C$22) * (($I56-$C$5-Parameters!$C$21) + Parameters!$C$23),IF($I56-$C$5-Parameters!$C$21<Parameters!$C$23,Parameters!$C$24,Parameters!$C$24 - Parameters!$C$25 / (Parameters!$C$23 - Parameters!$C$22) * (($I56-$C$5-Parameters!$C$21) - Parameters!$C$23)))) -> -100
I57: 0.5 | J57: 1.273444443 | K57: 0.3876099785 | L57: =IF(ABS($I57-$C$5-Parameters!$C$21)>Parameters!$C$22,-100,IF($I57-$C$5-Parameters!$C$21<-Parameters!$C$23,Parameters!$C$24 + Parameters!$C$25 / (Parameters!$C$23 - Parameters!$C$22) * (($I57-$C$5-Parameters!$C$21) + Parameters!$C$23),IF($I57-$C$5-Parameters!$C$21<Parameters!$C$23,Parameters!$C$24,Parameters!$C$24 - Parameters!$C$25 / (Parameters!$C$23 - Parameters!$C$22) * (($I57-$C$5-Parameters!$C$21) - Parameters!$C$23)))) -> -100
I58: 0.51 | J58: 1.294533679 | K58: 0.3945967293 | L58: =IF(ABS($I58-$C$5-Parameters!$C$21)>Parameters!$C$22,-100,IF($I58-$C$5-Parameters!$C$21<-Parameters!$C$23,Parameters!$C$24 + Parameters!$C$25 / (Parameters!$C$23 - Parameters!$C$22) * (($I58-$C$5-Parameters!$C$21) + Parameters!$C$23),IF($I58-$C$5-Parameters!$C$21<Parameters!$C$23,Parameters!$C$24,Parameters!$C$24 - Parameters!$C$25 / (Parameters!$C$23 - Parameters!$C$22) * (($I58-$C$5-Parameters!$C$21) - Parameters!$C$23)))) -> -100
I59: 0.52 | J59: 1.315451163 | K59: 0.4015534626 | L59: =IF(ABS($I59-$C$5-Parameters!$C$21)>Parameters!$C$22,-100,IF($I59-$C$5-Parameters!$C$21<-Parameters!$C$23,Parameters!$C$24 + Parameters!$C$25 / (Parameters!$C$23 - Parameters!$C$22) * (($I59-$C$5-Parameters!$C$21) + Parameters!$C$23),IF($I59-$C$5-Parameters!$C$21<Parameters!$C$23,Parameters!$C$24,Parameters!$C$24 - Parameters!$C$25 / (Parameters!$C$23 - Parameters!$C$22) * (($I59-$C$5-Parameters!$C$21) - Parameters!$C$23)))) -> -100
I60: 0.53 | J60: 1.336196897 | K60: 0.4084801782 | L60: =IF(ABS($I60-$C$5-Parameters!$C$21)>Parameters!$C$22,-100,IF($I60-$C$5-Parameters!$C$21<-Parameters!$C$23,Parameters!$C$24 + Parameters!$C$25 / (Parameters!$C$23 - Parameters!$C$22) * (($I60-$C$5-Parameters!$C$21) + Parameters!$C$23),IF($I60-$C$5-Parameters!$C$21<Parameters!$C$23,Parameters!$C$24,Parameters!$C$24 - Parameters!$C$25 / (Parameters!$C$23 - Parameters!$C$22) * (($I60-$C$5-Parameters!$C$21) - Parameters!$C$23)))) -> -100
I61: 0.54 | J61: 1.356770879 | K61: 0.4153768763 | L61: =IF(ABS($I61-$C$5-Parameters!$C$21)>Parameters!$C$22,-100,IF($I61-$C$5-Parameters!$C$21<-Parameters!$C$23,Parameters!$C$24 + Parameters!$C$25 / (Parameters!$C$23 - Parameters!$C$22) * (($I61-$C$5-Parameters!$C$21) + Parameters!$C$23),IF($I61-$C$5-Parameters!$C$21<Parameters!$C$23,Parameters!$C$24,Parameters!$C$24 - Parameters!$C$25 / (Parameters!$C$23 - Parameters!$C$22) * (($I61-$C$5-Parameters!$C$21) - Parameters!$C$23)))) -> -100
I62: 0.55 | J62: 1.37717311 | K62: 0.4222435568 | L62: =IF(ABS($I62-$C$5-Parameters!$C$21)>Parameters!$C$22,-100,IF($I62-$C$5-Parameters!$C$21<-Parameters!$C$23,Parameters!$C$24 + Parameters!$C$25 / (Parameters!$C$23 - Parameters!$C$22) * (($I62-$C$5-Parameters!$C$21) + Parameters!$C$23),IF($I62-$C$5-Parameters!$C$21<Parameters!$C$23,Parameters!$C$24,Parameters!$C$24 - Parameters!$C$25 / (Parameters!$C$23 - Parameters!$C$22) * (($I62-$C$5-Parameters!$C$21) - Parameters!$C$23)))) -> -100
I63: 0.56 | J63: 1.39740359 | K63: 0.4290802197 | L63: =IF(ABS($I63-$C$5-Parameters!$C$21)>Parameters!$C$22,-100,IF($I63-$C$5-Parameters!$C$21<-Parameters!$C$23,Parameters!$C$24 + Parameters!$C$25 / (Parameters!$C$23 - Parameters!$C$22) * (($I63-$C$5-Parameters!$C$21) + Parameters!$C$23),IF($I63-$C$5-Parameters!$C$21<Parameters!$C$23,Parameters!$C$24,Parameters!$C$24 - Parameters!$C$25 / (Parameters!$C$23 - Parameters!$C$22) * (($I63-$C$5-Parameters!$C$21) - Parameters!$C$23)))) -> -100
I64: 0.57 | J64: 1.417462319 | K64: 0.4358868649 | L64: =IF(ABS($I64-$C$5-Parameters!$C$21)>Parameters!$C$22,-100,IF($I64-$C$5-Parameters!$C$21<-Parameters!$C$23,Parameters!$C$24 + Parameters!$C$25 / (Parameters!$C$23 - Parameters!$C$22) * (($I64-$C$5-Parameters!$C$21) + Parameters!$C$23),IF($I64-$C$5-Parameters!$C$21<Parameters!$C$23,Parameters!$C$24,Parameters!$C$24 - Parameters!$C$25 / (Parameters!$C$23 - Parameters!$C$22) * (($I64-$C$5-Parameters!$C$21) - Parameters!$C$23)))) -> -100
I65: 0.58 | J65: 1.437349297 | K65: 0.4426634926 | L65: =IF(ABS($I65-$C$5-Parameters!$C$21)>Parameters!$C$22,-100,IF($I65-$C$5-Parameters!$C$21<-Parameters!$C$23,Parameters!$C$24 + Parameters!$C$25 / (Parameters!$C$23 - Parameters!$C$22) * (($I65-$C$5-Parameters!$C$21) + Parameters!$C$23),IF($I65-$C$5-Parameters!$C$21<Parameters!$C$23,Parameters!$C$24,Parameters!$C$24 - Parameters!$C$25 / (Parameters!$C$23 - Parameters!$C$22) * (($I65-$C$5-Parameters!$C$21) - Parameters!$C$23)))) -> -100
I66: 0.59 | J66: 1.457064523 | K66: 0.4494101027 | L66: =IF(ABS($I66-$C$5-Parameters!$C$21)>Parameters!$C$22,-100,IF($I66-$C$5-Parameters!$C$21<-Parameters!$C$23,Parameters!$C$24 + Parameters!$C$25 / (Parameters!$C$23 - Parameters!$C$22) * (($I66-$C$5-Parameters!$C$21) + Parameters!$C$23),IF($I66-$C$5-Parameters!$C$21<Parameters!$C$23,Parameters!$C$24,Parameters!$C$24 - Parameters!$C$25 / (Parameters!$C$23 - Parameters!$C$22) * (($I66-$C$5-Parameters!$C$21) - Parameters!$C$23)))) -> -100
I67: 0.6 | J67: =$I67*TAN(J$3)-0.5*g*$I67^2/(J$2*COS(J$3))^2 -> 1.476607999 | K67: 0.4561266952 | L67: =IF(ABS($I67-$C$5-Parameters!$C$21)>Parameters!$C$22,-100,IF($I67-$C$5-Parameters!$C$21<-Parameters!$C$23,Parameters!$C$24 + Parameters!$C$25 / (Parameters!$C$23 - Parameters!$C$22) * (($I67-$C$5-Parameters!$C$21) + Parameters!$C$23),IF($I67-$C$5-Parameters!$C$21<Parameters!$C$23,Parameters!$C$24,Parameters!$C$24 - Parameters!$C$25 / (Parameters!$C$23 - Parameters!$C$22) * (($I67-$C$5-Parameters!$C$21) - Parameters!$C$23)))) -> -100
I68: 0.61 | J68: 1.495979723 | K68: 0.4628132701 | L68: =IF(ABS($I68-$C$5-Parameters!$C$21)>Parameters!$C$22,-100,IF($I68-$C$5-Parameters!$C$21<-Parameters!$C$23,Parameters!$C$24 + Parameters!$C$25 / (Parameters!$C$23 - Parameters!$C$22) * (($I68-$C$5-Parameters!$C$21) + Parameters!$C$23),IF($I68-$C$5-Parameters!$C$21<Parameters!$C$23,Parameters!$C$24,Parameters!$C$24 - Parameters!$C$25 / (Parameters!$C$23 - Parameters!$C$22) * (($I68-$C$5-Parameters!$C$21) - Parameters!$C$23)))) -> -100
I69: 0.62 | J69: 1.515179696 | K69: 0.4694698274 | L69: =IF(ABS($I69-$C$5-Parameters!$C$21)>Parameters!$C$22,-100,IF($I69-$C$5-Parameters!$C$21<-Parameters!$C$23,Parameters!$C$24 + Parameters!$C$25 / (Parameters!$C$23 - Parameters!$C$22) * (($I69-$C$5-Parameters!$C$21) + Parameters!$C$23),IF($I69-$C$5-Parameters!$C$21<Parameters!$C$23,Parameters!$C$24,Parameters!$C$24 - Parameters!$C$25 / (Parameters!$C$23 - Parameters!$C$22) * (($I69-$C$5-Parameters!$C$21) - Parameters!$C$23)))) -> -100
I70: 0.63 | J70: 1.534207919 | K70: 0.4760963671 | L70: =IF(ABS($I70-$C$5-Parameters!$C$21)>Parameters!$C$22,-100,IF($I70-$C$5-Parameters!$C$21<-Parameters!$C$23,Parameters!$C$24 + Parameters!$C$25 / (Parameters!$C$23 - Parameters!$C$22) * (($I70-$C$5-Parameters!$C$21) + Parameters!$C$23),IF($I70-$C$5-Parameters!$C$21<Parameters!$C$23,Parameters!$C$24,Parameters!$C$24 - Parameters!$C$25 / (Parameters!$C$23 - Parameters!$C$22) * (($I70-$C$5-Parameters!$C$21) - Parameters!$C$23)))) -> -100
I71: 0.64 | J71: 1.55306439 | K71: 0.4826928892 | L71: =IF(ABS($I71-$C$5-Parameters!$C$21)>Parameters!$C$22,-100,IF($I71-$C$5-Parameters!$C$21<-Parameters!$C$23,Parameters!$C$24 + Parameters!$C$25 / (Parameters!$C$23 - Parameters!$C$22) * (($I71-$C$5-Parameters!$C$21) + Parameters!$C$23),IF($I71-$C$5-Parameters!$C$21<Parameters!$C$23,Parameters!$C$24,Parameters!$C$24 - Parameters!$C$25 / (Parameters!$C$23 - Parameters!$C$22) * (($I71-$C$5-Parameters!$C$21) - Parameters!$C$23)))) -> -100
I72: 0.65 | J72: 1.57174911 | K72: 0.4892593937 | L72: =IF(ABS($I72-$C$5-Parameters!$C$21)>Parameters!$C$22,-100,IF($I72-$C$5-Parameters!$C$21<-Parameters!$C$23,Parameters!$C$24 + Parameters!$C$25 / (Parameters!$C$23 - Parameters!$C$22) * (($I72-$C$5-Parameters!$C$21) + Parameters!$C$23),IF($I72-$C$5-Parameters!$C$21<Parameters!$C$23,Parameters!$C$24,Parameters!$C$24 - Parameters!$C$25 / (Parameters!$C$23 - Parameters!$C$22) * (($I72-$C$5-Parameters!$C$21) - Parameters!$C$23)))) -> -100
I73: =I72+0.01 -> 0.66 | J73: 1.590262079 | K73: 0.4957958806 | L73: =IF(ABS($I73-$C$5-Parameters!$C$21)>Parameters!$C$22,-100,IF($I73-$C$5-Parameters!$C$21<-Parameters!$C$23,Parameters!$C$24 + Parameters!$C$25 / (Parameters!$C$23 - Parameters!$C$22) * (($I73-$C$5-Parameters!$C$21) + Parameters!$C$23),IF($I73-$C$5-Parameters!$C$21<Parameters!$C$23,Parameters!$C$24,Parameters!$C$24 - Parameters!$C$25 / (Parameters!$C$23 - Parameters!$C$22) * (($I73-$C$5-Parameters!$C$21) - Parameters!$C$23)))) -> -100
I74: 0.67 | J74: 1.608603296 | K74: 0.5023023499 | L74: =IF(ABS($I74-$C$5-Parameters!$C$21)>Parameters!$C$22,-100,IF($I74-$C$5-Parameters!$C$21<-Parameters!$C$23,Parameters!$C$24 + Parameters!$C$25 / (Parameters!$C$23 - Parameters!$C$22) * (($I74-$C$5-Parameters!$C$21) + Parameters!$C$23),IF($I74-$C$5-Parameters!$C$21<Parameters!$C$23,Parameters!$C$24,Parameters!$C$24 - Parameters!$C$25 / (Parameters!$C$23 - Parameters!$C$22) * (($I74-$C$5-Parameters!$C$21) - Parameters!$C$23)))) -> -100
I75: 0.68 | J75: 1.626772763 | K75: 0.5087788016 | L75: =IF(ABS($I75-$C$5-Parameters!$C$21)>Parameters!$C$22,-100,IF($I75-$C$5-Parameters!$C$21<-Parameters!$C$23,Parameters!$C$24 + Parameters!$C$25 / (Parameters!$C$23 - Parameters!$C$22) * (($I75-$C$5-Parameters!$C$21) + Parameters!$C$23),IF($I75-$C$5-Parameters!$C$21<Parameters!$C$23,Parameters!$C$24,Parameters!$C$24 - Parameters!$C$25 / (Parameters!$C$23 - Parameters!$C$22) * (($I75-$C$5-Parameters!$C$21) - Parameters!$C$23)))) -> -100
I76: 0.69 | J76: 1.644770479 | K76: 0.5152252357 | L76: =IF(ABS($I76-$C$5-Parameters!$C$21)>Parameters!$C$22,-100,IF($I76-$C$5-Parameters!$C$21<-Parameters!$C$23,Parameters!$C$24 + Parameters!$C$25 / (Parameters!$C$23 - Parameters!$C$22) * (($I76-$C$5-Parameters!$C$21) + Parameters!$C$23),IF($I76-$C$5-Parameters!$C$21<Parameters!$C$23,Parameters!$C$24,Parameters!$C$24 - Parameters!$C$25 / (Parameters!$C$23 - Parameters!$C$22) * (($I76-$C$5-Parameters!$C$21) - Parameters!$C$23)))) -> -100
I77: 0.7 | J77: 1.662596443 | K77: 0.5216416523 | L77: =IF(ABS($I77-$C$5-Parameters!$C$21)>Parameters!$C$22,-100,IF($I77-$C$5-Parameters!$C$21<-Parameters!$C$23,Parameters!$C$24 + Parameters!$C$25 / (Parameters!$C$23 - Parameters!$C$22) * (($I77-$C$5-Parameters!$C$21) + Parameters!$C$23),IF($I77-$C$5-Parameters!$C$21<Parameters!$C$23,Parameters!$C$24,Parameters!$C$24 - Parameters!$C$25 / (Parameters!$C$23 - Parameters!$C$22) * (($I77-$C$5-Parameters!$C$21) - Parameters!$C$23)))) -> -100
I78: 0.71 | J78: 1.680250656 | K78: 0.5280280512 | L78: =IF(ABS($I78-$C$5-Parameters!$C$21)>Parameters!$C$22,-100,IF($I78-$C$5-Parameters!$C$21<-Parameters!$C$23,Parameters!$C$24 + Parameters!$C$25 / (Parameters!$C$23 - Parameters!$C$22) * (($I78-$C$5-Parameters!$C$21) + Parameters!$C$23),IF($I78-$C$5-Parameters!$C$21<Parameters!$C$23,Parameters!$C$24,Parameters!$C$24 - Parameters!$C$25 / (Parameters!$C$23 - Parameters!$C$22) * (($I78-$C$5-Parameters!$C$21) - Parameters!$C$23)))) -> -100
I79: 0.72 | J79: 1.697733119 | K79: 0.5343844325 | L79: =IF(ABS($I79-$C$5-Parameters!$C$21)>Parameters!$C$22,-100,IF($I79-$C$5-Parameters!$C$21<-Parameters!$C$23,Parameters!$C$24 + Parameters!$C$25 / (Parameters!$C$23 - Parameters!$C$22) * (($I79-$C$5-Parameters!$C$21) + Parameters!$C$23),IF($I79-$C$5-Parameters!$C$21<Parameters!$C$23,Parameters!$C$24,Parameters!$C$24 - Parameters!$C$25 / (Parameters!$C$23 - Parameters!$C$22) * (($I79-$C$5-Parameters!$C$21) - Parameters!$C$23)))) -> -100
I80: 0.73 | J80: 1.71504383 | K80: 0.5407107962 | L80: =IF(ABS($I80-$C$5-Parameters!$C$21)>Parameters!$C$22,-100,IF($I80-$C$5-Parameters!$C$21<-Parameters!$C$23,Parameters!$C$24 + Parameters!$C$25 / (Parameters!$C$23 - Parameters!$C$22) * (($I80-$C$5-Parameters!$C$21) + Parameters!$C$23),IF($I80-$C$5-Parameters!$C$21<Parameters!$C$23,Parameters!$C$24,Parameters!$C$24 - Parameters!$C$25 / (Parameters!$C$23 - Parameters!$C$22) * (($I80-$C$5-Parameters!$C$21) - Parameters!$C$23)))) -> -100
I81: 0.74 | J81: 1.73218279 | K81: 0.5470071424 | L81: =IF(ABS($I81-$C$5-Parameters!$C$21)>Parameters!$C$22,-100,IF($I81-$C$5-Parameters!$C$21<-Parameters!$C$23,Parameters!$C$24 + Parameters!$C$25 / (Parameters!$C$23 - Parameters!$C$22) * (($I81-$C$5-Parameters!$C$21) + Parameters!$C$23),IF($I81-$C$5-Parameters!$C$21<Parameters!$C$23,Parameters!$C$24,Parameters!$C$24 - Parameters!$C$25 / (Parameters!$C$23 - Parameters!$C$22) * (($I81-$C$5-Parameters!$C$21) - Parameters!$C$23)))) -> -100
I82: 0.75 | J82: 1.749149998 | K82: 0.5532734709 | L82: =IF(ABS($I82-$C$5-Parameters!$C$21)>Parameters!$C$22,-100,IF($I82-$C$5-Parameters!$C$21<-Parameters!$C$23,Parameters!$C$24 + Parameters!$C$25 / (Parameters!$C$23 - Parameters!$C$22) * (($I82-$C$5-Parameters!$C$21) + Parameters!$C$23),IF($I82-$C$5-Parameters!$C$21<Parameters!$C$23,Parameters!$C$24,Parameters!$C$24 - Parameters!$C$25 / (Parameters!$C$23 - Parameters!$C$22) * (($I82-$C$5-Parameters!$C$21) - Parameters!$C$23)))) -> -100
I83: 0.76 | J83: 1.765945456 | K83: 0.5595097819 | L83: =IF(ABS($I83-$C$5-Parameters!$C$21)>Parameters!$C$22,-100,IF($I83-$C$5-Parameters!$C$21<-Parameters!$C$23,Parameters!$C$24 + Parameters!$C$25 / (Parameters!$C$23 - Parameters!$C$22) * (($I83-$C$5-Parameters!$C$21) + Parameters!$C$23),IF($I83-$C$5-Parameters!$C$21<Parameters!$C$23,Parameters!$C$24,Parameters!$C$24 - Parameters!$C$25 / (Parameters!$C$23 - Parameters!$C$22) * (($I83-$C$5-Parameters!$C$21) - Parameters!$C$23)))) -> -100
I84: 0.77 | J84: 1.782569163 | K84: 0.5657160752 | L84: =IF(ABS($I84-$C$5-Parameters!$C$21)>Parameters!$C$22,-100,IF($I84-$C$5-Parameters!$C$21<-Parameters!$C$23,Parameters!$C$24 + Parameters!$C$25 / (Parameters!$C$23 - Parameters!$C$22) * (($I84-$C$5-Parameters!$C$21) + Parameters!$C$23),IF($I84-$C$5-Parameters!$C$21<Parameters!$C$23,Parameters!$C$24,Parameters!$C$24 - Parameters!$C$25 / (Parameters!$C$23 - Parameters!$C$22) * (($I84-$C$5-Parameters!$C$21) - Parameters!$C$23)))) -> -100
I85: 0.78 | J85: 1.799021118 | K85: 0.571892351 | L85: =IF(ABS($I85-$C$5-Parameters!$C$21)>Parameters!$C$22,-100,IF($I85-$C$5-Parameters!$C$21<-Parameters!$C$23,Parameters!$C$24 + Parameters!$C$25 / (Parameters!$C$23 - Parameters!$C$22) * (($I85-$C$5-Parameters!$C$21) + Parameters!$C$23),IF($I85-$C$5-Parameters!$C$21<Parameters!$C$23,Parameters!$C$24,Parameters!$C$24 - Parameters!$C$25 / (Parameters!$C$23 - Parameters!$C$22) * (($I85-$C$5-Parameters!$C$21) - Parameters!$C$23)))) -> -100
I86: 0.79 | J86: 1.815301323 | K86: 0.5780386091 | L86: =IF(ABS($I86-$C$5-Parameters!$C$21)>Parameters!$C$22,-100,IF($I86-$C$5-Parameters!$C$21<-Parameters!$C$23,Parameters!$C$24 + Parameters!$C$25 / (Parameters!$C$23 - Parameters!$C$22) * (($I86-$C$5-Parameters!$C$21) + Parameters!$C$23),IF($I86-$C$5-Parameters!$C$21<Parameters!$C$23,Parameters!$C$24,Parameters!$C$24 - Parameters!$C$25 / (Parameters!$C$23 - Parameters!$C$22) * (($I86-$C$5-Parameters!$C$21) - Parameters!$C$23)))) -> -100
I87: 0.8 | J87: =$I87*TAN(J$3)-0.5*g*$I87^2/(J$2*COS(J$3))^2 -> 1.831409776 | K87: 0.5841548497 | L87: =IF(ABS($I87-$C$5-Parameters!$C$21)>Parameters!$C$22,-100,IF($I87-$C$5-Parameters!$C$21<-Parameters!$C$23,Parameters!$C$24 + Parameters!$C$25 / (Parameters!$C$23 - Parameters!$C$22) * (($I87-$C$5-Parameters!$C$21) + Parameters!$C$23),IF($I87-$C$5-Parameters!$C$21<Parameters!$C$23,Parameters!$C$24,Parameters!$C$24 - Parameters!$C$25 / (Parameters!$C$23 - Parameters!$C$22) * (($I87-$C$5-Parameters!$C$21) - Parameters!$C$23)))) -> -100
I88: 0.81 | J88: 1.847346478 | K88: 0.5902410726 | L88: =IF(ABS($I88-$C$5-Parameters!$C$21)>Parameters!$C$22,-100,IF($I88-$C$5-Parameters!$C$21<-Parameters!$C$23,Parameters!$C$24 + Parameters!$C$25 / (Parameters!$C$23 - Parameters!$C$22) * (($I88-$C$5-Parameters!$C$21) + Parameters!$C$23),IF($I88-$C$5-Parameters!$C$21<Parameters!$C$23,Parameters!$C$24,Parameters!$C$24 - Parameters!$C$25 / (Parameters!$C$23 - Parameters!$C$22) * (($I88-$C$5-Parameters!$C$21) - Parameters!$C$23)))) -> -100
I89: 0.82 | J89: 1.863111429 | K89: 0.596297278 | L89: =IF(ABS($I89-$C$5-Parameters!$C$21)>Parameters!$C$22,-100,IF($I89-$C$5-Parameters!$C$21<-Parameters!$C$23,Parameters!$C$24 + Parameters!$C$25 / (Parameters!$C$23 - Parameters!$C$22) * (($I89-$C$5-Parameters!$C$21) + Parameters!$C$23),IF($I89-$C$5-Parameters!$C$21<Parameters!$C$23,Parameters!$C$24,Parameters!$C$24 - Parameters!$C$25 / (Parameters!$C$23 - Parameters!$C$22) * (($I89-$C$5-Parameters!$C$21) - Parameters!$C$23)))) -> -100
I90: 0.83 | J90: 1.878704629 | K90: 0.6023234658 | L90: =IF(ABS($I90-$C$5-Parameters!$C$21)>Parameters!$C$22,-100,IF($I90-$C$5-Parameters!$C$21<-Parameters!$C$23,Parameters!$C$24 + Parameters!$C$25 / (Parameters!$C$23 - Parameters!$C$22) * (($I90-$C$5-Parameters!$C$21) + Parameters!$C$23),IF($I90-$C$5-Parameters!$C$21<Parameters!$C$23,Parameters!$C$24,Parameters!$C$24 - Parameters!$C$25 / (Parameters!$C$23 - Parameters!$C$22) * (($I90-$C$5-Parameters!$C$21) - Parameters!$C$23)))) -> -100
I91: 0.84 | J91: 1.894126078 | K91: 0.6083196359 | L91: =IF(ABS($I91-$C$5-Parameters!$C$21)>Parameters!$C$22,-100,IF($I91-$C$5-Parameters!$C$21<-Parameters!$C$23,Parameters!$C$24 + Parameters!$C$25 / (Parameters!$C$23 - Parameters!$C$22) * (($I91-$C$5-Parameters!$C$21) + Parameters!$C$23),IF($I91-$C$5-Parameters!$C$21<Parameters!$C$23,Parameters!$C$24,Parameters!$C$24 - Parameters!$C$25 / (Parameters!$C$23 - Parameters!$C$22) * (($I91-$C$5-Parameters!$C$21) - Parameters!$C$23)))) -> -100
I92: 0.85 | J92: 1.909375776 | K92: 0.6142857885 | L92: =IF(ABS($I92-$C$5-Parameters!$C$21)>Parameters!$C$22,-100,IF($I92-$C$5-Parameters!$C$21<-Parameters!$C$23,Parameters!$C$24 + Parameters!$C$25 / (Parameters!$C$23 - Parameters!$C$22) * (($I92-$C$5-Parameters!$C$21) + Parameters!$C$23),IF($I92-$C$5-Parameters!$C$21<Parameters!$C$23,Parameters!$C$24,Parameters!$C$24 - Parameters!$C$25 / (Parameters!$C$23 - Parameters!$C$22) * (($I92-$C$5-Parameters!$C$21) - Parameters!$C$23)))) -> -100
I93: 0.86 | J93: 1.924453723 | K93: 0.6202219235 | L93: =IF(ABS($I93-$C$5-Parameters!$C$21)>Parameters!$C$22,-100,IF($I93-$C$5-Parameters!$C$21<-Parameters!$C$23,Parameters!$C$24 + Parameters!$C$25 / (Parameters!$C$23 - Parameters!$C$22) * (($I93-$C$5-Parameters!$C$21) + Parameters!$C$23),IF($I93-$C$5-Parameters!$C$21<Parameters!$C$23,Parameters!$C$24,Parameters!$C$24 - Parameters!$C$25 / (Parameters!$C$23 - Parameters!$C$22) * (($I93-$C$5-Parameters!$C$21) - Parameters!$C$23)))) -> -100
I94: 0.87 | J94: 1.939359918 | K94: 0.6261280409 | L94: =IF(ABS($I94-$C$5-Parameters!$C$21)>Parameters!$C$22,-100,IF($I94-$C$5-Parameters!$C$21<-Parameters!$C$23,Parameters!$C$24 + Parameters!$C$25 / (Parameters!$C$23 - Parameters!$C$22) * (($I94-$C$5-Parameters!$C$21) + Parameters!$C$23),IF($I94-$C$5-Parameters!$C$21<Parameters!$C$23,Parameters!$C$24,Parameters!$C$24 - Parameters!$C$25 / (Parameters!$C$23 - Parameters!$C$22) * (($I94-$C$5-Parameters!$C$21) - Parameters!$C$23)))) -> -100
I95: 0.88 | J95: 1.954094363 | K95: 0.6320041407 | L95: =IF(ABS($I95-$C$5-Parameters!$C$21)>Parameters!$C$22,-100,IF($I95-$C$5-Parameters!$C$21<-Parameters!$C$23,Parameters!$C$24 + Parameters!$C$25 / (Parameters!$C$23 - Parameters!$C$22) * (($I95-$C$5-Parameters!$C$21) + Parameters!$C$23),IF($I95-$C$5-Parameters!$C$21<Parameters!$C$23,Parameters!$C$24,Parameters!$C$24 - Parameters!$C$25 / (Parameters!$C$23 - Parameters!$C$22) * (($I95-$C$5-Parameters!$C$21) - Parameters!$C$23)))) -> -100
I96: 0.89 | J96: 1.968657056 | K96: 0.6378502228 | L96: =IF(ABS($I96-$C$5-Parameters!$C$21)>Parameters!$C$22,-100,IF($I96-$C$5-Parameters!$C$21<-Parameters!$C$23,Parameters!$C$24 + Parameters!$C$25 / (Parameters!$C$23 - Parameters!$C$22) * (($I96-$C$5-Parameters!$C$21) + Parameters!$C$23),IF($I96-$C$5-Parameters!$C$21<Parameters!$C$23,Parameters!$C$24,Parameters!$C$24 - Parameters!$C$25 / (Parameters!$C$23 - Parameters!$C$22) * (($I96-$C$5-Parameters!$C$21) - Parameters!$C$23)))) -> -100
I97: 0.9 | J97: 1.983047998 | K97: 0.6436662874 | L97: =IF(ABS($I97-$C$5-Parameters!$C$21)>Parameters!$C$22,-100,IF($I97-$C$5-Parameters!$C$21<-Parameters!$C$23,Parameters!$C$24 + Parameters!$C$25 / (Parameters!$C$23 - Parameters!$C$22) * (($I97-$C$5-Parameters!$C$21) + Parameters!$C$23),IF($I97-$C$5-Parameters!$C$21<Parameters!$C$23,Parameters!$C$24,Parameters!$C$24 - Parameters!$C$25 / (Parameters!$C$23 - Parameters!$C$22) * (($I97-$C$5-Parameters!$C$21) - Parameters!$C$23)))) -> -100
I98: 0.91 | J98: 1.997267189 | K98: 0.6494523344 | L98: =IF(ABS($I98-$C$5-Parameters!$C$21)>Parameters!$C$22,-100,IF($I98-$C$5-Parameters!$C$21<-Parameters!$C$23,Parameters!$C$24 + Parameters!$C$25 / (Parameters!$C$23 - Parameters!$C$22) * (($I98-$C$5-Parameters!$C$21) + Parameters!$C$23),IF($I98-$C$5-Parameters!$C$21<Parameters!$C$23,Parameters!$C$24,Parameters!$C$24 - Parameters!$C$25 / (Parameters!$C$23 - Parameters!$C$22) * (($I98-$C$5-Parameters!$C$21) - Parameters!$C$23)))) -> -100
I99: 0.92 | J99: 2.011314629 | K99: 0.6552083638 | L99: =IF(ABS($I99-$C$5-Parameters!$C$21)>Parameters!$C$22,-100,IF($I99-$C$5-Parameters!$C$21<-Parameters!$C$23,Parameters!$C$24 + Parameters!$C$25 / (Parameters!$C$23 - Parameters!$C$22) * (($I99-$C$5-Parameters!$C$21) + Parameters!$C$23),IF($I99-$C$5-Parameters!$C$21<Parameters!$C$23,Parameters!$C$24,Parameters!$C$24 - Parameters!$C$25 / (Parameters!$C$23 - Parameters!$C$22) * (($I99-$C$5-Parameters!$C$21) - Parameters!$C$23)))) -> -100
I100: 0.93 | J100: 2.025190318 | K100: 0.6609343756 | L100: =IF(ABS($I100-$C$5-Parameters!$C$21)>Parameters!$C$22,-100,IF($I100-$C$5-Parameters!$C$21<-Parameters!$C$23,Parameters!$C$24 + Parameters!$C$25 / (Parameters!$C$23 - Parameters!$C$22) * (($I100-$C$5-Parameters!$C$21) + Parameters!$C$23),IF($I100-$C$5-Parameters!$C$21<Parameters!$C$23,Parameters!$C$24,Parameters!$C$24 - Parameters!$C$25 / (Parameters!$C$23 - Parameters!$C$22) * (($I100-$C$5-Parameters!$C$21) - Parameters!$C$23)))) -> -100
I101: 0.94 | J101: 2.038894256 | K101: 0.6666303698 | L101: =IF(ABS($I101-$C$5-Parameters!$C$21)>Parameters!$C$22,-100,IF($I101-$C$5-Parameters!$C$21<-Parameters!$C$23,Parameters!$C$24 + Parameters!$C$25 / (Parameters!$C$23 - Parameters!$C$22) * (($I101-$C$5-Parameters!$C$21) + Parameters!$C$23),IF($I101-$C$5-Parameters!$C$21<Parameters!$C$23,Parameters!$C$24,Parameters!$C$24 - Parameters!$C$25 / (Parameters!$C$23 - Parameters!$C$22) * (($I101-$C$5-Parameters!$C$21) - Parameters!$C$23)))) -> -100
I102: 0.95 | J102: 2.052426443 | K102: 0.6722963464 | L102: =IF(ABS($I102-$C$5-Parameters!$C$21)>Parameters!$C$22,-100,IF($I102-$C$5-Parameters!$C$21<-Parameters!$C$23,Parameters!$C$24 + Parameters!$C$25 / (Parameters!$C$23 - Parameters!$C$22) * (($I102-$C$5-Parameters!$C$21) + Parameters!$C$23),IF($I102-$C$5-Parameters!$C$21<Parameters!$C$23,Parameters!$C$24,Parameters!$C$24 - Parameters!$C$25 / (Parameters!$C$23 - Parameters!$C$22) * (($I102-$C$5-Parameters!$C$21) - Parameters!$C$23)))) -> -100
I103: 0.96 | J103: 2.065786878 | K103: 0.6779323055 | L103: =IF(ABS($I103-$C$5-Parameters!$C$21)>Parameters!$C$22,-100,IF($I103-$C$5-Parameters!$C$21<-Parameters!$C$23,Parameters!$C$24 + Parameters!$C$25 / (Parameters!$C$23 - Parameters!$C$22) * (($I103-$C$5-Parameters!$C$21) + Parameters!$C$23),IF($I103-$C$5-Parameters!$C$21<Parameters!$C$23,Parameters!$C$24,Parameters!$C$24 - Parameters!$C$25 / (Parameters!$C$23 - Parameters!$C$22) * (($I103-$C$5-Parameters!$C$21) - Parameters!$C$23)))) -> -100
I104: 0.97 | J104: 2.078975563 | K104: 0.6835382469 | L104: =IF(ABS($I104-$C$5-Parameters!$C$21)>Parameters!$C$22,-100,IF($I104-$C$5-Parameters!$C$21<-Parameters!$C$23,Parameters!$C$24 + Parameters!$C$25 / (Parameters!$C$23 - Parameters!$C$22) * (($I104-$C$5-Parameters!$C$21) + Parameters!$C$23),IF($I104-$C$5-Parameters!$C$21<Parameters!$C$23,Parameters!$C$24,Parameters!$C$24 - Parameters!$C$25 / (Parameters!$C$23 - Parameters!$C$22) * (($I104-$C$5-Parameters!$C$21) - Parameters!$C$23)))) -> -100
I105: 0.98 | J105: 2.091992496 | K105: 0.6891141707 | L105: =IF(ABS($I105-$C$5-Parameters!$C$21)>Parameters!$C$22,-100,IF($I105-$C$5-Parameters!$C$21<-Parameters!$C$23,Parameters!$C$24 + Parameters!$C$25 / (Parameters!$C$23 - Parameters!$C$22) * (($I105-$C$5-Parameters!$C$21) + Parameters!$C$23),IF($I105-$C$5-Parameters!$C$21<Parameters!$C$23,Parameters!$C$24,Parameters!$C$24 - Parameters!$C$25 / (Parameters!$C$23 - Parameters!$C$22) * (($I105-$C$5-Parameters!$C$21) - Parameters!$C$23)))) -> -100
I106: 0.99 | J106: 2.104837678 | K106: 0.6946600769 | L106: =IF(ABS($I106-$C$5-Parameters!$C$21)>Parameters!$C$22,-100,IF($I106-$C$5-Parameters!$C$21<-Parameters!$C$23,Parameters!$C$24 + Parameters!$C$25 / (Parameters!$C$23 - Parameters!$C$22) * (($I106-$C$5-Parameters!$C$21) + Parameters!$C$23),IF($I106-$C$5-Parameters!$C$21<Parameters!$C$23,Parameters!$C$24,Parameters!$C$24 - Parameters!$C$25 / (Parameters!$C$23 - Parameters!$C$22) * (($I106-$C$5-Parameters!$C$21) - Parameters!$C$23)))) -> -100
I107: 1 | J107: =$I107*TAN(J$3)-0.5*g*$I107^2/(J$2*COS(J$3))^2 -> 2.117511109 | K107: 0.7001759655 | L107: =IF(ABS($I107-$C$5-Parameters!$C$21)>Parameters!$C$22,-100,IF($I107-$C$5-Parameters!$C$21<-Parameters!$C$23,Parameters!$C$24 + Parameters!$C$25 / (Parameters!$C$23 - Parameters!$C$22) * (($I107-$C$5-Parameters!$C$21) + Parameters!$C$23),IF($I107-$C$5-Parameters!$C$21<Parameters!$C$23,Parameters!$C$24,Parameters!$C$24 - Parameters!$C$25 / (Parameters!$C$23 - Parameters!$C$22) * (($I107-$C$5-Parameters!$C$21) - Parameters!$C$23)))) -> -100
I108: 1.01 | J108: 2.130012789 | K108: 0.7056618366 | L108: =IF(ABS($I108-$C$5-Parameters!$C$21)>Parameters!$C$22,-100,IF($I108-$C$5-Parameters!$C$21<-Parameters!$C$23,Parameters!$C$24 + Parameters!$C$25 / (Parameters!$C$23 - Parameters!$C$22) * (($I108-$C$5-Parameters!$C$21) + Parameters!$C$23),IF($I108-$C$5-Parameters!$C$21<Parameters!$C$23,Parameters!$C$24,Parameters!$C$24 - Parameters!$C$25 / (Parameters!$C$23 - Parameters!$C$22) * (($I108-$C$5-Parameters!$C$21) - Parameters!$C$23)))) -> -100
I109: 1.02 | J109: 2.142342718 | K109: 0.71111769 | L109: =IF(ABS($I109-$C$5-Parameters!$C$21)>Parameters!$C$22,-100,IF($I109-$C$5-Parameters!$C$21<-Parameters!$C$23,Parameters!$C$24 + Parameters!$C$25 / (Parameters!$C$23 - Parameters!$C$22) * (($I109-$C$5-Parameters!$C$21) + Parameters!$C$23),IF($I109-$C$5-Parameters!$C$21<Parameters!$C$23,Parameters!$C$24,Parameters!$C$24 - Parameters!$C$25 / (Parameters!$C$23 - Parameters!$C$22) * (($I109-$C$5-Parameters!$C$21) - Parameters!$C$23)))) -> -100
I110: 1.03 | J110: 2.154500896 | K110: 0.7165435258 | L110: =IF(ABS($I110-$C$5-Parameters!$C$21)>Parameters!$C$22,-100,IF($I110-$C$5-Parameters!$C$21<-Parameters!$C$23,Parameters!$C$24 + Parameters!$C$25 / (Parameters!$C$23 - Parameters!$C$22) * (($I110-$C$5-Parameters!$C$21) + Parameters!$C$23),IF($I110-$C$5-Parameters!$C$21<Parameters!$C$23,Parameters!$C$24,Parameters!$C$24 - Parameters!$C$25 / (Parameters!$C$23 - Parameters!$C$22) * (($I110-$C$5-Parameters!$C$21) - Parameters!$C$23)))) -> -100
I111: 1.04 | J111: 2.166487323 | K111: 0.7219393441 | L111: =IF(ABS($I111-$C$5-Parameters!$C$21)>Parameters!$C$22,-100,IF($I111-$C$5-Parameters!$C$21<-Parameters!$C$23,Parameters!$C$24 + Parameters!$C$25 / (Parameters!$C$23 - Parameters!$C$22) * (($I111-$C$5-Parameters!$C$21) + Parameters!$C$23),IF($I111-$C$5-Parameters!$C$21<Parameters!$C$23,Parameters!$C$24,Parameters!$C$24 - Parameters!$C$25 / (Parameters!$C$23 - Parameters!$C$22) * (($I111-$C$5-Parameters!$C$21) - Parameters!$C$23)))) -> -100
I112: 1.05 | J112: 2.178301998 | K112: 0.7273051447 | L112: =IF(ABS($I112-$C$5-Parameters!$C$21)>Parameters!$C$22,-100,IF($I112-$C$5-Parameters!$C$21<-Parameters!$C$23,Parameters!$C$24 + Parameters!$C$25 / (Parameters!$C$23 - Parameters!$C$22) * (($I112-$C$5-Parameters!$C$21) + Parameters!$C$23),IF($I112-$C$5-Parameters!$C$21<Parameters!$C$23,Parameters!$C$24,Parameters!$C$24 - Parameters!$C$25 / (Parameters!$C$23 - Parameters!$C$22) * (($I112-$C$5-Parameters!$C$21) - Parameters!$C$23)))) -> -100
I113: 1.06 | J113: 2.189944923 | K113: 0.7326409278 | L113: =IF(ABS($I113-$C$5-Parameters!$C$21)>Parameters!$C$22,-100,IF($I113-$C$5-Parameters!$C$21<-Parameters!$C$23,Parameters!$C$24 + Parameters!$C$25 / (Parameters!$C$23 - Parameters!$C$22) * (($I113-$C$5-Parameters!$C$21) + Parameters!$C$23),IF($I113-$C$5-Parameters!$C$21<Parameters!$C$23,Parameters!$C$24,Parameters!$C$24 - Parameters!$C$25 / (Parameters!$C$23 - Parameters!$C$22) * (($I113-$C$5-Parameters!$C$21) - Parameters!$C$23)))) -> -100
I114: 1.07 | J114: 2.201416096 | K114: 0.7379466932 | L114: =IF(ABS($I114-$C$5-Parameters!$C$21)>Parameters!$C$22,-100,IF($I114-$C$5-Parameters!$C$21<-Parameters!$C$23,Parameters!$C$24 + Parameters!$C$25 / (Parameters!$C$23 - Parameters!$C$22) * (($I114-$C$5-Parameters!$C$21) + Parameters!$C$23),IF($I114-$C$5-Parameters!$C$21<Parameters!$C$23,Parameters!$C$24,Parameters!$C$24 - Parameters!$C$25 / (Parameters!$C$23 - Parameters!$C$22) * (($I114-$C$5-Parameters!$C$21) - Parameters!$C$23)))) -> -100
I115: 1.08 | J115: 2.212715518 | K115: 0.7432224411 | L115: =IF(ABS($I115-$C$5-Parameters!$C$21)>Parameters!$C$22,-100,IF($I115-$C$5-Parameters!$C$21<-Parameters!$C$23,Parameters!$C$24 + Parameters!$C$25 / (Parameters!$C$23 - Parameters!$C$22) * (($I115-$C$5-Parameters!$C$21) + Parameters!$C$23),IF($I115-$C$5-Parameters!$C$21<Parameters!$C$23,Parameters!$C$24,Parameters!$C$24 - Parameters!$C$25 / (Parameters!$C$23 - Parameters!$C$22) * (($I115-$C$5-Parameters!$C$21) - Parameters!$C$23)))) -> -100
I116: 1.09 | J116: 2.223843189 | K116: 0.7484681713 | L116: =IF(ABS($I116-$C$5-Parameters!$C$21)>Parameters!$C$22,-100,IF($I116-$C$5-Parameters!$C$21<-Parameters!$C$23,Parameters!$C$24 + Parameters!$C$25 / (Parameters!$C$23 - Parameters!$C$22) * (($I116-$C$5-Parameters!$C$21) + Parameters!$C$23),IF($I116-$C$5-Parameters!$C$21<Parameters!$C$23,Parameters!$C$24,Parameters!$C$24 - Parameters!$C$25 / (Parameters!$C$23 - Parameters!$C$22) * (($I116-$C$5-Parameters!$C$21) - Parameters!$C$23)))) -> -100
I117: 1.1 | J117: 2.234799109 | K117: 0.753683884 | L117: =IF(ABS($I117-$C$5-Parameters!$C$21)>Parameters!$C$22,-100,IF($I117-$C$5-Parameters!$C$21<-Parameters!$C$23,Parameters!$C$24 + Parameters!$C$25 / (Parameters!$C$23 - Parameters!$C$22) * (($I117-$C$5-Parameters!$C$21) + Parameters!$C$23),IF($I117-$C$5-Parameters!$C$21<Parameters!$C$23,Parameters!$C$24,Parameters!$C$24 - Parameters!$C$25 / (Parameters!$C$23 - Parameters!$C$22) * (($I117-$C$5-Parameters!$C$21) - Parameters!$C$23)))) -> -100
I118: 1.11 | J118: 2.245583278 | K118: 0.7588695791 | L118: =IF(ABS($I118-$C$5-Parameters!$C$21)>Parameters!$C$22,-100,IF($I118-$C$5-Parameters!$C$21<-Parameters!$C$23,Parameters!$C$24 + Parameters!$C$25 / (Parameters!$C$23 - Parameters!$C$22) * (($I118-$C$5-Parameters!$C$21) + Parameters!$C$23),IF($I118-$C$5-Parameters!$C$21<Parameters!$C$23,Parameters!$C$24,Parameters!$C$24 - Parameters!$C$25 / (Parameters!$C$23 - Parameters!$C$22) * (($I118-$C$5-Parameters!$C$21) - Parameters!$C$23)))) -> -100
I119: 1.12 | J119: 2.256195696 | K119: 0.7640252565 | L119: =IF(ABS($I119-$C$5-Parameters!$C$21)>Parameters!$C$22,-100,IF($I119-$C$5-Parameters!$C$21<-Parameters!$C$23,Parameters!$C$24 + Parameters!$C$25 / (Parameters!$C$23 - Parameters!$C$22) * (($I119-$C$5-Parameters!$C$21) + Parameters!$C$23),IF($I119-$C$5-Parameters!$C$21<Parameters!$C$23,Parameters!$C$24,Parameters!$C$24 - Parameters!$C$25 / (Parameters!$C$23 - Parameters!$C$22) * (($I119-$C$5-Parameters!$C$21) - Parameters!$C$23)))) -> -100
I120: 1.13 | J120: 2.266636363 | K120: 0.7691509164 | L120: =IF(ABS($I120-$C$5-Parameters!$C$21)>Parameters!$C$22,-100,IF($I120-$C$5-Parameters!$C$21<-Parameters!$C$23,Parameters!$C$24 + Parameters!$C$25 / (Parameters!$C$23 - Parameters!$C$22) * (($I120-$C$5-Parameters!$C$21) + Parameters!$C$23),IF($I120-$C$5-Parameters!$C$21<Parameters!$C$23,Parameters!$C$24,Parameters!$C$24 - Parameters!$C$25 / (Parameters!$C$23 - Parameters!$C$22) * (($I120-$C$5-Parameters!$C$21) - Parameters!$C$23)))) -> -100
I121: 1.14 | J121: 2.276905278 | K121: 0.7742465587 | L121: =IF(ABS($I121-$C$5-Parameters!$C$21)>Parameters!$C$22,-100,IF($I121-$C$5-Parameters!$C$21<-Parameters!$C$23,Parameters!$C$24 + Parameters!$C$25 / (Parameters!$C$23 - Parameters!$C$22) * (($I121-$C$5-Parameters!$C$21) + Parameters!$C$23),IF($I121-$C$5-Parameters!$C$21<Parameters!$C$23,Parameters!$C$24,Parameters!$C$24 - Parameters!$C$25 / (Parameters!$C$23 - Parameters!$C$22) * (($I121-$C$5-Parameters!$C$21) - Parameters!$C$23)))) -> -100
I122: 1.15 | J122: 2.287002443 | K122: 0.7793121833 | L122: =IF(ABS($I122-$C$5-Parameters!$C$21)>Parameters!$C$22,-100,IF($I122-$C$5-Parameters!$C$21<-Parameters!$C$23,Parameters!$C$24 + Parameters!$C$25 / (Parameters!$C$23 - Parameters!$C$22) * (($I122-$C$5-Parameters!$C$21) + Parameters!$C$23),IF($I122-$C$5-Parameters!$C$21<Parameters!$C$23,Parameters!$C$24,Parameters!$C$24 - Parameters!$C$25 / (Parameters!$C$23 - Parameters!$C$22) * (($I122-$C$5-Parameters!$C$21) - Parameters!$C$23)))) -> -100
I123: 1.16 | J123: 2.296927856 | K123: 0.7843477904 | L123: =IF(ABS($I123-$C$5-Parameters!$C$21)>Parameters!$C$22,-100,IF($I123-$C$5-Parameters!$C$21<-Parameters!$C$23,Parameters!$C$24 + Parameters!$C$25 / (Parameters!$C$23 - Parameters!$C$22) * (($I123-$C$5-Parameters!$C$21) + Parameters!$C$23),IF($I123-$C$5-Parameters!$C$21<Parameters!$C$23,Parameters!$C$24,Parameters!$C$24 - Parameters!$C$25 / (Parameters!$C$23 - Parameters!$C$22) * (($I123-$C$5-Parameters!$C$21) - Parameters!$C$23)))) -> -100
I124: 1.17 | J124: 2.306681518 | K124: 0.7893533799 | L124: =IF(ABS($I124-$C$5-Parameters!$C$21)>Parameters!$C$22,-100,IF($I124-$C$5-Parameters!$C$21<-Parameters!$C$23,Parameters!$C$24 + Parameters!$C$25 / (Parameters!$C$23 - Parameters!$C$22) * (($I124-$C$5-Parameters!$C$21) + Parameters!$C$23),IF($I124-$C$5-Parameters!$C$21<Parameters!$C$23,Parameters!$C$24,Parameters!$C$24 - Parameters!$C$25 / (Parameters!$C$23 - Parameters!$C$22) * (($I124-$C$5-Parameters!$C$21) - Parameters!$C$23)))) -> -100
I125: 1.18 | J125: 2.316263429 | K125: 0.7943289518 | L125: =IF(ABS($I125-$C$5-Parameters!$C$21)>Parameters!$C$22,-100,IF($I125-$C$5-Parameters!$C$21<-Parameters!$C$23,Parameters!$C$24 + Parameters!$C$25 / (Parameters!$C$23 - Parameters!$C$22) * (($I125-$C$5-Parameters!$C$21) + Parameters!$C$23),IF($I125-$C$5-Parameters!$C$21<Parameters!$C$23,Parameters!$C$24,Parameters!$C$24 - Parameters!$C$25 / (Parameters!$C$23 - Parameters!$C$22) * (($I125-$C$5-Parameters!$C$21) - Parameters!$C$23)))) -> -100
I126: 1.19 | J126: 2.325673589 | K126: 0.7992745061 | L126: =IF(ABS($I126-$C$5-Parameters!$C$21)>Parameters!$C$22,-100,IF($I126-$C$5-Parameters!$C$21<-Parameters!$C$23,Parameters!$C$24 + Parameters!$C$25 / (Parameters!$C$23 - Parameters!$C$22) * (($I126-$C$5-Parameters!$C$21) + Parameters!$C$23),IF($I126-$C$5-Parameters!$C$21<Parameters!$C$23,Parameters!$C$24,Parameters!$C$24 - Parameters!$C$25 / (Parameters!$C$23 - Parameters!$C$22) * (($I126-$C$5-Parameters!$C$21) - Parameters!$C$23)))) -> -100
I127: 1.2 | J127: =$I127*TAN(J$3)-0.5*g*$I127^2/(J$2*COS(J$3))^2 -> 2.334911998 | K127: 0.8041900428 | L127: =IF(ABS($I127-$C$5-Parameters!$C$21)>Parameters!$C$22,-100,IF($I127-$C$5-Parameters!$C$21<-Parameters!$C$23,Parameters!$C$24 + Parameters!$C$25 / (Parameters!$C$23 - Parameters!$C$22) * (($I127-$C$5-Parameters!$C$21) + Parameters!$C$23),IF($I127-$C$5-Parameters!$C$21<Parameters!$C$23,Parameters!$C$24,Parameters!$C$24 - Parameters!$C$25 / (Parameters!$C$23 - Parameters!$C$22) * (($I127-$C$5-Parameters!$C$21) - Parameters!$C$23)))) -> -100
I128: 1.21 | J128: 2.343978656 | K128: 0.8090755619 | L128: =IF(ABS($I128-$C$5-Parameters!$C$21)>Parameters!$C$22,-100,IF($I128-$C$5-Parameters!$C$21<-Parameters!$C$23,Parameters!$C$24 + Parameters!$C$25 / (Parameters!$C$23 - Parameters!$C$22) * (($I128-$C$5-Parameters!$C$21) + Parameters!$C$23),IF($I128-$C$5-Parameters!$C$21<Parameters!$C$23,Parameters!$C$24,Parameters!$C$24 - Parameters!$C$25 / (Parameters!$C$23 - Parameters!$C$22) * (($I128-$C$5-Parameters!$C$21) - Parameters!$C$23)))) -> -100
I129: 1.22 | J129: 2.352873562 | K129: 0.8139310634 | L129: =IF(ABS($I129-$C$5-Parameters!$C$21)>Parameters!$C$22,-100,IF($I129-$C$5-Parameters!$C$21<-Parameters!$C$23,Parameters!$C$24 + Parameters!$C$25 / (Parameters!$C$23 - Parameters!$C$22) * (($I129-$C$5-Parameters!$C$21) + Parameters!$C$23),IF($I129-$C$5-Parameters!$C$21<Parameters!$C$23,Parameters!$C$24,Parameters!$C$24 - Parameters!$C$25 / (Parameters!$C$23 - Parameters!$C$22) * (($I129-$C$5-Parameters!$C$21) - Parameters!$C$23)))) -> -100
I130: 1.23 | J130: 2.361596718 | K130: 0.8187565473 | L130: =IF(ABS($I130-$C$5-Parameters!$C$21)>Parameters!$C$22,-100,IF($I130-$C$5-Parameters!$C$21<-Parameters!$C$23,Parameters!$C$24 + Parameters!$C$25 / (Parameters!$C$23 - Parameters!$C$22) * (($I130-$C$5-Parameters!$C$21) + Parameters!$C$23),IF($I130-$C$5-Parameters!$C$21<Parameters!$C$23,Parameters!$C$24,Parameters!$C$24 - Parameters!$C$25 / (Parameters!$C$23 - Parameters!$C$22) * (($I130-$C$5-Parameters!$C$21) - Parameters!$C$23)))) -> -100
I131: 1.24 | J131: 2.370148122 | K131: 0.8235520136 | L131: =IF(ABS($I131-$C$5-Parameters!$C$21)>Parameters!$C$22,-100,IF($I131-$C$5-Parameters!$C$21<-Parameters!$C$23,Parameters!$C$24 + Parameters!$C$25 / (Parameters!$C$23 - Parameters!$C$22) * (($I131-$C$5-Parameters!$C$21) + Parameters!$C$23),IF($I131-$C$5-Parameters!$C$21<Parameters!$C$23,Parameters!$C$24,Parameters!$C$24 - Parameters!$C$25 / (Parameters!$C$23 - Parameters!$C$22) * (($I131-$C$5-Parameters!$C$21) - Parameters!$C$23)))) -> -100
I132: 1.25 | J132: 2.378527776 | K132: 0.8283174623 | L132: =IF(ABS($I132-$C$5-Parameters!$C$21)>Parameters!$C$22,-100,IF($I132-$C$5-Parameters!$C$21<-Parameters!$C$23,Parameters!$C$24 + Parameters!$C$25 / (Parameters!$C$23 - Parameters!$C$22) * (($I132-$C$5-Parameters!$C$21) + Parameters!$C$23),IF($I132-$C$5-Parameters!$C$21<Parameters!$C$23,Parameters!$C$24,Parameters!$C$24 - Parameters!$C$25 / (Parameters!$C$23 - Parameters!$C$22) * (($I132-$C$5-Parameters!$C$21) - Parameters!$C$23)))) -> -100
I133: 1.26 | J133: 2.386735678 | K133: 0.8330528934 | L133: =IF(ABS($I133-$C$5-Parameters!$C$21)>Parameters!$C$22,-100,IF($I133-$C$5-Parameters!$C$21<-Parameters!$C$23,Parameters!$C$24 + Parameters!$C$25 / (Parameters!$C$23 - Parameters!$C$22) * (($I133-$C$5-Parameters!$C$21) + Parameters!$C$23),IF($I133-$C$5-Parameters!$C$21<Parameters!$C$23,Parameters!$C$24,Parameters!$C$24 - Parameters!$C$25 / (Parameters!$C$23 - Parameters!$C$22) * (($I133-$C$5-Parameters!$C$21) - Parameters!$C$23)))) -> -100
I134: 1.27 | J134: 2.394771829 | K134: 0.8377583069 | L134: =IF(ABS($I134-$C$5-Parameters!$C$21)>Parameters!$C$22,-100,IF($I134-$C$5-Parameters!$C$21<-Parameters!$C$23,Parameters!$C$24 + Parameters!$C$25 / (Parameters!$C$23 - Parameters!$C$22) * (($I134-$C$5-Parameters!$C$21) + Parameters!$C$23),IF($I134-$C$5-Parameters!$C$21<Parameters!$C$23,Parameters!$C$24,Parameters!$C$24 - Parameters!$C$25 / (Parameters!$C$23 - Parameters!$C$22) * (($I134-$C$5-Parameters!$C$21) - Parameters!$C$23)))) -> -100
I135: 1.28 | J135: 2.402636229 | K135: 0.8424337029 | L135: =IF(ABS($I135-$C$5-Parameters!$C$21)>Parameters!$C$22,-100,IF($I135-$C$5-Parameters!$C$21<-Parameters!$C$23,Parameters!$C$24 + Parameters!$C$25 / (Parameters!$C$23 - Parameters!$C$22) * (($I135-$C$5-Parameters!$C$21) + Parameters!$C$23),IF($I135-$C$5-Parameters!$C$21<Parameters!$C$23,Parameters!$C$24,Parameters!$C$24 - Parameters!$C$25 / (Parameters!$C$23 - Parameters!$C$22) * (($I135-$C$5-Parameters!$C$21) - Parameters!$C$23)))) -> -100
I136: 1.29 | J136: 2.410328878 | K136: 0.8470790812 | L136: =IF(ABS($I136-$C$5-Parameters!$C$21)>Parameters!$C$22,-100,IF($I136-$C$5-Parameters!$C$21<-Parameters!$C$23,Parameters!$C$24 + Parameters!$C$25 / (Parameters!$C$23 - Parameters!$C$22) * (($I136-$C$5-Parameters!$C$21) + Parameters!$C$23),IF($I136-$C$5-Parameters!$C$21<Parameters!$C$23,Parameters!$C$24,Parameters!$C$24 - Parameters!$C$25 / (Parameters!$C$23 - Parameters!$C$22) * (($I136-$C$5-Parameters!$C$21) - Parameters!$C$23)))) -> -100
I137: =I136+0.01 -> 1.3 | J137: 2.417849776 | K137: 0.8516944419 | L137: =IF(ABS($I137-$C$5-Parameters!$C$21)>Parameters!$C$22,-100,IF($I137-$C$5-Parameters!$C$21<-Parameters!$C$23,Parameters!$C$24 + Parameters!$C$25 / (Parameters!$C$23 - Parameters!$C$22) * (($I137-$C$5-Parameters!$C$21) + Parameters!$C$23),IF($I137-$C$5-Parameters!$C$21<Parameters!$C$23,Parameters!$C$24,Parameters!$C$24 - Parameters!$C$25 / (Parameters!$C$23 - Parameters!$C$22) * (($I137-$C$5-Parameters!$C$21) - Parameters!$C$23)))) -> -100
I138: 1.31 | J138: 2.425198922 | K138: 0.8562797851 | L138: =IF(ABS($I138-$C$5-Parameters!$C$21)>Parameters!$C$22,-100,IF($I138-$C$5-Parameters!$C$21<-Parameters!$C$23,Parameters!$C$24 + Parameters!$C$25 / (Parameters!$C$23 - Parameters!$C$22) * (($I138-$C$5-Parameters!$C$21) + Parameters!$C$23),IF($I138-$C$5-Parameters!$C$21<Parameters!$C$23,Parameters!$C$24,Parameters!$C$24 - Parameters!$C$25 / (Parameters!$C$23 - Parameters!$C$22) * (($I138-$C$5-Parameters!$C$21) - Parameters!$C$23)))) -> -100
I139: 1.32 | J139: 2.432376318 | K139: 0.8608351106 | L139: =IF(ABS($I139-$C$5-Parameters!$C$21)>Parameters!$C$22,-100,IF($I139-$C$5-Parameters!$C$21<-Parameters!$C$23,Parameters!$C$24 + Parameters!$C$25 / (Parameters!$C$23 - Parameters!$C$22) * (($I139-$C$5-Parameters!$C$21) + Parameters!$C$23),IF($I139-$C$5-Parameters!$C$21<Parameters!$C$23,Parameters!$C$24,Parameters!$C$24 - Parameters!$C$25 / (Parameters!$C$23 - Parameters!$C$22) * (($I139-$C$5-Parameters!$C$21) - Parameters!$C$23)))) -> -100
I140: 1.33 | J140: 2.439381962 | K140: 0.8653604185 | L140: =IF(ABS($I140-$C$5-Parameters!$C$21)>Parameters!$C$22,-100,IF($I140-$C$5-Parameters!$C$21<-Parameters!$C$23,Parameters!$C$24 + Parameters!$C$25 / (Parameters!$C$23 - Parameters!$C$22) * (($I140-$C$5-Parameters!$C$21) + Parameters!$C$23),IF($I140-$C$5-Parameters!$C$21<Parameters!$C$23,Parameters!$C$24,Parameters!$C$24 - Parameters!$C$25 / (Parameters!$C$23 - Parameters!$C$22) * (($I140-$C$5-Parameters!$C$21) - Parameters!$C$23)))) -> -100
I141: 1.34 | J141: 2.446215856 | K141: 0.8698557089 | L141: =IF(ABS($I141-$C$5-Parameters!$C$21)>Parameters!$C$22,-100,IF($I141-$C$5-Parameters!$C$21<-Parameters!$C$23,Parameters!$C$24 + Parameters!$C$25 / (Parameters!$C$23 - Parameters!$C$22) * (($I141-$C$5-Parameters!$C$21) + Parameters!$C$23),IF($I141-$C$5-Parameters!$C$21<Parameters!$C$23,Parameters!$C$24,Parameters!$C$24 - Parameters!$C$25 / (Parameters!$C$23 - Parameters!$C$22) * (($I141-$C$5-Parameters!$C$21) - Parameters!$C$23)))) -> -100
I142: 1.35 | J142: 2.452877998 | K142: 0.8743209816 | L142: =IF(ABS($I142-$C$5-Parameters!$C$21)>Parameters!$C$22,-100,IF($I142-$C$5-Parameters!$C$21<-Parameters!$C$23,Parameters!$C$24 + Parameters!$C$25 / (Parameters!$C$23 - Parameters!$C$22) * (($I142-$C$5-Parameters!$C$21) + Parameters!$C$23),IF($I142-$C$5-Parameters!$C$21<Parameters!$C$23,Parameters!$C$24,Parameters!$C$24 - Parameters!$C$25 / (Parameters!$C$23 - Parameters!$C$22) * (($I142-$C$5-Parameters!$C$21) - Parameters!$C$23)))) -> -100
I143: 1.36 | J143: 2.459368389 | K143: 0.8787562368 | L143: =IF(ABS($I143-$C$5-Parameters!$C$21)>Parameters!$C$22,-100,IF($I143-$C$5-Parameters!$C$21<-Parameters!$C$23,Parameters!$C$24 + Parameters!$C$25 / (Parameters!$C$23 - Parameters!$C$22) * (($I143-$C$5-Parameters!$C$21) + Parameters!$C$23),IF($I143-$C$5-Parameters!$C$21<Parameters!$C$23,Parameters!$C$24,Parameters!$C$24 - Parameters!$C$25 / (Parameters!$C$23 - Parameters!$C$22) * (($I143-$C$5-Parameters!$C$21) - Parameters!$C$23)))) -> -100
I144: 1.37 | J144: 2.465687029 | K144: 0.8831614743 | L144: =IF(ABS($I144-$C$5-Parameters!$C$21)>Parameters!$C$22,-100,IF($I144-$C$5-Parameters!$C$21<-Parameters!$C$23,Parameters!$C$24 + Parameters!$C$25 / (Parameters!$C$23 - Parameters!$C$22) * (($I144-$C$5-Parameters!$C$21) + Parameters!$C$23),IF($I144-$C$5-Parameters!$C$21<Parameters!$C$23,Parameters!$C$24,Parameters!$C$24 - Parameters!$C$25 / (Parameters!$C$23 - Parameters!$C$22) * (($I144-$C$5-Parameters!$C$21) - Parameters!$C$23)))) -> -100
I145: 1.38 | J145: 2.471833918 | K145: 0.8875366943 | L145: =IF(ABS($I145-$C$5-Parameters!$C$21)>Parameters!$C$22,-100,IF($I145-$C$5-Parameters!$C$21<-Parameters!$C$23,Parameters!$C$24 + Parameters!$C$25 / (Parameters!$C$23 - Parameters!$C$22) * (($I145-$C$5-Parameters!$C$21) + Parameters!$C$23),IF($I145-$C$5-Parameters!$C$21<Parameters!$C$23,Parameters!$C$24,Parameters!$C$24 - Parameters!$C$25 / (Parameters!$C$23 - Parameters!$C$22) * (($I145-$C$5-Parameters!$C$21) - Parameters!$C$23)))) -> -100
I146: 1.39 | J146: 2.477809056 | K146: 0.8918818966 | L146: =IF(ABS($I146-$C$5-Parameters!$C$21)>Parameters!$C$22,-100,IF($I146-$C$5-Parameters!$C$21<-Parameters!$C$23,Parameters!$C$24 + Parameters!$C$25 / (Parameters!$C$23 - Parameters!$C$22) * (($I146-$C$5-Parameters!$C$21) + Parameters!$C$23),IF($I146-$C$5-Parameters!$C$21<Parameters!$C$23,Parameters!$C$24,Parameters!$C$24 - Parameters!$C$25 / (Parameters!$C$23 - Parameters!$C$22) * (($I146-$C$5-Parameters!$C$21) - Parameters!$C$23)))) -> -100
I147: 1.4 | J147: =$I147*TAN(J$3)-0.5*g*$I147^2/(J$2*COS(J$3))^2 -> 2.483612442 | K147: 0.8961970814 | L147: =IF(ABS($I147-$C$5-Parameters!$C$21)>Parameters!$C$22,-100,IF($I147-$C$5-Parameters!$C$21<-Parameters!$C$23,Parameters!$C$24 + Parameters!$C$25 / (Parameters!$C$23 - Parameters!$C$22) * (($I147-$C$5-Parameters!$C$21) + Parameters!$C$23),IF($I147-$C$5-Parameters!$C$21<Parameters!$C$23,Parameters!$C$24,Parameters!$C$24 - Parameters!$C$25 / (Parameters!$C$23 - Parameters!$C$22) * (($I147-$C$5-Parameters!$C$21) - Parameters!$C$23)))) -> -100
I148: 1.41 | J148: 2.489244078 | K148: 0.9004822486 | L148: =IF(ABS($I148-$C$5-Parameters!$C$21)>Parameters!$C$22,-100,IF($I148-$C$5-Parameters!$C$21<-Parameters!$C$23,Parameters!$C$24 + Parameters!$C$25 / (Parameters!$C$23 - Parameters!$C$22) * (($I148-$C$5-Parameters!$C$21) + Parameters!$C$23),IF($I148-$C$5-Parameters!$C$21<Parameters!$C$23,Parameters!$C$24,Parameters!$C$24 - Parameters!$C$25 / (Parameters!$C$23 - Parameters!$C$22) * (($I148-$C$5-Parameters!$C$21) - Parameters!$C$23)))) -> -100
I149: 1.42 | J149: 2.494703962 | K149: 0.9047373981 | L149: =IF(ABS($I149-$C$5-Parameters!$C$21)>Parameters!$C$22,-100,IF($I149-$C$5-Parameters!$C$21<-Parameters!$C$23,Parameters!$C$24 + Parameters!$C$25 / (Parameters!$C$23 - Parameters!$C$22) * (($I149-$C$5-Parameters!$C$21) + Parameters!$C$23),IF($I149-$C$5-Parameters!$C$21<Parameters!$C$23,Parameters!$C$24,Parameters!$C$24 - Parameters!$C$25 / (Parameters!$C$23 - Parameters!$C$22) * (($I149-$C$5-Parameters!$C$21) - Parameters!$C$23)))) -> -100
I150: 1.43 | J150: 2.499992096 | K150: 0.9089625301 | L150: =IF(ABS($I150-$C$5-Parameters!$C$21)>Parameters!$C$22,-100,IF($I150-$C$5-Parameters!$C$21<-Parameters!$C$23,Parameters!$C$24 + Parameters!$C$25 / (Parameters!$C$23 - Parameters!$C$22) * (($I150-$C$5-Parameters!$C$21) + Parameters!$C$23),IF($I150-$C$5-Parameters!$C$21<Parameters!$C$23,Parameters!$C$24,Parameters!$C$24 - Parameters!$C$25 / (Parameters!$C$23 - Parameters!$C$22) * (($I150-$C$5-Parameters!$C$21) - Parameters!$C$23)))) -> -100
I151: 1.44 | J151: 2.505108478 | K151: 0.9131576445 | L151: =IF(ABS($I151-$C$5-Parameters!$C$21)>Parameters!$C$22,-100,IF($I151-$C$5-Parameters!$C$21<-Parameters!$C$23,Parameters!$C$24 + Parameters!$C$25 / (Parameters!$C$23 - Parameters!$C$22) * (($I151-$C$5-Parameters!$C$21) + Parameters!$C$23),IF($I151-$C$5-Parameters!$C$21<Parameters!$C$23,Parameters!$C$24,Parameters!$C$24 - Parameters!$C$25 / (Parameters!$C$23 - Parameters!$C$22) * (($I151-$C$5-Parameters!$C$21) - Parameters!$C$23)))) -> -100
I152: 1.45 | J152: 2.510053109 | K152: 0.9173227413 | L152: =IF(ABS($I152-$C$5-Parameters!$C$21)>Parameters!$C$22,-100,IF($I152-$C$5-Parameters!$C$21<-Parameters!$C$23,Parameters!$C$24 + Parameters!$C$25 / (Parameters!$C$23 - Parameters!$C$22) * (($I152-$C$5-Parameters!$C$21) + Parameters!$C$23),IF($I152-$C$5-Parameters!$C$21<Parameters!$C$23,Parameters!$C$24,Parameters!$C$24 - Parameters!$C$25 / (Parameters!$C$23 - Parameters!$C$22) * (($I152-$C$5-Parameters!$C$21) - Parameters!$C$23)))) -> -100
I153: 1.46 | J153: 2.514825989 | K153: 0.9214578205 | L153: =IF(ABS($I153-$C$5-Parameters!$C$21)>Parameters!$C$22,-100,IF($I153-$C$5-Parameters!$C$21<-Parameters!$C$23,Parameters!$C$24 + Parameters!$C$25 / (Parameters!$C$23 - Parameters!$C$22) * (($I153-$C$5-Parameters!$C$21) + Parameters!$C$23),IF($I153-$C$5-Parameters!$C$21<Parameters!$C$23,Parameters!$C$24,Parameters!$C$24 - Parameters!$C$25 / (Parameters!$C$23 - Parameters!$C$22) * (($I153-$C$5-Parameters!$C$21) - Parameters!$C$23)))) -> -100
I154: 1.47 | J154: 2.519427118 | K154: 0.925562882 | L154: =IF(ABS($I154-$C$5-Parameters!$C$21)>Parameters!$C$22,-100,IF($I154-$C$5-Parameters!$C$21<-Parameters!$C$23,Parameters!$C$24 + Parameters!$C$25 / (Parameters!$C$23 - Parameters!$C$22) * (($I154-$C$5-Parameters!$C$21) + Parameters!$C$23),IF($I154-$C$5-Parameters!$C$21<Parameters!$C$23,Parameters!$C$24,Parameters!$C$24 - Parameters!$C$25 / (Parameters!$C$23 - Parameters!$C$22) * (($I154-$C$5-Parameters!$C$21) - Parameters!$C$23)))) -> -100
I155: 1.48 | J155: 2.523856496 | K155: 0.929637926 | L155: =IF(ABS($I155-$C$5-Parameters!$C$21)>Parameters!$C$22,-100,IF($I155-$C$5-Parameters!$C$21<-Parameters!$C$23,Parameters!$C$24 + Parameters!$C$25 / (Parameters!$C$23 - Parameters!$C$22) * (($I155-$C$5-Parameters!$C$21) + Parameters!$C$23),IF($I155-$C$5-Parameters!$C$21<Parameters!$C$23,Parameters!$C$24,Parameters!$C$24 - Parameters!$C$25 / (Parameters!$C$23 - Parameters!$C$22) * (($I155-$C$5-Parameters!$C$21) - Parameters!$C$23)))) -> -100
I156: 1.49 | J156: 2.528114122 | K156: 0.9336829524 | L156: =IF(ABS($I156-$C$5-Parameters!$C$21)>Parameters!$C$22,-100,IF($I156-$C$5-Parameters!$C$21<-Parameters!$C$23,Parameters!$C$24 + Parameters!$C$25 / (Parameters!$C$23 - Parameters!$C$22) * (($I156-$C$5-Parameters!$C$21) + Parameters!$C$23),IF($I156-$C$5-Parameters!$C$21<Parameters!$C$23,Parameters!$C$24,Parameters!$C$24 - Parameters!$C$25 / (Parameters!$C$23 - Parameters!$C$22) * (($I156-$C$5-Parameters!$C$21) - Parameters!$C$23)))) -> -100
I157: 1.5 | J157: 2.532199998 | K157: 0.9376979612 | L157: =IF(ABS($I157-$C$5-Parameters!$C$21)>Parameters!$C$22,-100,IF($I157-$C$5-Parameters!$C$21<-Parameters!$C$23,Parameters!$C$24 + Parameters!$C$25 / (Parameters!$C$23 - Parameters!$C$22) * (($I157-$C$5-Parameters!$C$21) + Parameters!$C$23),IF($I157-$C$5-Parameters!$C$21<Parameters!$C$23,Parameters!$C$24,Parameters!$C$24 - Parameters!$C$25 / (Parameters!$C$23 - Parameters!$C$22) * (($I157-$C$5-Parameters!$C$21) - Parameters!$C$23)))) -> -100
I158: 1.51 | J158: 2.536114122 | K158: 0.9416829524 | L158: =IF(ABS($I158-$C$5-Parameters!$C$21)>Parameters!$C$22,-100,IF($I158-$C$5-Parameters!$C$21<-Parameters!$C$23,Parameters!$C$24 + Parameters!$C$25 / (Parameters!$C$23 - Parameters!$C$22) * (($I158-$C$5-Parameters!$C$21) + Parameters!$C$23),IF($I158-$C$5-Parameters!$C$21<Parameters!$C$23,Parameters!$C$24,Parameters!$C$24 - Parameters!$C$25 / (Parameters!$C$23 - Parameters!$C$22) * (($I158-$C$5-Parameters!$C$21) - Parameters!$C$23)))) -> -100
I159: 1.52 | J159: 2.539856496 | K159: 0.945637926 | L159: =IF(ABS($I159-$C$5-Parameters!$C$21)>Parameters!$C$22,-100,IF($I159-$C$5-Parameters!$C$21<-Parameters!$C$23,Parameters!$C$24 + Parameters!$C$25 / (Parameters!$C$23 - Parameters!$C$22) * (($I159-$C$5-Parameters!$C$21) + Parameters!$C$23),IF($I159-$C$5-Parameters!$C$21<Parameters!$C$23,Parameters!$C$24,Parameters!$C$24 - Parameters!$C$25 / (Parameters!$C$23 - Parameters!$C$22) * (($I159-$C$5-Parameters!$C$21) - Parameters!$C$23)))) -> -100
I160: 1.53 | J160: 2.543427118 | K160: 0.949562882 | L160: =IF(ABS($I160-$C$5-Parameters!$C$21)>Parameters!$C$22,-100,IF($I160-$C$5-Parameters!$C$21<-Parameters!$C$23,Parameters!$C$24 + Parameters!$C$25 / (Parameters!$C$23 - Parameters!$C$22) * (($I160-$C$5-Parameters!$C$21) + Parameters!$C$23),IF($I160-$C$5-Parameters!$C$21<Parameters!$C$23,Parameters!$C$24,Parameters!$C$24 - Parameters!$C$25 / (Parameters!$C$23 - Parameters!$C$22) * (($I160-$C$5-Parameters!$C$21) - Parameters!$C$23)))) -> -100
I161: 1.54 | J161: 2.546825989 | K161: 0.9534578205 | L161: =IF(ABS($I161-$C$5-Parameters!$C$21)>Parameters!$C$22,-100,IF($I161-$C$5-Parameters!$C$21<-Parameters!$C$23,Parameters!$C$24 + Parameters!$C$25 / (Parameters!$C$23 - Parameters!$C$22) * (($I161-$C$5-Parameters!$C$21) + Parameters!$C$23),IF($I161-$C$5-Parameters!$C$21<Parameters!$C$23,Parameters!$C$24,Parameters!$C$24 - Parameters!$C$25 / (Parameters!$C$23 - Parameters!$C$22) * (($I161-$C$5-Parameters!$C$21) - Parameters!$C$23)))) -> -100
I162: 1.55 | J162: 2.550053109 | K162: 0.9573227413 | L162: =IF(ABS($I162-$C$5-Parameters!$C$21)>Parameters!$C$22,-100,IF($I162-$C$5-Parameters!$C$21<-Parameters!$C$23,Parameters!$C$24 + Parameters!$C$25 / (Parameters!$C$23 - Parameters!$C$22) * (($I162-$C$5-Parameters!$C$21) + Parameters!$C$23),IF($I162-$C$5-Parameters!$C$21<Parameters!$C$23,Parameters!$C$24,Parameters!$C$24 - Parameters!$C$25 / (Parameters!$C$23 - Parameters!$C$22) * (($I162-$C$5-Parameters!$C$21) - Parameters!$C$23)))) -> -100
I163: 1.56 | J163: 2.553108478 | K163: 0.9611576445 | L163: =IF(ABS($I163-$C$5-Parameters!$C$21)>Parameters!$C$22,-100,IF($I163-$C$5-Parameters!$C$21<-Parameters!$C$23,Parameters!$C$24 + Parameters!$C$25 / (Parameters!$C$23 - Parameters!$C$22) * (($I163-$C$5-Parameters!$C$21) + Parameters!$C$23),IF($I163-$C$5-Parameters!$C$21<Parameters!$C$23,Parameters!$C$24,Parameters!$C$24 - Parameters!$C$25 / (Parameters!$C$23 - Parameters!$C$22) * (($I163-$C$5-Parameters!$C$21) - Parameters!$C$23)))) -> -100
I164: 1.57 | J164: 2.555992096 | K164: 0.9649625301 | L164: =IF(ABS($I164-$C$5-Parameters!$C$21)>Parameters!$C$22,-100,IF($I164-$C$5-Parameters!$C$21<-Parameters!$C$23,Parameters!$C$24 + Parameters!$C$25 / (Parameters!$C$23 - Parameters!$C$22) * (($I164-$C$5-Parameters!$C$21) + Parameters!$C$23),IF($I164-$C$5-Parameters!$C$21<Parameters!$C$23,Parameters!$C$24,Parameters!$C$24 - Parameters!$C$25 / (Parameters!$C$23 - Parameters!$C$22) * (($I164-$C$5-Parameters!$C$21) - Parameters!$C$23)))) -> -100
I165: 1.58 | J165: 2.558703962 | K165: 0.9687373981 | L165: =IF(ABS($I165-$C$5-Parameters!$C$21)>Parameters!$C$22,-100,IF($I165-$C$5-Parameters!$C$21<-Parameters!$C$23,Parameters!$C$24 + Parameters!$C$25 / (Parameters!$C$23 - Parameters!$C$22) * (($I165-$C$5-Parameters!$C$21) + Parameters!$C$23),IF($I165-$C$5-Parameters!$C$21<Parameters!$C$23,Parameters!$C$24,Parameters!$C$24 - Parameters!$C$25 / (Parameters!$C$23 - Parameters!$C$22) * (($I165-$C$5-Parameters!$C$21) - Parameters!$C$23)))) -> -100
I166: 1.59 | J166: 2.561244078 | K166: 0.9724822486 | L166: =IF(ABS($I166-$C$5-Parameters!$C$21)>Parameters!$C$22,-100,IF($I166-$C$5-Parameters!$C$21<-Parameters!$C$23,Parameters!$C$24 + Parameters!$C$25 / (Parameters!$C$23 - Parameters!$C$22) * (($I166-$C$5-Parameters!$C$21) + Parameters!$C$23),IF($I166-$C$5-Parameters!$C$21<Parameters!$C$23,Parameters!$C$24,Parameters!$C$24 - Parameters!$C$25 / (Parameters!$C$23 - Parameters!$C$22) * (($I166-$C$5-Parameters!$C$21) - Parameters!$C$23)))) -> -100
I167: 1.6 | J167: =$I167*TAN(J$3)-0.5*g*$I167^2/(J$2*COS(J$3))^2 -> 2.563612442 | K167: 0.9761970814 | L167: =IF(ABS($I167-$C$5-Parameters!$C$21)>Parameters!$C$22,-100,IF($I167-$C$5-Parameters!$C$21<-Parameters!$C$23,Parameters!$C$24 + Parameters!$C$25 / (Parameters!$C$23 - Parameters!$C$22) * (($I167-$C$5-Parameters!$C$21) + Parameters!$C$23),IF($I167-$C$5-Parameters!$C$21<Parameters!$C$23,Parameters!$C$24,Parameters!$C$24 - Parameters!$C$25 / (Parameters!$C$23 - Parameters!$C$22) * (($I167-$C$5-Parameters!$C$21) - Parameters!$C$23)))) -> -100
I168: 1.61 | J168: 2.565809056 | K168: 0.9798818966 | L168: =IF(ABS($I168-$C$5-Parameters!$C$21)>Parameters!$C$22,-100,IF($I168-$C$5-Parameters!$C$21<-Parameters!$C$23,Parameters!$C$24 + Parameters!$C$25 / (Parameters!$C$23 - Parameters!$C$22) * (($I168-$C$5-Parameters!$C$21) + Parameters!$C$23),IF($I168-$C$5-Parameters!$C$21<Parameters!$C$23,Parameters!$C$24,Parameters!$C$24 - Parameters!$C$25 / (Parameters!$C$23 - Parameters!$C$22) * (($I168-$C$5-Parameters!$C$21) - Parameters!$C$23)))) -> -100
I169: 1.62 | J169: 2.567833918 | K169: 0.9835366943 | L169: =IF(ABS($I169-$C$5-Parameters!$C$21)>Parameters!$C$22,-100,IF($I169-$C$5-Parameters!$C$21<-Parameters!$C$23,Parameters!$C$24 + Parameters!$C$25 / (Parameters!$C$23 - Parameters!$C$22) * (($I169-$C$5-Parameters!$C$21) + Parameters!$C$23),IF($I169-$C$5-Parameters!$C$21<Parameters!$C$23,Parameters!$C$24,Parameters!$C$24 - Parameters!$C$25 / (Parameters!$C$23 - Parameters!$C$22) * (($I169-$C$5-Parameters!$C$21) - Parameters!$C$23)))) -> -100
I170: 1.63 | J170: 2.569687029 | K170: 0.9871614743 | L170: =IF(ABS($I170-$C$5-Parameters!$C$21)>Parameters!$C$22,-100,IF($I170-$C$5-Parameters!$C$21<-Parameters!$C$23,Parameters!$C$24 + Parameters!$C$25 / (Parameters!$C$23 - Parameters!$C$22) * (($I170-$C$5-Parameters!$C$21) + Parameters!$C$23),IF($I170-$C$5-Parameters!$C$21<Parameters!$C$23,Parameters!$C$24,Parameters!$C$24 - Parameters!$C$25 / (Parameters!$C$23 - Parameters!$C$22) * (($I170-$C$5-Parameters!$C$21) - Parameters!$C$23)))) -> -100
I171: 1.64 | J171: 2.571368389 | K171: 0.9907562368 | L171: =IF(ABS($I171-$C$5-Parameters!$C$21)>Parameters!$C$22,-100,IF($I171-$C$5-Parameters!$C$21<-Parameters!$C$23,Parameters!$C$24 + Parameters!$C$25 / (Parameters!$C$23 - Parameters!$C$22) * (($I171-$C$5-Parameters!$C$21) + Parameters!$C$23),IF($I171-$C$5-Parameters!$C$21<Parameters!$C$23,Parameters!$C$24,Parameters!$C$24 - Parameters!$C$25 / (Parameters!$C$23 - Parameters!$C$22) * (($I171-$C$5-Parameters!$C$21) - Parameters!$C$23)))) -> -100
I172: 1.65 | J172: 2.572877998 | K172: 0.9943209816 | L172: =IF(ABS($I172-$C$5-Parameters!$C$21)>Parameters!$C$22,-100,IF($I172-$C$5-Parameters!$C$21<-Parameters!$C$23,Parameters!$C$24 + Parameters!$C$25 / (Parameters!$C$23 - Parameters!$C$22) * (($I172-$C$5-Parameters!$C$21) + Parameters!$C$23),IF($I172-$C$5-Parameters!$C$21<Parameters!$C$23,Parameters!$C$24,Parameters!$C$24 - Parameters!$C$25 / (Parameters!$C$23 - Parameters!$C$22) * (($I172-$C$5-Parameters!$C$21) - Parameters!$C$23)))) -> -100
I173: 1.66 | J173: 2.574215856 | K173: 0.9978557089 | L173: =IF(ABS($I173-$C$5-Parameters!$C$21)>Parameters!$C$22,-100,IF($I173-$C$5-Parameters!$C$21<-Parameters!$C$23,Parameters!$C$24 + Parameters!$C$25 / (Parameters!$C$23 - Parameters!$C$22) * (($I173-$C$5-Parameters!$C$21) + Parameters!$C$23),IF($I173-$C$5-Parameters!$C$21<Parameters!$C$23,Parameters!$C$24,Parameters!$C$24 - Parameters!$C$25 / (Parameters!$C$23 - Parameters!$C$22) * (($I173-$C$5-Parameters!$C$21) - Parameters!$C$23)))) -> -100
I174: 1.67 | J174: 2.575381962 | K174: 1.001360419 | L174: =IF(ABS($I174-$C$5-Parameters!$C$21)>Parameters!$C$22,-100,IF($I174-$C$5-Parameters!$C$21<-Parameters!$C$23,Parameters!$C$24 + Parameters!$C$25 / (Parameters!$C$23 - Parameters!$C$22) * (($I174-$C$5-Parameters!$C$21) + Parameters!$C$23),IF($I174-$C$5-Parameters!$C$21<Parameters!$C$23,Parameters!$C$24,Parameters!$C$24 - Parameters!$C$25 / (Parameters!$C$23 - Parameters!$C$22) * (($I174-$C$5-Parameters!$C$21) - Parameters!$C$23)))) -> -100
I175: 1.68 | J175: 2.576376318 | K175: 1.004835111 | L175: =IF(ABS($I175-$C$5-Parameters!$C$21)>Parameters!$C$22,-100,IF($I175-$C$5-Parameters!$C$21<-Parameters!$C$23,Parameters!$C$24 + Parameters!$C$25 / (Parameters!$C$23 - Parameters!$C$22) * (($I175-$C$5-Parameters!$C$21) + Parameters!$C$23),IF($I175-$C$5-Parameters!$C$21<Parameters!$C$23,Parameters!$C$24,Parameters!$C$24 - Parameters!$C$25 / (Parameters!$C$23 - Parameters!$C$22) * (($I175-$C$5-Parameters!$C$21) - Parameters!$C$23)))) -> -100
I176: 1.69 | J176: 2.577198922 | K176: 1.008279785 | L176: =IF(ABS($I176-$C$5-Parameters!$C$21)>Parameters!$C$22,-100,IF($I176-$C$5-Parameters!$C$21<-Parameters!$C$23,Parameters!$C$24 + Parameters!$C$25 / (Parameters!$C$23 - Parameters!$C$22) * (($I176-$C$5-Parameters!$C$21) + Parameters!$C$23),IF($I176-$C$5-Parameters!$C$21<Parameters!$C$23,Parameters!$C$24,Parameters!$C$24 - Parameters!$C$25 / (Parameters!$C$23 - Parameters!$C$22) * (($I176-$C$5-Parameters!$C$21) - Parameters!$C$23)))) -> -100
I177: 1.7 | J177: 2.577849776 | K177: 1.011694442 | L177: =IF(ABS($I177-$C$5-Parameters!$C$21)>Parameters!$C$22,-100,IF($I177-$C$5-Parameters!$C$21<-Parameters!$C$23,Parameters!$C$24 + Parameters!$C$25 / (Parameters!$C$23 - Parameters!$C$22) * (($I177-$C$5-Parameters!$C$21) + Parameters!$C$23),IF($I177-$C$5-Parameters!$C$21<Parameters!$C$23,Parameters!$C$24,Parameters!$C$24 - Parameters!$C$25 / (Parameters!$C$23 - Parameters!$C$22) * (($I177-$C$5-Parameters!$C$21) - Parameters!$C$23)))) -> -100
I178: 1.71 | J178: 2.578328878 | K178: 1.015079081 | L178: =IF(ABS($I178-$C$5-Parameters!$C$21)>Parameters!$C$22,-100,IF($I178-$C$5-Parameters!$C$21<-Parameters!$C$23,Parameters!$C$24 + Parameters!$C$25 / (Parameters!$C$23 - Parameters!$C$22) * (($I178-$C$5-Parameters!$C$21) + Parameters!$C$23),IF($I178-$C$5-Parameters!$C$21<Parameters!$C$23,Parameters!$C$24,Parameters!$C$24 - Parameters!$C$25 / (Parameters!$C$23 - Parameters!$C$22) * (($I178-$C$5-Parameters!$C$21) - Parameters!$C$23)))) -> -100
I179: 1.72 | J179: 2.578636229 | K179: 1.018433703 | L179: =IF(ABS($I179-$C$5-Parameters!$C$21)>Parameters!$C$22,-100,IF($I179-$C$5-Parameters!$C$21<-Parameters!$C$23,Parameters!$C$24 + Parameters!$C$25 / (Parameters!$C$23 - Parameters!$C$22) * (($I179-$C$5-Parameters!$C$21) + Parameters!$C$23),IF($I179-$C$5-Parameters!$C$21<Parameters!$C$23,Parameters!$C$24,Parameters!$C$24 - Parameters!$C$25 / (Parameters!$C$23 - Parameters!$C$22) * (($I179-$C$5-Parameters!$C$21) - Parameters!$C$23)))) -> -100
I180: 1.73 | J180: 2.578771829 | K180: 1.021758307 | L180: =IF(ABS($I180-$C$5-Parameters!$C$21)>Parameters!$C$22,-100,IF($I180-$C$5-Parameters!$C$21<-Parameters!$C$23,Parameters!$C$24 + Parameters!$C$25 / (Parameters!$C$23 - Parameters!$C$22) * (($I180-$C$5-Parameters!$C$21) + Parameters!$C$23),IF($I180-$C$5-Parameters!$C$21<Parameters!$C$23,Parameters!$C$24,Parameters!$C$24 - Parameters!$C$25 / (Parameters!$C$23 - Parameters!$C$22) * (($I180-$C$5-Parameters!$C$21) - Parameters!$C$23)))) -> -100
I181: 1.74 | J181: 2.578735678 | K181: 1.025052893 | L181: =IF(ABS($I181-$C$5-Parameters!$C$21)>Parameters!$C$22,-100,IF($I181-$C$5-Parameters!$C$21<-Parameters!$C$23,Parameters!$C$24 + Parameters!$C$25 / (Parameters!$C$23 - Parameters!$C$22) * (($I181-$C$5-Parameters!$C$21) + Parameters!$C$23),IF($I181-$C$5-Parameters!$C$21<Parameters!$C$23,Parameters!$C$24,Parameters!$C$24 - Parameters!$C$25 / (Parameters!$C$23 - Parameters!$C$22) * (($I181-$C$5-Parameters!$C$21) - Parameters!$C$23)))) -> -100
I182: 1.75 | J182: 2.578527776 | K182: 1.028317462 | L182: =IF(ABS($I182-$C$5-Parameters!$C$21)>Parameters!$C$22,-100,IF($I182-$C$5-Parameters!$C$21<-Parameters!$C$23,Parameters!$C$24 + Parameters!$C$25 / (Parameters!$C$23 - Parameters!$C$22) * (($I182-$C$5-Parameters!$C$21) + Parameters!$C$23),IF($I182-$C$5-Parameters!$C$21<Parameters!$C$23,Parameters!$C$24,Parameters!$C$24 - Parameters!$C$25 / (Parameters!$C$23 - Parameters!$C$22) * (($I182-$C$5-Parameters!$C$21) - Parameters!$C$23)))) -> -100
I183: 1.76 | J183: 2.578148122 | K183: 1.031552014 | L183: =IF(ABS($I183-$C$5-Parameters!$C$21)>Parameters!$C$22,-100,IF($I183-$C$5-Parameters!$C$21<-Parameters!$C$23,Parameters!$C$24 + Parameters!$C$25 / (Parameters!$C$23 - Parameters!$C$22) * (($I183-$C$5-Parameters!$C$21) + Parameters!$C$23),IF($I183-$C$5-Parameters!$C$21<Parameters!$C$23,Parameters!$C$24,Parameters!$C$24 - Parameters!$C$25 / (Parameters!$C$23 - Parameters!$C$22) * (($I183-$C$5-Parameters!$C$21) - Parameters!$C$23)))) -> -100
I184: 1.77 | J184: 2.577596718 | K184: 1.034756547 | L184: =IF(ABS($I184-$C$5-Parameters!$C$21)>Parameters!$C$22,-100,IF($I184-$C$5-Parameters!$C$21<-Parameters!$C$23,Parameters!$C$24 + Parameters!$C$25 / (Parameters!$C$23 - Parameters!$C$22) * (($I184-$C$5-Parameters!$C$21) + Parameters!$C$23),IF($I184-$C$5-Parameters!$C$21<Parameters!$C$23,Parameters!$C$24,Parameters!$C$24 - Parameters!$C$25 / (Parameters!$C$23 - Parameters!$C$22) * (($I184-$C$5-Parameters!$C$21) - Parameters!$C$23)))) -> -100
I185: 1.78 | J185: 2.576873562 | K185: 1.037931063 | L185: =IF(ABS($I185-$C$5-Parameters!$C$21)>Parameters!$C$22,-100,IF($I185-$C$5-Parameters!$C$21<-Parameters!$C$23,Parameters!$C$24 + Parameters!$C$25 / (Parameters!$C$23 - Parameters!$C$22) * (($I185-$C$5-Parameters!$C$21) + Parameters!$C$23),IF($I185-$C$5-Parameters!$C$21<Parameters!$C$23,Parameters!$C$24,Parameters!$C$24 - Parameters!$C$25 / (Parameters!$C$23 - Parameters!$C$22) * (($I185-$C$5-Parameters!$C$21) - Parameters!$C$23)))) -> -100
I186: 1.79 | J186: 2.575978656 | K186: 1.041075562 | L186: =IF(ABS($I186-$C$5-Parameters!$C$21)>Parameters!$C$22,-100,IF($I186-$C$5-Parameters!$C$21<-Parameters!$C$23,Parameters!$C$24 + Parameters!$C$25 / (Parameters!$C$23 - Parameters!$C$22) * (($I186-$C$5-Parameters!$C$21) + Parameters!$C$23),IF($I186-$C$5-Parameters!$C$21<Parameters!$C$23,Parameters!$C$24,Parameters!$C$24 - Parameters!$C$25 / (Parameters!$C$23 - Parameters!$C$22) * (($I186-$C$5-Parameters!$C$21) - Parameters!$C$23)))) -> -100
I187: 1.8 | J187: =$I187*TAN(J$3)-0.5*g*$I187^2/(J$2*COS(J$3))^2 -> 2.574911998 | K187: 1.044190043 | L187: =IF(ABS($I187-$C$5-Parameters!$C$21)>Parameters!$C$22,-100,IF($I187-$C$5-Parameters!$C$21<-Parameters!$C$23,Parameters!$C$24 + Parameters!$C$25 / (Parameters!$C$23 - Parameters!$C$22) * (($I187-$C$5-Parameters!$C$21) + Parameters!$C$23),IF($I187-$C$5-Parameters!$C$21<Parameters!$C$23,Parameters!$C$24,Parameters!$C$24 - Parameters!$C$25 / (Parameters!$C$23 - Parameters!$C$22) * (($I187-$C$5-Parameters!$C$21) - Parameters!$C$23)))) -> -100
I188: 1.81 | J188: 2.573673589 | K188: 1.047274506 | L188: =IF(ABS($I188-$C$5-Parameters!$C$21)>Parameters!$C$22,-100,IF($I188-$C$5-Parameters!$C$21<-Parameters!$C$23,Parameters!$C$24 + Parameters!$C$25 / (Parameters!$C$23 - Parameters!$C$22) * (($I188-$C$5-Parameters!$C$21) + Parameters!$C$23),IF($I188-$C$5-Parameters!$C$21<Parameters!$C$23,Parameters!$C$24,Parameters!$C$24 - Parameters!$C$25 / (Parameters!$C$23 - Parameters!$C$22) * (($I188-$C$5-Parameters!$C$21) - Parameters!$C$23)))) -> -100
I189: 1.82 | J189: 2.572263429 | K189: 1.050328952 | L189: =IF(ABS($I189-$C$5-Parameters!$C$21)>Parameters!$C$22,-100,IF($I189-$C$5-Parameters!$C$21<-Parameters!$C$23,Parameters!$C$24 + Parameters!$C$25 / (Parameters!$C$23 - Parameters!$C$22) * (($I189-$C$5-Parameters!$C$21) + Parameters!$C$23),IF($I189-$C$5-Parameters!$C$21<Parameters!$C$23,Parameters!$C$24,Parameters!$C$24 - Parameters!$C$25 / (Parameters!$C$23 - Parameters!$C$22) * (($I189-$C$5-Parameters!$C$21) - Parameters!$C$23)))) -> -100
I190: 1.83 | J190: 2.570681518 | K190: 1.05335338 | L190: =IF(ABS($I190-$C$5-Parameters!$C$21)>Parameters!$C$22,-100,IF($I190-$C$5-Parameters!$C$21<-Parameters!$C$23,Parameters!$C$24 + Parameters!$C$25 / (Parameters!$C$23 - Parameters!$C$22) * (($I190-$C$5-Parameters!$C$21) + Parameters!$C$23),IF($I190-$C$5-Parameters!$C$21<Parameters!$C$23,Parameters!$C$24,Parameters!$C$24 - Parameters!$C$25 / (Parameters!$C$23 - Parameters!$C$22) * (($I190-$C$5-Parameters!$C$21) - Parameters!$C$23)))) -> -100
I191: 1.84 | J191: 2.568927856 | K191: 1.05634779 | L191: =IF(ABS($I191-$C$5-Parameters!$C$21)>Parameters!$C$22,-100,IF($I191-$C$5-Parameters!$C$21<-Parameters!$C$23,Parameters!$C$24 + Parameters!$C$25 / (Parameters!$C$23 - Parameters!$C$22) * (($I191-$C$5-Parameters!$C$21) + Parameters!$C$23),IF($I191-$C$5-Parameters!$C$21<Parameters!$C$23,Parameters!$C$24,Parameters!$C$24 - Parameters!$C$25 / (Parameters!$C$23 - Parameters!$C$22) * (($I191-$C$5-Parameters!$C$21) - Parameters!$C$23)))) -> -100
I192: 1.85 | J192: 2.567002443 | K192: 1.059312183 | L192: =IF(ABS($I192-$C$5-Parameters!$C$21)>Parameters!$C$22,-100,IF($I192-$C$5-Parameters!$C$21<-Parameters!$C$23,Parameters!$C$24 + Parameters!$C$25 / (Parameters!$C$23 - Parameters!$C$22) * (($I192-$C$5-Parameters!$C$21) + Parameters!$C$23),IF($I192-$C$5-Parameters!$C$21<Parameters!$C$23,Parameters!$C$24,Parameters!$C$24 - Parameters!$C$25 / (Parameters!$C$23 - Parameters!$C$22) * (($I192-$C$5-Parameters!$C$21) - Parameters!$C$23)))) -> -100
I193: 1.86 | J193: 2.564905278 | K193: 1.062246559 | L193: =IF(ABS($I193-$C$5-Parameters!$C$21)>Parameters!$C$22,-100,IF($I193-$C$5-Parameters!$C$21<-Parameters!$C$23,Parameters!$C$24 + Parameters!$C$25 / (Parameters!$C$23 - Parameters!$C$22) * (($I193-$C$5-Parameters!$C$21) + Parameters!$C$23),IF($I193-$C$5-Parameters!$C$21<Parameters!$C$23,Parameters!$C$24,Parameters!$C$24 - Parameters!$C$25 / (Parameters!$C$23 - Parameters!$C$22) * (($I193-$C$5-Parameters!$C$21) - Parameters!$C$23)))) -> -100
I194: 1.87 | J194: 2.562636363 | K194: 1.065150916 | L194: =IF(ABS($I194-$C$5-Parameters!$C$21)>Parameters!$C$22,-100,IF($I194-$C$5-Parameters!$C$21<-Parameters!$C$23,Parameters!$C$24 + Parameters!$C$25 / (Parameters!$C$23 - Parameters!$C$22) * (($I194-$C$5-Parameters!$C$21) + Parameters!$C$23),IF($I194-$C$5-Parameters!$C$21<Parameters!$C$23,Parameters!$C$24,Parameters!$C$24 - Parameters!$C$25 / (Parameters!$C$23 - Parameters!$C$22) * (($I194-$C$5-Parameters!$C$21) - Parameters!$C$23)))) -> -100
I195: 1.88 | J195: 2.560195696 | K195: 1.068025257 | L195: =IF(ABS($I195-$C$5-Parameters!$C$21)>Parameters!$C$22,-100,IF($I195-$C$5-Parameters!$C$21<-Parameters!$C$23,Parameters!$C$24 + Parameters!$C$25 / (Parameters!$C$23 - Parameters!$C$22) * (($I195-$C$5-Parameters!$C$21) + Parameters!$C$23),IF($I195-$C$5-Parameters!$C$21<Parameters!$C$23,Parameters!$C$24,Parameters!$C$24 - Parameters!$C$25 / (Parameters!$C$23 - Parameters!$C$22) * (($I195-$C$5-Parameters!$C$21) - Parameters!$C$23)))) -> -100
I196: 1.89 | J196: 2.557583278 | K196: 1.070869579 | L196: =IF(ABS($I196-$C$5-Parameters!$C$21)>Parameters!$C$22,-100,IF($I196-$C$5-Parameters!$C$21<-Parameters!$C$23,Parameters!$C$24 + Parameters!$C$25 / (Parameters!$C$23 - Parameters!$C$22) * (($I196-$C$5-Parameters!$C$21) + Parameters!$C$23),IF($I196-$C$5-Parameters!$C$21<Parameters!$C$23,Parameters!$C$24,Parameters!$C$24 - Parameters!$C$25 / (Parameters!$C$23 - Parameters!$C$22) * (($I196-$C$5-Parameters!$C$21) - Parameters!$C$23)))) -> -100
I197: 1.9 | J197: 2.554799109 | K197: 1.073683884 | L197: =IF(ABS($I197-$C$5-Parameters!$C$21)>Parameters!$C$22,-100,IF($I197-$C$5-Parameters!$C$21<-Parameters!$C$23,Parameters!$C$24 + Parameters!$C$25 / (Parameters!$C$23 - Parameters!$C$22) * (($I197-$C$5-Parameters!$C$21) + Parameters!$C$23),IF($I197-$C$5-Parameters!$C$21<Parameters!$C$23,Parameters!$C$24,Parameters!$C$24 - Parameters!$C$25 / (Parameters!$C$23 - Parameters!$C$22) * (($I197-$C$5-Parameters!$C$21) - Parameters!$C$23)))) -> -100
I198: 1.91 | J198: 2.551843189 | K198: 1.076468171 | L198: =IF(ABS($I198-$C$5-Parameters!$C$21)>Parameters!$C$22,-100,IF($I198-$C$5-Parameters!$C$21<-Parameters!$C$23,Parameters!$C$24 + Parameters!$C$25 / (Parameters!$C$23 - Parameters!$C$22) * (($I198-$C$5-Parameters!$C$21) + Parameters!$C$23),IF($I198-$C$5-Parameters!$C$21<Parameters!$C$23,Parameters!$C$24,Parameters!$C$24 - Parameters!$C$25 / (Parameters!$C$23 - Parameters!$C$22) * (($I198-$C$5-Parameters!$C$21) - Parameters!$C$23)))) -> -100
I199: 1.92 | J199: 2.548715518 | K199: 1.079222441 | L199: =IF(ABS($I199-$C$5-Parameters!$C$21)>Parameters!$C$22,-100,IF($I199-$C$5-Parameters!$C$21<-Parameters!$C$23,Parameters!$C$24 + Parameters!$C$25 / (Parameters!$C$23 - Parameters!$C$22) * (($I199-$C$5-Parameters!$C$21) + Parameters!$C$23),IF($I199-$C$5-Parameters!$C$21<Parameters!$C$23,Parameters!$C$24,Parameters!$C$24 - Parameters!$C$25 / (Parameters!$C$23 - Parameters!$C$22) * (($I199-$C$5-Parameters!$C$21) - Parameters!$C$23)))) -> -100
I200: 1.93 | J200: 2.545416096 | K200: 1.081946693 | L200: =IF(ABS($I200-$C$5-Parameters!$C$21)>Parameters!$C$22,-100,IF($I200-$C$5-Parameters!$C$21<-Parameters!$C$23,Parameters!$C$24 + Parameters!$C$25 / (Parameters!$C$23 - Parameters!$C$22) * (($I200-$C$5-Parameters!$C$21) + Parameters!$C$23),IF($I200-$C$5-Parameters!$C$21<Parameters!$C$23,Parameters!$C$24,Parameters!$C$24 - Parameters!$C$25 / (Parameters!$C$23 - Parameters!$C$22) * (($I200-$C$5-Parameters!$C$21) - Parameters!$C$23)))) -> -100
... 807 more rows

Sheet Moving Turret No Air Model
A1: Parameter | B1: Symbol | C1: Value | D1: Unit | F1: 1 | J1: dx | K1: 0.01 | L1: High Angle | M1: Low Angle | P1: Target Radius | Q1: 0.5 | R1: m
A2: Velocity | B2: v0 | C2: 7.5 | D2: m/s | I2: t | J2: V0x | L2: =B68 -> 2.257578343 | M2: 7.292434246 | P2: v0x | Q2: =L2 -> 2.257578343 | R2: =M2 -> 7.292434246
A3: Launch Angle | B3: q | C3: 70 | D3: deg | J3: V0y | L3: 7.414433276 | M3: 4.9327615 | P3: v0y | Q3: =L3 -> 7.414433276 | R3: 4.9327615
A4: Launch Azimuth | B4: f | C4: -50 | D4: deg | J4: V0z | L4: 0 | M4: 0 | P4: vox | Q4: 0 | R4: 0
A5: Vehicle Speed | B5: vm | C5: 2 | D5: m/s
A6: Vehicle heading angle | B6: fm | C6: 30 | D6: deg | I6: th | J6: tl | K6: x | L6: High Angle | M6: Low Angle | N6: Target | P6: x | Q6: High Angle | R6: Low Angle | S6: Target | T6: Target
A7: Target Height | B7: h | C7: 1.2 | D7: m | I7: =K7/$L$2 -> 0 | J7: =K7/$M$2 -> 0 | K7: 0 | L7: =L$3*I7-0.5*$C$9*I7^2 -> 0 | M7: =M$3*J7-0.5*$C$9*J7^2 -> 0 | N7: =IF(ABS($K7-$C$8-Parameters!$C$21)>Parameters!$C$22,-100,IF($K7-$C$8-Parameters!$C$21<-Parameters!$C$23,Parameters!$C$24 + Parameters!$C$25 / (Parameters!$C$23 - Parameters!$C$22) * (($K7-$C$8-Parameters!$C$21) + Parameters!$C$23),IF($K7-$C$8-Parameters!$C$21<Parameters!$C$23,Parameters!$C$24,Parameters!$C$24 - Parameters!$C$25 / (Parameters!$C$23 - Parameters!$C$22) * (($K7-$C$8-Parameters!$C$21) - Parameters!$C$23)))) -> -100 | P7: =K7 -> 0 | Q7: =$I7*Q$4 -> 0 | R7: =$I7*R$4 -> 0 | S7: =IF(ABS($K7-$C$8-Parameters!$C$21)>Parameters!$C$22,0,SQRT(Parameters!$C$22^2-($K7-$C$8-Parameters!$C$21)^2)) -> 0 | T7: =IF(ABS($K7-$C$8-Parameters!$C$21)>Parameters!$C$22,0,-SQRT(Parameters!$C$22^2-($K7-$C$8-Parameters!$C$21)^2)) -> 0
A8: Target Distance | B8: d | C8: 3 | D8: m | I8: =K8/$L$2 -> 0.004429525129 | J8: =K8/$M$2 -> 0.001371284219 | K8: =K7+$K$1 -> 0.01 | L8: =L$3*I8-0.5*$C$9*I8^2 -> 0.03274627712 | M8: 0.006755003942 | N8: =IF(ABS($K8-$C$8-Parameters!$C$21)>Parameters!$C$22,-100,IF($K8-$C$8-Parameters!$C$21<-Parameters!$C$23,Parameters!$C$24 + Parameters!$C$25 / (Parameters!$C$23 - Parameters!$C$22) * (($K8-$C$8-Parameters!$C$21) + Parameters!$C$23),IF($K8-$C$8-Parameters!$C$21<Parameters!$C$23,Parameters!$C$24,Parameters!$C$24 - Parameters!$C$25 / (Parameters!$C$23 - Parameters!$C$22) * (($K8-$C$8-Parameters!$C$21) - Parameters!$C$23)))) -> -100 | P8: =K8 -> 0.01 | Q8: =$I8*Q$4 -> 0 | R8: 0 | S8: =IF(ABS($K8-$C$8-Parameters!$C$21)>Parameters!$C$22,0,SQRT(Parameters!$C$22^2-($K8-$C$8-Parameters!$C$21)^2)) -> 0 | T8: =IF(ABS($K8-$C$8-Parameters!$C$21)>Parameters!$C$22,0,-SQRT(Parameters!$C$22^2-($K8-$C$8-Parameters!$C$21)^2)) -> 0
A9: Acceleration Due to Gravity | B9: g | C9: 9.8 | D9: m/s2 | I9: 0.008859050257 | J9: 0.002742568438 | K9: =K8+$K$1 -> 0.02 | L9: 0.06530027145 | M9: 0.01349157976 | N9: =IF(ABS($K9-$C$8-Parameters!$C$21)>Parameters!$C$22,-100,IF($K9-$C$8-Parameters!$C$21<-Parameters!$C$23,Parameters!$C$24 + Parameters!$C$25 / (Parameters!$C$23 - Parameters!$C$22) * (($K9-$C$8-Parameters!$C$21) + Parameters!$C$23),IF($K9-$C$8-Parameters!$C$21<Parameters!$C$23,Parameters!$C$24,Parameters!$C$24 - Parameters!$C$25 / (Parameters!$C$23 - Parameters!$C$22) * (($K9-$C$8-Parameters!$C$21) - Parameters!$C$23)))) -> -100 | P9: 0.02 | Q9: 0 | R9: 0 | S9: =IF(ABS($K9-$C$8-Parameters!$C$21)>Parameters!$C$22,0,SQRT(Parameters!$C$22^2-($K9-$C$8-Parameters!$C$21)^2)) -> 0 | T9: =IF(ABS($K9-$C$8-Parameters!$C$21)>Parameters!$C$22,0,-SQRT(Parameters!$C$22^2-($K9-$C$8-Parameters!$C$21)^2)) -> 0
I10: 0.01328857539 | J10: 0.004113852657 | K10: 0.03 | L10: 0.09766198298 | M10: 0.02020972747 | N10: =IF(ABS($K10-$C$8-Parameters!$C$21)>Parameters!$C$22,-100,IF($K10-$C$8-Parameters!$C$21<-Parameters!$C$23,Parameters!$C$24 + Parameters!$C$25 / (Parameters!$C$23 - Parameters!$C$22) * (($K10-$C$8-Parameters!$C$21) + Parameters!$C$23),IF($K10-$C$8-Parameters!$C$21<Parameters!$C$23,Parameters!$C$24,Parameters!$C$24 - Parameters!$C$25 / (Parameters!$C$23 - Parameters!$C$22) * (($K10-$C$8-Parameters!$C$21) - Parameters!$C$23)))) -> -100 | P10: 0.03 | Q10: 0 | R10: 0 | S10: =IF(ABS($K10-$C$8-Parameters!$C$21)>Parameters!$C$22,0,SQRT(Parameters!$C$22^2-($K10-$C$8-Parameters!$C$21)^2)) -> 0 | T10: =IF(ABS($K10-$C$8-Parameters!$C$21)>Parameters!$C$22,0,-SQRT(Parameters!$C$22^2-($K10-$C$8-Parameters!$C$21)^2)) -> 0
A11: Angles | B11: fm | C11: =C6*PI()/180 -> 0.5235987756 | D11: rad | E11: =C11*180/PI() -> 30 | F11: deg | I11: 0.01771810051 | J11: 0.005485136876 | K11: 0.04 | L11: 0.1298314117 | M11: 0.02690944705 | N11: =IF(ABS($K11-$C$8-Parameters!$C$21)>Parameters!$C$22,-100,IF($K11-$C$8-Parameters!$C$21<-Parameters!$C$23,Parameters!$C$24 + Parameters!$C$25 / (Parameters!$C$23 - Parameters!$C$22) * (($K11-$C$8-Parameters!$C$21) + Parameters!$C$23),IF($K11-$C$8-Parameters!$C$21<Parameters!$C$23,Parameters!$C$24,Parameters!$C$24 - Parameters!$C$25 / (Parameters!$C$23 - Parameters!$C$22) * (($K11-$C$8-Parameters!$C$21) - Parameters!$C$23)))) -> -100 | P11: 0.04 | Q11: 0 | R11: 0 | S11: =IF(ABS($K11-$C$8-Parameters!$C$21)>Parameters!$C$22,0,SQRT(Parameters!$C$22^2-($K11-$C$8-Parameters!$C$21)^2)) -> 0 | T11: =IF(ABS($K11-$C$8-Parameters!$C$21)>Parameters!$C$22,0,-SQRT(Parameters!$C$22^2-($K11-$C$8-Parameters!$C$21)^2)) -> 0
B12: q | C12: =C3*PI()/180 -> 1.221730476 | D12: m^2/s^2 | E12: =C12*180/PI() -> 70 | F12: deg | I12: 0.02214762564 | J12: 0.006856421095 | K12: 0.05 | L12: 0.1618085577 | M12: 0.03359073851 | N12: =IF(ABS($K12-$C$8-Parameters!$C$21)>Parameters!$C$22,-100,IF($K12-$C$8-Parameters!$C$21<-Parameters!$C$23,Parameters!$C$24 + Parameters!$C$25 / (Parameters!$C$23 - Parameters!$C$22) * (($K12-$C$8-Parameters!$C$21) + Parameters!$C$23),IF($K12-$C$8-Parameters!$C$21<Parameters!$C$23,Parameters!$C$24,Parameters!$C$24 - Parameters!$C$25 / (Parameters!$C$23 - Parameters!$C$22) * (($K12-$C$8-Parameters!$C$21) - Parameters!$C$23)))) -> -100 | P12: 0.05 | Q12: 0 | R12: 0 | S12: =IF(ABS($K12-$C$8-Parameters!$C$21)>Parameters!$C$22,0,SQRT(Parameters!$C$22^2-($K12-$C$8-Parameters!$C$21)^2)) -> 0 | T12: =IF(ABS($K12-$C$8-Parameters!$C$21)>Parameters!$C$22,0,-SQRT(Parameters!$C$22^2-($K12-$C$8-Parameters!$C$21)^2)) -> 0
B13: f | C13: =C4*PI()/180 -> -0.872664626 | D13: rad | E13: -50 | F13: deg | I13: 0.02657715077 | J13: 0.008227705315 | K13: 0.06 | L13: 0.1935934209 | M13: 0.04025360185 | N13: =IF(ABS($K13-$C$8-Parameters!$C$21)>Parameters!$C$22,-100,IF($K13-$C$8-Parameters!$C$21<-Parameters!$C$23,Parameters!$C$24 + Parameters!$C$25 / (Parameters!$C$23 - Parameters!$C$22) * (($K13-$C$8-Parameters!$C$21) + Parameters!$C$23),IF($K13-$C$8-Parameters!$C$21<Parameters!$C$23,Parameters!$C$24,Parameters!$C$24 - Parameters!$C$25 / (Parameters!$C$23 - Parameters!$C$22) * (($K13-$C$8-Parameters!$C$21) - Parameters!$C$23)))) -> -100 | P13: 0.06 | Q13: 0 | R13: 0 | S13: =IF(ABS($K13-$C$8-Parameters!$C$21)>Parameters!$C$22,0,SQRT(Parameters!$C$22^2-($K13-$C$8-Parameters!$C$21)^2)) -> 0 | T13: =IF(ABS($K13-$C$8-Parameters!$C$21)>Parameters!$C$22,0,-SQRT(Parameters!$C$22^2-($K13-$C$8-Parameters!$C$21)^2)) -> 0
I14: 0.0310066759 | J14: 0.009598989534 | K14: 0.07 | L14: 0.2251860012 | M14: 0.04689803707 | N14: =IF(ABS($K14-$C$8-Parameters!$C$21)>Parameters!$C$22,-100,IF($K14-$C$8-Parameters!$C$21<-Parameters!$C$23,Parameters!$C$24 + Parameters!$C$25 / (Parameters!$C$23 - Parameters!$C$22) * (($K14-$C$8-Parameters!$C$21) + Parameters!$C$23),IF($K14-$C$8-Parameters!$C$21<Parameters!$C$23,Parameters!$C$24,Parameters!$C$24 - Parameters!$C$25 / (Parameters!$C$23 - Parameters!$C$22) * (($K14-$C$8-Parameters!$C$21) - Parameters!$C$23)))) -> -100 | P14: 0.07 | Q14: 0 | R14: 0 | S14: =IF(ABS($K14-$C$8-Parameters!$C$21)>Parameters!$C$22,0,SQRT(Parameters!$C$22^2-($K14-$C$8-Parameters!$C$21)^2)) -> 0 | T14: =IF(ABS($K14-$C$8-Parameters!$C$21)>Parameters!$C$22,0,-SQRT(Parameters!$C$22^2-($K14-$C$8-Parameters!$C$21)^2)) -> 0
A15: A | B15: =4*(C9*C7+C5^2-C2^2)/(C9^2) -> -1.686380675 | I15: 0.03543620103 | J15: 0.01097027375 | K15: 0.08 | L15: 0.2565862988 | M15: 0.05352404418 | N15: =IF(ABS($K15-$C$8-Parameters!$C$21)>Parameters!$C$22,-100,IF($K15-$C$8-Parameters!$C$21<-Parameters!$C$23,Parameters!$C$24 + Parameters!$C$25 / (Parameters!$C$23 - Parameters!$C$22) * (($K15-$C$8-Parameters!$C$21) + Parameters!$C$23),IF($K15-$C$8-Parameters!$C$21<Parameters!$C$23,Parameters!$C$24,Parameters!$C$24 - Parameters!$C$25 / (Parameters!$C$23 - Parameters!$C$22) * (($K15-$C$8-Parameters!$C$21) - Parameters!$C$23)))) -> -100 | P15: 0.08 | Q15: 0 | R15: 0 | S15: =IF(ABS($K15-$C$8-Parameters!$C$21)>Parameters!$C$22,0,SQRT(Parameters!$C$22^2-($K15-$C$8-Parameters!$C$21)^2)) -> 0 | T15: =IF(ABS($K15-$C$8-Parameters!$C$21)>Parameters!$C$22,0,-SQRT(Parameters!$C$22^2-($K15-$C$8-Parameters!$C$21)^2)) -> 0
A16: B | B16: =-8*C8*C5*COS(C11)/C9^2 -> -0.4328323551 | I16: 0.03986572616 | J16: 0.01234155797 | K16: 0.09 | L16: 0.2877943136 | M16: 0.06013162316 | N16: =IF(ABS($K16-$C$8-Parameters!$C$21)>Parameters!$C$22,-100,IF($K16-$C$8-Parameters!$C$21<-Parameters!$C$23,Parameters!$C$24 + Parameters!$C$25 / (Parameters!$C$23 - Parameters!$C$22) * (($K16-$C$8-Parameters!$C$21) + Parameters!$C$23),IF($K16-$C$8-Parameters!$C$21<Parameters!$C$23,Parameters!$C$24,Parameters!$C$24 - Parameters!$C$25 / (Parameters!$C$23 - Parameters!$C$22) * (($K16-$C$8-Parameters!$C$21) - Parameters!$C$23)))) -> -100 | P16: 0.09 | Q16: 0 | R16: 0 | S16: =IF(ABS($K16-$C$8-Parameters!$C$21)>Parameters!$C$22,0,SQRT(Parameters!$C$22^2-($K16-$C$8-Parameters!$C$21)^2)) -> 0 | T16: =IF(ABS($K16-$C$8-Parameters!$C$21)>Parameters!$C$22,0,-SQRT(Parameters!$C$22^2-($K16-$C$8-Parameters!$C$21)^2)) -> 0
A17: C | B17: =4*(C8^2+C7^2)/C9^2 -> 0.4348188255 | I17: 0.04429525129 | J17: 0.01371284219 | K17: 0.1 | L17: 0.3188100456 | M17: 0.06672077402 | N17: =IF(ABS($K17-$C$8-Parameters!$C$21)>Parameters!$C$22,-100,IF($K17-$C$8-Parameters!$C$21<-Parameters!$C$23,Parameters!$C$24 + Parameters!$C$25 / (Parameters!$C$23 - Parameters!$C$22) * (($K17-$C$8-Parameters!$C$21) + Parameters!$C$23),IF($K17-$C$8-Parameters!$C$21<Parameters!$C$23,Parameters!$C$24,Parameters!$C$24 - Parameters!$C$25 / (Parameters!$C$23 - Parameters!$C$22) * (($K17-$C$8-Parameters!$C$21) - Parameters!$C$23)))) -> -100 | P17: 0.1 | Q17: 0 | R17: 0 | S17: =IF(ABS($K17-$C$8-Parameters!$C$21)>Parameters!$C$22,0,SQRT(Parameters!$C$22^2-($K17-$C$8-Parameters!$C$21)^2)) -> 0 | T17: =IF(ABS($K17-$C$8-Parameters!$C$21)>Parameters!$C$22,0,-SQRT(Parameters!$C$22^2-($K17-$C$8-Parameters!$C$21)^2)) -> 0
I18: 0.04872477642 | J18: 0.01508412641 | K18: 0.11 | L18: 0.3496334948 | M18: 0.07329149676 | N18: =IF(ABS($K18-$C$8-Parameters!$C$21)>Parameters!$C$22,-100,IF($K18-$C$8-Parameters!$C$21<-Parameters!$C$23,Parameters!$C$24 + Parameters!$C$25 / (Parameters!$C$23 - Parameters!$C$22) * (($K18-$C$8-Parameters!$C$21) + Parameters!$C$23),IF($K18-$C$8-Parameters!$C$21<Parameters!$C$23,Parameters!$C$24,Parameters!$C$24 - Parameters!$C$25 / (Parameters!$C$23 - Parameters!$C$22) * (($K18-$C$8-Parameters!$C$21) - Parameters!$C$23)))) -> -100 | P18: 0.11 | Q18: 0 | R18: 0 | S18: =IF(ABS($K18-$C$8-Parameters!$C$21)>Parameters!$C$22,0,SQRT(Parameters!$C$22^2-($K18-$C$8-Parameters!$C$21)^2)) -> 0 | T18: =IF(ABS($K18-$C$8-Parameters!$C$21)>Parameters!$C$22,0,-SQRT(Parameters!$C$22^2-($K18-$C$8-Parameters!$C$21)^2)) -> 0
A19: Parameter | B19: High Angle | C19: Low Angle | D19: Formula | I19: 0.05315430154 | J19: 0.01645541063 | K19: 0.12 | L19: 0.3802646613 | M19: 0.07984379138 | N19: =IF(ABS($K19-$C$8-Parameters!$C$21)>Parameters!$C$22,-100,IF($K19-$C$8-Parameters!$C$21<-Parameters!$C$23,Parameters!$C$24 + Parameters!$C$25 / (Parameters!$C$23 - Parameters!$C$22) * (($K19-$C$8-Parameters!$C$21) + Parameters!$C$23),IF($K19-$C$8-Parameters!$C$21<Parameters!$C$23,Parameters!$C$24,Parameters!$C$24 - Parameters!$C$25 / (Parameters!$C$23 - Parameters!$C$22) * (($K19-$C$8-Parameters!$C$21) - Parameters!$C$23)))) -> -100 | P19: 0.12 | Q19: 0 | R19: 0 | S19: =IF(ABS($K19-$C$8-Parameters!$C$21)>Parameters!$C$22,0,SQRT(Parameters!$C$22^2-($K19-$C$8-Parameters!$C$21)^2)) -> 0 | T19: =IF(ABS($K19-$C$8-Parameters!$C$21)>Parameters!$C$22,0,-SQRT(Parameters!$C$22^2-($K19-$C$8-Parameters!$C$21)^2)) -> 0
A20: t1,t2 | B20: ='4th Order Polynomial Solver'!B44 -> 1.328857539 | C20: ='4th Order Polynomial Solver'!B45 -> 0.4113852657 | D20: See 4th Order Solution Method Sheet | I20: 0.05758382667 | J20: 0.01782669485 | K20: 0.13 | L20: 0.4107035449 | M20: 0.08637765788 | N20: =IF(ABS($K20-$C$8-Parameters!$C$21)>Parameters!$C$22,-100,IF($K20-$C$8-Parameters!$C$21<-Parameters!$C$23,Parameters!$C$24 + Parameters!$C$25 / (Parameters!$C$23 - Parameters!$C$22) * (($K20-$C$8-Parameters!$C$21) + Parameters!$C$23),IF($K20-$C$8-Parameters!$C$21<Parameters!$C$23,Parameters!$C$24,Parameters!$C$24 - Parameters!$C$25 / (Parameters!$C$23 - Parameters!$C$22) * (($K20-$C$8-Parameters!$C$21) - Parameters!$C$23)))) -> -100 | P20: 0.13 | Q20: 0 | R20: 0 | S20: =IF(ABS($K20-$C$8-Parameters!$C$21)>Parameters!$C$22,0,SQRT(Parameters!$C$22^2-($K20-$C$8-Parameters!$C$21)^2)) -> 0 | T20: =IF(ABS($K20-$C$8-Parameters!$C$21)>Parameters!$C$22,0,-SQRT(Parameters!$C$22^2-($K20-$C$8-Parameters!$C$21)^2)) -> 0
A21: v0x | B21: =$C$8/B$20-$C$5*COS($C$11) -> 0.5255275354 | C21: =$C$8/C$20-$C$5*COS($C$11) -> 5.560383438 | I21: 0.0620133518 | J21: 0.01919797907 | K21: 0.14 | L21: 0.4409501457 | M21: 0.09289309627 | N21: =IF(ABS($K21-$C$8-Parameters!$C$21)>Parameters!$C$22,-100,IF($K21-$C$8-Parameters!$C$21<-Parameters!$C$23,Parameters!$C$24 + Parameters!$C$25 / (Parameters!$C$23 - Parameters!$C$22) * (($K21-$C$8-Parameters!$C$21) + Parameters!$C$23),IF($K21-$C$8-Parameters!$C$21<Parameters!$C$23,Parameters!$C$24,Parameters!$C$24 - Parameters!$C$25 / (Parameters!$C$23 - Parameters!$C$22) * (($K21-$C$8-Parameters!$C$21) - Parameters!$C$23)))) -> -100 | P21: 0.14 | Q21: 0 | R21: 0 | S21: =IF(ABS($K21-$C$8-Parameters!$C$21)>Parameters!$C$22,0,SQRT(Parameters!$C$22^2-($K21-$C$8-Parameters!$C$21)^2)) -> 0 | T21: =IF(ABS($K21-$C$8-Parameters!$C$21)>Parameters!$C$22,0,-SQRT(Parameters!$C$22^2-($K21-$C$8-Parameters!$C$21)^2)) -> 0
A22: v0y | B22: =$C$7/B$20+0.5*$C$9*B$20 -> 7.414433276 | C22: =$C$7/C$20+0.5*$C$9*C$20 -> 4.9327615 | I22: 0.06644287693 | J22: 0.02056926329 | K22: 0.15 | L22: 0.4710044638 | M22: 0.09939010653 | N22: =IF(ABS($K22-$C$8-Parameters!$C$21)>Parameters!$C$22,-100,IF($K22-$C$8-Parameters!$C$21<-Parameters!$C$23,Parameters!$C$24 + Parameters!$C$25 / (Parameters!$C$23 - Parameters!$C$22) * (($K22-$C$8-Parameters!$C$21) + Parameters!$C$23),IF($K22-$C$8-Parameters!$C$21<Parameters!$C$23,Parameters!$C$24,Parameters!$C$24 - Parameters!$C$25 / (Parameters!$C$23 - Parameters!$C$22) * (($K22-$C$8-Parameters!$C$21) - Parameters!$C$23)))) -> -100 | P22: 0.15 | Q22: 0 | R22: 0 | S22: =IF(ABS($K22-$C$8-Parameters!$C$21)>Parameters!$C$22,0,SQRT(Parameters!$C$22^2-($K22-$C$8-Parameters!$C$21)^2)) -> 0 | T22: =IF(ABS($K22-$C$8-Parameters!$C$21)>Parameters!$C$22,0,-SQRT(Parameters!$C$22^2-($K22-$C$8-Parameters!$C$21)^2)) -> 0
A23: v0z | B23: =-C5*SIN(C11) -> -1 | C23: =B23 -> -1 | I23: 0.07087240206 | J23: 0.02194054751 | K23: 0.16 | L23: 0.5008664991 | M23: 0.1058686887 | N23: =IF(ABS($K23-$C$8-Parameters!$C$21)>Parameters!$C$22,-100,IF($K23-$C$8-Parameters!$C$21<-Parameters!$C$23,Parameters!$C$24 + Parameters!$C$25 / (Parameters!$C$23 - Parameters!$C$22) * (($K23-$C$8-Parameters!$C$21) + Parameters!$C$23),IF($K23-$C$8-Parameters!$C$21<Parameters!$C$23,Parameters!$C$24,Parameters!$C$24 - Parameters!$C$25 / (Parameters!$C$23 - Parameters!$C$22) * (($K23-$C$8-Parameters!$C$21) - Parameters!$C$23)))) -> -100 | P23: 0.16 | Q23: 0 | R23: 0 | S23: =IF(ABS($K23-$C$8-Parameters!$C$21)>Parameters!$C$22,0,SQRT(Parameters!$C$22^2-($K23-$C$8-Parameters!$C$21)^2)) -> 0 | T23: =IF(ABS($K23-$C$8-Parameters!$C$21)>Parameters!$C$22,0,-SQRT(Parameters!$C$22^2-($K23-$C$8-Parameters!$C$21)^2)) -> 0
A24: q | B24: =ATAN(B22/SQRT(B21^2+B23^2))*180/PI() -> 81.33690218 | C24: =ATAN(C22/SQRT(C21^2+C23^2))*180/PI() -> 41.12481335 | I24: 0.07530192719 | J24: 0.02331183172 | K24: 0.17 | L24: 0.5305362515 | M24: 0.1123288427 | N24: =IF(ABS($K24-$C$8-Parameters!$C$21)>Parameters!$C$22,-100,IF($K24-$C$8-Parameters!$C$21<-Parameters!$C$23,Parameters!$C$24 + Parameters!$C$25 / (Parameters!$C$23 - Parameters!$C$22) * (($K24-$C$8-Parameters!$C$21) + Parameters!$C$23),IF($K24-$C$8-Parameters!$C$21<Parameters!$C$23,Parameters!$C$24,Parameters!$C$24 - Parameters!$C$25 / (Parameters!$C$23 - Parameters!$C$22) * (($K24-$C$8-Parameters!$C$21) - Parameters!$C$23)))) -> -100 | P24: 0.17 | Q24: 0 | R24: 0 | S24: =IF(ABS($K24-$C$8-Parameters!$C$21)>Parameters!$C$22,0,SQRT(Parameters!$C$22^2-($K24-$C$8-Parameters!$C$21)^2)) -> 0 | T24: =IF(ABS($K24-$C$8-Parameters!$C$21)>Parameters!$C$22,0,-SQRT(Parameters!$C$22^2-($K24-$C$8-Parameters!$C$21)^2)) -> 0
A25: f | B25: =180/PI()*ATAN(B23/B21) -> -62.27683764 | C25: =180/PI()*ATAN(C23/C21) -> -10.19529989 | I25: 0.07973145232 | J25: 0.02468311594 | K25: 0.18 | L25: 0.5600137212 | M25: 0.1187705686 | N25: =IF(ABS($K25-$C$8-Parameters!$C$21)>Parameters!$C$22,-100,IF($K25-$C$8-Parameters!$C$21<-Parameters!$C$23,Parameters!$C$24 + Parameters!$C$25 / (Parameters!$C$23 - Parameters!$C$22) * (($K25-$C$8-Parameters!$C$21) + Parameters!$C$23),IF($K25-$C$8-Parameters!$C$21<Parameters!$C$23,Parameters!$C$24,Parameters!$C$24 - Parameters!$C$25 / (Parameters!$C$23 - Parameters!$C$22) * (($K25-$C$8-Parameters!$C$21) - Parameters!$C$23)))) -> -100 | P25: 0.18 | Q25: 0 | R25: 0 | S25: =IF(ABS($K25-$C$8-Parameters!$C$21)>Parameters!$C$22,0,SQRT(Parameters!$C$22^2-($K25-$C$8-Parameters!$C$21)^2)) -> 0 | T25: =IF(ABS($K25-$C$8-Parameters!$C$21)>Parameters!$C$22,0,-SQRT(Parameters!$C$22^2-($K25-$C$8-Parameters!$C$21)^2)) -> 0
I26: 0.08416097745 | J26: 0.02605440016 | K26: 0.19 | L26: 0.5892989081 | M26: 0.1251938664 | N26: =IF(ABS($K26-$C$8-Parameters!$C$21)>Parameters!$C$22,-100,IF($K26-$C$8-Parameters!$C$21<-Parameters!$C$23,Parameters!$C$24 + Parameters!$C$25 / (Parameters!$C$23 - Parameters!$C$22) * (($K26-$C$8-Parameters!$C$21) + Parameters!$C$23),IF($K26-$C$8-Parameters!$C$21<Parameters!$C$23,Parameters!$C$24,Parameters!$C$24 - Parameters!$C$25 / (Parameters!$C$23 - Parameters!$C$22) * (($K26-$C$8-Parameters!$C$21) - Parameters!$C$23)))) -> -100 | P26: 0.19 | Q26: 0 | R26: 0 | S26: =IF(ABS($K26-$C$8-Parameters!$C$21)>Parameters!$C$22,0,SQRT(Parameters!$C$22^2-($K26-$C$8-Parameters!$C$21)^2)) -> 0 | T26: =IF(ABS($K26-$C$8-Parameters!$C$21)>Parameters!$C$22,0,-SQRT(Parameters!$C$22^2-($K26-$C$8-Parameters!$C$21)^2)) -> 0
I27: 0.08859050257 | J27: 0.02742568438 | K27: 0.2 | L27: 0.6183918122 | M27: 0.131598736 | N27: =IF(ABS($K27-$C$8-Parameters!$C$21)>Parameters!$C$22,-100,IF($K27-$C$8-Parameters!$C$21<-Parameters!$C$23,Parameters!$C$24 + Parameters!$C$25 / (Parameters!$C$23 - Parameters!$C$22) * (($K27-$C$8-Parameters!$C$21) + Parameters!$C$23),IF($K27-$C$8-Parameters!$C$21<Parameters!$C$23,Parameters!$C$24,Parameters!$C$24 - Parameters!$C$25 / (Parameters!$C$23 - Parameters!$C$22) * (($K27-$C$8-Parameters!$C$21) - Parameters!$C$23)))) -> -100 | P27: 0.2 | Q27: 0 | R27: 0 | S27: =IF(ABS($K27-$C$8-Parameters!$C$21)>Parameters!$C$22,0,SQRT(Parameters!$C$22^2-($K27-$C$8-Parameters!$C$21)^2)) -> 0 | T27: =IF(ABS($K27-$C$8-Parameters!$C$21)>Parameters!$C$22,0,-SQRT(Parameters!$C$22^2-($K27-$C$8-Parameters!$C$21)^2)) -> 0
I28: 0.0930200277 | J28: 0.0287969686 | K28: 0.21 | L28: 0.6472924336 | M28: 0.1379851776 | N28: =IF(ABS($K28-$C$8-Parameters!$C$21)>Parameters!$C$22,-100,IF($K28-$C$8-Parameters!$C$21<-Parameters!$C$23,Parameters!$C$24 + Parameters!$C$25 / (Parameters!$C$23 - Parameters!$C$22) * (($K28-$C$8-Parameters!$C$21) + Parameters!$C$23),IF($K28-$C$8-Parameters!$C$21<Parameters!$C$23,Parameters!$C$24,Parameters!$C$24 - Parameters!$C$25 / (Parameters!$C$23 - Parameters!$C$22) * (($K28-$C$8-Parameters!$C$21) - Parameters!$C$23)))) -> -100 | P28: 0.21 | Q28: 0 | R28: 0 | S28: =IF(ABS($K28-$C$8-Parameters!$C$21)>Parameters!$C$22,0,SQRT(Parameters!$C$22^2-($K28-$C$8-Parameters!$C$21)^2)) -> 0 | T28: =IF(ABS($K28-$C$8-Parameters!$C$21)>Parameters!$C$22,0,-SQRT(Parameters!$C$22^2-($K28-$C$8-Parameters!$C$21)^2)) -> 0
I29: 0.09744955283 | J29: 0.03016825282 | K29: 0.22 | L29: 0.6760007721 | M29: 0.144353191 | N29: =IF(ABS($K29-$C$8-Parameters!$C$21)>Parameters!$C$22,-100,IF($K29-$C$8-Parameters!$C$21<-Parameters!$C$23,Parameters!$C$24 + Parameters!$C$25 / (Parameters!$C$23 - Parameters!$C$22) * (($K29-$C$8-Parameters!$C$21) + Parameters!$C$23),IF($K29-$C$8-Parameters!$C$21<Parameters!$C$23,Parameters!$C$24,Parameters!$C$24 - Parameters!$C$25 / (Parameters!$C$23 - Parameters!$C$22) * (($K29-$C$8-Parameters!$C$21) - Parameters!$C$23)))) -> -100 | P29: 0.22 | Q29: 0 | R29: 0 | S29: =IF(ABS($K29-$C$8-Parameters!$C$21)>Parameters!$C$22,0,SQRT(Parameters!$C$22^2-($K29-$C$8-Parameters!$C$21)^2)) -> 0 | T29: =IF(ABS($K29-$C$8-Parameters!$C$21)>Parameters!$C$22,0,-SQRT(Parameters!$C$22^2-($K29-$C$8-Parameters!$C$21)^2)) -> 0
I30: 0.101879078 | J30: 0.03153953704 | K30: 0.23 | L30: 0.7045168278 | M30: 0.1507027763 | N30: =IF(ABS($K30-$C$8-Parameters!$C$21)>Parameters!$C$22,-100,IF($K30-$C$8-Parameters!$C$21<-Parameters!$C$23,Parameters!$C$24 + Parameters!$C$25 / (Parameters!$C$23 - Parameters!$C$22) * (($K30-$C$8-Parameters!$C$21) + Parameters!$C$23),IF($K30-$C$8-Parameters!$C$21<Parameters!$C$23,Parameters!$C$24,Parameters!$C$24 - Parameters!$C$25 / (Parameters!$C$23 - Parameters!$C$22) * (($K30-$C$8-Parameters!$C$21) - Parameters!$C$23)))) -> -100 | P30: 0.23 | Q30: 0 | R30: 0 | S30: =IF(ABS($K30-$C$8-Parameters!$C$21)>Parameters!$C$22,0,SQRT(Parameters!$C$22^2-($K30-$C$8-Parameters!$C$21)^2)) -> 0 | T30: =IF(ABS($K30-$C$8-Parameters!$C$21)>Parameters!$C$22,0,-SQRT(Parameters!$C$22^2-($K30-$C$8-Parameters!$C$21)^2)) -> 0
I31: 0.1063086031 | J31: 0.03291082126 | K31: 0.24 | L31: 0.7328406008 | M31: 0.1570339335 | N31: =IF(ABS($K31-$C$8-Parameters!$C$21)>Parameters!$C$22,-100,IF($K31-$C$8-Parameters!$C$21<-Parameters!$C$23,Parameters!$C$24 + Parameters!$C$25 / (Parameters!$C$23 - Parameters!$C$22) * (($K31-$C$8-Parameters!$C$21) + Parameters!$C$23),IF($K31-$C$8-Parameters!$C$21<Parameters!$C$23,Parameters!$C$24,Parameters!$C$24 - Parameters!$C$25 / (Parameters!$C$23 - Parameters!$C$22) * (($K31-$C$8-Parameters!$C$21) - Parameters!$C$23)))) -> -100 | P31: 0.24 | Q31: 0 | R31: 0 | S31: =IF(ABS($K31-$C$8-Parameters!$C$21)>Parameters!$C$22,0,SQRT(Parameters!$C$22^2-($K31-$C$8-Parameters!$C$21)^2)) -> 0 | T31: =IF(ABS($K31-$C$8-Parameters!$C$21)>Parameters!$C$22,0,-SQRT(Parameters!$C$22^2-($K31-$C$8-Parameters!$C$21)^2)) -> 0
I32: 0.1107381282 | J32: 0.03428210548 | K32: 0.25 | L32: 0.7609720909 | M32: 0.1633466625 | N32: =IF(ABS($K32-$C$8-Parameters!$C$21)>Parameters!$C$22,-100,IF($K32-$C$8-Parameters!$C$21<-Parameters!$C$23,Parameters!$C$24 + Parameters!$C$25 / (Parameters!$C$23 - Parameters!$C$22) * (($K32-$C$8-Parameters!$C$21) + Parameters!$C$23),IF($K32-$C$8-Parameters!$C$21<Parameters!$C$23,Parameters!$C$24,Parameters!$C$24 - Parameters!$C$25 / (Parameters!$C$23 - Parameters!$C$22) * (($K32-$C$8-Parameters!$C$21) - Parameters!$C$23)))) -> -100 | P32: 0.25 | Q32: 0 | R32: 0 | S32: =IF(ABS($K32-$C$8-Parameters!$C$21)>Parameters!$C$22,0,SQRT(Parameters!$C$22^2-($K32-$C$8-Parameters!$C$21)^2)) -> 0 | T32: =IF(ABS($K32-$C$8-Parameters!$C$21)>Parameters!$C$22,0,-SQRT(Parameters!$C$22^2-($K32-$C$8-Parameters!$C$21)^2)) -> 0
I33: 0.1151676533 | J33: 0.0356533897 | K33: 0.26 | L33: 0.7889112983 | M33: 0.1696409635 | N33: =IF(ABS($K33-$C$8-Parameters!$C$21)>Parameters!$C$22,-100,IF($K33-$C$8-Parameters!$C$21<-Parameters!$C$23,Parameters!$C$24 + Parameters!$C$25 / (Parameters!$C$23 - Parameters!$C$22) * (($K33-$C$8-Parameters!$C$21) + Parameters!$C$23),IF($K33-$C$8-Parameters!$C$21<Parameters!$C$23,Parameters!$C$24,Parameters!$C$24 - Parameters!$C$25 / (Parameters!$C$23 - Parameters!$C$22) * (($K33-$C$8-Parameters!$C$21) - Parameters!$C$23)))) -> -100 | P33: 0.26 | Q33: 0 | R33: 0 | S33: =IF(ABS($K33-$C$8-Parameters!$C$21)>Parameters!$C$22,0,SQRT(Parameters!$C$22^2-($K33-$C$8-Parameters!$C$21)^2)) -> 0 | T33: =IF(ABS($K33-$C$8-Parameters!$C$21)>Parameters!$C$22,0,-SQRT(Parameters!$C$22^2-($K33-$C$8-Parameters!$C$21)^2)) -> 0
I34: 0.1195971785 | J34: 0.03702467392 | K34: 0.27 | L34: 0.8166582229 | M34: 0.1759168363 | N34: =IF(ABS($K34-$C$8-Parameters!$C$21)>Parameters!$C$22,-100,IF($K34-$C$8-Parameters!$C$21<-Parameters!$C$23,Parameters!$C$24 + Parameters!$C$25 / (Parameters!$C$23 - Parameters!$C$22) * (($K34-$C$8-Parameters!$C$21) + Parameters!$C$23),IF($K34-$C$8-Parameters!$C$21<Parameters!$C$23,Parameters!$C$24,Parameters!$C$24 - Parameters!$C$25 / (Parameters!$C$23 - Parameters!$C$22) * (($K34-$C$8-Parameters!$C$21) - Parameters!$C$23)))) -> -100 | P34: 0.27 | Q34: 0 | R34: 0 | S34: =IF(ABS($K34-$C$8-Parameters!$C$21)>Parameters!$C$22,0,SQRT(Parameters!$C$22^2-($K34-$C$8-Parameters!$C$21)^2)) -> 0 | T34: =IF(ABS($K34-$C$8-Parameters!$C$21)>Parameters!$C$22,0,-SQRT(Parameters!$C$22^2-($K34-$C$8-Parameters!$C$21)^2)) -> 0
I35: 0.1240267036 | J35: 0.03839595813 | K35: 0.28 | L35: 0.8442128646 | M35: 0.182174281 | N35: =IF(ABS($K35-$C$8-Parameters!$C$21)>Parameters!$C$22,-100,IF($K35-$C$8-Parameters!$C$21<-Parameters!$C$23,Parameters!$C$24 + Parameters!$C$25 / (Parameters!$C$23 - Parameters!$C$22) * (($K35-$C$8-Parameters!$C$21) + Parameters!$C$23),IF($K35-$C$8-Parameters!$C$21<Parameters!$C$23,Parameters!$C$24,Parameters!$C$24 - Parameters!$C$25 / (Parameters!$C$23 - Parameters!$C$22) * (($K35-$C$8-Parameters!$C$21) - Parameters!$C$23)))) -> -100 | P35: 0.28 | Q35: 0 | R35: 0 | S35: =IF(ABS($K35-$C$8-Parameters!$C$21)>Parameters!$C$22,0,SQRT(Parameters!$C$22^2-($K35-$C$8-Parameters!$C$21)^2)) -> 0 | T35: =IF(ABS($K35-$C$8-Parameters!$C$21)>Parameters!$C$22,0,-SQRT(Parameters!$C$22^2-($K35-$C$8-Parameters!$C$21)^2)) -> 0
I36: 0.1284562287 | J36: 0.03976724235 | K36: 0.29 | L36: 0.8715752236 | M36: 0.1884132976 | N36: =IF(ABS($K36-$C$8-Parameters!$C$21)>Parameters!$C$22,-100,IF($K36-$C$8-Parameters!$C$21<-Parameters!$C$23,Parameters!$C$24 + Parameters!$C$25 / (Parameters!$C$23 - Parameters!$C$22) * (($K36-$C$8-Parameters!$C$21) + Parameters!$C$23),IF($K36-$C$8-Parameters!$C$21<Parameters!$C$23,Parameters!$C$24,Parameters!$C$24 - Parameters!$C$25 / (Parameters!$C$23 - Parameters!$C$22) * (($K36-$C$8-Parameters!$C$21) - Parameters!$C$23)))) -> -100 | P36: 0.29 | Q36: 0 | R36: 0 | S36: =IF(ABS($K36-$C$8-Parameters!$C$21)>Parameters!$C$22,0,SQRT(Parameters!$C$22^2-($K36-$C$8-Parameters!$C$21)^2)) -> 0 | T36: =IF(ABS($K36-$C$8-Parameters!$C$21)>Parameters!$C$22,0,-SQRT(Parameters!$C$22^2-($K36-$C$8-Parameters!$C$21)^2)) -> 0
I37: 0.1328857539 | J37: 0.04113852657 | K37: 0.3 | L37: 0.8987452998 | M37: 0.1946338861 | N37: =IF(ABS($K37-$C$8-Parameters!$C$21)>Parameters!$C$22,-100,IF($K37-$C$8-Parameters!$C$21<-Parameters!$C$23,Parameters!$C$24 + Parameters!$C$25 / (Parameters!$C$23 - Parameters!$C$22) * (($K37-$C$8-Parameters!$C$21) + Parameters!$C$23),IF($K37-$C$8-Parameters!$C$21<Parameters!$C$23,Parameters!$C$24,Parameters!$C$24 - Parameters!$C$25 / (Parameters!$C$23 - Parameters!$C$22) * (($K37-$C$8-Parameters!$C$21) - Parameters!$C$23)))) -> -100 | P37: 0.3 | Q37: 0 | R37: 0 | S37: =IF(ABS($K37-$C$8-Parameters!$C$21)>Parameters!$C$22,0,SQRT(Parameters!$C$22^2-($K37-$C$8-Parameters!$C$21)^2)) -> 0 | T37: =IF(ABS($K37-$C$8-Parameters!$C$21)>Parameters!$C$22,0,-SQRT(Parameters!$C$22^2-($K37-$C$8-Parameters!$C$21)^2)) -> 0
I38: 0.137315279 | J38: 0.04250981079 | K38: 0.31 | L38: 0.9257230933 | M38: 0.2008360464 | N38: =IF(ABS($K38-$C$8-Parameters!$C$21)>Parameters!$C$22,-100,IF($K38-$C$8-Parameters!$C$21<-Parameters!$C$23,Parameters!$C$24 + Parameters!$C$25 / (Parameters!$C$23 - Parameters!$C$22) * (($K38-$C$8-Parameters!$C$21) + Parameters!$C$23),IF($K38-$C$8-Parameters!$C$21<Parameters!$C$23,Parameters!$C$24,Parameters!$C$24 - Parameters!$C$25 / (Parameters!$C$23 - Parameters!$C$22) * (($K38-$C$8-Parameters!$C$21) - Parameters!$C$23)))) -> -100 | P38: 0.31 | Q38: 0 | R38: 0 | S38: =IF(ABS($K38-$C$8-Parameters!$C$21)>Parameters!$C$22,0,SQRT(Parameters!$C$22^2-($K38-$C$8-Parameters!$C$21)^2)) -> 0 | T38: =IF(ABS($K38-$C$8-Parameters!$C$21)>Parameters!$C$22,0,-SQRT(Parameters!$C$22^2-($K38-$C$8-Parameters!$C$21)^2)) -> 0
I39: 0.1417448041 | J39: 0.04388109501 | K39: 0.32 | L39: 0.9525086039 | M39: 0.2070197786 | N39: =IF(ABS($K39-$C$8-Parameters!$C$21)>Parameters!$C$22,-100,IF($K39-$C$8-Parameters!$C$21<-Parameters!$C$23,Parameters!$C$24 + Parameters!$C$25 / (Parameters!$C$23 - Parameters!$C$22) * (($K39-$C$8-Parameters!$C$21) + Parameters!$C$23),IF($K39-$C$8-Parameters!$C$21<Parameters!$C$23,Parameters!$C$24,Parameters!$C$24 - Parameters!$C$25 / (Parameters!$C$23 - Parameters!$C$22) * (($K39-$C$8-Parameters!$C$21) - Parameters!$C$23)))) -> -100 | P39: 0.32 | Q39: 0 | R39: 0 | S39: =IF(ABS($K39-$C$8-Parameters!$C$21)>Parameters!$C$22,0,SQRT(Parameters!$C$22^2-($K39-$C$8-Parameters!$C$21)^2)) -> 0 | T39: =IF(ABS($K39-$C$8-Parameters!$C$21)>Parameters!$C$22,0,-SQRT(Parameters!$C$22^2-($K39-$C$8-Parameters!$C$21)^2)) -> 0
I40: 0.1461743292 | J40: 0.04525237923 | K40: 0.33 | L40: 0.9791018317 | M40: 0.2131850827 | N40: =IF(ABS($K40-$C$8-Parameters!$C$21)>Parameters!$C$22,-100,IF($K40-$C$8-Parameters!$C$21<-Parameters!$C$23,Parameters!$C$24 + Parameters!$C$25 / (Parameters!$C$23 - Parameters!$C$22) * (($K40-$C$8-Parameters!$C$21) + Parameters!$C$23),IF($K40-$C$8-Parameters!$C$21<Parameters!$C$23,Parameters!$C$24,Parameters!$C$24 - Parameters!$C$25 / (Parameters!$C$23 - Parameters!$C$22) * (($K40-$C$8-Parameters!$C$21) - Parameters!$C$23)))) -> -100 | P40: 0.33 | Q40: 0 | R40: 0 | S40: =IF(ABS($K40-$C$8-Parameters!$C$21)>Parameters!$C$22,0,SQRT(Parameters!$C$22^2-($K40-$C$8-Parameters!$C$21)^2)) -> 0 | T40: =IF(ABS($K40-$C$8-Parameters!$C$21)>Parameters!$C$22,0,-SQRT(Parameters!$C$22^2-($K40-$C$8-Parameters!$C$21)^2)) -> 0
I41: 0.1506038544 | J41: 0.04662366345 | K41: 0.34 | L41: 1.005502777 | M41: 0.2193319587 | N41: =IF(ABS($K41-$C$8-Parameters!$C$21)>Parameters!$C$22,-100,IF($K41-$C$8-Parameters!$C$21<-Parameters!$C$23,Parameters!$C$24 + Parameters!$C$25 / (Parameters!$C$23 - Parameters!$C$22) * (($K41-$C$8-Parameters!$C$21) + Parameters!$C$23),IF($K41-$C$8-Parameters!$C$21<Parameters!$C$23,Parameters!$C$24,Parameters!$C$24 - Parameters!$C$25 / (Parameters!$C$23 - Parameters!$C$22) * (($K41-$C$8-Parameters!$C$21) - Parameters!$C$23)))) -> -100 | P41: 0.34 | Q41: 0 | R41: 0 | S41: =IF(ABS($K41-$C$8-Parameters!$C$21)>Parameters!$C$22,0,SQRT(Parameters!$C$22^2-($K41-$C$8-Parameters!$C$21)^2)) -> 0 | T41: =IF(ABS($K41-$C$8-Parameters!$C$21)>Parameters!$C$22,0,-SQRT(Parameters!$C$22^2-($K41-$C$8-Parameters!$C$21)^2)) -> 0
I42: 0.1550333795 | J42: 0.04799494767 | K42: 0.35 | L42: 1.031711439 | M42: 0.2254604066 | N42: =IF(ABS($K42-$C$8-Parameters!$C$21)>Parameters!$C$22,-100,IF($K42-$C$8-Parameters!$C$21<-Parameters!$C$23,Parameters!$C$24 + Parameters!$C$25 / (Parameters!$C$23 - Parameters!$C$22) * (($K42-$C$8-Parameters!$C$21) + Parameters!$C$23),IF($K42-$C$8-Parameters!$C$21<Parameters!$C$23,Parameters!$C$24,Parameters!$C$24 - Parameters!$C$25 / (Parameters!$C$23 - Parameters!$C$22) * (($K42-$C$8-Parameters!$C$21) - Parameters!$C$23)))) -> -100 | P42: 0.35 | Q42: 0 | R42: 0 | S42: =IF(ABS($K42-$C$8-Parameters!$C$21)>Parameters!$C$22,0,SQRT(Parameters!$C$22^2-($K42-$C$8-Parameters!$C$21)^2)) -> 0 | T42: =IF(ABS($K42-$C$8-Parameters!$C$21)>Parameters!$C$22,0,-SQRT(Parameters!$C$22^2-($K42-$C$8-Parameters!$C$21)^2)) -> 0
I43: 0.1594629046 | J43: 0.04936623189 | K43: 0.36 | L43: 1.057727818 | M43: 0.2315704263 | N43: =IF(ABS($K43-$C$8-Parameters!$C$21)>Parameters!$C$22,-100,IF($K43-$C$8-Parameters!$C$21<-Parameters!$C$23,Parameters!$C$24 + Parameters!$C$25 / (Parameters!$C$23 - Parameters!$C$22) * (($K43-$C$8-Parameters!$C$21) + Parameters!$C$23),IF($K43-$C$8-Parameters!$C$21<Parameters!$C$23,Parameters!$C$24,Parameters!$C$24 - Parameters!$C$25 / (Parameters!$C$23 - Parameters!$C$22) * (($K43-$C$8-Parameters!$C$21) - Parameters!$C$23)))) -> -100 | P43: 0.36 | Q43: 0 | R43: 0 | S43: =IF(ABS($K43-$C$8-Parameters!$C$21)>Parameters!$C$22,0,SQRT(Parameters!$C$22^2-($K43-$C$8-Parameters!$C$21)^2)) -> 0 | T43: =IF(ABS($K43-$C$8-Parameters!$C$21)>Parameters!$C$22,0,-SQRT(Parameters!$C$22^2-($K43-$C$8-Parameters!$C$21)^2)) -> 0
I44: 0.1638924298 | J44: 0.05073751611 | K44: 0.37 | L44: 1.083551915 | M44: 0.2376620179 | N44: =IF(ABS($K44-$C$8-Parameters!$C$21)>Parameters!$C$22,-100,IF($K44-$C$8-Parameters!$C$21<-Parameters!$C$23,Parameters!$C$24 + Parameters!$C$25 / (Parameters!$C$23 - Parameters!$C$22) * (($K44-$C$8-Parameters!$C$21) + Parameters!$C$23),IF($K44-$C$8-Parameters!$C$21<Parameters!$C$23,Parameters!$C$24,Parameters!$C$24 - Parameters!$C$25 / (Parameters!$C$23 - Parameters!$C$22) * (($K44-$C$8-Parameters!$C$21) - Parameters!$C$23)))) -> -100 | P44: 0.37 | Q44: 0 | R44: 0 | S44: =IF(ABS($K44-$C$8-Parameters!$C$21)>Parameters!$C$22,0,SQRT(Parameters!$C$22^2-($K44-$C$8-Parameters!$C$21)^2)) -> 0 | T44: =IF(ABS($K44-$C$8-Parameters!$C$21)>Parameters!$C$22,0,-SQRT(Parameters!$C$22^2-($K44-$C$8-Parameters!$C$21)^2)) -> 0
I45: 0.1683219549 | J45: 0.05210880033 | K45: 0.38 | L45: 1.109183729 | M45: 0.2437351814 | N45: =IF(ABS($K45-$C$8-Parameters!$C$21)>Parameters!$C$22,-100,IF($K45-$C$8-Parameters!$C$21<-Parameters!$C$23,Parameters!$C$24 + Parameters!$C$25 / (Parameters!$C$23 - Parameters!$C$22) * (($K45-$C$8-Parameters!$C$21) + Parameters!$C$23),IF($K45-$C$8-Parameters!$C$21<Parameters!$C$23,Parameters!$C$24,Parameters!$C$24 - Parameters!$C$25 / (Parameters!$C$23 - Parameters!$C$22) * (($K45-$C$8-Parameters!$C$21) - Parameters!$C$23)))) -> -100 | P45: 0.38 | Q45: 0 | R45: 0 | S45: =IF(ABS($K45-$C$8-Parameters!$C$21)>Parameters!$C$22,0,SQRT(Parameters!$C$22^2-($K45-$C$8-Parameters!$C$21)^2)) -> 0 | T45: =IF(ABS($K45-$C$8-Parameters!$C$21)>Parameters!$C$22,0,-SQRT(Parameters!$C$22^2-($K45-$C$8-Parameters!$C$21)^2)) -> 0
I46: 0.17275148 | J46: 0.05348008454 | K46: 0.39 | L46: 1.13462326 | M46: 0.2497899168 | N46: =IF(ABS($K46-$C$8-Parameters!$C$21)>Parameters!$C$22,-100,IF($K46-$C$8-Parameters!$C$21<-Parameters!$C$23,Parameters!$C$24 + Parameters!$C$25 / (Parameters!$C$23 - Parameters!$C$22) * (($K46-$C$8-Parameters!$C$21) + Parameters!$C$23),IF($K46-$C$8-Parameters!$C$21<Parameters!$C$23,Parameters!$C$24,Parameters!$C$24 - Parameters!$C$25 / (Parameters!$C$23 - Parameters!$C$22) * (($K46-$C$8-Parameters!$C$21) - Parameters!$C$23)))) -> -100 | P46: 0.39 | Q46: 0 | R46: 0 | S46: =IF(ABS($K46-$C$8-Parameters!$C$21)>Parameters!$C$22,0,SQRT(Parameters!$C$22^2-($K46-$C$8-Parameters!$C$21)^2)) -> 0 | T46: =IF(ABS($K46-$C$8-Parameters!$C$21)>Parameters!$C$22,0,-SQRT(Parameters!$C$22^2-($K46-$C$8-Parameters!$C$21)^2)) -> 0
I47: 0.1771810051 | J47: 0.05485136876 | K47: 0.4 | L47: 1.159870508 | M47: 0.2558262241 | N47: =IF(ABS($K47-$C$8-Parameters!$C$21)>Parameters!$C$22,-100,IF($K47-$C$8-Parameters!$C$21<-Parameters!$C$23,Parameters!$C$24 + Parameters!$C$25 / (Parameters!$C$23 - Parameters!$C$22) * (($K47-$C$8-Parameters!$C$21) + Parameters!$C$23),IF($K47-$C$8-Parameters!$C$21<Parameters!$C$23,Parameters!$C$24,Parameters!$C$24 - Parameters!$C$25 / (Parameters!$C$23 - Parameters!$C$22) * (($K47-$C$8-Parameters!$C$21) - Parameters!$C$23)))) -> -100 | P47: 0.4 | Q47: 0 | R47: 0 | S47: =IF(ABS($K47-$C$8-Parameters!$C$21)>Parameters!$C$22,0,SQRT(Parameters!$C$22^2-($K47-$C$8-Parameters!$C$21)^2)) -> 0 | T47: =IF(ABS($K47-$C$8-Parameters!$C$21)>Parameters!$C$22,0,-SQRT(Parameters!$C$22^2-($K47-$C$8-Parameters!$C$21)^2)) -> 0
I48: 0.1816105303 | J48: 0.05622265298 | K48: 0.41 | L48: 1.184925474 | M48: 0.2618441032 | N48: =IF(ABS($K48-$C$8-Parameters!$C$21)>Parameters!$C$22,-100,IF($K48-$C$8-Parameters!$C$21<-Parameters!$C$23,Parameters!$C$24 + Parameters!$C$25 / (Parameters!$C$23 - Parameters!$C$22) * (($K48-$C$8-Parameters!$C$21) + Parameters!$C$23),IF($K48-$C$8-Parameters!$C$21<Parameters!$C$23,Parameters!$C$24,Parameters!$C$24 - Parameters!$C$25 / (Parameters!$C$23 - Parameters!$C$22) * (($K48-$C$8-Parameters!$C$21) - Parameters!$C$23)))) -> -100 | P48: 0.41 | Q48: 0 | R48: 0 | S48: =IF(ABS($K48-$C$8-Parameters!$C$21)>Parameters!$C$22,0,SQRT(Parameters!$C$22^2-($K48-$C$8-Parameters!$C$21)^2)) -> 0 | T48: =IF(ABS($K48-$C$8-Parameters!$C$21)>Parameters!$C$22,0,-SQRT(Parameters!$C$22^2-($K48-$C$8-Parameters!$C$21)^2)) -> 0
I49: 0.1860400554 | J49: 0.0575939372 | K49: 0.42 | L49: 1.209788157 | M49: 0.2678435542 | N49: =IF(ABS($K49-$C$8-Parameters!$C$21)>Parameters!$C$22,-100,IF($K49-$C$8-Parameters!$C$21<-Parameters!$C$23,Parameters!$C$24 + Parameters!$C$25 / (Parameters!$C$23 - Parameters!$C$22) * (($K49-$C$8-Parameters!$C$21) + Parameters!$C$23),IF($K49-$C$8-Parameters!$C$21<Parameters!$C$23,Parameters!$C$24,Parameters!$C$24 - Parameters!$C$25 / (Parameters!$C$23 - Parameters!$C$22) * (($K49-$C$8-Parameters!$C$21) - Parameters!$C$23)))) -> -100 | P49: 0.42 | Q49: 0 | R49: 0 | S49: =IF(ABS($K49-$C$8-Parameters!$C$21)>Parameters!$C$22,0,SQRT(Parameters!$C$22^2-($K49-$C$8-Parameters!$C$21)^2)) -> 0 | T49: =IF(ABS($K49-$C$8-Parameters!$C$21)>Parameters!$C$22,0,-SQRT(Parameters!$C$22^2-($K49-$C$8-Parameters!$C$21)^2)) -> 0
I50: 0.1904695805 | J50: 0.05896522142 | K50: 0.43 | L50: 1.234458557 | M50: 0.2738245771 | N50: =IF(ABS($K50-$C$8-Parameters!$C$21)>Parameters!$C$22,-100,IF($K50-$C$8-Parameters!$C$21<-Parameters!$C$23,Parameters!$C$24 + Parameters!$C$25 / (Parameters!$C$23 - Parameters!$C$22) * (($K50-$C$8-Parameters!$C$21) + Parameters!$C$23),IF($K50-$C$8-Parameters!$C$21<Parameters!$C$23,Parameters!$C$24,Parameters!$C$24 - Parameters!$C$25 / (Parameters!$C$23 - Parameters!$C$22) * (($K50-$C$8-Parameters!$C$21) - Parameters!$C$23)))) -> -100 | P50: 0.43 | Q50: 0 | R50: 0 | S50: =IF(ABS($K50-$C$8-Parameters!$C$21)>Parameters!$C$22,0,SQRT(Parameters!$C$22^2-($K50-$C$8-Parameters!$C$21)^2)) -> 0 | T50: =IF(ABS($K50-$C$8-Parameters!$C$21)>Parameters!$C$22,0,-SQRT(Parameters!$C$22^2-($K50-$C$8-Parameters!$C$21)^2)) -> 0
I51: 0.1948991057 | J51: 0.06033650564 | K51: 0.44 | L51: 1.258936674 | M51: 0.2797871719 | N51: =IF(ABS($K51-$C$8-Parameters!$C$21)>Parameters!$C$22,-100,IF($K51-$C$8-Parameters!$C$21<-Parameters!$C$23,Parameters!$C$24 + Parameters!$C$25 / (Parameters!$C$23 - Parameters!$C$22) * (($K51-$C$8-Parameters!$C$21) + Parameters!$C$23),IF($K51-$C$8-Parameters!$C$21<Parameters!$C$23,Parameters!$C$24,Parameters!$C$24 - Parameters!$C$25 / (Parameters!$C$23 - Parameters!$C$22) * (($K51-$C$8-Parameters!$C$21) - Parameters!$C$23)))) -> -100 | P51: 0.44 | Q51: 0 | R51: 0 | S51: =IF(ABS($K51-$C$8-Parameters!$C$21)>Parameters!$C$22,0,SQRT(Parameters!$C$22^2-($K51-$C$8-Parameters!$C$21)^2)) -> 0 | T51: =IF(ABS($K51-$C$8-Parameters!$C$21)>Parameters!$C$22,0,-SQRT(Parameters!$C$22^2-($K51-$C$8-Parameters!$C$21)^2)) -> 0
I52: 0.1993286308 | J52: 0.06170778986 | K52: 0.45 | L52: 1.283222508 | M52: 0.2857313386 | N52: =IF(ABS($K52-$C$8-Parameters!$C$21)>Parameters!$C$22,-100,IF($K52-$C$8-Parameters!$C$21<-Parameters!$C$23,Parameters!$C$24 + Parameters!$C$25 / (Parameters!$C$23 - Parameters!$C$22) * (($K52-$C$8-Parameters!$C$21) + Parameters!$C$23),IF($K52-$C$8-Parameters!$C$21<Parameters!$C$23,Parameters!$C$24,Parameters!$C$24 - Parameters!$C$25 / (Parameters!$C$23 - Parameters!$C$22) * (($K52-$C$8-Parameters!$C$21) - Parameters!$C$23)))) -> -100 | P52: 0.45 | Q52: 0 | R52: 0 | S52: =IF(ABS($K52-$C$8-Parameters!$C$21)>Parameters!$C$22,0,SQRT(Parameters!$C$22^2-($K52-$C$8-Parameters!$C$21)^2)) -> 0 | T52: =IF(ABS($K52-$C$8-Parameters!$C$21)>Parameters!$C$22,0,-SQRT(Parameters!$C$22^2-($K52-$C$8-Parameters!$C$21)^2)) -> 0
I53: 0.2037581559 | J53: 0.06307907408 | K53: 0.46 | L53: 1.30731606 | M53: 0.2916570771 | N53: =IF(ABS($K53-$C$8-Parameters!$C$21)>Parameters!$C$22,-100,IF($K53-$C$8-Parameters!$C$21<-Parameters!$C$23,Parameters!$C$24 + Parameters!$C$25 / (Parameters!$C$23 - Parameters!$C$22) * (($K53-$C$8-Parameters!$C$21) + Parameters!$C$23),IF($K53-$C$8-Parameters!$C$21<Parameters!$C$23,Parameters!$C$24,Parameters!$C$24 - Parameters!$C$25 / (Parameters!$C$23 - Parameters!$C$22) * (($K53-$C$8-Parameters!$C$21) - Parameters!$C$23)))) -> -100 | P53: 0.46 | Q53: 0 | R53: 0 | S53: =IF(ABS($K53-$C$8-Parameters!$C$21)>Parameters!$C$22,0,SQRT(Parameters!$C$22^2-($K53-$C$8-Parameters!$C$21)^2)) -> 0 | T53: =IF(ABS($K53-$C$8-Parameters!$C$21)>Parameters!$C$22,0,-SQRT(Parameters!$C$22^2-($K53-$C$8-Parameters!$C$21)^2)) -> 0
I54: 0.208187681 | J54: 0.0644503583 | K54: 0.47 | L54: 1.331217328 | M54: 0.2975643875 | N54: =IF(ABS($K54-$C$8-Parameters!$C$21)>Parameters!$C$22,-100,IF($K54-$C$8-Parameters!$C$21<-Parameters!$C$23,Parameters!$C$24 + Parameters!$C$25 / (Parameters!$C$23 - Parameters!$C$22) * (($K54-$C$8-Parameters!$C$21) + Parameters!$C$23),IF($K54-$C$8-Parameters!$C$21<Parameters!$C$23,Parameters!$C$24,Parameters!$C$24 - Parameters!$C$25 / (Parameters!$C$23 - Parameters!$C$22) * (($K54-$C$8-Parameters!$C$21) - Parameters!$C$23)))) -> -100 | P54: 0.47 | Q54: 0 | R54: 0 | S54: =IF(ABS($K54-$C$8-Parameters!$C$21)>Parameters!$C$22,0,SQRT(Parameters!$C$22^2-($K54-$C$8-Parameters!$C$21)^2)) -> 0 | T54: =IF(ABS($K54-$C$8-Parameters!$C$21)>Parameters!$C$22,0,-SQRT(Parameters!$C$22^2-($K54-$C$8-Parameters!$C$21)^2)) -> 0
I55: 0.2126172062 | J55: 0.06582164252 | K55: 0.48 | L55: 1.354926314 | M55: 0.3034532698 | N55: =IF(ABS($K55-$C$8-Parameters!$C$21)>Parameters!$C$22,-100,IF($K55-$C$8-Parameters!$C$21<-Parameters!$C$23,Parameters!$C$24 + Parameters!$C$25 / (Parameters!$C$23 - Parameters!$C$22) * (($K55-$C$8-Parameters!$C$21) + Parameters!$C$23),IF($K55-$C$8-Parameters!$C$21<Parameters!$C$23,Parameters!$C$24,Parameters!$C$24 - Parameters!$C$25 / (Parameters!$C$23 - Parameters!$C$22) * (($K55-$C$8-Parameters!$C$21) - Parameters!$C$23)))) -> -100 | P55: 0.48 | Q55: 0 | R55: 0 | S55: =IF(ABS($K55-$C$8-Parameters!$C$21)>Parameters!$C$22,0,SQRT(Parameters!$C$22^2-($K55-$C$8-Parameters!$C$21)^2)) -> 0 | T55: =IF(ABS($K55-$C$8-Parameters!$C$21)>Parameters!$C$22,0,-SQRT(Parameters!$C$22^2-($K55-$C$8-Parameters!$C$21)^2)) -> 0
I56: 0.2170467313 | J56: 0.06719292674 | K56: 0.49 | L56: 1.378443018 | M56: 0.309323724 | N56: =IF(ABS($K56-$C$8-Parameters!$C$21)>Parameters!$C$22,-100,IF($K56-$C$8-Parameters!$C$21<-Parameters!$C$23,Parameters!$C$24 + Parameters!$C$25 / (Parameters!$C$23 - Parameters!$C$22) * (($K56-$C$8-Parameters!$C$21) + Parameters!$C$23),IF($K56-$C$8-Parameters!$C$21<Parameters!$C$23,Parameters!$C$24,Parameters!$C$24 - Parameters!$C$25 / (Parameters!$C$23 - Parameters!$C$22) * (($K56-$C$8-Parameters!$C$21) - Parameters!$C$23)))) -> -100 | P56: 0.49 | Q56: 0 | R56: 0 | S56: =IF(ABS($K56-$C$8-Parameters!$C$21)>Parameters!$C$22,0,SQRT(Parameters!$C$22^2-($K56-$C$8-Parameters!$C$21)^2)) -> 0 | T56: =IF(ABS($K56-$C$8-Parameters!$C$21)>Parameters!$C$22,0,-SQRT(Parameters!$C$22^2-($K56-$C$8-Parameters!$C$21)^2)) -> 0
A57: Vehicle | B57: High Angle | C57: Low Angle | I57: 0.2214762564 | J57: 0.06856421095 | K57: 0.5 | L57: 1.401767438 | M57: 0.3151757501 | N57: =IF(ABS($K57-$C$8-Parameters!$C$21)>Parameters!$C$22,-100,IF($K57-$C$8-Parameters!$C$21<-Parameters!$C$23,Parameters!$C$24 + Parameters!$C$25 / (Parameters!$C$23 - Parameters!$C$22) * (($K57-$C$8-Parameters!$C$21) + Parameters!$C$23),IF($K57-$C$8-Parameters!$C$21<Parameters!$C$23,Parameters!$C$24,Parameters!$C$24 - Parameters!$C$25 / (Parameters!$C$23 - Parameters!$C$22) * (($K57-$C$8-Parameters!$C$21) - Parameters!$C$23)))) -> -100 | P57: 0.5 | Q57: 0 | R57: 0 | S57: =IF(ABS($K57-$C$8-Parameters!$C$21)>Parameters!$C$22,0,SQRT(Parameters!$C$22^2-($K57-$C$8-Parameters!$C$21)^2)) -> 0 | T57: =IF(ABS($K57-$C$8-Parameters!$C$21)>Parameters!$C$22,0,-SQRT(Parameters!$C$22^2-($K57-$C$8-Parameters!$C$21)^2)) -> 0
A58: vx | B58: =C5*COS(C11) -> 1.732050808 | C58: =B58 -> 1.732050808 | I58: 0.2259057816 | J58: 0.06993549517 | K58: 0.51 | L58: 1.424899576 | M58: 0.321009348 | N58: =IF(ABS($K58-$C$8-Parameters!$C$21)>Parameters!$C$22,-100,IF($K58-$C$8-Parameters!$C$21<-Parameters!$C$23,Parameters!$C$24 + Parameters!$C$25 / (Parameters!$C$23 - Parameters!$C$22) * (($K58-$C$8-Parameters!$C$21) + Parameters!$C$23),IF($K58-$C$8-Parameters!$C$21<Parameters!$C$23,Parameters!$C$24,Parameters!$C$24 - Parameters!$C$25 / (Parameters!$C$23 - Parameters!$C$22) * (($K58-$C$8-Parameters!$C$21) - Parameters!$C$23)))) -> -100 | P58: 0.51 | Q58: 0 | R58: 0 | S58: =IF(ABS($K58-$C$8-Parameters!$C$21)>Parameters!$C$22,0,SQRT(Parameters!$C$22^2-($K58-$C$8-Parameters!$C$21)^2)) -> 0 | T58: =IF(ABS($K58-$C$8-Parameters!$C$21)>Parameters!$C$22,0,-SQRT(Parameters!$C$22^2-($K58-$C$8-Parameters!$C$21)^2)) -> 0
A59: vy | B59: 0 | C59: 0 | I59: 0.2303353067 | J59: 0.07130677939 | K59: 0.52 | L59: 1.44783943 | M59: 0.3268245178 | N59: =IF(ABS($K59-$C$8-Parameters!$C$21)>Parameters!$C$22,-100,IF($K59-$C$8-Parameters!$C$21<-Parameters!$C$23,Parameters!$C$24 + Parameters!$C$25 / (Parameters!$C$23 - Parameters!$C$22) * (($K59-$C$8-Parameters!$C$21) + Parameters!$C$23),IF($K59-$C$8-Parameters!$C$21<Parameters!$C$23,Parameters!$C$24,Parameters!$C$24 - Parameters!$C$25 / (Parameters!$C$23 - Parameters!$C$22) * (($K59-$C$8-Parameters!$C$21) - Parameters!$C$23)))) -> -100 | P59: 0.52 | Q59: 0 | R59: 0 | S59: =IF(ABS($K59-$C$8-Parameters!$C$21)>Parameters!$C$22,0,SQRT(Parameters!$C$22^2-($K59-$C$8-Parameters!$C$21)^2)) -> 0 | T59: =IF(ABS($K59-$C$8-Parameters!$C$21)>Parameters!$C$22,0,-SQRT(Parameters!$C$22^2-($K59-$C$8-Parameters!$C$21)^2)) -> 0
A60: vz | B60: =C5*SIN(C11) -> 1 | C60: =B60 -> 1 | I60: 0.2347648318 | J60: 0.07267806361 | K60: 0.53 | L60: 1.470587002 | M60: 0.3326212595 | N60: =IF(ABS($K60-$C$8-Parameters!$C$21)>Parameters!$C$22,-100,IF($K60-$C$8-Parameters!$C$21<-Parameters!$C$23,Parameters!$C$24 + Parameters!$C$25 / (Parameters!$C$23 - Parameters!$C$22) * (($K60-$C$8-Parameters!$C$21) + Parameters!$C$23),IF($K60-$C$8-Parameters!$C$21<Parameters!$C$23,Parameters!$C$24,Parameters!$C$24 - Parameters!$C$25 / (Parameters!$C$23 - Parameters!$C$22) * (($K60-$C$8-Parameters!$C$21) - Parameters!$C$23)))) -> -100 | P60: 0.53 | Q60: 0 | R60: 0 | S60: =IF(ABS($K60-$C$8-Parameters!$C$21)>Parameters!$C$22,0,SQRT(Parameters!$C$22^2-($K60-$C$8-Parameters!$C$21)^2)) -> 0 | T60: =IF(ABS($K60-$C$8-Parameters!$C$21)>Parameters!$C$22,0,-SQRT(Parameters!$C$22^2-($K60-$C$8-Parameters!$C$21)^2)) -> 0
I61: 0.2391943569 | J61: 0.07404934783 | K61: 0.54 | L61: 1.493142292 | M61: 0.3383995731 | N61: =IF(ABS($K61-$C$8-Parameters!$C$21)>Parameters!$C$22,-100,IF($K61-$C$8-Parameters!$C$21<-Parameters!$C$23,Parameters!$C$24 + Parameters!$C$25 / (Parameters!$C$23 - Parameters!$C$22) * (($K61-$C$8-Parameters!$C$21) + Parameters!$C$23),IF($K61-$C$8-Parameters!$C$21<Parameters!$C$23,Parameters!$C$24,Parameters!$C$24 - Parameters!$C$25 / (Parameters!$C$23 - Parameters!$C$22) * (($K61-$C$8-Parameters!$C$21) - Parameters!$C$23)))) -> -100 | P61: 0.54 | Q61: 0 | R61: 0 | S61: =IF(ABS($K61-$C$8-Parameters!$C$21)>Parameters!$C$22,0,SQRT(Parameters!$C$22^2-($K61-$C$8-Parameters!$C$21)^2)) -> 0 | T61: =IF(ABS($K61-$C$8-Parameters!$C$21)>Parameters!$C$22,0,-SQRT(Parameters!$C$22^2-($K61-$C$8-Parameters!$C$21)^2)) -> 0
A62: Cannon | I62: 0.2436238821 | J62: 0.07542063205 | K62: 0.55 | L62: 1.515505298 | M62: 0.3441594586 | N62: =IF(ABS($K62-$C$8-Parameters!$C$21)>Parameters!$C$22,-100,IF($K62-$C$8-Parameters!$C$21<-Parameters!$C$23,Parameters!$C$24 + Parameters!$C$25 / (Parameters!$C$23 - Parameters!$C$22) * (($K62-$C$8-Parameters!$C$21) + Parameters!$C$23),IF($K62-$C$8-Parameters!$C$21<Parameters!$C$23,Parameters!$C$24,Parameters!$C$24 - Parameters!$C$25 / (Parameters!$C$23 - Parameters!$C$22) * (($K62-$C$8-Parameters!$C$21) - Parameters!$C$23)))) -> -100 | P62: 0.55 | Q62: 0 | R62: 0 | S62: =IF(ABS($K62-$C$8-Parameters!$C$21)>Parameters!$C$22,0,SQRT(Parameters!$C$22^2-($K62-$C$8-Parameters!$C$21)^2)) -> 0 | T62: =IF(ABS($K62-$C$8-Parameters!$C$21)>Parameters!$C$22,0,-SQRT(Parameters!$C$22^2-($K62-$C$8-Parameters!$C$21)^2)) -> 0
A63: vx | B63: =IF(F1=1,B21,C2*COS(C12)*COS(C13)) -> 0.5255275354 | C63: =IF(1=F1,C21,B63) -> 5.560383438 | I63: 0.2480534072 | J63: 0.07679191627 | K63: 0.56 | L63: 1.537676022 | M63: 0.3499009159 | N63: =IF(ABS($K63-$C$8-Parameters!$C$21)>Parameters!$C$22,-100,IF($K63-$C$8-Parameters!$C$21<-Parameters!$C$23,Parameters!$C$24 + Parameters!$C$25 / (Parameters!$C$23 - Parameters!$C$22) * (($K63-$C$8-Parameters!$C$21) + Parameters!$C$23),IF($K63-$C$8-Parameters!$C$21<Parameters!$C$23,Parameters!$C$24,Parameters!$C$24 - Parameters!$C$25 / (Parameters!$C$23 - Parameters!$C$22) * (($K63-$C$8-Parameters!$C$21) - Parameters!$C$23)))) -> -100 | P63: 0.56 | Q63: 0 | R63: 0 | S63: =IF(ABS($K63-$C$8-Parameters!$C$21)>Parameters!$C$22,0,SQRT(Parameters!$C$22^2-($K63-$C$8-Parameters!$C$21)^2)) -> 0 | T63: =IF(ABS($K63-$C$8-Parameters!$C$21)>Parameters!$C$22,0,-SQRT(Parameters!$C$22^2-($K63-$C$8-Parameters!$C$21)^2)) -> 0
A64: vy | B64: =IF(1=F1,B22,C2*SIN(C12)) -> 7.414433276 | C64: =IF(1=F1,C22,B64) -> 4.9327615 | I64: 0.2524829323 | J64: 0.07816320049 | K64: 0.57 | L64: 1.559654463 | M64: 0.3556239452 | N64: =IF(ABS($K64-$C$8-Parameters!$C$21)>Parameters!$C$22,-100,IF($K64-$C$8-Parameters!$C$21<-Parameters!$C$23,Parameters!$C$24 + Parameters!$C$25 / (Parameters!$C$23 - Parameters!$C$22) * (($K64-$C$8-Parameters!$C$21) + Parameters!$C$23),IF($K64-$C$8-Parameters!$C$21<Parameters!$C$23,Parameters!$C$24,Parameters!$C$24 - Parameters!$C$25 / (Parameters!$C$23 - Parameters!$C$22) * (($K64-$C$8-Parameters!$C$21) - Parameters!$C$23)))) -> -100 | P64: 0.57 | Q64: 0 | R64: 0 | S64: =IF(ABS($K64-$C$8-Parameters!$C$21)>Parameters!$C$22,0,SQRT(Parameters!$C$22^2-($K64-$C$8-Parameters!$C$21)^2)) -> 0 | T64: =IF(ABS($K64-$C$8-Parameters!$C$21)>Parameters!$C$22,0,-SQRT(Parameters!$C$22^2-($K64-$C$8-Parameters!$C$21)^2)) -> 0
A65: vz | B65: =IF(1=F1,B23,C2*COS(C12)*SIN(C13)) -> -1 | C65: =C23 -> -1 | I65: 0.2569124575 | J65: 0.07953448471 | K65: 0.58 | L65: 1.581440621 | M65: 0.3613285463 | N65: =IF(ABS($K65-$C$8-Parameters!$C$21)>Parameters!$C$22,-100,IF($K65-$C$8-Parameters!$C$21<-Parameters!$C$23,Parameters!$C$24 + Parameters!$C$25 / (Parameters!$C$23 - Parameters!$C$22) * (($K65-$C$8-Parameters!$C$21) + Parameters!$C$23),IF($K65-$C$8-Parameters!$C$21<Parameters!$C$23,Parameters!$C$24,Parameters!$C$24 - Parameters!$C$25 / (Parameters!$C$23 - Parameters!$C$22) * (($K65-$C$8-Parameters!$C$21) - Parameters!$C$23)))) -> -100 | P65: 0.58 | Q65: 0 | R65: 0 | S65: =IF(ABS($K65-$C$8-Parameters!$C$21)>Parameters!$C$22,0,SQRT(Parameters!$C$22^2-($K65-$C$8-Parameters!$C$21)^2)) -> 0 | T65: =IF(ABS($K65-$C$8-Parameters!$C$21)>Parameters!$C$22,0,-SQRT(Parameters!$C$22^2-($K65-$C$8-Parameters!$C$21)^2)) -> 0
I66: 0.2613419826 | J66: 0.08090576893 | K66: 0.59 | L66: 1.603034496 | M66: 0.3670147192 | N66: =IF(ABS($K66-$C$8-Parameters!$C$21)>Parameters!$C$22,-100,IF($K66-$C$8-Parameters!$C$21<-Parameters!$C$23,Parameters!$C$24 + Parameters!$C$25 / (Parameters!$C$23 - Parameters!$C$22) * (($K66-$C$8-Parameters!$C$21) + Parameters!$C$23),IF($K66-$C$8-Parameters!$C$21<Parameters!$C$23,Parameters!$C$24,Parameters!$C$24 - Parameters!$C$25 / (Parameters!$C$23 - Parameters!$C$22) * (($K66-$C$8-Parameters!$C$21) - Parameters!$C$23)))) -> -100 | P66: 0.59 | Q66: 0 | R66: 0 | S66: =IF(ABS($K66-$C$8-Parameters!$C$21)>Parameters!$C$22,0,SQRT(Parameters!$C$22^2-($K66-$C$8-Parameters!$C$21)^2)) -> 0 | T66: =IF(ABS($K66-$C$8-Parameters!$C$21)>Parameters!$C$22,0,-SQRT(Parameters!$C$22^2-($K66-$C$8-Parameters!$C$21)^2)) -> 0
A67: Total | I67: 0.2657715077 | J67: 0.08227705315 | K67: 0.6 | L67: 1.624436089 | M67: 0.3726824641 | N67: =IF(ABS($K67-$C$8-Parameters!$C$21)>Parameters!$C$22,-100,IF($K67-$C$8-Parameters!$C$21<-Parameters!$C$23,Parameters!$C$24 + Parameters!$C$25 / (Parameters!$C$23 - Parameters!$C$22) * (($K67-$C$8-Parameters!$C$21) + Parameters!$C$23),IF($K67-$C$8-Parameters!$C$21<Parameters!$C$23,Parameters!$C$24,Parameters!$C$24 - Parameters!$C$25 / (Parameters!$C$23 - Parameters!$C$22) * (($K67-$C$8-Parameters!$C$21) - Parameters!$C$23)))) -> -100 | P67: 0.6 | Q67: 0 | R67: 0 | S67: =IF(ABS($K67-$C$8-Parameters!$C$21)>Parameters!$C$22,0,SQRT(Parameters!$C$22^2-($K67-$C$8-Parameters!$C$21)^2)) -> 0 | T67: =IF(ABS($K67-$C$8-Parameters!$C$21)>Parameters!$C$22,0,-SQRT(Parameters!$C$22^2-($K67-$C$8-Parameters!$C$21)^2)) -> 0
A68: vx | B68: =B58+B63 -> 2.257578343 | C68: =C58+C63 -> 7.292434246 | I68: 0.2702010329 | J68: 0.08364833736 | K68: 0.61 | L68: 1.645645398 | M68: 0.3783317808 | N68: =IF(ABS($K68-$C$8-Parameters!$C$21)>Parameters!$C$22,-100,IF($K68-$C$8-Parameters!$C$21<-Parameters!$C$23,Parameters!$C$24 + Parameters!$C$25 / (Parameters!$C$23 - Parameters!$C$22) * (($K68-$C$8-Parameters!$C$21) + Parameters!$C$23),IF($K68-$C$8-Parameters!$C$21<Parameters!$C$23,Parameters!$C$24,Parameters!$C$24 - Parameters!$C$25 / (Parameters!$C$23 - Parameters!$C$22) * (($K68-$C$8-Parameters!$C$21) - Parameters!$C$23)))) -> -100 | P68: 0.61 | Q68: 0 | R68: 0 | S68: =IF(ABS($K68-$C$8-Parameters!$C$21)>Parameters!$C$22,0,SQRT(Parameters!$C$22^2-($K68-$C$8-Parameters!$C$21)^2)) -> 0 | T68: =IF(ABS($K68-$C$8-Parameters!$C$21)>Parameters!$C$22,0,-SQRT(Parameters!$C$22^2-($K68-$C$8-Parameters!$C$21)^2)) -> 0
A69: vy | B69: =B59+B64 -> 7.414433276 | C69: 4.9327615 | I69: 0.274630558 | J69: 0.08501962158 | K69: 0.62 | L69: 1.666662425 | M69: 0.3839626695 | N69: =IF(ABS($K69-$C$8-Parameters!$C$21)>Parameters!$C$22,-100,IF($K69-$C$8-Parameters!$C$21<-Parameters!$C$23,Parameters!$C$24 + Parameters!$C$25 / (Parameters!$C$23 - Parameters!$C$22) * (($K69-$C$8-Parameters!$C$21) + Parameters!$C$23),IF($K69-$C$8-Parameters!$C$21<Parameters!$C$23,Parameters!$C$24,Parameters!$C$24 - Parameters!$C$25 / (Parameters!$C$23 - Parameters!$C$22) * (($K69-$C$8-Parameters!$C$21) - Parameters!$C$23)))) -> -100 | P69: 0.62 | Q69: 0 | R69: 0 | S69: =IF(ABS($K69-$C$8-Parameters!$C$21)>Parameters!$C$22,0,SQRT(Parameters!$C$22^2-($K69-$C$8-Parameters!$C$21)^2)) -> 0 | T69: =IF(ABS($K69-$C$8-Parameters!$C$21)>Parameters!$C$22,0,-SQRT(Parameters!$C$22^2-($K69-$C$8-Parameters!$C$21)^2)) -> 0
A70: vz | B70: 0 | C70: 0 | I70: 0.2790600831 | J70: 0.0863909058 | K70: 0.63 | L70: 1.687487169 | M70: 0.38957513 | N70: =IF(ABS($K70-$C$8-Parameters!$C$21)>Parameters!$C$22,-100,IF($K70-$C$8-Parameters!$C$21<-Parameters!$C$23,Parameters!$C$24 + Parameters!$C$25 / (Parameters!$C$23 - Parameters!$C$22) * (($K70-$C$8-Parameters!$C$21) + Parameters!$C$23),IF($K70-$C$8-Parameters!$C$21<Parameters!$C$23,Parameters!$C$24,Parameters!$C$24 - Parameters!$C$25 / (Parameters!$C$23 - Parameters!$C$22) * (($K70-$C$8-Parameters!$C$21) - Parameters!$C$23)))) -> -100 | P70: 0.63 | Q70: 0 | R70: 0 | S70: =IF(ABS($K70-$C$8-Parameters!$C$21)>Parameters!$C$22,0,SQRT(Parameters!$C$22^2-($K70-$C$8-Parameters!$C$21)^2)) -> 0 | T70: =IF(ABS($K70-$C$8-Parameters!$C$21)>Parameters!$C$22,0,-SQRT(Parameters!$C$22^2-($K70-$C$8-Parameters!$C$21)^2)) -> 0
I71: 0.2834896082 | J71: 0.08776219002 | K71: 0.64 | L71: 1.708119631 | M71: 0.3951691623 | N71: =IF(ABS($K71-$C$8-Parameters!$C$21)>Parameters!$C$22,-100,IF($K71-$C$8-Parameters!$C$21<-Parameters!$C$23,Parameters!$C$24 + Parameters!$C$25 / (Parameters!$C$23 - Parameters!$C$22) * (($K71-$C$8-Parameters!$C$21) + Parameters!$C$23),IF($K71-$C$8-Parameters!$C$21<Parameters!$C$23,Parameters!$C$24,Parameters!$C$24 - Parameters!$C$25 / (Parameters!$C$23 - Parameters!$C$22) * (($K71-$C$8-Parameters!$C$21) - Parameters!$C$23)))) -> -100 | P71: 0.64 | Q71: 0 | R71: 0 | S71: =IF(ABS($K71-$C$8-Parameters!$C$21)>Parameters!$C$22,0,SQRT(Parameters!$C$22^2-($K71-$C$8-Parameters!$C$21)^2)) -> 0 | T71: =IF(ABS($K71-$C$8-Parameters!$C$21)>Parameters!$C$22,0,-SQRT(Parameters!$C$22^2-($K71-$C$8-Parameters!$C$21)^2)) -> 0
A72: check d calcualtion | B72: =B20*B68 -> 3 | C72: =C20*C68 -> 3 | I72: =K72/$L$2 -> 0.2879191334 | J72: =K72/$M$2 -> 0.08913347424 | K72: 0.65 | L72: =L$3*I72-0.5*$C$9*I72^2 -> 1.728559809 | M72: =M$3*J72-0.5*$C$9*J72^2 -> 0.4007447666 | N72: =IF(ABS($K72-$C$8-Parameters!$C$21)>Parameters!$C$22,-100,IF($K72-$C$8-Parameters!$C$21<-Parameters!$C$23,Parameters!$C$24 + Parameters!$C$25 / (Parameters!$C$23 - Parameters!$C$22) * (($K72-$C$8-Parameters!$C$21) + Parameters!$C$23),IF($K72-$C$8-Parameters!$C$21<Parameters!$C$23,Parameters!$C$24,Parameters!$C$24 - Parameters!$C$25 / (Parameters!$C$23 - Parameters!$C$22) * (($K72-$C$8-Parameters!$C$21) - Parameters!$C$23)))) -> -100 | P72: =K72 -> 0.65 | Q72: =$I72*Q$4 -> 0 | R72: 0 | S72: =IF(ABS($K72-$C$8-Parameters!$C$21)>Parameters!$C$22,0,SQRT(Parameters!$C$22^2-($K72-$C$8-Parameters!$C$21)^2)) -> 0 | T72: =IF(ABS($K72-$C$8-Parameters!$C$21)>Parameters!$C$22,0,-SQRT(Parameters!$C$22^2-($K72-$C$8-Parameters!$C$21)^2)) -> 0
A73: check h calculation | B73: =B69*B20-0.5*$C$9*B20^2 -> 1.2 | C73: =C69*C20-0.5*$C$9*C20^2 -> 1.2 | I73: 0.2923486585 | J73: 0.09050475846 | K73: =K72+$K$1 -> 0.66 | L73: 1.748807705 | M73: 0.4063019427 | N73: =IF(ABS($K73-$C$8-Parameters!$C$21)>Parameters!$C$22,-100,IF($K73-$C$8-Parameters!$C$21<-Parameters!$C$23,Parameters!$C$24 + Parameters!$C$25 / (Parameters!$C$23 - Parameters!$C$22) * (($K73-$C$8-Parameters!$C$21) + Parameters!$C$23),IF($K73-$C$8-Parameters!$C$21<Parameters!$C$23,Parameters!$C$24,Parameters!$C$24 - Parameters!$C$25 / (Parameters!$C$23 - Parameters!$C$22) * (($K73-$C$8-Parameters!$C$21) - Parameters!$C$23)))) -> -100 | P73: 0.66 | Q73: 0 | R73: 0 | S73: =IF(ABS($K73-$C$8-Parameters!$C$21)>Parameters!$C$22,0,SQRT(Parameters!$C$22^2-($K73-$C$8-Parameters!$C$21)^2)) -> 0 | T73: =IF(ABS($K73-$C$8-Parameters!$C$21)>Parameters!$C$22,0,-SQRT(Parameters!$C$22^2-($K73-$C$8-Parameters!$C$21)^2)) -> 0
I74: 0.2967781836 | J74: 0.09187604268 | K74: 0.67 | L74: 1.768863318 | M74: 0.4118406908 | N74: =IF(ABS($K74-$C$8-Parameters!$C$21)>Parameters!$C$22,-100,IF($K74-$C$8-Parameters!$C$21<-Parameters!$C$23,Parameters!$C$24 + Parameters!$C$25 / (Parameters!$C$23 - Parameters!$C$22) * (($K74-$C$8-Parameters!$C$21) + Parameters!$C$23),IF($K74-$C$8-Parameters!$C$21<Parameters!$C$23,Parameters!$C$24,Parameters!$C$24 - Parameters!$C$25 / (Parameters!$C$23 - Parameters!$C$22) * (($K74-$C$8-Parameters!$C$21) - Parameters!$C$23)))) -> -100 | P74: 0.67 | Q74: 0 | R74: 0 | S74: =IF(ABS($K74-$C$8-Parameters!$C$21)>Parameters!$C$22,0,SQRT(Parameters!$C$22^2-($K74-$C$8-Parameters!$C$21)^2)) -> 0 | T74: =IF(ABS($K74-$C$8-Parameters!$C$21)>Parameters!$C$22,0,-SQRT(Parameters!$C$22^2-($K74-$C$8-Parameters!$C$21)^2)) -> 0
I75: 0.3012077088 | J75: 0.0932473269 | K75: 0.68 | L75: 1.788726648 | M75: 0.4173610107 | N75: =IF(ABS($K75-$C$8-Parameters!$C$21)>Parameters!$C$22,-100,IF($K75-$C$8-Parameters!$C$21<-Parameters!$C$23,Parameters!$C$24 + Parameters!$C$25 / (Parameters!$C$23 - Parameters!$C$22) * (($K75-$C$8-Parameters!$C$21) + Parameters!$C$23),IF($K75-$C$8-Parameters!$C$21<Parameters!$C$23,Parameters!$C$24,Parameters!$C$24 - Parameters!$C$25 / (Parameters!$C$23 - Parameters!$C$22) * (($K75-$C$8-Parameters!$C$21) - Parameters!$C$23)))) -> -100 | P75: 0.68 | Q75: 0 | R75: 0 | S75: =IF(ABS($K75-$C$8-Parameters!$C$21)>Parameters!$C$22,0,SQRT(Parameters!$C$22^2-($K75-$C$8-Parameters!$C$21)^2)) -> 0 | T75: =IF(ABS($K75-$C$8-Parameters!$C$21)>Parameters!$C$22,0,-SQRT(Parameters!$C$22^2-($K75-$C$8-Parameters!$C$21)^2)) -> 0
I76: 0.3056372339 | J76: 0.09461861112 | K76: 0.69 | L76: 1.808397696 | M76: 0.4228629024 | N76: =IF(ABS($K76-$C$8-Parameters!$C$21)>Parameters!$C$22,-100,IF($K76-$C$8-Parameters!$C$21<-Parameters!$C$23,Parameters!$C$24 + Parameters!$C$25 / (Parameters!$C$23 - Parameters!$C$22) * (($K76-$C$8-Parameters!$C$21) + Parameters!$C$23),IF($K76-$C$8-Parameters!$C$21<Parameters!$C$23,Parameters!$C$24,Parameters!$C$24 - Parameters!$C$25 / (Parameters!$C$23 - Parameters!$C$22) * (($K76-$C$8-Parameters!$C$21) - Parameters!$C$23)))) -> -100 | P76: 0.69 | Q76: 0 | R76: 0 | S76: =IF(ABS($K76-$C$8-Parameters!$C$21)>Parameters!$C$22,0,SQRT(Parameters!$C$22^2-($K76-$C$8-Parameters!$C$21)^2)) -> 0 | T76: =IF(ABS($K76-$C$8-Parameters!$C$21)>Parameters!$C$22,0,-SQRT(Parameters!$C$22^2-($K76-$C$8-Parameters!$C$21)^2)) -> 0
I77: 0.310066759 | J77: 0.09598989534 | K77: 0.7 | L77: 1.82787646 | M77: 0.4283463661 | N77: =IF(ABS($K77-$C$8-Parameters!$C$21)>Parameters!$C$22,-100,IF($K77-$C$8-Parameters!$C$21<-Parameters!$C$23,Parameters!$C$24 + Parameters!$C$25 / (Parameters!$C$23 - Parameters!$C$22) * (($K77-$C$8-Parameters!$C$21) + Parameters!$C$23),IF($K77-$C$8-Parameters!$C$21<Parameters!$C$23,Parameters!$C$24,Parameters!$C$24 - Parameters!$C$25 / (Parameters!$C$23 - Parameters!$C$22) * (($K77-$C$8-Parameters!$C$21) - Parameters!$C$23)))) -> -100 | P77: 0.7 | Q77: 0 | R77: 0 | S77: =IF(ABS($K77-$C$8-Parameters!$C$21)>Parameters!$C$22,0,SQRT(Parameters!$C$22^2-($K77-$C$8-Parameters!$C$21)^2)) -> 0 | T77: =IF(ABS($K77-$C$8-Parameters!$C$21)>Parameters!$C$22,0,-SQRT(Parameters!$C$22^2-($K77-$C$8-Parameters!$C$21)^2)) -> 0
I78: 0.3144962841 | J78: 0.09736117955 | K78: 0.71 | L78: 1.847162942 | M78: 0.4338114016 | N78: =IF(ABS($K78-$C$8-Parameters!$C$21)>Parameters!$C$22,-100,IF($K78-$C$8-Parameters!$C$21<-Parameters!$C$23,Parameters!$C$24 + Parameters!$C$25 / (Parameters!$C$23 - Parameters!$C$22) * (($K78-$C$8-Parameters!$C$21) + Parameters!$C$23),IF($K78-$C$8-Parameters!$C$21<Parameters!$C$23,Parameters!$C$24,Parameters!$C$24 - Parameters!$C$25 / (Parameters!$C$23 - Parameters!$C$22) * (($K78-$C$8-Parameters!$C$21) - Parameters!$C$23)))) -> -100 | P78: 0.71 | Q78: 0 | R78: 0 | S78: =IF(ABS($K78-$C$8-Parameters!$C$21)>Parameters!$C$22,0,SQRT(Parameters!$C$22^2-($K78-$C$8-Parameters!$C$21)^2)) -> 0 | T78: =IF(ABS($K78-$C$8-Parameters!$C$21)>Parameters!$C$22,0,-SQRT(Parameters!$C$22^2-($K78-$C$8-Parameters!$C$21)^2)) -> 0
I79: 0.3189258093 | J79: 0.09873246377 | K79: 0.72 | L79: 1.866257141 | M79: 0.4392580091 | N79: =IF(ABS($K79-$C$8-Parameters!$C$21)>Parameters!$C$22,-100,IF($K79-$C$8-Parameters!$C$21<-Parameters!$C$23,Parameters!$C$24 + Parameters!$C$25 / (Parameters!$C$23 - Parameters!$C$22) * (($K79-$C$8-Parameters!$C$21) + Parameters!$C$23),IF($K79-$C$8-Parameters!$C$21<Parameters!$C$23,Parameters!$C$24,Parameters!$C$24 - Parameters!$C$25 / (Parameters!$C$23 - Parameters!$C$22) * (($K79-$C$8-Parameters!$C$21) - Parameters!$C$23)))) -> -100 | P79: 0.72 | Q79: 0 | R79: 0 | S79: =IF(ABS($K79-$C$8-Parameters!$C$21)>Parameters!$C$22,0,SQRT(Parameters!$C$22^2-($K79-$C$8-Parameters!$C$21)^2)) -> 0 | T79: =IF(ABS($K79-$C$8-Parameters!$C$21)>Parameters!$C$22,0,-SQRT(Parameters!$C$22^2-($K79-$C$8-Parameters!$C$21)^2)) -> 0
I80: 0.3233553344 | J80: 0.100103748 | K80: 0.73 | L80: 1.885159057 | M80: 0.4446861884 | N80: =IF(ABS($K80-$C$8-Parameters!$C$21)>Parameters!$C$22,-100,IF($K80-$C$8-Parameters!$C$21<-Parameters!$C$23,Parameters!$C$24 + Parameters!$C$25 / (Parameters!$C$23 - Parameters!$C$22) * (($K80-$C$8-Parameters!$C$21) + Parameters!$C$23),IF($K80-$C$8-Parameters!$C$21<Parameters!$C$23,Parameters!$C$24,Parameters!$C$24 - Parameters!$C$25 / (Parameters!$C$23 - Parameters!$C$22) * (($K80-$C$8-Parameters!$C$21) - Parameters!$C$23)))) -> -100 | P80: 0.73 | Q80: 0 | R80: 0 | S80: =IF(ABS($K80-$C$8-Parameters!$C$21)>Parameters!$C$22,0,SQRT(Parameters!$C$22^2-($K80-$C$8-Parameters!$C$21)^2)) -> 0 | T80: =IF(ABS($K80-$C$8-Parameters!$C$21)>Parameters!$C$22,0,-SQRT(Parameters!$C$22^2-($K80-$C$8-Parameters!$C$21)^2)) -> 0
I81: 0.3277848595 | J81: 0.1014750322 | K81: 0.74 | L81: 1.903868691 | M81: 0.4500959396 | N81: =IF(ABS($K81-$C$8-Parameters!$C$21)>Parameters!$C$22,-100,IF($K81-$C$8-Parameters!$C$21<-Parameters!$C$23,Parameters!$C$24 + Parameters!$C$25 / (Parameters!$C$23 - Parameters!$C$22) * (($K81-$C$8-Parameters!$C$21) + Parameters!$C$23),IF($K81-$C$8-Parameters!$C$21<Parameters!$C$23,Parameters!$C$24,Parameters!$C$24 - Parameters!$C$25 / (Parameters!$C$23 - Parameters!$C$22) * (($K81-$C$8-Parameters!$C$21) - Parameters!$C$23)))) -> -100 | P81: 0.74 | Q81: 0 | R81: 0 | S81: =IF(ABS($K81-$C$8-Parameters!$C$21)>Parameters!$C$22,0,SQRT(Parameters!$C$22^2-($K81-$C$8-Parameters!$C$21)^2)) -> 0 | T81: =IF(ABS($K81-$C$8-Parameters!$C$21)>Parameters!$C$22,0,-SQRT(Parameters!$C$22^2-($K81-$C$8-Parameters!$C$21)^2)) -> 0
I82: 0.3322143847 | J82: 0.1028463164 | K82: 0.75 | L82: 1.922386041 | M82: 0.4554872626 | N82: =IF(ABS($K82-$C$8-Parameters!$C$21)>Parameters!$C$22,-100,IF($K82-$C$8-Parameters!$C$21<-Parameters!$C$23,Parameters!$C$24 + Parameters!$C$25 / (Parameters!$C$23 - Parameters!$C$22) * (($K82-$C$8-Parameters!$C$21) + Parameters!$C$23),IF($K82-$C$8-Parameters!$C$21<Parameters!$C$23,Parameters!$C$24,Parameters!$C$24 - Parameters!$C$25 / (Parameters!$C$23 - Parameters!$C$22) * (($K82-$C$8-Parameters!$C$21) - Parameters!$C$23)))) -> -100 | P82: 0.75 | Q82: 0 | R82: 0 | S82: =IF(ABS($K82-$C$8-Parameters!$C$21)>Parameters!$C$22,0,SQRT(Parameters!$C$22^2-($K82-$C$8-Parameters!$C$21)^2)) -> 0 | T82: =IF(ABS($K82-$C$8-Parameters!$C$21)>Parameters!$C$22,0,-SQRT(Parameters!$C$22^2-($K82-$C$8-Parameters!$C$21)^2)) -> 0
I83: 0.3366439098 | J83: 0.1042176007 | K83: 0.76 | L83: 1.940711109 | M83: 0.4608601576 | N83: =IF(ABS($K83-$C$8-Parameters!$C$21)>Parameters!$C$22,-100,IF($K83-$C$8-Parameters!$C$21<-Parameters!$C$23,Parameters!$C$24 + Parameters!$C$25 / (Parameters!$C$23 - Parameters!$C$22) * (($K83-$C$8-Parameters!$C$21) + Parameters!$C$23),IF($K83-$C$8-Parameters!$C$21<Parameters!$C$23,Parameters!$C$24,Parameters!$C$24 - Parameters!$C$25 / (Parameters!$C$23 - Parameters!$C$22) * (($K83-$C$8-Parameters!$C$21) - Parameters!$C$23)))) -> -100 | P83: 0.76 | Q83: 0 | R83: 0 | S83: =IF(ABS($K83-$C$8-Parameters!$C$21)>Parameters!$C$22,0,SQRT(Parameters!$C$22^2-($K83-$C$8-Parameters!$C$21)^2)) -> 0 | T83: =IF(ABS($K83-$C$8-Parameters!$C$21)>Parameters!$C$22,0,-SQRT(Parameters!$C$22^2-($K83-$C$8-Parameters!$C$21)^2)) -> 0
I84: 0.3410734349 | J84: 0.1055888849 | K84: 0.77 | L84: 1.958843894 | M84: 0.4662146244 | N84: =IF(ABS($K84-$C$8-Parameters!$C$21)>Parameters!$C$22,-100,IF($K84-$C$8-Parameters!$C$21<-Parameters!$C$23,Parameters!$C$24 + Parameters!$C$25 / (Parameters!$C$23 - Parameters!$C$22) * (($K84-$C$8-Parameters!$C$21) + Parameters!$C$23),IF($K84-$C$8-Parameters!$C$21<Parameters!$C$23,Parameters!$C$24,Parameters!$C$24 - Parameters!$C$25 / (Parameters!$C$23 - Parameters!$C$22) * (($K84-$C$8-Parameters!$C$21) - Parameters!$C$23)))) -> -100 | P84: 0.77 | Q84: 0 | R84: 0 | S84: =IF(ABS($K84-$C$8-Parameters!$C$21)>Parameters!$C$22,0,SQRT(Parameters!$C$22^2-($K84-$C$8-Parameters!$C$21)^2)) -> 0 | T84: =IF(ABS($K84-$C$8-Parameters!$C$21)>Parameters!$C$22,0,-SQRT(Parameters!$C$22^2-($K84-$C$8-Parameters!$C$21)^2)) -> 0
I85: 0.34550296 | J85: 0.1069601691 | K85: 0.78 | L85: 1.976784397 | M85: 0.4715506631 | N85: =IF(ABS($K85-$C$8-Parameters!$C$21)>Parameters!$C$22,-100,IF($K85-$C$8-Parameters!$C$21<-Parameters!$C$23,Parameters!$C$24 + Parameters!$C$25 / (Parameters!$C$23 - Parameters!$C$22) * (($K85-$C$8-Parameters!$C$21) + Parameters!$C$23),IF($K85-$C$8-Parameters!$C$21<Parameters!$C$23,Parameters!$C$24,Parameters!$C$24 - Parameters!$C$25 / (Parameters!$C$23 - Parameters!$C$22) * (($K85-$C$8-Parameters!$C$21) - Parameters!$C$23)))) -> -100 | P85: 0.78 | Q85: 0 | R85: 0 | S85: =IF(ABS($K85-$C$8-Parameters!$C$21)>Parameters!$C$22,0,SQRT(Parameters!$C$22^2-($K85-$C$8-Parameters!$C$21)^2)) -> 0 | T85: =IF(ABS($K85-$C$8-Parameters!$C$21)>Parameters!$C$22,0,-SQRT(Parameters!$C$22^2-($K85-$C$8-Parameters!$C$21)^2)) -> 0
I86: 0.3499324852 | J86: 0.1083314533 | K86: 0.79 | L86: 1.994532616 | M86: 0.4768682737 | N86: =IF(ABS($K86-$C$8-Parameters!$C$21)>Parameters!$C$22,-100,IF($K86-$C$8-Parameters!$C$21<-Parameters!$C$23,Parameters!$C$24 + Parameters!$C$25 / (Parameters!$C$23 - Parameters!$C$22) * (($K86-$C$8-Parameters!$C$21) + Parameters!$C$23),IF($K86-$C$8-Parameters!$C$21<Parameters!$C$23,Parameters!$C$24,Parameters!$C$24 - Parameters!$C$25 / (Parameters!$C$23 - Parameters!$C$22) * (($K86-$C$8-Parameters!$C$21) - Parameters!$C$23)))) -> -100 | P86: 0.79 | Q86: 0 | R86: 0 | S86: =IF(ABS($K86-$C$8-Parameters!$C$21)>Parameters!$C$22,0,SQRT(Parameters!$C$22^2-($K86-$C$8-Parameters!$C$21)^2)) -> 0 | T86: =IF(ABS($K86-$C$8-Parameters!$C$21)>Parameters!$C$22,0,-SQRT(Parameters!$C$22^2-($K86-$C$8-Parameters!$C$21)^2)) -> 0
I87: 0.3543620103 | J87: 0.1097027375 | K87: 0.8 | L87: 2.012088553 | M87: 0.4821674561 | N87: =IF(ABS($K87-$C$8-Parameters!$C$21)>Parameters!$C$22,-100,IF($K87-$C$8-Parameters!$C$21<-Parameters!$C$23,Parameters!$C$24 + Parameters!$C$25 / (Parameters!$C$23 - Parameters!$C$22) * (($K87-$C$8-Parameters!$C$21) + Parameters!$C$23),IF($K87-$C$8-Parameters!$C$21<Parameters!$C$23,Parameters!$C$24,Parameters!$C$24 - Parameters!$C$25 / (Parameters!$C$23 - Parameters!$C$22) * (($K87-$C$8-Parameters!$C$21) - Parameters!$C$23)))) -> -100 | P87: 0.8 | Q87: 0 | R87: 0 | S87: =IF(ABS($K87-$C$8-Parameters!$C$21)>Parameters!$C$22,0,SQRT(Parameters!$C$22^2-($K87-$C$8-Parameters!$C$21)^2)) -> 0 | T87: =IF(ABS($K87-$C$8-Parameters!$C$21)>Parameters!$C$22,0,-SQRT(Parameters!$C$22^2-($K87-$C$8-Parameters!$C$21)^2)) -> 0
I88: 0.3587915354 | J88: 0.1110740217 | K88: 0.81 | L88: 2.029452207 | M88: 0.4874482105 | N88: =IF(ABS($K88-$C$8-Parameters!$C$21)>Parameters!$C$22,-100,IF($K88-$C$8-Parameters!$C$21<-Parameters!$C$23,Parameters!$C$24 + Parameters!$C$25 / (Parameters!$C$23 - Parameters!$C$22) * (($K88-$C$8-Parameters!$C$21) + Parameters!$C$23),IF($K88-$C$8-Parameters!$C$21<Parameters!$C$23,Parameters!$C$24,Parameters!$C$24 - Parameters!$C$25 / (Parameters!$C$23 - Parameters!$C$22) * (($K88-$C$8-Parameters!$C$21) - Parameters!$C$23)))) -> -100 | P88: 0.81 | Q88: 0 | R88: 0 | S88: =IF(ABS($K88-$C$8-Parameters!$C$21)>Parameters!$C$22,0,SQRT(Parameters!$C$22^2-($K88-$C$8-Parameters!$C$21)^2)) -> 0 | T88: =IF(ABS($K88-$C$8-Parameters!$C$21)>Parameters!$C$22,0,-SQRT(Parameters!$C$22^2-($K88-$C$8-Parameters!$C$21)^2)) -> 0
I89: 0.3632210606 | J89: 0.112445306 | K89: 0.82 | L89: 2.046623578 | M89: 0.4927105367 | N89: =IF(ABS($K89-$C$8-Parameters!$C$21)>Parameters!$C$22,-100,IF($K89-$C$8-Parameters!$C$21<-Parameters!$C$23,Parameters!$C$24 + Parameters!$C$25 / (Parameters!$C$23 - Parameters!$C$22) * (($K89-$C$8-Parameters!$C$21) + Parameters!$C$23),IF($K89-$C$8-Parameters!$C$21<Parameters!$C$23,Parameters!$C$24,Parameters!$C$24 - Parameters!$C$25 / (Parameters!$C$23 - Parameters!$C$22) * (($K89-$C$8-Parameters!$C$21) - Parameters!$C$23)))) -> -100 | P89: 0.82 | Q89: 0 | R89: 0 | S89: =IF(ABS($K89-$C$8-Parameters!$C$21)>Parameters!$C$22,0,SQRT(Parameters!$C$22^2-($K89-$C$8-Parameters!$C$21)^2)) -> 0 | T89: =IF(ABS($K89-$C$8-Parameters!$C$21)>Parameters!$C$22,0,-SQRT(Parameters!$C$22^2-($K89-$C$8-Parameters!$C$21)^2)) -> 0
I90: 0.3676505857 | J90: 0.1138165902 | K90: 0.83 | L90: 2.063602666 | M90: 0.4979544348 | N90: =IF(ABS($K90-$C$8-Parameters!$C$21)>Parameters!$C$22,-100,IF($K90-$C$8-Parameters!$C$21<-Parameters!$C$23,Parameters!$C$24 + Parameters!$C$25 / (Parameters!$C$23 - Parameters!$C$22) * (($K90-$C$8-Parameters!$C$21) + Parameters!$C$23),IF($K90-$C$8-Parameters!$C$21<Parameters!$C$23,Parameters!$C$24,Parameters!$C$24 - Parameters!$C$25 / (Parameters!$C$23 - Parameters!$C$22) * (($K90-$C$8-Parameters!$C$21) - Parameters!$C$23)))) -> -100 | P90: 0.83 | Q90: 0 | R90: 0 | S90: =IF(ABS($K90-$C$8-Parameters!$C$21)>Parameters!$C$22,0,SQRT(Parameters!$C$22^2-($K90-$C$8-Parameters!$C$21)^2)) -> 0 | T90: =IF(ABS($K90-$C$8-Parameters!$C$21)>Parameters!$C$22,0,-SQRT(Parameters!$C$22^2-($K90-$C$8-Parameters!$C$21)^2)) -> 0
I91: 0.3720801108 | J91: 0.1151878744 | K91: 0.84 | L91: 2.080389472 | M91: 0.5031799048 | N91: =IF(ABS($K91-$C$8-Parameters!$C$21)>Parameters!$C$22,-100,IF($K91-$C$8-Parameters!$C$21<-Parameters!$C$23,Parameters!$C$24 + Parameters!$C$25 / (Parameters!$C$23 - Parameters!$C$22) * (($K91-$C$8-Parameters!$C$21) + Parameters!$C$23),IF($K91-$C$8-Parameters!$C$21<Parameters!$C$23,Parameters!$C$24,Parameters!$C$24 - Parameters!$C$25 / (Parameters!$C$23 - Parameters!$C$22) * (($K91-$C$8-Parameters!$C$21) - Parameters!$C$23)))) -> -100 | P91: 0.84 | Q91: 0 | R91: 0 | S91: =IF(ABS($K91-$C$8-Parameters!$C$21)>Parameters!$C$22,0,SQRT(Parameters!$C$22^2-($K91-$C$8-Parameters!$C$21)^2)) -> 0 | T91: =IF(ABS($K91-$C$8-Parameters!$C$21)>Parameters!$C$22,0,-SQRT(Parameters!$C$22^2-($K91-$C$8-Parameters!$C$21)^2)) -> 0
I92: 0.3765096359 | J92: 0.1165591586 | K92: 0.85 | L92: 2.096983994 | M92: 0.5083869466 | N92: =IF(ABS($K92-$C$8-Parameters!$C$21)>Parameters!$C$22,-100,IF($K92-$C$8-Parameters!$C$21<-Parameters!$C$23,Parameters!$C$24 + Parameters!$C$25 / (Parameters!$C$23 - Parameters!$C$22) * (($K92-$C$8-Parameters!$C$21) + Parameters!$C$23),IF($K92-$C$8-Parameters!$C$21<Parameters!$C$23,Parameters!$C$24,Parameters!$C$24 - Parameters!$C$25 / (Parameters!$C$23 - Parameters!$C$22) * (($K92-$C$8-Parameters!$C$21) - Parameters!$C$23)))) -> -100 | P92: 0.85 | Q92: 0 | R92: 0 | S92: =IF(ABS($K92-$C$8-Parameters!$C$21)>Parameters!$C$22,0,SQRT(Parameters!$C$22^2-($K92-$C$8-Parameters!$C$21)^2)) -> 0 | T92: =IF(ABS($K92-$C$8-Parameters!$C$21)>Parameters!$C$22,0,-SQRT(Parameters!$C$22^2-($K92-$C$8-Parameters!$C$21)^2)) -> 0
I93: 0.3809391611 | J93: 0.1179304428 | K93: 0.86 | L93: 2.113386234 | M93: 0.5135755604 | N93: =IF(ABS($K93-$C$8-Parameters!$C$21)>Parameters!$C$22,-100,IF($K93-$C$8-Parameters!$C$21<-Parameters!$C$23,Parameters!$C$24 + Parameters!$C$25 / (Parameters!$C$23 - Parameters!$C$22) * (($K93-$C$8-Parameters!$C$21) + Parameters!$C$23),IF($K93-$C$8-Parameters!$C$21<Parameters!$C$23,Parameters!$C$24,Parameters!$C$24 - Parameters!$C$25 / (Parameters!$C$23 - Parameters!$C$22) * (($K93-$C$8-Parameters!$C$21) - Parameters!$C$23)))) -> -100 | P93: 0.86 | Q93: 0 | R93: 0 | S93: =IF(ABS($K93-$C$8-Parameters!$C$21)>Parameters!$C$22,0,SQRT(Parameters!$C$22^2-($K93-$C$8-Parameters!$C$21)^2)) -> 0 | T93: =IF(ABS($K93-$C$8-Parameters!$C$21)>Parameters!$C$22,0,-SQRT(Parameters!$C$22^2-($K93-$C$8-Parameters!$C$21)^2)) -> 0
I94: 0.3853686862 | J94: 0.1193017271 | K94: 0.87 | L94: 2.129596192 | M94: 0.518745746 | N94: =IF(ABS($K94-$C$8-Parameters!$C$21)>Parameters!$C$22,-100,IF($K94-$C$8-Parameters!$C$21<-Parameters!$C$23,Parameters!$C$24 + Parameters!$C$25 / (Parameters!$C$23 - Parameters!$C$22) * (($K94-$C$8-Parameters!$C$21) + Parameters!$C$23),IF($K94-$C$8-Parameters!$C$21<Parameters!$C$23,Parameters!$C$24,Parameters!$C$24 - Parameters!$C$25 / (Parameters!$C$23 - Parameters!$C$22) * (($K94-$C$8-Parameters!$C$21) - Parameters!$C$23)))) -> -100 | P94: 0.87 | Q94: 0 | R94: 0 | S94: =IF(ABS($K94-$C$8-Parameters!$C$21)>Parameters!$C$22,0,SQRT(Parameters!$C$22^2-($K94-$C$8-Parameters!$C$21)^2)) -> 0 | T94: =IF(ABS($K94-$C$8-Parameters!$C$21)>Parameters!$C$22,0,-SQRT(Parameters!$C$22^2-($K94-$C$8-Parameters!$C$21)^2)) -> 0
I95: 0.3897982113 | J95: 0.1206730113 | K95: 0.88 | L95: 2.145613866 | M95: 0.5238975035 | N95: =IF(ABS($K95-$C$8-Parameters!$C$21)>Parameters!$C$22,-100,IF($K95-$C$8-Parameters!$C$21<-Parameters!$C$23,Parameters!$C$24 + Parameters!$C$25 / (Parameters!$C$23 - Parameters!$C$22) * (($K95-$C$8-Parameters!$C$21) + Parameters!$C$23),IF($K95-$C$8-Parameters!$C$21<Parameters!$C$23,Parameters!$C$24,Parameters!$C$24 - Parameters!$C$25 / (Parameters!$C$23 - Parameters!$C$22) * (($K95-$C$8-Parameters!$C$21) - Parameters!$C$23)))) -> -100 | P95: 0.88 | Q95: 0 | R95: 0 | S95: =IF(ABS($K95-$C$8-Parameters!$C$21)>Parameters!$C$22,0,SQRT(Parameters!$C$22^2-($K95-$C$8-Parameters!$C$21)^2)) -> 0 | T95: =IF(ABS($K95-$C$8-Parameters!$C$21)>Parameters!$C$22,0,-SQRT(Parameters!$C$22^2-($K95-$C$8-Parameters!$C$21)^2)) -> 0
I96: 0.3942277365 | J96: 0.1220442955 | K96: 0.89 | L96: 2.161439257 | M96: 0.5290308329 | N96: =IF(ABS($K96-$C$8-Parameters!$C$21)>Parameters!$C$22,-100,IF($K96-$C$8-Parameters!$C$21<-Parameters!$C$23,Parameters!$C$24 + Parameters!$C$25 / (Parameters!$C$23 - Parameters!$C$22) * (($K96-$C$8-Parameters!$C$21) + Parameters!$C$23),IF($K96-$C$8-Parameters!$C$21<Parameters!$C$23,Parameters!$C$24,Parameters!$C$24 - Parameters!$C$25 / (Parameters!$C$23 - Parameters!$C$22) * (($K96-$C$8-Parameters!$C$21) - Parameters!$C$23)))) -> -100 | P96: 0.89 | Q96: 0 | R96: 0 | S96: =IF(ABS($K96-$C$8-Parameters!$C$21)>Parameters!$C$22,0,SQRT(Parameters!$C$22^2-($K96-$C$8-Parameters!$C$21)^2)) -> 0 | T96: =IF(ABS($K96-$C$8-Parameters!$C$21)>Parameters!$C$22,0,-SQRT(Parameters!$C$22^2-($K96-$C$8-Parameters!$C$21)^2)) -> 0
I97: 0.3986572616 | J97: 0.1234155797 | K97: 0.9 | L97: 2.177072366 | M97: 0.5341457341 | N97: =IF(ABS($K97-$C$8-Parameters!$C$21)>Parameters!$C$22,-100,IF($K97-$C$8-Parameters!$C$21<-Parameters!$C$23,Parameters!$C$24 + Parameters!$C$25 / (Parameters!$C$23 - Parameters!$C$22) * (($K97-$C$8-Parameters!$C$21) + Parameters!$C$23),IF($K97-$C$8-Parameters!$C$21<Parameters!$C$23,Parameters!$C$24,Parameters!$C$24 - Parameters!$C$25 / (Parameters!$C$23 - Parameters!$C$22) * (($K97-$C$8-Parameters!$C$21) - Parameters!$C$23)))) -> -100 | P97: 0.9 | Q97: 0 | R97: 0 | S97: =IF(ABS($K97-$C$8-Parameters!$C$21)>Parameters!$C$22,0,SQRT(Parameters!$C$22^2-($K97-$C$8-Parameters!$C$21)^2)) -> 0 | T97: =IF(ABS($K97-$C$8-Parameters!$C$21)>Parameters!$C$22,0,-SQRT(Parameters!$C$22^2-($K97-$C$8-Parameters!$C$21)^2)) -> 0
I98: 0.4030867867 | J98: 0.1247868639 | K98: 0.91 | L98: 2.192513192 | M98: 0.5392422073 | N98: =IF(ABS($K98-$C$8-Parameters!$C$21)>Parameters!$C$22,-100,IF($K98-$C$8-Parameters!$C$21<-Parameters!$C$23,Parameters!$C$24 + Parameters!$C$25 / (Parameters!$C$23 - Parameters!$C$22) * (($K98-$C$8-Parameters!$C$21) + Parameters!$C$23),IF($K98-$C$8-Parameters!$C$21<Parameters!$C$23,Parameters!$C$24,Parameters!$C$24 - Parameters!$C$25 / (Parameters!$C$23 - Parameters!$C$22) * (($K98-$C$8-Parameters!$C$21) - Parameters!$C$23)))) -> -100 | P98: 0.91 | Q98: 0 | R98: 0 | S98: =IF(ABS($K98-$C$8-Parameters!$C$21)>Parameters!$C$22,0,SQRT(Parameters!$C$22^2-($K98-$C$8-Parameters!$C$21)^2)) -> 0 | T98: =IF(ABS($K98-$C$8-Parameters!$C$21)>Parameters!$C$22,0,-SQRT(Parameters!$C$22^2-($K98-$C$8-Parameters!$C$21)^2)) -> 0
I99: 0.4075163118 | J99: 0.1261581482 | K99: 0.92 | L99: 2.207761736 | M99: 0.5443202523 | N99: =IF(ABS($K99-$C$8-Parameters!$C$21)>Parameters!$C$22,-100,IF($K99-$C$8-Parameters!$C$21<-Parameters!$C$23,Parameters!$C$24 + Parameters!$C$25 / (Parameters!$C$23 - Parameters!$C$22) * (($K99-$C$8-Parameters!$C$21) + Parameters!$C$23),IF($K99-$C$8-Parameters!$C$21<Parameters!$C$23,Parameters!$C$24,Parameters!$C$24 - Parameters!$C$25 / (Parameters!$C$23 - Parameters!$C$22) * (($K99-$C$8-Parameters!$C$21) - Parameters!$C$23)))) -> -100 | P99: 0.92 | Q99: 0 | R99: 0 | S99: =IF(ABS($K99-$C$8-Parameters!$C$21)>Parameters!$C$22,0,SQRT(Parameters!$C$22^2-($K99-$C$8-Parameters!$C$21)^2)) -> 0 | T99: =IF(ABS($K99-$C$8-Parameters!$C$21)>Parameters!$C$22,0,-SQRT(Parameters!$C$22^2-($K99-$C$8-Parameters!$C$21)^2)) -> 0
I100: 0.411945837 | J100: 0.1275294324 | K100: 0.93 | L100: 2.222817996 | M100: 0.5493798692 | N100: =IF(ABS($K100-$C$8-Parameters!$C$21)>Parameters!$C$22,-100,IF($K100-$C$8-Parameters!$C$21<-Parameters!$C$23,Parameters!$C$24 + Parameters!$C$25 / (Parameters!$C$23 - Parameters!$C$22) * (($K100-$C$8-Parameters!$C$21) + Parameters!$C$23),IF($K100-$C$8-Parameters!$C$21<Parameters!$C$23,Parameters!$C$24,Parameters!$C$24 - Parameters!$C$25 / (Parameters!$C$23 - Parameters!$C$22) * (($K100-$C$8-Parameters!$C$21) - Parameters!$C$23)))) -> -100 | P100: 0.93 | Q100: 0 | R100: 0 | S100: =IF(ABS($K100-$C$8-Parameters!$C$21)>Parameters!$C$22,0,SQRT(Parameters!$C$22^2-($K100-$C$8-Parameters!$C$21)^2)) -> 0 | T100: =IF(ABS($K100-$C$8-Parameters!$C$21)>Parameters!$C$22,0,-SQRT(Parameters!$C$22^2-($K100-$C$8-Parameters!$C$21)^2)) -> 0
I101: 0.4163753621 | J101: 0.1289007166 | K101: 0.94 | L101: 2.237681974 | M101: 0.554421058 | N101: =IF(ABS($K101-$C$8-Parameters!$C$21)>Parameters!$C$22,-100,IF($K101-$C$8-Parameters!$C$21<-Parameters!$C$23,Parameters!$C$24 + Parameters!$C$25 / (Parameters!$C$23 - Parameters!$C$22) * (($K101-$C$8-Parameters!$C$21) + Parameters!$C$23),IF($K101-$C$8-Parameters!$C$21<Parameters!$C$23,Parameters!$C$24,Parameters!$C$24 - Parameters!$C$25 / (Parameters!$C$23 - Parameters!$C$22) * (($K101-$C$8-Parameters!$C$21) - Parameters!$C$23)))) -> -100 | P101: 0.94 | Q101: 0 | R101: 0 | S101: =IF(ABS($K101-$C$8-Parameters!$C$21)>Parameters!$C$22,0,SQRT(Parameters!$C$22^2-($K101-$C$8-Parameters!$C$21)^2)) -> 0 | T101: =IF(ABS($K101-$C$8-Parameters!$C$21)>Parameters!$C$22,0,-SQRT(Parameters!$C$22^2-($K101-$C$8-Parameters!$C$21)^2)) -> 0
I102: 0.4208048872 | J102: 0.1302720008 | K102: 0.95 | L102: 2.252353668 | M102: 0.5594438186 | N102: =IF(ABS($K102-$C$8-Parameters!$C$21)>Parameters!$C$22,-100,IF($K102-$C$8-Parameters!$C$21<-Parameters!$C$23,Parameters!$C$24 + Parameters!$C$25 / (Parameters!$C$23 - Parameters!$C$22) * (($K102-$C$8-Parameters!$C$21) + Parameters!$C$23),IF($K102-$C$8-Parameters!$C$21<Parameters!$C$23,Parameters!$C$24,Parameters!$C$24 - Parameters!$C$25 / (Parameters!$C$23 - Parameters!$C$22) * (($K102-$C$8-Parameters!$C$21) - Parameters!$C$23)))) -> -100 | P102: 0.95 | Q102: 0 | R102: 0 | S102: =IF(ABS($K102-$C$8-Parameters!$C$21)>Parameters!$C$22,0,SQRT(Parameters!$C$22^2-($K102-$C$8-Parameters!$C$21)^2)) -> 0 | T102: =IF(ABS($K102-$C$8-Parameters!$C$21)>Parameters!$C$22,0,-SQRT(Parameters!$C$22^2-($K102-$C$8-Parameters!$C$21)^2)) -> 0
I103: =K103/$L$2 -> 0.4252344124 | J103: =K103/$M$2 -> 0.131643285 | K103: 0.96 | L103: =L$3*I103-0.5*$C$9*I103^2 -> 2.266833081 | M103: =M$3*J103-0.5*$C$9*J103^2 -> 0.5644481512 | N103: =IF(ABS($K103-$C$8-Parameters!$C$21)>Parameters!$C$22,-100,IF($K103-$C$8-Parameters!$C$21<-Parameters!$C$23,Parameters!$C$24 + Parameters!$C$25 / (Parameters!$C$23 - Parameters!$C$22) * (($K103-$C$8-Parameters!$C$21) + Parameters!$C$23),IF($K103-$C$8-Parameters!$C$21<Parameters!$C$23,Parameters!$C$24,Parameters!$C$24 - Parameters!$C$25 / (Parameters!$C$23 - Parameters!$C$22) * (($K103-$C$8-Parameters!$C$21) - Parameters!$C$23)))) -> -100 | P103: 0.96 | Q103: 0 | R103: 0 | S103: =IF(ABS($K103-$C$8-Parameters!$C$21)>Parameters!$C$22,0,SQRT(Parameters!$C$22^2-($K103-$C$8-Parameters!$C$21)^2)) -> 0 | T103: =IF(ABS($K103-$C$8-Parameters!$C$21)>Parameters!$C$22,0,-SQRT(Parameters!$C$22^2-($K103-$C$8-Parameters!$C$21)^2)) -> 0
I104: 0.4296639375 | J104: 0.1330145693 | K104: 0.97 | L104: 2.28112021 | M104: 0.5694340556 | N104: =IF(ABS($K104-$C$8-Parameters!$C$21)>Parameters!$C$22,-100,IF($K104-$C$8-Parameters!$C$21<-Parameters!$C$23,Parameters!$C$24 + Parameters!$C$25 / (Parameters!$C$23 - Parameters!$C$22) * (($K104-$C$8-Parameters!$C$21) + Parameters!$C$23),IF($K104-$C$8-Parameters!$C$21<Parameters!$C$23,Parameters!$C$24,Parameters!$C$24 - Parameters!$C$25 / (Parameters!$C$23 - Parameters!$C$22) * (($K104-$C$8-Parameters!$C$21) - Parameters!$C$23)))) -> -100 | P104: 0.97 | Q104: 0 | R104: 0 | S104: =IF(ABS($K104-$C$8-Parameters!$C$21)>Parameters!$C$22,0,SQRT(Parameters!$C$22^2-($K104-$C$8-Parameters!$C$21)^2)) -> 0 | T104: =IF(ABS($K104-$C$8-Parameters!$C$21)>Parameters!$C$22,0,-SQRT(Parameters!$C$22^2-($K104-$C$8-Parameters!$C$21)^2)) -> 0
I105: 0.4340934626 | J105: 0.1343858535 | K105: 0.98 | L105: 2.295215056 | M105: 0.5744015319 | N105: =IF(ABS($K105-$C$8-Parameters!$C$21)>Parameters!$C$22,-100,IF($K105-$C$8-Parameters!$C$21<-Parameters!$C$23,Parameters!$C$24 + Parameters!$C$25 / (Parameters!$C$23 - Parameters!$C$22) * (($K105-$C$8-Parameters!$C$21) + Parameters!$C$23),IF($K105-$C$8-Parameters!$C$21<Parameters!$C$23,Parameters!$C$24,Parameters!$C$24 - Parameters!$C$25 / (Parameters!$C$23 - Parameters!$C$22) * (($K105-$C$8-Parameters!$C$21) - Parameters!$C$23)))) -> -100 | P105: 0.98 | Q105: 0 | R105: 0 | S105: =IF(ABS($K105-$C$8-Parameters!$C$21)>Parameters!$C$22,0,SQRT(Parameters!$C$22^2-($K105-$C$8-Parameters!$C$21)^2)) -> 0 | T105: =IF(ABS($K105-$C$8-Parameters!$C$21)>Parameters!$C$22,0,-SQRT(Parameters!$C$22^2-($K105-$C$8-Parameters!$C$21)^2)) -> 0
I106: 0.4385229877 | J106: 0.1357571377 | K106: 0.99 | L106: 2.30911762 | M106: 0.5793505801 | N106: =IF(ABS($K106-$C$8-Parameters!$C$21)>Parameters!$C$22,-100,IF($K106-$C$8-Parameters!$C$21<-Parameters!$C$23,Parameters!$C$24 + Parameters!$C$25 / (Parameters!$C$23 - Parameters!$C$22) * (($K106-$C$8-Parameters!$C$21) + Parameters!$C$23),IF($K106-$C$8-Parameters!$C$21<Parameters!$C$23,Parameters!$C$24,Parameters!$C$24 - Parameters!$C$25 / (Parameters!$C$23 - Parameters!$C$22) * (($K106-$C$8-Parameters!$C$21) - Parameters!$C$23)))) -> -100 | P106: 0.99 | Q106: 0 | R106: 0 | S106: =IF(ABS($K106-$C$8-Parameters!$C$21)>Parameters!$C$22,0,SQRT(Parameters!$C$22^2-($K106-$C$8-Parameters!$C$21)^2)) -> 0 | T106: =IF(ABS($K106-$C$8-Parameters!$C$21)>Parameters!$C$22,0,-SQRT(Parameters!$C$22^2-($K106-$C$8-Parameters!$C$21)^2)) -> 0
I107: 0.4429525129 | J107: 0.1371284219 | K107: 1 | L107: 2.322827901 | M107: 0.5842812001 | N107: =IF(ABS($K107-$C$8-Parameters!$C$21)>Parameters!$C$22,-100,IF($K107-$C$8-Parameters!$C$21<-Parameters!$C$23,Parameters!$C$24 + Parameters!$C$25 / (Parameters!$C$23 - Parameters!$C$22) * (($K107-$C$8-Parameters!$C$21) + Parameters!$C$23),IF($K107-$C$8-Parameters!$C$21<Parameters!$C$23,Parameters!$C$24,Parameters!$C$24 - Parameters!$C$25 / (Parameters!$C$23 - Parameters!$C$22) * (($K107-$C$8-Parameters!$C$21) - Parameters!$C$23)))) -> -100 | P107: 1 | Q107: 0 | R107: 0 | S107: =IF(ABS($K107-$C$8-Parameters!$C$21)>Parameters!$C$22,0,SQRT(Parameters!$C$22^2-($K107-$C$8-Parameters!$C$21)^2)) -> 0 | T107: =IF(ABS($K107-$C$8-Parameters!$C$21)>Parameters!$C$22,0,-SQRT(Parameters!$C$22^2-($K107-$C$8-Parameters!$C$21)^2)) -> 0
I108: 0.447382038 | J108: 0.1384997061 | K108: 1.01 | L108: 2.336345899 | M108: 0.5891933921 | N108: =IF(ABS($K108-$C$8-Parameters!$C$21)>Parameters!$C$22,-100,IF($K108-$C$8-Parameters!$C$21<-Parameters!$C$23,Parameters!$C$24 + Parameters!$C$25 / (Parameters!$C$23 - Parameters!$C$22) * (($K108-$C$8-Parameters!$C$21) + Parameters!$C$23),IF($K108-$C$8-Parameters!$C$21<Parameters!$C$23,Parameters!$C$24,Parameters!$C$24 - Parameters!$C$25 / (Parameters!$C$23 - Parameters!$C$22) * (($K108-$C$8-Parameters!$C$21) - Parameters!$C$23)))) -> -100 | P108: 1.01 | Q108: 0 | R108: 0 | S108: =IF(ABS($K108-$C$8-Parameters!$C$21)>Parameters!$C$22,0,SQRT(Parameters!$C$22^2-($K108-$C$8-Parameters!$C$21)^2)) -> 0 | T108: =IF(ABS($K108-$C$8-Parameters!$C$21)>Parameters!$C$22,0,-SQRT(Parameters!$C$22^2-($K108-$C$8-Parameters!$C$21)^2)) -> 0
I109: 0.4518115631 | J109: 0.1398709903 | K109: 1.02 | L109: 2.349671614 | M109: 0.5940871559 | N109: =IF(ABS($K109-$C$8-Parameters!$C$21)>Parameters!$C$22,-100,IF($K109-$C$8-Parameters!$C$21<-Parameters!$C$23,Parameters!$C$24 + Parameters!$C$25 / (Parameters!$C$23 - Parameters!$C$22) * (($K109-$C$8-Parameters!$C$21) + Parameters!$C$23),IF($K109-$C$8-Parameters!$C$21<Parameters!$C$23,Parameters!$C$24,Parameters!$C$24 - Parameters!$C$25 / (Parameters!$C$23 - Parameters!$C$22) * (($K109-$C$8-Parameters!$C$21) - Parameters!$C$23)))) -> -100 | P109: 1.02 | Q109: 0 | R109: 0 | S109: =IF(ABS($K109-$C$8-Parameters!$C$21)>Parameters!$C$22,0,SQRT(Parameters!$C$22^2-($K109-$C$8-Parameters!$C$21)^2)) -> 0 | T109: =IF(ABS($K109-$C$8-Parameters!$C$21)>Parameters!$C$22,0,-SQRT(Parameters!$C$22^2-($K109-$C$8-Parameters!$C$21)^2)) -> 0
I110: 0.4562410883 | J110: 0.1412422746 | K110: 1.03 | L110: 2.362805047 | M110: 0.5989624916 | N110: =IF(ABS($K110-$C$8-Parameters!$C$21)>Parameters!$C$22,-100,IF($K110-$C$8-Parameters!$C$21<-Parameters!$C$23,Parameters!$C$24 + Parameters!$C$25 / (Parameters!$C$23 - Parameters!$C$22) * (($K110-$C$8-Parameters!$C$21) + Parameters!$C$23),IF($K110-$C$8-Parameters!$C$21<Parameters!$C$23,Parameters!$C$24,Parameters!$C$24 - Parameters!$C$25 / (Parameters!$C$23 - Parameters!$C$22) * (($K110-$C$8-Parameters!$C$21) - Parameters!$C$23)))) -> -100 | P110: 1.03 | Q110: 0 | R110: 0 | S110: =IF(ABS($K110-$C$8-Parameters!$C$21)>Parameters!$C$22,0,SQRT(Parameters!$C$22^2-($K110-$C$8-Parameters!$C$21)^2)) -> 0 | T110: =IF(ABS($K110-$C$8-Parameters!$C$21)>Parameters!$C$22,0,-SQRT(Parameters!$C$22^2-($K110-$C$8-Parameters!$C$21)^2)) -> 0
I111: 0.4606706134 | J111: 0.1426135588 | K111: 1.04 | L111: 2.375746197 | M111: 0.6038193992 | N111: =IF(ABS($K111-$C$8-Parameters!$C$21)>Parameters!$C$22,-100,IF($K111-$C$8-Parameters!$C$21<-Parameters!$C$23,Parameters!$C$24 + Parameters!$C$25 / (Parameters!$C$23 - Parameters!$C$22) * (($K111-$C$8-Parameters!$C$21) + Parameters!$C$23),IF($K111-$C$8-Parameters!$C$21<Parameters!$C$23,Parameters!$C$24,Parameters!$C$24 - Parameters!$C$25 / (Parameters!$C$23 - Parameters!$C$22) * (($K111-$C$8-Parameters!$C$21) - Parameters!$C$23)))) -> -100 | P111: 1.04 | Q111: 0 | R111: 0 | S111: =IF(ABS($K111-$C$8-Parameters!$C$21)>Parameters!$C$22,0,SQRT(Parameters!$C$22^2-($K111-$C$8-Parameters!$C$21)^2)) -> 0 | T111: =IF(ABS($K111-$C$8-Parameters!$C$21)>Parameters!$C$22,0,-SQRT(Parameters!$C$22^2-($K111-$C$8-Parameters!$C$21)^2)) -> 0
I112: 0.4651001385 | J112: 0.143984843 | K112: 1.05 | L112: 2.388495063 | M112: 0.6086578786 | N112: =IF(ABS($K112-$C$8-Parameters!$C$21)>Parameters!$C$22,-100,IF($K112-$C$8-Parameters!$C$21<-Parameters!$C$23,Parameters!$C$24 + Parameters!$C$25 / (Parameters!$C$23 - Parameters!$C$22) * (($K112-$C$8-Parameters!$C$21) + Parameters!$C$23),IF($K112-$C$8-Parameters!$C$21<Parameters!$C$23,Parameters!$C$24,Parameters!$C$24 - Parameters!$C$25 / (Parameters!$C$23 - Parameters!$C$22) * (($K112-$C$8-Parameters!$C$21) - Parameters!$C$23)))) -> -100 | P112: 1.05 | Q112: 0 | R112: 0 | S112: =IF(ABS($K112-$C$8-Parameters!$C$21)>Parameters!$C$22,0,SQRT(Parameters!$C$22^2-($K112-$C$8-Parameters!$C$21)^2)) -> 0 | T112: =IF(ABS($K112-$C$8-Parameters!$C$21)>Parameters!$C$22,0,-SQRT(Parameters!$C$22^2-($K112-$C$8-Parameters!$C$21)^2)) -> 0
I113: 0.4695296636 | J113: 0.1453561272 | K113: 1.06 | L113: 2.401051648 | M113: 0.61347793 | N113: =IF(ABS($K113-$C$8-Parameters!$C$21)>Parameters!$C$22,-100,IF($K113-$C$8-Parameters!$C$21<-Parameters!$C$23,Parameters!$C$24 + Parameters!$C$25 / (Parameters!$C$23 - Parameters!$C$22) * (($K113-$C$8-Parameters!$C$21) + Parameters!$C$23),IF($K113-$C$8-Parameters!$C$21<Parameters!$C$23,Parameters!$C$24,Parameters!$C$24 - Parameters!$C$25 / (Parameters!$C$23 - Parameters!$C$22) * (($K113-$C$8-Parameters!$C$21) - Parameters!$C$23)))) -> -100 | P113: 1.06 | Q113: 0 | R113: 0 | S113: =IF(ABS($K113-$C$8-Parameters!$C$21)>Parameters!$C$22,0,SQRT(Parameters!$C$22^2-($K113-$C$8-Parameters!$C$21)^2)) -> 0 | T113: =IF(ABS($K113-$C$8-Parameters!$C$21)>Parameters!$C$22,0,-SQRT(Parameters!$C$22^2-($K113-$C$8-Parameters!$C$21)^2)) -> 0
I114: 0.4739591888 | J114: 0.1467274114 | K114: 1.07 | L114: 2.413415949 | M114: 0.6182795532 | N114: =IF(ABS($K114-$C$8-Parameters!$C$21)>Parameters!$C$22,-100,IF($K114-$C$8-Parameters!$C$21<-Parameters!$C$23,Parameters!$C$24 + Parameters!$C$25 / (Parameters!$C$23 - Parameters!$C$22) * (($K114-$C$8-Parameters!$C$21) + Parameters!$C$23),IF($K114-$C$8-Parameters!$C$21<Parameters!$C$23,Parameters!$C$24,Parameters!$C$24 - Parameters!$C$25 / (Parameters!$C$23 - Parameters!$C$22) * (($K114-$C$8-Parameters!$C$21) - Parameters!$C$23)))) -> -100 | P114: 1.07 | Q114: 0 | R114: 0 | S114: =IF(ABS($K114-$C$8-Parameters!$C$21)>Parameters!$C$22,0,SQRT(Parameters!$C$22^2-($K114-$C$8-Parameters!$C$21)^2)) -> 0 | T114: =IF(ABS($K114-$C$8-Parameters!$C$21)>Parameters!$C$22,0,-SQRT(Parameters!$C$22^2-($K114-$C$8-Parameters!$C$21)^2)) -> 0
I115: 0.4783887139 | J115: 0.1480986957 | K115: 1.08 | L115: 2.425587968 | M115: 0.6230627483 | N115: =IF(ABS($K115-$C$8-Parameters!$C$21)>Parameters!$C$22,-100,IF($K115-$C$8-Parameters!$C$21<-Parameters!$C$23,Parameters!$C$24 + Parameters!$C$25 / (Parameters!$C$23 - Parameters!$C$22) * (($K115-$C$8-Parameters!$C$21) + Parameters!$C$23),IF($K115-$C$8-Parameters!$C$21<Parameters!$C$23,Parameters!$C$24,Parameters!$C$24 - Parameters!$C$25 / (Parameters!$C$23 - Parameters!$C$22) * (($K115-$C$8-Parameters!$C$21) - Parameters!$C$23)))) -> -100 | P115: 1.08 | Q115: 0 | R115: 0 | S115: =IF(ABS($K115-$C$8-Parameters!$C$21)>Parameters!$C$22,0,SQRT(Parameters!$C$22^2-($K115-$C$8-Parameters!$C$21)^2)) -> 0 | T115: =IF(ABS($K115-$C$8-Parameters!$C$21)>Parameters!$C$22,0,-SQRT(Parameters!$C$22^2-($K115-$C$8-Parameters!$C$21)^2)) -> 0
I116: 0.482818239 | J116: 0.1494699799 | K116: 1.09 | L116: 2.437567703 | M116: 0.6278275153 | N116: =IF(ABS($K116-$C$8-Parameters!$C$21)>Parameters!$C$22,-100,IF($K116-$C$8-Parameters!$C$21<-Parameters!$C$23,Parameters!$C$24 + Parameters!$C$25 / (Parameters!$C$23 - Parameters!$C$22) * (($K116-$C$8-Parameters!$C$21) + Parameters!$C$23),IF($K116-$C$8-Parameters!$C$21<Parameters!$C$23,Parameters!$C$24,Parameters!$C$24 - Parameters!$C$25 / (Parameters!$C$23 - Parameters!$C$22) * (($K116-$C$8-Parameters!$C$21) - Parameters!$C$23)))) -> -100 | P116: 1.09 | Q116: 0 | R116: 0 | S116: =IF(ABS($K116-$C$8-Parameters!$C$21)>Parameters!$C$22,0,SQRT(Parameters!$C$22^2-($K116-$C$8-Parameters!$C$21)^2)) -> 0 | T116: =IF(ABS($K116-$C$8-Parameters!$C$21)>Parameters!$C$22,0,-SQRT(Parameters!$C$22^2-($K116-$C$8-Parameters!$C$21)^2)) -> 0
I117: 0.4872477642 | J117: 0.1508412641 | K117: 1.1 | L117: 2.449355156 | M117: 0.6325738541 | N117: =IF(ABS($K117-$C$8-Parameters!$C$21)>Parameters!$C$22,-100,IF($K117-$C$8-Parameters!$C$21<-Parameters!$C$23,Parameters!$C$24 + Parameters!$C$25 / (Parameters!$C$23 - Parameters!$C$22) * (($K117-$C$8-Parameters!$C$21) + Parameters!$C$23),IF($K117-$C$8-Parameters!$C$21<Parameters!$C$23,Parameters!$C$24,Parameters!$C$24 - Parameters!$C$25 / (Parameters!$C$23 - Parameters!$C$22) * (($K117-$C$8-Parameters!$C$21) - Parameters!$C$23)))) -> -100 | P117: 1.1 | Q117: 0 | R117: 0 | S117: =IF(ABS($K117-$C$8-Parameters!$C$21)>Parameters!$C$22,0,SQRT(Parameters!$C$22^2-($K117-$C$8-Parameters!$C$21)^2)) -> 0 | T117: =IF(ABS($K117-$C$8-Parameters!$C$21)>Parameters!$C$22,0,-SQRT(Parameters!$C$22^2-($K117-$C$8-Parameters!$C$21)^2)) -> 0
I118: 0.4916772893 | J118: 0.1522125483 | K118: 1.11 | L118: 2.460950327 | M118: 0.6373017649 | N118: =IF(ABS($K118-$C$8-Parameters!$C$21)>Parameters!$C$22,-100,IF($K118-$C$8-Parameters!$C$21<-Parameters!$C$23,Parameters!$C$24 + Parameters!$C$25 / (Parameters!$C$23 - Parameters!$C$22) * (($K118-$C$8-Parameters!$C$21) + Parameters!$C$23),IF($K118-$C$8-Parameters!$C$21<Parameters!$C$23,Parameters!$C$24,Parameters!$C$24 - Parameters!$C$25 / (Parameters!$C$23 - Parameters!$C$22) * (($K118-$C$8-Parameters!$C$21) - Parameters!$C$23)))) -> -100 | P118: 1.11 | Q118: 0 | R118: 0 | S118: =IF(ABS($K118-$C$8-Parameters!$C$21)>Parameters!$C$22,0,SQRT(Parameters!$C$22^2-($K118-$C$8-Parameters!$C$21)^2)) -> 0 | T118: =IF(ABS($K118-$C$8-Parameters!$C$21)>Parameters!$C$22,0,-SQRT(Parameters!$C$22^2-($K118-$C$8-Parameters!$C$21)^2)) -> 0
I119: 0.4961068144 | J119: 0.1535838325 | K119: 1.12 | L119: 2.472353214 | M119: 0.6420112475 | N119: =IF(ABS($K119-$C$8-Parameters!$C$21)>Parameters!$C$22,-100,IF($K119-$C$8-Parameters!$C$21<-Parameters!$C$23,Parameters!$C$24 + Parameters!$C$25 / (Parameters!$C$23 - Parameters!$C$22) * (($K119-$C$8-Parameters!$C$21) + Parameters!$C$23),IF($K119-$C$8-Parameters!$C$21<Parameters!$C$23,Parameters!$C$24,Parameters!$C$24 - Parameters!$C$25 / (Parameters!$C$23 - Parameters!$C$22) * (($K119-$C$8-Parameters!$C$21) - Parameters!$C$23)))) -> -100 | P119: 1.12 | Q119: 0 | R119: 0 | S119: =IF(ABS($K119-$C$8-Parameters!$C$21)>Parameters!$C$22,0,SQRT(Parameters!$C$22^2-($K119-$C$8-Parameters!$C$21)^2)) -> 0 | T119: =IF(ABS($K119-$C$8-Parameters!$C$21)>Parameters!$C$22,0,-SQRT(Parameters!$C$22^2-($K119-$C$8-Parameters!$C$21)^2)) -> 0
I120: 0.5005363395 | J120: 0.1549551168 | K120: 1.13 | L120: 2.483563819 | M120: 0.646702302 | N120: =IF(ABS($K120-$C$8-Parameters!$C$21)>Parameters!$C$22,-100,IF($K120-$C$8-Parameters!$C$21<-Parameters!$C$23,Parameters!$C$24 + Parameters!$C$25 / (Parameters!$C$23 - Parameters!$C$22) * (($K120-$C$8-Parameters!$C$21) + Parameters!$C$23),IF($K120-$C$8-Parameters!$C$21<Parameters!$C$23,Parameters!$C$24,Parameters!$C$24 - Parameters!$C$25 / (Parameters!$C$23 - Parameters!$C$22) * (($K120-$C$8-Parameters!$C$21) - Parameters!$C$23)))) -> -100 | P120: 1.13 | Q120: 0 | R120: 0 | S120: =IF(ABS($K120-$C$8-Parameters!$C$21)>Parameters!$C$22,0,SQRT(Parameters!$C$22^2-($K120-$C$8-Parameters!$C$21)^2)) -> 0 | T120: =IF(ABS($K120-$C$8-Parameters!$C$21)>Parameters!$C$22,0,-SQRT(Parameters!$C$22^2-($K120-$C$8-Parameters!$C$21)^2)) -> 0
I121: 0.5049658647 | J121: 0.156326401 | K121: 1.14 | L121: 2.49458214 | M121: 0.6513749284 | N121: =IF(ABS($K121-$C$8-Parameters!$C$21)>Parameters!$C$22,-100,IF($K121-$C$8-Parameters!$C$21<-Parameters!$C$23,Parameters!$C$24 + Parameters!$C$25 / (Parameters!$C$23 - Parameters!$C$22) * (($K121-$C$8-Parameters!$C$21) + Parameters!$C$23),IF($K121-$C$8-Parameters!$C$21<Parameters!$C$23,Parameters!$C$24,Parameters!$C$24 - Parameters!$C$25 / (Parameters!$C$23 - Parameters!$C$22) * (($K121-$C$8-Parameters!$C$21) - Parameters!$C$23)))) -> -100 | P121: 1.14 | Q121: 0 | R121: 0 | S121: =IF(ABS($K121-$C$8-Parameters!$C$21)>Parameters!$C$22,0,SQRT(Parameters!$C$22^2-($K121-$C$8-Parameters!$C$21)^2)) -> 0 | T121: =IF(ABS($K121-$C$8-Parameters!$C$21)>Parameters!$C$22,0,-SQRT(Parameters!$C$22^2-($K121-$C$8-Parameters!$C$21)^2)) -> 0
I122: 0.5093953898 | J122: 0.1576976852 | K122: 1.15 | L122: 2.50540818 | M122: 0.6560291266 | N122: =IF(ABS($K122-$C$8-Parameters!$C$21)>Parameters!$C$22,-100,IF($K122-$C$8-Parameters!$C$21<-Parameters!$C$23,Parameters!$C$24 + Parameters!$C$25 / (Parameters!$C$23 - Parameters!$C$22) * (($K122-$C$8-Parameters!$C$21) + Parameters!$C$23),IF($K122-$C$8-Parameters!$C$21<Parameters!$C$23,Parameters!$C$24,Parameters!$C$24 - Parameters!$C$25 / (Parameters!$C$23 - Parameters!$C$22) * (($K122-$C$8-Parameters!$C$21) - Parameters!$C$23)))) -> -100 | P122: 1.15 | Q122: 0 | R122: 0 | S122: =IF(ABS($K122-$C$8-Parameters!$C$21)>Parameters!$C$22,0,SQRT(Parameters!$C$22^2-($K122-$C$8-Parameters!$C$21)^2)) -> 0 | T122: =IF(ABS($K122-$C$8-Parameters!$C$21)>Parameters!$C$22,0,-SQRT(Parameters!$C$22^2-($K122-$C$8-Parameters!$C$21)^2)) -> 0
I123: 0.5138249149 | J123: 0.1590689694 | K123: 1.16 | L123: 2.516041936 | M123: 0.6606648968 | N123: =IF(ABS($K123-$C$8-Parameters!$C$21)>Parameters!$C$22,-100,IF($K123-$C$8-Parameters!$C$21<-Parameters!$C$23,Parameters!$C$24 + Parameters!$C$25 / (Parameters!$C$23 - Parameters!$C$22) * (($K123-$C$8-Parameters!$C$21) + Parameters!$C$23),IF($K123-$C$8-Parameters!$C$21<Parameters!$C$23,Parameters!$C$24,Parameters!$C$24 - Parameters!$C$25 / (Parameters!$C$23 - Parameters!$C$22) * (($K123-$C$8-Parameters!$C$21) - Parameters!$C$23)))) -> -100 | P123: 1.16 | Q123: 0 | R123: 0 | S123: =IF(ABS($K123-$C$8-Parameters!$C$21)>Parameters!$C$22,0,SQRT(Parameters!$C$22^2-($K123-$C$8-Parameters!$C$21)^2)) -> 0 | T123: =IF(ABS($K123-$C$8-Parameters!$C$21)>Parameters!$C$22,0,-SQRT(Parameters!$C$22^2-($K123-$C$8-Parameters!$C$21)^2)) -> 0
I124: 0.5182544401 | J124: 0.1604402536 | K124: 1.17 | L124: 2.526483409 | M124: 0.6652822388 | N124: =IF(ABS($K124-$C$8-Parameters!$C$21)>Parameters!$C$22,-100,IF($K124-$C$8-Parameters!$C$21<-Parameters!$C$23,Parameters!$C$24 + Parameters!$C$25 / (Parameters!$C$23 - Parameters!$C$22) * (($K124-$C$8-Parameters!$C$21) + Parameters!$C$23),IF($K124-$C$8-Parameters!$C$21<Parameters!$C$23,Parameters!$C$24,Parameters!$C$24 - Parameters!$C$25 / (Parameters!$C$23 - Parameters!$C$22) * (($K124-$C$8-Parameters!$C$21) - Parameters!$C$23)))) -> -100 | P124: 1.17 | Q124: 0 | R124: 0 | S124: =IF(ABS($K124-$C$8-Parameters!$C$21)>Parameters!$C$22,0,SQRT(Parameters!$C$22^2-($K124-$C$8-Parameters!$C$21)^2)) -> 0 | T124: =IF(ABS($K124-$C$8-Parameters!$C$21)>Parameters!$C$22,0,-SQRT(Parameters!$C$22^2-($K124-$C$8-Parameters!$C$21)^2)) -> 0
I125: 0.5226839652 | J125: 0.1618115379 | K125: 1.18 | L125: 2.5367326 | M125: 0.6698811527 | N125: =IF(ABS($K125-$C$8-Parameters!$C$21)>Parameters!$C$22,-100,IF($K125-$C$8-Parameters!$C$21<-Parameters!$C$23,Parameters!$C$24 + Parameters!$C$25 / (Parameters!$C$23 - Parameters!$C$22) * (($K125-$C$8-Parameters!$C$21) + Parameters!$C$23),IF($K125-$C$8-Parameters!$C$21<Parameters!$C$23,Parameters!$C$24,Parameters!$C$24 - Parameters!$C$25 / (Parameters!$C$23 - Parameters!$C$22) * (($K125-$C$8-Parameters!$C$21) - Parameters!$C$23)))) -> -100 | P125: 1.18 | Q125: 0 | R125: 0 | S125: =IF(ABS($K125-$C$8-Parameters!$C$21)>Parameters!$C$22,0,SQRT(Parameters!$C$22^2-($K125-$C$8-Parameters!$C$21)^2)) -> 0 | T125: =IF(ABS($K125-$C$8-Parameters!$C$21)>Parameters!$C$22,0,-SQRT(Parameters!$C$22^2-($K125-$C$8-Parameters!$C$21)^2)) -> 0
I126: 0.5271134903 | J126: 0.1631828221 | K126: 1.19 | L126: 2.546789508 | M126: 0.6744616385 | N126: =IF(ABS($K126-$C$8-Parameters!$C$21)>Parameters!$C$22,-100,IF($K126-$C$8-Parameters!$C$21<-Parameters!$C$23,Parameters!$C$24 + Parameters!$C$25 / (Parameters!$C$23 - Parameters!$C$22) * (($K126-$C$8-Parameters!$C$21) + Parameters!$C$23),IF($K126-$C$8-Parameters!$C$21<Parameters!$C$23,Parameters!$C$24,Parameters!$C$24 - Parameters!$C$25 / (Parameters!$C$23 - Parameters!$C$22) * (($K126-$C$8-Parameters!$C$21) - Parameters!$C$23)))) -> -100 | P126: 1.19 | Q126: 0 | R126: 0 | S126: =IF(ABS($K126-$C$8-Parameters!$C$21)>Parameters!$C$22,0,SQRT(Parameters!$C$22^2-($K126-$C$8-Parameters!$C$21)^2)) -> 0 | T126: =IF(ABS($K126-$C$8-Parameters!$C$21)>Parameters!$C$22,0,-SQRT(Parameters!$C$22^2-($K126-$C$8-Parameters!$C$21)^2)) -> 0
I127: 0.5315430154 | J127: 0.1645541063 | K127: 1.2 | L127: 2.556654133 | M127: 0.6790236961 | N127: =IF(ABS($K127-$C$8-Parameters!$C$21)>Parameters!$C$22,-100,IF($K127-$C$8-Parameters!$C$21<-Parameters!$C$23,Parameters!$C$24 + Parameters!$C$25 / (Parameters!$C$23 - Parameters!$C$22) * (($K127-$C$8-Parameters!$C$21) + Parameters!$C$23),IF($K127-$C$8-Parameters!$C$21<Parameters!$C$23,Parameters!$C$24,Parameters!$C$24 - Parameters!$C$25 / (Parameters!$C$23 - Parameters!$C$22) * (($K127-$C$8-Parameters!$C$21) - Parameters!$C$23)))) -> -100 | P127: 1.2 | Q127: 0 | R127: 0 | S127: =IF(ABS($K127-$C$8-Parameters!$C$21)>Parameters!$C$22,0,SQRT(Parameters!$C$22^2-($K127-$C$8-Parameters!$C$21)^2)) -> 0 | T127: =IF(ABS($K127-$C$8-Parameters!$C$21)>Parameters!$C$22,0,-SQRT(Parameters!$C$22^2-($K127-$C$8-Parameters!$C$21)^2)) -> 0
I128: 0.5359725406 | J128: 0.1659253905 | K128: 1.21 | L128: 2.566326475 | M128: 0.6835673257 | N128: =IF(ABS($K128-$C$8-Parameters!$C$21)>Parameters!$C$22,-100,IF($K128-$C$8-Parameters!$C$21<-Parameters!$C$23,Parameters!$C$24 + Parameters!$C$25 / (Parameters!$C$23 - Parameters!$C$22) * (($K128-$C$8-Parameters!$C$21) + Parameters!$C$23),IF($K128-$C$8-Parameters!$C$21<Parameters!$C$23,Parameters!$C$24,Parameters!$C$24 - Parameters!$C$25 / (Parameters!$C$23 - Parameters!$C$22) * (($K128-$C$8-Parameters!$C$21) - Parameters!$C$23)))) -> -100 | P128: 1.21 | Q128: 0 | R128: 0 | S128: =IF(ABS($K128-$C$8-Parameters!$C$21)>Parameters!$C$22,0,SQRT(Parameters!$C$22^2-($K128-$C$8-Parameters!$C$21)^2)) -> 0 | T128: =IF(ABS($K128-$C$8-Parameters!$C$21)>Parameters!$C$22,0,-SQRT(Parameters!$C$22^2-($K128-$C$8-Parameters!$C$21)^2)) -> 0
I129: 0.5404020657 | J129: 0.1672966747 | K129: 1.22 | L129: 2.575806535 | M129: 0.6880925271 | N129: =IF(ABS($K129-$C$8-Parameters!$C$21)>Parameters!$C$22,-100,IF($K129-$C$8-Parameters!$C$21<-Parameters!$C$23,Parameters!$C$24 + Parameters!$C$25 / (Parameters!$C$23 - Parameters!$C$22) * (($K129-$C$8-Parameters!$C$21) + Parameters!$C$23),IF($K129-$C$8-Parameters!$C$21<Parameters!$C$23,Parameters!$C$24,Parameters!$C$24 - Parameters!$C$25 / (Parameters!$C$23 - Parameters!$C$22) * (($K129-$C$8-Parameters!$C$21) - Parameters!$C$23)))) -> -100 | P129: 1.22 | Q129: 0 | R129: 0 | S129: =IF(ABS($K129-$C$8-Parameters!$C$21)>Parameters!$C$22,0,SQRT(Parameters!$C$22^2-($K129-$C$8-Parameters!$C$21)^2)) -> 0 | T129: =IF(ABS($K129-$C$8-Parameters!$C$21)>Parameters!$C$22,0,-SQRT(Parameters!$C$22^2-($K129-$C$8-Parameters!$C$21)^2)) -> 0
I130: 0.5448315908 | J130: 0.1686679589 | K130: 1.23 | L130: 2.585094311 | M130: 0.6925993004 | N130: =IF(ABS($K130-$C$8-Parameters!$C$21)>Parameters!$C$22,-100,IF($K130-$C$8-Parameters!$C$21<-Parameters!$C$23,Parameters!$C$24 + Parameters!$C$25 / (Parameters!$C$23 - Parameters!$C$22) * (($K130-$C$8-Parameters!$C$21) + Parameters!$C$23),IF($K130-$C$8-Parameters!$C$21<Parameters!$C$23,Parameters!$C$24,Parameters!$C$24 - Parameters!$C$25 / (Parameters!$C$23 - Parameters!$C$22) * (($K130-$C$8-Parameters!$C$21) - Parameters!$C$23)))) -> -100 | P130: 1.23 | Q130: 0 | R130: 0 | S130: =IF(ABS($K130-$C$8-Parameters!$C$21)>Parameters!$C$22,0,SQRT(Parameters!$C$22^2-($K130-$C$8-Parameters!$C$21)^2)) -> 0 | T130: =IF(ABS($K130-$C$8-Parameters!$C$21)>Parameters!$C$22,0,-SQRT(Parameters!$C$22^2-($K130-$C$8-Parameters!$C$21)^2)) -> 0
I131: 0.549261116 | J131: 0.1700392432 | K131: 1.24 | L131: 2.594189805 | M131: 0.6970876456 | N131: =IF(ABS($K131-$C$8-Parameters!$C$21)>Parameters!$C$22,-100,IF($K131-$C$8-Parameters!$C$21<-Parameters!$C$23,Parameters!$C$24 + Parameters!$C$25 / (Parameters!$C$23 - Parameters!$C$22) * (($K131-$C$8-Parameters!$C$21) + Parameters!$C$23),IF($K131-$C$8-Parameters!$C$21<Parameters!$C$23,Parameters!$C$24,Parameters!$C$24 - Parameters!$C$25 / (Parameters!$C$23 - Parameters!$C$22) * (($K131-$C$8-Parameters!$C$21) - Parameters!$C$23)))) -> -100 | P131: 1.24 | Q131: 0 | R131: 0 | S131: =IF(ABS($K131-$C$8-Parameters!$C$21)>Parameters!$C$22,0,SQRT(Parameters!$C$22^2-($K131-$C$8-Parameters!$C$21)^2)) -> 0 | T131: =IF(ABS($K131-$C$8-Parameters!$C$21)>Parameters!$C$22,0,-SQRT(Parameters!$C$22^2-($K131-$C$8-Parameters!$C$21)^2)) -> 0
I132: 0.5536906411 | J132: 0.1714105274 | K132: 1.25 | L132: 2.603093017 | M132: 0.7015575626 | N132: =IF(ABS($K132-$C$8-Parameters!$C$21)>Parameters!$C$22,-100,IF($K132-$C$8-Parameters!$C$21<-Parameters!$C$23,Parameters!$C$24 + Parameters!$C$25 / (Parameters!$C$23 - Parameters!$C$22) * (($K132-$C$8-Parameters!$C$21) + Parameters!$C$23),IF($K132-$C$8-Parameters!$C$21<Parameters!$C$23,Parameters!$C$24,Parameters!$C$24 - Parameters!$C$25 / (Parameters!$C$23 - Parameters!$C$22) * (($K132-$C$8-Parameters!$C$21) - Parameters!$C$23)))) -> -100 | P132: 1.25 | Q132: 0 | R132: 0 | S132: =IF(ABS($K132-$C$8-Parameters!$C$21)>Parameters!$C$22,0,SQRT(Parameters!$C$22^2-($K132-$C$8-Parameters!$C$21)^2)) -> 0 | T132: =IF(ABS($K132-$C$8-Parameters!$C$21)>Parameters!$C$22,0,-SQRT(Parameters!$C$22^2-($K132-$C$8-Parameters!$C$21)^2)) -> 0
I133: 0.5581201662 | J133: 0.1727818116 | K133: 1.26 | L133: 2.611803945 | M133: 0.7060090516 | N133: =IF(ABS($K133-$C$8-Parameters!$C$21)>Parameters!$C$22,-100,IF($K133-$C$8-Parameters!$C$21<-Parameters!$C$23,Parameters!$C$24 + Parameters!$C$25 / (Parameters!$C$23 - Parameters!$C$22) * (($K133-$C$8-Parameters!$C$21) + Parameters!$C$23),IF($K133-$C$8-Parameters!$C$21<Parameters!$C$23,Parameters!$C$24,Parameters!$C$24 - Parameters!$C$25 / (Parameters!$C$23 - Parameters!$C$22) * (($K133-$C$8-Parameters!$C$21) - Parameters!$C$23)))) -> -100 | P133: 1.26 | Q133: 0 | R133: 0 | S133: =IF(ABS($K133-$C$8-Parameters!$C$21)>Parameters!$C$22,0,SQRT(Parameters!$C$22^2-($K133-$C$8-Parameters!$C$21)^2)) -> 0 | T133: =IF(ABS($K133-$C$8-Parameters!$C$21)>Parameters!$C$22,0,-SQRT(Parameters!$C$22^2-($K133-$C$8-Parameters!$C$21)^2)) -> 0
I134: 0.5625496913 | J134: 0.1741530958 | K134: 1.27 | L134: 2.62032259 | M134: 0.7104421124 | N134: =IF(ABS($K134-$C$8-Parameters!$C$21)>Parameters!$C$22,-100,IF($K134-$C$8-Parameters!$C$21<-Parameters!$C$23,Parameters!$C$24 + Parameters!$C$25 / (Parameters!$C$23 - Parameters!$C$22) * (($K134-$C$8-Parameters!$C$21) + Parameters!$C$23),IF($K134-$C$8-Parameters!$C$21<Parameters!$C$23,Parameters!$C$24,Parameters!$C$24 - Parameters!$C$25 / (Parameters!$C$23 - Parameters!$C$22) * (($K134-$C$8-Parameters!$C$21) - Parameters!$C$23)))) -> -100 | P134: 1.27 | Q134: 0 | R134: 0 | S134: =IF(ABS($K134-$C$8-Parameters!$C$21)>Parameters!$C$22,0,SQRT(Parameters!$C$22^2-($K134-$C$8-Parameters!$C$21)^2)) -> 0 | T134: =IF(ABS($K134-$C$8-Parameters!$C$21)>Parameters!$C$22,0,-SQRT(Parameters!$C$22^2-($K134-$C$8-Parameters!$C$21)^2)) -> 0
I135: 0.5669792165 | J135: 0.17552438 | K135: 1.28 | L135: 2.628648953 | M135: 0.7148567451 | N135: =IF(ABS($K135-$C$8-Parameters!$C$21)>Parameters!$C$22,-100,IF($K135-$C$8-Parameters!$C$21<-Parameters!$C$23,Parameters!$C$24 + Parameters!$C$25 / (Parameters!$C$23 - Parameters!$C$22) * (($K135-$C$8-Parameters!$C$21) + Parameters!$C$23),IF($K135-$C$8-Parameters!$C$21<Parameters!$C$23,Parameters!$C$24,Parameters!$C$24 - Parameters!$C$25 / (Parameters!$C$23 - Parameters!$C$22) * (($K135-$C$8-Parameters!$C$21) - Parameters!$C$23)))) -> -100 | P135: 1.28 | Q135: 0 | R135: 0 | S135: =IF(ABS($K135-$C$8-Parameters!$C$21)>Parameters!$C$22,0,SQRT(Parameters!$C$22^2-($K135-$C$8-Parameters!$C$21)^2)) -> 0 | T135: =IF(ABS($K135-$C$8-Parameters!$C$21)>Parameters!$C$22,0,-SQRT(Parameters!$C$22^2-($K135-$C$8-Parameters!$C$21)^2)) -> 0
I136: 0.5714087416 | J136: 0.1768956643 | K136: 1.29 | L136: 2.636783033 | M136: 0.7192529497 | N136: =IF(ABS($K136-$C$8-Parameters!$C$21)>Parameters!$C$22,-100,IF($K136-$C$8-Parameters!$C$21<-Parameters!$C$23,Parameters!$C$24 + Parameters!$C$25 / (Parameters!$C$23 - Parameters!$C$22) * (($K136-$C$8-Parameters!$C$21) + Parameters!$C$23),IF($K136-$C$8-Parameters!$C$21<Parameters!$C$23,Parameters!$C$24,Parameters!$C$24 - Parameters!$C$25 / (Parameters!$C$23 - Parameters!$C$22) * (($K136-$C$8-Parameters!$C$21) - Parameters!$C$23)))) -> -100 | P136: =K136 -> 1.29 | Q136: =$I136*Q$4 -> 0 | R136: 0 | S136: =IF(ABS($K136-$C$8-Parameters!$C$21)>Parameters!$C$22,0,SQRT(Parameters!$C$22^2-($K136-$C$8-Parameters!$C$21)^2)) -> 0 | T136: =IF(ABS($K136-$C$8-Parameters!$C$21)>Parameters!$C$22,0,-SQRT(Parameters!$C$22^2-($K136-$C$8-Parameters!$C$21)^2)) -> 0
I137: 0.5758382667 | J137: 0.1782669485 | K137: =K136+$K$1 -> 1.3 | L137: 2.64472483 | M137: 0.7236307261 | N137: =IF(ABS($K137-$C$8-Parameters!$C$21)>Parameters!$C$22,-100,IF($K137-$C$8-Parameters!$C$21<-Parameters!$C$23,Parameters!$C$24 + Parameters!$C$25 / (Parameters!$C$23 - Parameters!$C$22) * (($K137-$C$8-Parameters!$C$21) + Parameters!$C$23),IF($K137-$C$8-Parameters!$C$21<Parameters!$C$23,Parameters!$C$24,Parameters!$C$24 - Parameters!$C$25 / (Parameters!$C$23 - Parameters!$C$22) * (($K137-$C$8-Parameters!$C$21) - Parameters!$C$23)))) -> -100 | P137: 1.3 | Q137: 0 | R137: 0 | S137: =IF(ABS($K137-$C$8-Parameters!$C$21)>Parameters!$C$22,0,SQRT(Parameters!$C$22^2-($K137-$C$8-Parameters!$C$21)^2)) -> 0 | T137: =IF(ABS($K137-$C$8-Parameters!$C$21)>Parameters!$C$22,0,-SQRT(Parameters!$C$22^2-($K137-$C$8-Parameters!$C$21)^2)) -> 0
I138: 0.5802677919 | J138: 0.1796382327 | K138: 1.31 | L138: 2.652474345 | M138: 0.7279900745 | N138: =IF(ABS($K138-$C$8-Parameters!$C$21)>Parameters!$C$22,-100,IF($K138-$C$8-Parameters!$C$21<-Parameters!$C$23,Parameters!$C$24 + Parameters!$C$25 / (Parameters!$C$23 - Parameters!$C$22) * (($K138-$C$8-Parameters!$C$21) + Parameters!$C$23),IF($K138-$C$8-Parameters!$C$21<Parameters!$C$23,Parameters!$C$24,Parameters!$C$24 - Parameters!$C$25 / (Parameters!$C$23 - Parameters!$C$22) * (($K138-$C$8-Parameters!$C$21) - Parameters!$C$23)))) -> -100 | P138: 1.31 | Q138: 0 | R138: 0 | S138: =IF(ABS($K138-$C$8-Parameters!$C$21)>Parameters!$C$22,0,SQRT(Parameters!$C$22^2-($K138-$C$8-Parameters!$C$21)^2)) -> 0 | T138: =IF(ABS($K138-$C$8-Parameters!$C$21)>Parameters!$C$22,0,-SQRT(Parameters!$C$22^2-($K138-$C$8-Parameters!$C$21)^2)) -> 0
I139: 0.584697317 | J139: 0.1810095169 | K139: 1.32 | L139: 2.660031576 | M139: 0.7323309947 | N139: =IF(ABS($K139-$C$8-Parameters!$C$21)>Parameters!$C$22,-100,IF($K139-$C$8-Parameters!$C$21<-Parameters!$C$23,Parameters!$C$24 + Parameters!$C$25 / (Parameters!$C$23 - Parameters!$C$22) * (($K139-$C$8-Parameters!$C$21) + Parameters!$C$23),IF($K139-$C$8-Parameters!$C$21<Parameters!$C$23,Parameters!$C$24,Parameters!$C$24 - Parameters!$C$25 / (Parameters!$C$23 - Parameters!$C$22) * (($K139-$C$8-Parameters!$C$21) - Parameters!$C$23)))) -> -100 | P139: 1.32 | Q139: 0 | R139: 0 | S139: =IF(ABS($K139-$C$8-Parameters!$C$21)>Parameters!$C$22,0,SQRT(Parameters!$C$22^2-($K139-$C$8-Parameters!$C$21)^2)) -> 0 | T139: =IF(ABS($K139-$C$8-Parameters!$C$21)>Parameters!$C$22,0,-SQRT(Parameters!$C$22^2-($K139-$C$8-Parameters!$C$21)^2)) -> 0
I140: 0.5891268421 | J140: 0.1823808011 | K140: 1.33 | L140: 2.667396525 | M140: 0.7366534868 | N140: =IF(ABS($K140-$C$8-Parameters!$C$21)>Parameters!$C$22,-100,IF($K140-$C$8-Parameters!$C$21<-Parameters!$C$23,Parameters!$C$24 + Parameters!$C$25 / (Parameters!$C$23 - Parameters!$C$22) * (($K140-$C$8-Parameters!$C$21) + Parameters!$C$23),IF($K140-$C$8-Parameters!$C$21<Parameters!$C$23,Parameters!$C$24,Parameters!$C$24 - Parameters!$C$25 / (Parameters!$C$23 - Parameters!$C$22) * (($K140-$C$8-Parameters!$C$21) - Parameters!$C$23)))) -> -100 | P140: 1.33 | Q140: 0 | R140: 0 | S140: =IF(ABS($K140-$C$8-Parameters!$C$21)>Parameters!$C$22,0,SQRT(Parameters!$C$22^2-($K140-$C$8-Parameters!$C$21)^2)) -> 0 | T140: =IF(ABS($K140-$C$8-Parameters!$C$21)>Parameters!$C$22,0,-SQRT(Parameters!$C$22^2-($K140-$C$8-Parameters!$C$21)^2)) -> 0
I141: 0.5935563672 | J141: 0.1837520854 | K141: 1.34 | L141: 2.674569191 | M141: 0.7409575508 | N141: =IF(ABS($K141-$C$8-Parameters!$C$21)>Parameters!$C$22,-100,IF($K141-$C$8-Parameters!$C$21<-Parameters!$C$23,Parameters!$C$24 + Parameters!$C$25 / (Parameters!$C$23 - Parameters!$C$22) * (($K141-$C$8-Parameters!$C$21) + Parameters!$C$23),IF($K141-$C$8-Parameters!$C$21<Parameters!$C$23,Parameters!$C$24,Parameters!$C$24 - Parameters!$C$25 / (Parameters!$C$23 - Parameters!$C$22) * (($K141-$C$8-Parameters!$C$21) - Parameters!$C$23)))) -> -100 | P141: 1.34 | Q141: 0 | R141: 0 | S141: =IF(ABS($K141-$C$8-Parameters!$C$21)>Parameters!$C$22,0,SQRT(Parameters!$C$22^2-($K141-$C$8-Parameters!$C$21)^2)) -> 0 | T141: =IF(ABS($K141-$C$8-Parameters!$C$21)>Parameters!$C$22,0,-SQRT(Parameters!$C$22^2-($K141-$C$8-Parameters!$C$21)^2)) -> 0
I142: 0.5979858924 | J142: 0.1851233696 | K142: 1.35 | L142: 2.681549575 | M142: 0.7452431866 | N142: =IF(ABS($K142-$C$8-Parameters!$C$21)>Parameters!$C$22,-100,IF($K142-$C$8-Parameters!$C$21<-Parameters!$C$23,Parameters!$C$24 + Parameters!$C$25 / (Parameters!$C$23 - Parameters!$C$22) * (($K142-$C$8-Parameters!$C$21) + Parameters!$C$23),IF($K142-$C$8-Parameters!$C$21<Parameters!$C$23,Parameters!$C$24,Parameters!$C$24 - Parameters!$C$25 / (Parameters!$C$23 - Parameters!$C$22) * (($K142-$C$8-Parameters!$C$21) - Parameters!$C$23)))) -> -100 | P142: 1.35 | Q142: 0 | R142: 0 | S142: =IF(ABS($K142-$C$8-Parameters!$C$21)>Parameters!$C$22,0,SQRT(Parameters!$C$22^2-($K142-$C$8-Parameters!$C$21)^2)) -> 0 | T142: =IF(ABS($K142-$C$8-Parameters!$C$21)>Parameters!$C$22,0,-SQRT(Parameters!$C$22^2-($K142-$C$8-Parameters!$C$21)^2)) -> 0
I143: 0.6024154175 | J143: 0.1864946538 | K143: 1.36 | L143: 2.688337675 | M143: 0.7495103944 | N143: =IF(ABS($K143-$C$8-Parameters!$C$21)>Parameters!$C$22,-100,IF($K143-$C$8-Parameters!$C$21<-Parameters!$C$23,Parameters!$C$24 + Parameters!$C$25 / (Parameters!$C$23 - Parameters!$C$22) * (($K143-$C$8-Parameters!$C$21) + Parameters!$C$23),IF($K143-$C$8-Parameters!$C$21<Parameters!$C$23,Parameters!$C$24,Parameters!$C$24 - Parameters!$C$25 / (Parameters!$C$23 - Parameters!$C$22) * (($K143-$C$8-Parameters!$C$21) - Parameters!$C$23)))) -> -100 | P143: 1.36 | Q143: 0 | R143: 0 | S143: =IF(ABS($K143-$C$8-Parameters!$C$21)>Parameters!$C$22,0,SQRT(Parameters!$C$22^2-($K143-$C$8-Parameters!$C$21)^2)) -> 0 | T143: =IF(ABS($K143-$C$8-Parameters!$C$21)>Parameters!$C$22,0,-SQRT(Parameters!$C$22^2-($K143-$C$8-Parameters!$C$21)^2)) -> 0
I144: 0.6068449426 | J144: 0.187865938 | K144: 1.37 | L144: 2.694933493 | M144: 0.753759174 | N144: =IF(ABS($K144-$C$8-Parameters!$C$21)>Parameters!$C$22,-100,IF($K144-$C$8-Parameters!$C$21<-Parameters!$C$23,Parameters!$C$24 + Parameters!$C$25 / (Parameters!$C$23 - Parameters!$C$22) * (($K144-$C$8-Parameters!$C$21) + Parameters!$C$23),IF($K144-$C$8-Parameters!$C$21<Parameters!$C$23,Parameters!$C$24,Parameters!$C$24 - Parameters!$C$25 / (Parameters!$C$23 - Parameters!$C$22) * (($K144-$C$8-Parameters!$C$21) - Parameters!$C$23)))) -> -100 | P144: 1.37 | Q144: 0 | R144: 0 | S144: =IF(ABS($K144-$C$8-Parameters!$C$21)>Parameters!$C$22,0,SQRT(Parameters!$C$22^2-($K144-$C$8-Parameters!$C$21)^2)) -> 0 | T144: =IF(ABS($K144-$C$8-Parameters!$C$21)>Parameters!$C$22,0,-SQRT(Parameters!$C$22^2-($K144-$C$8-Parameters!$C$21)^2)) -> 0
I145: 0.6112744678 | J145: 0.1892372222 | K145: 1.38 | L145: 2.701337028 | M145: 0.7579895255 | N145: =IF(ABS($K145-$C$8-Parameters!$C$21)>Parameters!$C$22,-100,IF($K145-$C$8-Parameters!$C$21<-Parameters!$C$23,Parameters!$C$24 + Parameters!$C$25 / (Parameters!$C$23 - Parameters!$C$22) * (($K145-$C$8-Parameters!$C$21) + Parameters!$C$23),IF($K145-$C$8-Parameters!$C$21<Parameters!$C$23,Parameters!$C$24,Parameters!$C$24 - Parameters!$C$25 / (Parameters!$C$23 - Parameters!$C$22) * (($K145-$C$8-Parameters!$C$21) - Parameters!$C$23)))) -> -100 | P145: 1.38 | Q145: 0 | R145: 0 | S145: =IF(ABS($K145-$C$8-Parameters!$C$21)>Parameters!$C$22,0,SQRT(Parameters!$C$22^2-($K145-$C$8-Parameters!$C$21)^2)) -> 0 | T145: =IF(ABS($K145-$C$8-Parameters!$C$21)>Parameters!$C$22,0,-SQRT(Parameters!$C$22^2-($K145-$C$8-Parameters!$C$21)^2)) -> 0
I146: 0.6157039929 | J146: 0.1906085065 | K146: 1.39 | L146: 2.70754828 | M146: 0.7622014489 | N146: =IF(ABS($K146-$C$8-Parameters!$C$21)>Parameters!$C$22,-100,IF($K146-$C$8-Parameters!$C$21<-Parameters!$C$23,Parameters!$C$24 + Parameters!$C$25 / (Parameters!$C$23 - Parameters!$C$22) * (($K146-$C$8-Parameters!$C$21) + Parameters!$C$23),IF($K146-$C$8-Parameters!$C$21<Parameters!$C$23,Parameters!$C$24,Parameters!$C$24 - Parameters!$C$25 / (Parameters!$C$23 - Parameters!$C$22) * (($K146-$C$8-Parameters!$C$21) - Parameters!$C$23)))) -> -100 | P146: 1.39 | Q146: 0 | R146: 0 | S146: =IF(ABS($K146-$C$8-Parameters!$C$21)>Parameters!$C$22,0,SQRT(Parameters!$C$22^2-($K146-$C$8-Parameters!$C$21)^2)) -> 0 | T146: =IF(ABS($K146-$C$8-Parameters!$C$21)>Parameters!$C$22,0,-SQRT(Parameters!$C$22^2-($K146-$C$8-Parameters!$C$21)^2)) -> 0
I147: 0.620133518 | J147: 0.1919797907 | K147: 1.4 | L147: 2.713567249 | M147: 0.7663949441 | N147: =IF(ABS($K147-$C$8-Parameters!$C$21)>Parameters!$C$22,-100,IF($K147-$C$8-Parameters!$C$21<-Parameters!$C$23,Parameters!$C$24 + Parameters!$C$25 / (Parameters!$C$23 - Parameters!$C$22) * (($K147-$C$8-Parameters!$C$21) + Parameters!$C$23),IF($K147-$C$8-Parameters!$C$21<Parameters!$C$23,Parameters!$C$24,Parameters!$C$24 - Parameters!$C$25 / (Parameters!$C$23 - Parameters!$C$22) * (($K147-$C$8-Parameters!$C$21) - Parameters!$C$23)))) -> -100 | P147: 1.4 | Q147: 0 | R147: 0 | S147: =IF(ABS($K147-$C$8-Parameters!$C$21)>Parameters!$C$22,0,SQRT(Parameters!$C$22^2-($K147-$C$8-Parameters!$C$21)^2)) -> 0 | T147: =IF(ABS($K147-$C$8-Parameters!$C$21)>Parameters!$C$22,0,-SQRT(Parameters!$C$22^2-($K147-$C$8-Parameters!$C$21)^2)) -> 0
I148: 0.6245630431 | J148: 0.1933510749 | K148: 1.41 | L148: 2.719393935 | M148: 0.7705700113 | N148: =IF(ABS($K148-$C$8-Parameters!$C$21)>Parameters!$C$22,-100,IF($K148-$C$8-Parameters!$C$21<-Parameters!$C$23,Parameters!$C$24 + Parameters!$C$25 / (Parameters!$C$23 - Parameters!$C$22) * (($K148-$C$8-Parameters!$C$21) + Parameters!$C$23),IF($K148-$C$8-Parameters!$C$21<Parameters!$C$23,Parameters!$C$24,Parameters!$C$24 - Parameters!$C$25 / (Parameters!$C$23 - Parameters!$C$22) * (($K148-$C$8-Parameters!$C$21) - Parameters!$C$23)))) -> -100 | P148: 1.41 | Q148: 0 | R148: 0 | S148: =IF(ABS($K148-$C$8-Parameters!$C$21)>Parameters!$C$22,0,SQRT(Parameters!$C$22^2-($K148-$C$8-Parameters!$C$21)^2)) -> 0 | T148: =IF(ABS($K148-$C$8-Parameters!$C$21)>Parameters!$C$22,0,-SQRT(Parameters!$C$22^2-($K148-$C$8-Parameters!$C$21)^2)) -> 0
I149: 0.6289925683 | J149: 0.1947223591 | K149: 1.42 | L149: 2.725028339 | M149: 0.7747266503 | N149: =IF(ABS($K149-$C$8-Parameters!$C$21)>Parameters!$C$22,-100,IF($K149-$C$8-Parameters!$C$21<-Parameters!$C$23,Parameters!$C$24 + Parameters!$C$25 / (Parameters!$C$23 - Parameters!$C$22) * (($K149-$C$8-Parameters!$C$21) + Parameters!$C$23),IF($K149-$C$8-Parameters!$C$21<Parameters!$C$23,Parameters!$C$24,Parameters!$C$24 - Parameters!$C$25 / (Parameters!$C$23 - Parameters!$C$22) * (($K149-$C$8-Parameters!$C$21) - Parameters!$C$23)))) -> -100 | P149: 1.42 | Q149: 0 | R149: 0 | S149: =IF(ABS($K149-$C$8-Parameters!$C$21)>Parameters!$C$22,0,SQRT(Parameters!$C$22^2-($K149-$C$8-Parameters!$C$21)^2)) -> 0 | T149: =IF(ABS($K149-$C$8-Parameters!$C$21)>Parameters!$C$22,0,-SQRT(Parameters!$C$22^2-($K149-$C$8-Parameters!$C$21)^2)) -> 0
I150: 0.6334220934 | J150: 0.1960936433 | K150: 1.43 | L150: 2.73047046 | M150: 0.7788648612 | N150: =IF(ABS($K150-$C$8-Parameters!$C$21)>Parameters!$C$22,-100,IF($K150-$C$8-Parameters!$C$21<-Parameters!$C$23,Parameters!$C$24 + Parameters!$C$25 / (Parameters!$C$23 - Parameters!$C$22) * (($K150-$C$8-Parameters!$C$21) + Parameters!$C$23),IF($K150-$C$8-Parameters!$C$21<Parameters!$C$23,Parameters!$C$24,Parameters!$C$24 - Parameters!$C$25 / (Parameters!$C$23 - Parameters!$C$22) * (($K150-$C$8-Parameters!$C$21) - Parameters!$C$23)))) -> -100 | P150: 1.43 | Q150: 0 | R150: 0 | S150: =IF(ABS($K150-$C$8-Parameters!$C$21)>Parameters!$C$22,0,SQRT(Parameters!$C$22^2-($K150-$C$8-Parameters!$C$21)^2)) -> 0 | T150: =IF(ABS($K150-$C$8-Parameters!$C$21)>Parameters!$C$22,0,-SQRT(Parameters!$C$22^2-($K150-$C$8-Parameters!$C$21)^2)) -> 0
I151: 0.6378516185 | J151: 0.1974649275 | K151: 1.44 | L151: 2.735720298 | M151: 0.782984644 | N151: =IF(ABS($K151-$C$8-Parameters!$C$21)>Parameters!$C$22,-100,IF($K151-$C$8-Parameters!$C$21<-Parameters!$C$23,Parameters!$C$24 + Parameters!$C$25 / (Parameters!$C$23 - Parameters!$C$22) * (($K151-$C$8-Parameters!$C$21) + Parameters!$C$23),IF($K151-$C$8-Parameters!$C$21<Parameters!$C$23,Parameters!$C$24,Parameters!$C$24 - Parameters!$C$25 / (Parameters!$C$23 - Parameters!$C$22) * (($K151-$C$8-Parameters!$C$21) - Parameters!$C$23)))) -> -100 | P151: 1.44 | Q151: 0 | R151: 0 | S151: =IF(ABS($K151-$C$8-Parameters!$C$21)>Parameters!$C$22,0,SQRT(Parameters!$C$22^2-($K151-$C$8-Parameters!$C$21)^2)) -> 0 | T151: =IF(ABS($K151-$C$8-Parameters!$C$21)>Parameters!$C$22,0,-SQRT(Parameters!$C$22^2-($K151-$C$8-Parameters!$C$21)^2)) -> 0
I152: 0.6422811437 | J152: 0.1988362118 | K152: 1.45 | L152: 2.740777854 | M152: 0.7870859986 | N152: =IF(ABS($K152-$C$8-Parameters!$C$21)>Parameters!$C$22,-100,IF($K152-$C$8-Parameters!$C$21<-Parameters!$C$23,Parameters!$C$24 + Parameters!$C$25 / (Parameters!$C$23 - Parameters!$C$22) * (($K152-$C$8-Parameters!$C$21) + Parameters!$C$23),IF($K152-$C$8-Parameters!$C$21<Parameters!$C$23,Parameters!$C$24,Parameters!$C$24 - Parameters!$C$25 / (Parameters!$C$23 - Parameters!$C$22) * (($K152-$C$8-Parameters!$C$21) - Parameters!$C$23)))) -> -100 | P152: 1.45 | Q152: 0 | R152: 0 | S152: =IF(ABS($K152-$C$8-Parameters!$C$21)>Parameters!$C$22,0,SQRT(Parameters!$C$22^2-($K152-$C$8-Parameters!$C$21)^2)) -> 0 | T152: =IF(ABS($K152-$C$8-Parameters!$C$21)>Parameters!$C$22,0,-SQRT(Parameters!$C$22^2-($K152-$C$8-Parameters!$C$21)^2)) -> 0
I153: 0.6467106688 | J153: 0.200207496 | K153: 1.46 | L153: 2.745643126 | M153: 0.7911689252 | N153: =IF(ABS($K153-$C$8-Parameters!$C$21)>Parameters!$C$22,-100,IF($K153-$C$8-Parameters!$C$21<-Parameters!$C$23,Parameters!$C$24 + Parameters!$C$25 / (Parameters!$C$23 - Parameters!$C$22) * (($K153-$C$8-Parameters!$C$21) + Parameters!$C$23),IF($K153-$C$8-Parameters!$C$21<Parameters!$C$23,Parameters!$C$24,Parameters!$C$24 - Parameters!$C$25 / (Parameters!$C$23 - Parameters!$C$22) * (($K153-$C$8-Parameters!$C$21) - Parameters!$C$23)))) -> -100 | P153: 1.46 | Q153: 0 | R153: 0 | S153: =IF(ABS($K153-$C$8-Parameters!$C$21)>Parameters!$C$22,0,SQRT(Parameters!$C$22^2-($K153-$C$8-Parameters!$C$21)^2)) -> 0 | T153: =IF(ABS($K153-$C$8-Parameters!$C$21)>Parameters!$C$22,0,-SQRT(Parameters!$C$22^2-($K153-$C$8-Parameters!$C$21)^2)) -> 0
I154: 0.6511401939 | J154: 0.2015787802 | K154: 1.47 | L154: 2.750316116 | M154: 0.7952334236 | N154: =IF(ABS($K154-$C$8-Parameters!$C$21)>Parameters!$C$22,-100,IF($K154-$C$8-Parameters!$C$21<-Parameters!$C$23,Parameters!$C$24 + Parameters!$C$25 / (Parameters!$C$23 - Parameters!$C$22) * (($K154-$C$8-Parameters!$C$21) + Parameters!$C$23),IF($K154-$C$8-Parameters!$C$21<Parameters!$C$23,Parameters!$C$24,Parameters!$C$24 - Parameters!$C$25 / (Parameters!$C$23 - Parameters!$C$22) * (($K154-$C$8-Parameters!$C$21) - Parameters!$C$23)))) -> -100 | P154: 1.47 | Q154: 0 | R154: 0 | S154: =IF(ABS($K154-$C$8-Parameters!$C$21)>Parameters!$C$22,0,SQRT(Parameters!$C$22^2-($K154-$C$8-Parameters!$C$21)^2)) -> 0 | T154: =IF(ABS($K154-$C$8-Parameters!$C$21)>Parameters!$C$22,0,-SQRT(Parameters!$C$22^2-($K154-$C$8-Parameters!$C$21)^2)) -> 0
I155: 0.655569719 | J155: 0.2029500644 | K155: 1.48 | L155: 2.754796823 | M155: 0.7992794939 | N155: =IF(ABS($K155-$C$8-Parameters!$C$21)>Parameters!$C$22,-100,IF($K155-$C$8-Parameters!$C$21<-Parameters!$C$23,Parameters!$C$24 + Parameters!$C$25 / (Parameters!$C$23 - Parameters!$C$22) * (($K155-$C$8-Parameters!$C$21) + Parameters!$C$23),IF($K155-$C$8-Parameters!$C$21<Parameters!$C$23,Parameters!$C$24,Parameters!$C$24 - Parameters!$C$25 / (Parameters!$C$23 - Parameters!$C$22) * (($K155-$C$8-Parameters!$C$21) - Parameters!$C$23)))) -> -100 | P155: 1.48 | Q155: 0 | R155: 0 | S155: =IF(ABS($K155-$C$8-Parameters!$C$21)>Parameters!$C$22,0,SQRT(Parameters!$C$22^2-($K155-$C$8-Parameters!$C$21)^2)) -> 0 | T155: =IF(ABS($K155-$C$8-Parameters!$C$21)>Parameters!$C$22,0,-SQRT(Parameters!$C$22^2-($K155-$C$8-Parameters!$C$21)^2)) -> 0
I156: 0.6599992442 | J156: 0.2043213486 | K156: 1.49 | L156: 2.759085247 | M156: 0.8033071361 | N156: =IF(ABS($K156-$C$8-Parameters!$C$21)>Parameters!$C$22,-100,IF($K156-$C$8-Parameters!$C$21<-Parameters!$C$23,Parameters!$C$24 + Parameters!$C$25 / (Parameters!$C$23 - Parameters!$C$22) * (($K156-$C$8-Parameters!$C$21) + Parameters!$C$23),IF($K156-$C$8-Parameters!$C$21<Parameters!$C$23,Parameters!$C$24,Parameters!$C$24 - Parameters!$C$25 / (Parameters!$C$23 - Parameters!$C$22) * (($K156-$C$8-Parameters!$C$21) - Parameters!$C$23)))) -> -100 | P156: 1.49 | Q156: 0 | R156: 0 | S156: =IF(ABS($K156-$C$8-Parameters!$C$21)>Parameters!$C$22,0,SQRT(Parameters!$C$22^2-($K156-$C$8-Parameters!$C$21)^2)) -> 0 | T156: =IF(ABS($K156-$C$8-Parameters!$C$21)>Parameters!$C$22,0,-SQRT(Parameters!$C$22^2-($K156-$C$8-Parameters!$C$21)^2)) -> 0
I157: 0.6644287693 | J157: 0.2056926329 | K157: 1.5 | L157: 2.763181388 | M157: 0.8073163501 | N157: =IF(ABS($K157-$C$8-Parameters!$C$21)>Parameters!$C$22,-100,IF($K157-$C$8-Parameters!$C$21<-Parameters!$C$23,Parameters!$C$24 + Parameters!$C$25 / (Parameters!$C$23 - Parameters!$C$22) * (($K157-$C$8-Parameters!$C$21) + Parameters!$C$23),IF($K157-$C$8-Parameters!$C$21<Parameters!$C$23,Parameters!$C$24,Parameters!$C$24 - Parameters!$C$25 / (Parameters!$C$23 - Parameters!$C$22) * (($K157-$C$8-Parameters!$C$21) - Parameters!$C$23)))) -> -100 | P157: 1.5 | Q157: 0 | R157: 0 | S157: =IF(ABS($K157-$C$8-Parameters!$C$21)>Parameters!$C$22,0,SQRT(Parameters!$C$22^2-($K157-$C$8-Parameters!$C$21)^2)) -> 0 | T157: =IF(ABS($K157-$C$8-Parameters!$C$21)>Parameters!$C$22,0,-SQRT(Parameters!$C$22^2-($K157-$C$8-Parameters!$C$21)^2)) -> 0
I158: 0.6688582944 | J158: 0.2070639171 | K158: 1.51 | L158: 2.767085247 | M158: 0.8113071361 | N158: =IF(ABS($K158-$C$8-Parameters!$C$21)>Parameters!$C$22,-100,IF($K158-$C$8-Parameters!$C$21<-Parameters!$C$23,Parameters!$C$24 + Parameters!$C$25 / (Parameters!$C$23 - Parameters!$C$22) * (($K158-$C$8-Parameters!$C$21) + Parameters!$C$23),IF($K158-$C$8-Parameters!$C$21<Parameters!$C$23,Parameters!$C$24,Parameters!$C$24 - Parameters!$C$25 / (Parameters!$C$23 - Parameters!$C$22) * (($K158-$C$8-Parameters!$C$21) - Parameters!$C$23)))) -> -100 | P158: 1.51 | Q158: 0 | R158: 0 | S158: =IF(ABS($K158-$C$8-Parameters!$C$21)>Parameters!$C$22,0,SQRT(Parameters!$C$22^2-($K158-$C$8-Parameters!$C$21)^2)) -> 0 | T158: =IF(ABS($K158-$C$8-Parameters!$C$21)>Parameters!$C$22,0,-SQRT(Parameters!$C$22^2-($K158-$C$8-Parameters!$C$21)^2)) -> 0
I159: 0.6732878196 | J159: 0.2084352013 | K159: 1.52 | L159: 2.770796823 | M159: 0.8152794939 | N159: =IF(ABS($K159-$C$8-Parameters!$C$21)>Parameters!$C$22,-100,IF($K159-$C$8-Parameters!$C$21<-Parameters!$C$23,Parameters!$C$24 + Parameters!$C$25 / (Parameters!$C$23 - Parameters!$C$22) * (($K159-$C$8-Parameters!$C$21) + Parameters!$C$23),IF($K159-$C$8-Parameters!$C$21<Parameters!$C$23,Parameters!$C$24,Parameters!$C$24 - Parameters!$C$25 / (Parameters!$C$23 - Parameters!$C$22) * (($K159-$C$8-Parameters!$C$21) - Parameters!$C$23)))) -> -100 | P159: 1.52 | Q159: 0 | R159: 0 | S159: =IF(ABS($K159-$C$8-Parameters!$C$21)>Parameters!$C$22,0,SQRT(Parameters!$C$22^2-($K159-$C$8-Parameters!$C$21)^2)) -> 0 | T159: =IF(ABS($K159-$C$8-Parameters!$C$21)>Parameters!$C$22,0,-SQRT(Parameters!$C$22^2-($K159-$C$8-Parameters!$C$21)^2)) -> 0
I160: 0.6777173447 | J160: 0.2098064855 | K160: 1.53 | L160: 2.774316116 | M160: 0.8192334236 | N160: =IF(ABS($K160-$C$8-Parameters!$C$21)>Parameters!$C$22,-100,IF($K160-$C$8-Parameters!$C$21<-Parameters!$C$23,Parameters!$C$24 + Parameters!$C$25 / (Parameters!$C$23 - Parameters!$C$22) * (($K160-$C$8-Parameters!$C$21) + Parameters!$C$23),IF($K160-$C$8-Parameters!$C$21<Parameters!$C$23,Parameters!$C$24,Parameters!$C$24 - Parameters!$C$25 / (Parameters!$C$23 - Parameters!$C$22) * (($K160-$C$8-Parameters!$C$21) - Parameters!$C$23)))) -> -100 | P160: 1.53 | Q160: 0 | R160: 0 | S160: =IF(ABS($K160-$C$8-Parameters!$C$21)>Parameters!$C$22,0,SQRT(Parameters!$C$22^2-($K160-$C$8-Parameters!$C$21)^2)) -> 0 | T160: =IF(ABS($K160-$C$8-Parameters!$C$21)>Parameters!$C$22,0,-SQRT(Parameters!$C$22^2-($K160-$C$8-Parameters!$C$21)^2)) -> 0
I161: 0.6821468698 | J161: 0.2111777697 | K161: 1.54 | L161: 2.777643126 | M161: 0.8231689252 | N161: =IF(ABS($K161-$C$8-Parameters!$C$21)>Parameters!$C$22,-100,IF($K161-$C$8-Parameters!$C$21<-Parameters!$C$23,Parameters!$C$24 + Parameters!$C$25 / (Parameters!$C$23 - Parameters!$C$22) * (($K161-$C$8-Parameters!$C$21) + Parameters!$C$23),IF($K161-$C$8-Parameters!$C$21<Parameters!$C$23,Parameters!$C$24,Parameters!$C$24 - Parameters!$C$25 / (Parameters!$C$23 - Parameters!$C$22) * (($K161-$C$8-Parameters!$C$21) - Parameters!$C$23)))) -> -100 | P161: 1.54 | Q161: 0 | R161: 0 | S161: =IF(ABS($K161-$C$8-Parameters!$C$21)>Parameters!$C$22,0,SQRT(Parameters!$C$22^2-($K161-$C$8-Parameters!$C$21)^2)) -> 0 | T161: =IF(ABS($K161-$C$8-Parameters!$C$21)>Parameters!$C$22,0,-SQRT(Parameters!$C$22^2-($K161-$C$8-Parameters!$C$21)^2)) -> 0
I162: 0.6865763949 | J162: 0.212549054 | K162: 1.55 | L162: 2.780777854 | M162: 0.8270859986 | N162: =IF(ABS($K162-$C$8-Parameters!$C$21)>Parameters!$C$22,-100,IF($K162-$C$8-Parameters!$C$21<-Parameters!$C$23,Parameters!$C$24 + Parameters!$C$25 / (Parameters!$C$23 - Parameters!$C$22) * (($K162-$C$8-Parameters!$C$21) + Parameters!$C$23),IF($K162-$C$8-Parameters!$C$21<Parameters!$C$23,Parameters!$C$24,Parameters!$C$24 - Parameters!$C$25 / (Parameters!$C$23 - Parameters!$C$22) * (($K162-$C$8-Parameters!$C$21) - Parameters!$C$23)))) -> -100 | P162: 1.55 | Q162: 0 | R162: 0 | S162: =IF(ABS($K162-$C$8-Parameters!$C$21)>Parameters!$C$22,0,SQRT(Parameters!$C$22^2-($K162-$C$8-Parameters!$C$21)^2)) -> 0 | T162: =IF(ABS($K162-$C$8-Parameters!$C$21)>Parameters!$C$22,0,-SQRT(Parameters!$C$22^2-($K162-$C$8-Parameters!$C$21)^2)) -> 0
I163: 0.6910059201 | J163: 0.2139203382 | K163: 1.56 | L163: 2.783720298 | M163: 0.830984644 | N163: =IF(ABS($K163-$C$8-Parameters!$C$21)>Parameters!$C$22,-100,IF($K163-$C$8-Parameters!$C$21<-Parameters!$C$23,Parameters!$C$24 + Parameters!$C$25 / (Parameters!$C$23 - Parameters!$C$22) * (($K163-$C$8-Parameters!$C$21) + Parameters!$C$23),IF($K163-$C$8-Parameters!$C$21<Parameters!$C$23,Parameters!$C$24,Parameters!$C$24 - Parameters!$C$25 / (Parameters!$C$23 - Parameters!$C$22) * (($K163-$C$8-Parameters!$C$21) - Parameters!$C$23)))) -> -100 | P163: 1.56 | Q163: 0 | R163: 0 | S163: =IF(ABS($K163-$C$8-Parameters!$C$21)>Parameters!$C$22,0,SQRT(Parameters!$C$22^2-($K163-$C$8-Parameters!$C$21)^2)) -> 0 | T163: =IF(ABS($K163-$C$8-Parameters!$C$21)>Parameters!$C$22,0,-SQRT(Parameters!$C$22^2-($K163-$C$8-Parameters!$C$21)^2)) -> 0
I164: 0.6954354452 | J164: 0.2152916224 | K164: 1.57 | L164: 2.78647046 | M164: 0.8348648612 | N164: =IF(ABS($K164-$C$8-Parameters!$C$21)>Parameters!$C$22,-100,IF($K164-$C$8-Parameters!$C$21<-Parameters!$C$23,Parameters!$C$24 + Parameters!$C$25 / (Parameters!$C$23 - Parameters!$C$22) * (($K164-$C$8-Parameters!$C$21) + Parameters!$C$23),IF($K164-$C$8-Parameters!$C$21<Parameters!$C$23,Parameters!$C$24,Parameters!$C$24 - Parameters!$C$25 / (Parameters!$C$23 - Parameters!$C$22) * (($K164-$C$8-Parameters!$C$21) - Parameters!$C$23)))) -> -100 | P164: 1.57 | Q164: 0 | R164: 0 | S164: =IF(ABS($K164-$C$8-Parameters!$C$21)>Parameters!$C$22,0,SQRT(Parameters!$C$22^2-($K164-$C$8-Parameters!$C$21)^2)) -> 0 | T164: =IF(ABS($K164-$C$8-Parameters!$C$21)>Parameters!$C$22,0,-SQRT(Parameters!$C$22^2-($K164-$C$8-Parameters!$C$21)^2)) -> 0
I165: 0.6998649703 | J165: 0.2166629066 | K165: 1.58 | L165: 2.789028339 | M165: 0.8387266503 | N165: =IF(ABS($K165-$C$8-Parameters!$C$21)>Parameters!$C$22,-100,IF($K165-$C$8-Parameters!$C$21<-Parameters!$C$23,Parameters!$C$24 + Parameters!$C$25 / (Parameters!$C$23 - Parameters!$C$22) * (($K165-$C$8-Parameters!$C$21) + Parameters!$C$23),IF($K165-$C$8-Parameters!$C$21<Parameters!$C$23,Parameters!$C$24,Parameters!$C$24 - Parameters!$C$25 / (Parameters!$C$23 - Parameters!$C$22) * (($K165-$C$8-Parameters!$C$21) - Parameters!$C$23)))) -> -100 | P165: 1.58 | Q165: 0 | R165: 0 | S165: =IF(ABS($K165-$C$8-Parameters!$C$21)>Parameters!$C$22,0,SQRT(Parameters!$C$22^2-($K165-$C$8-Parameters!$C$21)^2)) -> 0 | T165: =IF(ABS($K165-$C$8-Parameters!$C$21)>Parameters!$C$22,0,-SQRT(Parameters!$C$22^2-($K165-$C$8-Parameters!$C$21)^2)) -> 0
I166: 0.7042944955 | J166: 0.2180341908 | K166: 1.59 | L166: 2.791393935 | M166: 0.8425700113 | N166: =IF(ABS($K166-$C$8-Parameters!$C$21)>Parameters!$C$22,-100,IF($K166-$C$8-Parameters!$C$21<-Parameters!$C$23,Parameters!$C$24 + Parameters!$C$25 / (Parameters!$C$23 - Parameters!$C$22) * (($K166-$C$8-Parameters!$C$21) + Parameters!$C$23),IF($K166-$C$8-Parameters!$C$21<Parameters!$C$23,Parameters!$C$24,Parameters!$C$24 - Parameters!$C$25 / (Parameters!$C$23 - Parameters!$C$22) * (($K166-$C$8-Parameters!$C$21) - Parameters!$C$23)))) -> -100 | P166: 1.59 | Q166: 0 | R166: 0 | S166: =IF(ABS($K166-$C$8-Parameters!$C$21)>Parameters!$C$22,0,SQRT(Parameters!$C$22^2-($K166-$C$8-Parameters!$C$21)^2)) -> 0 | T166: =IF(ABS($K166-$C$8-Parameters!$C$21)>Parameters!$C$22,0,-SQRT(Parameters!$C$22^2-($K166-$C$8-Parameters!$C$21)^2)) -> 0
I167: =K167/$L$2 -> 0.7087240206 | J167: =K167/$M$2 -> 0.2194054751 | K167: 1.6 | L167: =L$3*I167-0.5*$C$9*I167^2 -> 2.793567249 | M167: =M$3*J167-0.5*$C$9*J167^2 -> 0.8463949441 | N167: =IF(ABS($K167-$C$8-Parameters!$C$21)>Parameters!$C$22,-100,IF($K167-$C$8-Parameters!$C$21<-Parameters!$C$23,Parameters!$C$24 + Parameters!$C$25 / (Parameters!$C$23 - Parameters!$C$22) * (($K167-$C$8-Parameters!$C$21) + Parameters!$C$23),IF($K167-$C$8-Parameters!$C$21<Parameters!$C$23,Parameters!$C$24,Parameters!$C$24 - Parameters!$C$25 / (Parameters!$C$23 - Parameters!$C$22) * (($K167-$C$8-Parameters!$C$21) - Parameters!$C$23)))) -> -100 | P167: 1.6 | Q167: 0 | R167: 0 | S167: =IF(ABS($K167-$C$8-Parameters!$C$21)>Parameters!$C$22,0,SQRT(Parameters!$C$22^2-($K167-$C$8-Parameters!$C$21)^2)) -> 0 | T167: =IF(ABS($K167-$C$8-Parameters!$C$21)>Parameters!$C$22,0,-SQRT(Parameters!$C$22^2-($K167-$C$8-Parameters!$C$21)^2)) -> 0
I168: 0.7131535457 | J168: 0.2207767593 | K168: 1.61 | L168: 2.79554828 | M168: 0.8502014489 | N168: =IF(ABS($K168-$C$8-Parameters!$C$21)>Parameters!$C$22,-100,IF($K168-$C$8-Parameters!$C$21<-Parameters!$C$23,Parameters!$C$24 + Parameters!$C$25 / (Parameters!$C$23 - Parameters!$C$22) * (($K168-$C$8-Parameters!$C$21) + Parameters!$C$23),IF($K168-$C$8-Parameters!$C$21<Parameters!$C$23,Parameters!$C$24,Parameters!$C$24 - Parameters!$C$25 / (Parameters!$C$23 - Parameters!$C$22) * (($K168-$C$8-Parameters!$C$21) - Parameters!$C$23)))) -> -100 | P168: 1.61 | Q168: 0 | R168: 0 | S168: =IF(ABS($K168-$C$8-Parameters!$C$21)>Parameters!$C$22,0,SQRT(Parameters!$C$22^2-($K168-$C$8-Parameters!$C$21)^2)) -> 0 | T168: =IF(ABS($K168-$C$8-Parameters!$C$21)>Parameters!$C$22,0,-SQRT(Parameters!$C$22^2-($K168-$C$8-Parameters!$C$21)^2)) -> 0
I169: 0.7175830708 | J169: 0.2221480435 | K169: 1.62 | L169: 2.797337028 | M169: 0.8539895255 | N169: =IF(ABS($K169-$C$8-Parameters!$C$21)>Parameters!$C$22,-100,IF($K169-$C$8-Parameters!$C$21<-Parameters!$C$23,Parameters!$C$24 + Parameters!$C$25 / (Parameters!$C$23 - Parameters!$C$22) * (($K169-$C$8-Parameters!$C$21) + Parameters!$C$23),IF($K169-$C$8-Parameters!$C$21<Parameters!$C$23,Parameters!$C$24,Parameters!$C$24 - Parameters!$C$25 / (Parameters!$C$23 - Parameters!$C$22) * (($K169-$C$8-Parameters!$C$21) - Parameters!$C$23)))) -> -100 | P169: 1.62 | Q169: 0 | R169: 0 | S169: =IF(ABS($K169-$C$8-Parameters!$C$21)>Parameters!$C$22,0,SQRT(Parameters!$C$22^2-($K169-$C$8-Parameters!$C$21)^2)) -> 0 | T169: =IF(ABS($K169-$C$8-Parameters!$C$21)>Parameters!$C$22,0,-SQRT(Parameters!$C$22^2-($K169-$C$8-Parameters!$C$21)^2)) -> 0
I170: 0.722012596 | J170: 0.2235193277 | K170: 1.63 | L170: 2.798933493 | M170: 0.857759174 | N170: =IF(ABS($K170-$C$8-Parameters!$C$21)>Parameters!$C$22,-100,IF($K170-$C$8-Parameters!$C$21<-Parameters!$C$23,Parameters!$C$24 + Parameters!$C$25 / (Parameters!$C$23 - Parameters!$C$22) * (($K170-$C$8-Parameters!$C$21) + Parameters!$C$23),IF($K170-$C$8-Parameters!$C$21<Parameters!$C$23,Parameters!$C$24,Parameters!$C$24 - Parameters!$C$25 / (Parameters!$C$23 - Parameters!$C$22) * (($K170-$C$8-Parameters!$C$21) - Parameters!$C$23)))) -> -100 | P170: 1.63 | Q170: 0 | R170: 0 | S170: =IF(ABS($K170-$C$8-Parameters!$C$21)>Parameters!$C$22,0,SQRT(Parameters!$C$22^2-($K170-$C$8-Parameters!$C$21)^2)) -> 0 | T170: =IF(ABS($K170-$C$8-Parameters!$C$21)>Parameters!$C$22,0,-SQRT(Parameters!$C$22^2-($K170-$C$8-Parameters!$C$21)^2)) -> 0
I171: 0.7264421211 | J171: 0.2248906119 | K171: 1.64 | L171: 2.800337675 | M171: 0.8615103944 | N171: =IF(ABS($K171-$C$8-Parameters!$C$21)>Parameters!$C$22,-100,IF($K171-$C$8-Parameters!$C$21<-Parameters!$C$23,Parameters!$C$24 + Parameters!$C$25 / (Parameters!$C$23 - Parameters!$C$22) * (($K171-$C$8-Parameters!$C$21) + Parameters!$C$23),IF($K171-$C$8-Parameters!$C$21<Parameters!$C$23,Parameters!$C$24,Parameters!$C$24 - Parameters!$C$25 / (Parameters!$C$23 - Parameters!$C$22) * (($K171-$C$8-Parameters!$C$21) - Parameters!$C$23)))) -> -100 | P171: 1.64 | Q171: 0 | R171: 0 | S171: =IF(ABS($K171-$C$8-Parameters!$C$21)>Parameters!$C$22,0,SQRT(Parameters!$C$22^2-($K171-$C$8-Parameters!$C$21)^2)) -> 0 | T171: =IF(ABS($K171-$C$8-Parameters!$C$21)>Parameters!$C$22,0,-SQRT(Parameters!$C$22^2-($K171-$C$8-Parameters!$C$21)^2)) -> 0
I172: 0.7308716462 | J172: 0.2262618961 | K172: 1.65 | L172: 2.801549575 | M172: 0.8652431866 | N172: =IF(ABS($K172-$C$8-Parameters!$C$21)>Parameters!$C$22,-100,IF($K172-$C$8-Parameters!$C$21<-Parameters!$C$23,Parameters!$C$24 + Parameters!$C$25 / (Parameters!$C$23 - Parameters!$C$22) * (($K172-$C$8-Parameters!$C$21) + Parameters!$C$23),IF($K172-$C$8-Parameters!$C$21<Parameters!$C$23,Parameters!$C$24,Parameters!$C$24 - Parameters!$C$25 / (Parameters!$C$23 - Parameters!$C$22) * (($K172-$C$8-Parameters!$C$21) - Parameters!$C$23)))) -> -100 | P172: 1.65 | Q172: 0 | R172: 0 | S172: =IF(ABS($K172-$C$8-Parameters!$C$21)>Parameters!$C$22,0,SQRT(Parameters!$C$22^2-($K172-$C$8-Parameters!$C$21)^2)) -> 0 | T172: =IF(ABS($K172-$C$8-Parameters!$C$21)>Parameters!$C$22,0,-SQRT(Parameters!$C$22^2-($K172-$C$8-Parameters!$C$21)^2)) -> 0
I173: 0.7353011714 | J173: 0.2276331804 | K173: 1.66 | L173: 2.802569191 | M173: 0.8689575508 | N173: =IF(ABS($K173-$C$8-Parameters!$C$21)>Parameters!$C$22,-100,IF($K173-$C$8-Parameters!$C$21<-Parameters!$C$23,Parameters!$C$24 + Parameters!$C$25 / (Parameters!$C$23 - Parameters!$C$22) * (($K173-$C$8-Parameters!$C$21) + Parameters!$C$23),IF($K173-$C$8-Parameters!$C$21<Parameters!$C$23,Parameters!$C$24,Parameters!$C$24 - Parameters!$C$25 / (Parameters!$C$23 - Parameters!$C$22) * (($K173-$C$8-Parameters!$C$21) - Parameters!$C$23)))) -> -100 | P173: 1.66 | Q173: 0 | R173: 0 | S173: =IF(ABS($K173-$C$8-Parameters!$C$21)>Parameters!$C$22,0,SQRT(Parameters!$C$22^2-($K173-$C$8-Parameters!$C$21)^2)) -> 0 | T173: =IF(ABS($K173-$C$8-Parameters!$C$21)>Parameters!$C$22,0,-SQRT(Parameters!$C$22^2-($K173-$C$8-Parameters!$C$21)^2)) -> 0
I174: 0.7397306965 | J174: 0.2290044646 | K174: 1.67 | L174: 2.803396525 | M174: 0.8726534868 | N174: =IF(ABS($K174-$C$8-Parameters!$C$21)>Parameters!$C$22,-100,IF($K174-$C$8-Parameters!$C$21<-Parameters!$C$23,Parameters!$C$24 + Parameters!$C$25 / (Parameters!$C$23 - Parameters!$C$22) * (($K174-$C$8-Parameters!$C$21) + Parameters!$C$23),IF($K174-$C$8-Parameters!$C$21<Parameters!$C$23,Parameters!$C$24,Parameters!$C$24 - Parameters!$C$25 / (Parameters!$C$23 - Parameters!$C$22) * (($K174-$C$8-Parameters!$C$21) - Parameters!$C$23)))) -> -100 | P174: 1.67 | Q174: 0 | R174: 0 | S174: =IF(ABS($K174-$C$8-Parameters!$C$21)>Parameters!$C$22,0,SQRT(Parameters!$C$22^2-($K174-$C$8-Parameters!$C$21)^2)) -> 0 | T174: =IF(ABS($K174-$C$8-Parameters!$C$21)>Parameters!$C$22,0,-SQRT(Parameters!$C$22^2-($K174-$C$8-Parameters!$C$21)^2)) -> 0
I175: 0.7441602216 | J175: 0.2303757488 | K175: 1.68 | L175: 2.804031576 | M175: 0.8763309947 | N175: =IF(ABS($K175-$C$8-Parameters!$C$21)>Parameters!$C$22,-100,IF($K175-$C$8-Parameters!$C$21<-Parameters!$C$23,Parameters!$C$24 + Parameters!$C$25 / (Parameters!$C$23 - Parameters!$C$22) * (($K175-$C$8-Parameters!$C$21) + Parameters!$C$23),IF($K175-$C$8-Parameters!$C$21<Parameters!$C$23,Parameters!$C$24,Parameters!$C$24 - Parameters!$C$25 / (Parameters!$C$23 - Parameters!$C$22) * (($K175-$C$8-Parameters!$C$21) - Parameters!$C$23)))) -> -100 | P175: 1.68 | Q175: 0 | R175: 0 | S175: =IF(ABS($K175-$C$8-Parameters!$C$21)>Parameters!$C$22,0,SQRT(Parameters!$C$22^2-($K175-$C$8-Parameters!$C$21)^2)) -> 0 | T175: =IF(ABS($K175-$C$8-Parameters!$C$21)>Parameters!$C$22,0,-SQRT(Parameters!$C$22^2-($K175-$C$8-Parameters!$C$21)^2)) -> 0
I176: 0.7485897468 | J176: 0.231747033 | K176: 1.69 | L176: 2.804474345 | M176: 0.8799900745 | N176: =IF(ABS($K176-$C$8-Parameters!$C$21)>Parameters!$C$22,-100,IF($K176-$C$8-Parameters!$C$21<-Parameters!$C$23,Parameters!$C$24 + Parameters!$C$25 / (Parameters!$C$23 - Parameters!$C$22) * (($K176-$C$8-Parameters!$C$21) + Parameters!$C$23),IF($K176-$C$8-Parameters!$C$21<Parameters!$C$23,Parameters!$C$24,Parameters!$C$24 - Parameters!$C$25 / (Parameters!$C$23 - Parameters!$C$22) * (($K176-$C$8-Parameters!$C$21) - Parameters!$C$23)))) -> -100 | P176: 1.69 | Q176: 0 | R176: 0 | S176: =IF(ABS($K176-$C$8-Parameters!$C$21)>Parameters!$C$22,0,SQRT(Parameters!$C$22^2-($K176-$C$8-Parameters!$C$21)^2)) -> 0 | T176: =IF(ABS($K176-$C$8-Parameters!$C$21)>Parameters!$C$22,0,-SQRT(Parameters!$C$22^2-($K176-$C$8-Parameters!$C$21)^2)) -> 0
I177: 0.7530192719 | J177: 0.2331183172 | K177: 1.7 | L177: 2.80472483 | M177: 0.8836307261 | N177: =IF(ABS($K177-$C$8-Parameters!$C$21)>Parameters!$C$22,-100,IF($K177-$C$8-Parameters!$C$21<-Parameters!$C$23,Parameters!$C$24 + Parameters!$C$25 / (Parameters!$C$23 - Parameters!$C$22) * (($K177-$C$8-Parameters!$C$21) + Parameters!$C$23),IF($K177-$C$8-Parameters!$C$21<Parameters!$C$23,Parameters!$C$24,Parameters!$C$24 - Parameters!$C$25 / (Parameters!$C$23 - Parameters!$C$22) * (($K177-$C$8-Parameters!$C$21) - Parameters!$C$23)))) -> -100 | P177: 1.7 | Q177: 0 | R177: 0 | S177: =IF(ABS($K177-$C$8-Parameters!$C$21)>Parameters!$C$22,0,SQRT(Parameters!$C$22^2-($K177-$C$8-Parameters!$C$21)^2)) -> 0 | T177: =IF(ABS($K177-$C$8-Parameters!$C$21)>Parameters!$C$22,0,-SQRT(Parameters!$C$22^2-($K177-$C$8-Parameters!$C$21)^2)) -> 0
I178: 0.757448797 | J178: 0.2344896015 | K178: 1.71 | L178: 2.804783033 | M178: 0.8872529497 | N178: =IF(ABS($K178-$C$8-Parameters!$C$21)>Parameters!$C$22,-100,IF($K178-$C$8-Parameters!$C$21<-Parameters!$C$23,Parameters!$C$24 + Parameters!$C$25 / (Parameters!$C$23 - Parameters!$C$22) * (($K178-$C$8-Parameters!$C$21) + Parameters!$C$23),IF($K178-$C$8-Parameters!$C$21<Parameters!$C$23,Parameters!$C$24,Parameters!$C$24 - Parameters!$C$25 / (Parameters!$C$23 - Parameters!$C$22) * (($K178-$C$8-Parameters!$C$21) - Parameters!$C$23)))) -> -100 | P178: 1.71 | Q178: 0 | R178: 0 | S178: =IF(ABS($K178-$C$8-Parameters!$C$21)>Parameters!$C$22,0,SQRT(Parameters!$C$22^2-($K178-$C$8-Parameters!$C$21)^2)) -> 0 | T178: =IF(ABS($K178-$C$8-Parameters!$C$21)>Parameters!$C$22,0,-SQRT(Parameters!$C$22^2-($K178-$C$8-Parameters!$C$21)^2)) -> 0
I179: 0.7618783221 | J179: 0.2358608857 | K179: 1.72 | L179: 2.804648953 | M179: 0.8908567451 | N179: =IF(ABS($K179-$C$8-Parameters!$C$21)>Parameters!$C$22,-100,IF($K179-$C$8-Parameters!$C$21<-Parameters!$C$23,Parameters!$C$24 + Parameters!$C$25 / (Parameters!$C$23 - Parameters!$C$22) * (($K179-$C$8-Parameters!$C$21) + Parameters!$C$23),IF($K179-$C$8-Parameters!$C$21<Parameters!$C$23,Parameters!$C$24,Parameters!$C$24 - Parameters!$C$25 / (Parameters!$C$23 - Parameters!$C$22) * (($K179-$C$8-Parameters!$C$21) - Parameters!$C$23)))) -> -100 | P179: 1.72 | Q179: 0 | R179: 0 | S179: =IF(ABS($K179-$C$8-Parameters!$C$21)>Parameters!$C$22,0,SQRT(Parameters!$C$22^2-($K179-$C$8-Parameters!$C$21)^2)) -> 0 | T179: =IF(ABS($K179-$C$8-Parameters!$C$21)>Parameters!$C$22,0,-SQRT(Parameters!$C$22^2-($K179-$C$8-Parameters!$C$21)^2)) -> 0
I180: 0.7663078473 | J180: 0.2372321699 | K180: 1.73 | L180: 2.80432259 | M180: 0.8944421124 | N180: =IF(ABS($K180-$C$8-Parameters!$C$21)>Parameters!$C$22,-100,IF($K180-$C$8-Parameters!$C$21<-Parameters!$C$23,Parameters!$C$24 + Parameters!$C$25 / (Parameters!$C$23 - Parameters!$C$22) * (($K180-$C$8-Parameters!$C$21) + Parameters!$C$23),IF($K180-$C$8-Parameters!$C$21<Parameters!$C$23,Parameters!$C$24,Parameters!$C$24 - Parameters!$C$25 / (Parameters!$C$23 - Parameters!$C$22) * (($K180-$C$8-Parameters!$C$21) - Parameters!$C$23)))) -> -100 | P180: 1.73 | Q180: 0 | R180: 0 | S180: =IF(ABS($K180-$C$8-Parameters!$C$21)>Parameters!$C$22,0,SQRT(Parameters!$C$22^2-($K180-$C$8-Parameters!$C$21)^2)) -> 0 | T180: =IF(ABS($K180-$C$8-Parameters!$C$21)>Parameters!$C$22,0,-SQRT(Parameters!$C$22^2-($K180-$C$8-Parameters!$C$21)^2)) -> 0
I181: 0.7707373724 | J181: 0.2386034541 | K181: 1.74 | L181: 2.803803945 | M181: 0.8980090516 | N181: =IF(ABS($K181-$C$8-Parameters!$C$21)>Parameters!$C$22,-100,IF($K181-$C$8-Parameters!$C$21<-Parameters!$C$23,Parameters!$C$24 + Parameters!$C$25 / (Parameters!$C$23 - Parameters!$C$22) * (($K181-$C$8-Parameters!$C$21) + Parameters!$C$23),IF($K181-$C$8-Parameters!$C$21<Parameters!$C$23,Parameters!$C$24,Parameters!$C$24 - Parameters!$C$25 / (Parameters!$C$23 - Parameters!$C$22) * (($K181-$C$8-Parameters!$C$21) - Parameters!$C$23)))) -> -100 | P181: 1.74 | Q181: 0 | R181: 0 | S181: =IF(ABS($K181-$C$8-Parameters!$C$21)>Parameters!$C$22,0,SQRT(Parameters!$C$22^2-($K181-$C$8-Parameters!$C$21)^2)) -> 0 | T181: =IF(ABS($K181-$C$8-Parameters!$C$21)>Parameters!$C$22,0,-SQRT(Parameters!$C$22^2-($K181-$C$8-Parameters!$C$21)^2)) -> 0
I182: 0.7751668975 | J182: 0.2399747383 | K182: 1.75 | L182: 2.803093017 | M182: 0.9015575626 | N182: =IF(ABS($K182-$C$8-Parameters!$C$21)>Parameters!$C$22,-100,IF($K182-$C$8-Parameters!$C$21<-Parameters!$C$23,Parameters!$C$24 + Parameters!$C$25 / (Parameters!$C$23 - Parameters!$C$22) * (($K182-$C$8-Parameters!$C$21) + Parameters!$C$23),IF($K182-$C$8-Parameters!$C$21<Parameters!$C$23,Parameters!$C$24,Parameters!$C$24 - Parameters!$C$25 / (Parameters!$C$23 - Parameters!$C$22) * (($K182-$C$8-Parameters!$C$21) - Parameters!$C$23)))) -> -100 | P182: 1.75 | Q182: 0 | R182: 0 | S182: =IF(ABS($K182-$C$8-Parameters!$C$21)>Parameters!$C$22,0,SQRT(Parameters!$C$22^2-($K182-$C$8-Parameters!$C$21)^2)) -> 0 | T182: =IF(ABS($K182-$C$8-Parameters!$C$21)>Parameters!$C$22,0,-SQRT(Parameters!$C$22^2-($K182-$C$8-Parameters!$C$21)^2)) -> 0
I183: 0.7795964227 | J183: 0.2413460226 | K183: 1.76 | L183: 2.802189805 | M183: 0.9050876456 | N183: =IF(ABS($K183-$C$8-Parameters!$C$21)>Parameters!$C$22,-100,IF($K183-$C$8-Parameters!$C$21<-Parameters!$C$23,Parameters!$C$24 + Parameters!$C$25 / (Parameters!$C$23 - Parameters!$C$22) * (($K183-$C$8-Parameters!$C$21) + Parameters!$C$23),IF($K183-$C$8-Parameters!$C$21<Parameters!$C$23,Parameters!$C$24,Parameters!$C$24 - Parameters!$C$25 / (Parameters!$C$23 - Parameters!$C$22) * (($K183-$C$8-Parameters!$C$21) - Parameters!$C$23)))) -> -100 | P183: 1.76 | Q183: 0 | R183: 0 | S183: =IF(ABS($K183-$C$8-Parameters!$C$21)>Parameters!$C$22,0,SQRT(Parameters!$C$22^2-($K183-$C$8-Parameters!$C$21)^2)) -> 0 | T183: =IF(ABS($K183-$C$8-Parameters!$C$21)>Parameters!$C$22,0,-SQRT(Parameters!$C$22^2-($K183-$C$8-Parameters!$C$21)^2)) -> 0
I184: 0.7840259478 | J184: 0.2427173068 | K184: 1.77 | L184: 2.801094311 | M184: 0.9085993004 | N184: =IF(ABS($K184-$C$8-Parameters!$C$21)>Parameters!$C$22,-100,IF($K184-$C$8-Parameters!$C$21<-Parameters!$C$23,Parameters!$C$24 + Parameters!$C$25 / (Parameters!$C$23 - Parameters!$C$22) * (($K184-$C$8-Parameters!$C$21) + Parameters!$C$23),IF($K184-$C$8-Parameters!$C$21<Parameters!$C$23,Parameters!$C$24,Parameters!$C$24 - Parameters!$C$25 / (Parameters!$C$23 - Parameters!$C$22) * (($K184-$C$8-Parameters!$C$21) - Parameters!$C$23)))) -> -100 | P184: 1.77 | Q184: 0 | R184: 0 | S184: =IF(ABS($K184-$C$8-Parameters!$C$21)>Parameters!$C$22,0,SQRT(Parameters!$C$22^2-($K184-$C$8-Parameters!$C$21)^2)) -> 0 | T184: =IF(ABS($K184-$C$8-Parameters!$C$21)>Parameters!$C$22,0,-SQRT(Parameters!$C$22^2-($K184-$C$8-Parameters!$C$21)^2)) -> 0
I185: 0.7884554729 | J185: 0.244088591 | K185: 1.78 | L185: 2.799806535 | M185: 0.9120925271 | N185: =IF(ABS($K185-$C$8-Parameters!$C$21)>Parameters!$C$22,-100,IF($K185-$C$8-Parameters!$C$21<-Parameters!$C$23,Parameters!$C$24 + Parameters!$C$25 / (Parameters!$C$23 - Parameters!$C$22) * (($K185-$C$8-Parameters!$C$21) + Parameters!$C$23),IF($K185-$C$8-Parameters!$C$21<Parameters!$C$23,Parameters!$C$24,Parameters!$C$24 - Parameters!$C$25 / (Parameters!$C$23 - Parameters!$C$22) * (($K185-$C$8-Parameters!$C$21) - Parameters!$C$23)))) -> -100 | P185: 1.78 | Q185: 0 | R185: 0 | S185: =IF(ABS($K185-$C$8-Parameters!$C$21)>Parameters!$C$22,0,SQRT(Parameters!$C$22^2-($K185-$C$8-Parameters!$C$21)^2)) -> 0 | T185: =IF(ABS($K185-$C$8-Parameters!$C$21)>Parameters!$C$22,0,-SQRT(Parameters!$C$22^2-($K185-$C$8-Parameters!$C$21)^2)) -> 0
I186: 0.792884998 | J186: 0.2454598752 | K186: 1.79 | L186: 2.798326475 | M186: 0.9155673257 | N186: =IF(ABS($K186-$C$8-Parameters!$C$21)>Parameters!$C$22,-100,IF($K186-$C$8-Parameters!$C$21<-Parameters!$C$23,Parameters!$C$24 + Parameters!$C$25 / (Parameters!$C$23 - Parameters!$C$22) * (($K186-$C$8-Parameters!$C$21) + Parameters!$C$23),IF($K186-$C$8-Parameters!$C$21<Parameters!$C$23,Parameters!$C$24,Parameters!$C$24 - Parameters!$C$25 / (Parameters!$C$23 - Parameters!$C$22) * (($K186-$C$8-Parameters!$C$21) - Parameters!$C$23)))) -> -100 | P186: 1.79 | Q186: 0 | R186: 0 | S186: =IF(ABS($K186-$C$8-Parameters!$C$21)>Parameters!$C$22,0,SQRT(Parameters!$C$22^2-($K186-$C$8-Parameters!$C$21)^2)) -> 0 | T186: =IF(ABS($K186-$C$8-Parameters!$C$21)>Parameters!$C$22,0,-SQRT(Parameters!$C$22^2-($K186-$C$8-Parameters!$C$21)^2)) -> 0
I187: 0.7973145232 | J187: 0.2468311594 | K187: 1.8 | L187: 2.796654133 | M187: 0.9190236961 | N187: =IF(ABS($K187-$C$8-Parameters!$C$21)>Parameters!$C$22,-100,IF($K187-$C$8-Parameters!$C$21<-Parameters!$C$23,Parameters!$C$24 + Parameters!$C$25 / (Parameters!$C$23 - Parameters!$C$22) * (($K187-$C$8-Parameters!$C$21) + Parameters!$C$23),IF($K187-$C$8-Parameters!$C$21<Parameters!$C$23,Parameters!$C$24,Parameters!$C$24 - Parameters!$C$25 / (Parameters!$C$23 - Parameters!$C$22) * (($K187-$C$8-Parameters!$C$21) - Parameters!$C$23)))) -> -100 | P187: 1.8 | Q187: 0 | R187: 0 | S187: =IF(ABS($K187-$C$8-Parameters!$C$21)>Parameters!$C$22,0,SQRT(Parameters!$C$22^2-($K187-$C$8-Parameters!$C$21)^2)) -> 0 | T187: =IF(ABS($K187-$C$8-Parameters!$C$21)>Parameters!$C$22,0,-SQRT(Parameters!$C$22^2-($K187-$C$8-Parameters!$C$21)^2)) -> 0
I188: 0.8017440483 | J188: 0.2482024437 | K188: 1.81 | L188: 2.794789508 | M188: 0.9224616385 | N188: =IF(ABS($K188-$C$8-Parameters!$C$21)>Parameters!$C$22,-100,IF($K188-$C$8-Parameters!$C$21<-Parameters!$C$23,Parameters!$C$24 + Parameters!$C$25 / (Parameters!$C$23 - Parameters!$C$22) * (($K188-$C$8-Parameters!$C$21) + Parameters!$C$23),IF($K188-$C$8-Parameters!$C$21<Parameters!$C$23,Parameters!$C$24,Parameters!$C$24 - Parameters!$C$25 / (Parameters!$C$23 - Parameters!$C$22) * (($K188-$C$8-Parameters!$C$21) - Parameters!$C$23)))) -> -100 | P188: 1.81 | Q188: 0 | R188: 0 | S188: =IF(ABS($K188-$C$8-Parameters!$C$21)>Parameters!$C$22,0,SQRT(Parameters!$C$22^2-($K188-$C$8-Parameters!$C$21)^2)) -> 0 | T188: =IF(ABS($K188-$C$8-Parameters!$C$21)>Parameters!$C$22,0,-SQRT(Parameters!$C$22^2-($K188-$C$8-Parameters!$C$21)^2)) -> 0
I189: 0.8061735734 | J189: 0.2495737279 | K189: 1.82 | L189: 2.7927326 | M189: 0.9258811527 | N189: =IF(ABS($K189-$C$8-Parameters!$C$21)>Parameters!$C$22,-100,IF($K189-$C$8-Parameters!$C$21<-Parameters!$C$23,Parameters!$C$24 + Parameters!$C$25 / (Parameters!$C$23 - Parameters!$C$22) * (($K189-$C$8-Parameters!$C$21) + Parameters!$C$23),IF($K189-$C$8-Parameters!$C$21<Parameters!$C$23,Parameters!$C$24,Parameters!$C$24 - Parameters!$C$25 / (Parameters!$C$23 - Parameters!$C$22) * (($K189-$C$8-Parameters!$C$21) - Parameters!$C$23)))) -> -100 | P189: 1.82 | Q189: 0 | R189: 0 | S189: =IF(ABS($K189-$C$8-Parameters!$C$21)>Parameters!$C$22,0,SQRT(Parameters!$C$22^2-($K189-$C$8-Parameters!$C$21)^2)) -> 0 | T189: =IF(ABS($K189-$C$8-Parameters!$C$21)>Parameters!$C$22,0,-SQRT(Parameters!$C$22^2-($K189-$C$8-Parameters!$C$21)^2)) -> 0
I190: 0.8106030986 | J190: 0.2509450121 | K190: 1.83 | L190: 2.790483409 | M190: 0.9292822388 | N190: =IF(ABS($K190-$C$8-Parameters!$C$21)>Parameters!$C$22,-100,IF($K190-$C$8-Parameters!$C$21<-Parameters!$C$23,Parameters!$C$24 + Parameters!$C$25 / (Parameters!$C$23 - Parameters!$C$22) * (($K190-$C$8-Parameters!$C$21) + Parameters!$C$23),IF($K190-$C$8-Parameters!$C$21<Parameters!$C$23,Parameters!$C$24,Parameters!$C$24 - Parameters!$C$25 / (Parameters!$C$23 - Parameters!$C$22) * (($K190-$C$8-Parameters!$C$21) - Parameters!$C$23)))) -> -100 | P190: 1.83 | Q190: 0 | R190: 0 | S190: =IF(ABS($K190-$C$8-Parameters!$C$21)>Parameters!$C$22,0,SQRT(Parameters!$C$22^2-($K190-$C$8-Parameters!$C$21)^2)) -> 0 | T190: =IF(ABS($K190-$C$8-Parameters!$C$21)>Parameters!$C$22,0,-SQRT(Parameters!$C$22^2-($K190-$C$8-Parameters!$C$21)^2)) -> 0
I191: 0.8150326237 | J191: 0.2523162963 | K191: 1.84 | L191: 2.788041936 | M191: 0.9326648968 | N191: =IF(ABS($K191-$C$8-Parameters!$C$21)>Parameters!$C$22,-100,IF($K191-$C$8-Parameters!$C$21<-Parameters!$C$23,Parameters!$C$24 + Parameters!$C$25 / (Parameters!$C$23 - Parameters!$C$22) * (($K191-$C$8-Parameters!$C$21) + Parameters!$C$23),IF($K191-$C$8-Parameters!$C$21<Parameters!$C$23,Parameters!$C$24,Parameters!$C$24 - Parameters!$C$25 / (Parameters!$C$23 - Parameters!$C$22) * (($K191-$C$8-Parameters!$C$21) - Parameters!$C$23)))) -> -100 | P191: 1.84 | Q191: 0 | R191: 0 | S191: =IF(ABS($K191-$C$8-Parameters!$C$21)>Parameters!$C$22,0,SQRT(Parameters!$C$22^2-($K191-$C$8-Parameters!$C$21)^2)) -> 0 | T191: =IF(ABS($K191-$C$8-Parameters!$C$21)>Parameters!$C$22,0,-SQRT(Parameters!$C$22^2-($K191-$C$8-Parameters!$C$21)^2)) -> 0
I192: 0.8194621488 | J192: 0.2536875805 | K192: 1.85 | L192: 2.78540818 | M192: 0.9360291266 | N192: =IF(ABS($K192-$C$8-Parameters!$C$21)>Parameters!$C$22,-100,IF($K192-$C$8-Parameters!$C$21<-Parameters!$C$23,Parameters!$C$24 + Parameters!$C$25 / (Parameters!$C$23 - Parameters!$C$22) * (($K192-$C$8-Parameters!$C$21) + Parameters!$C$23),IF($K192-$C$8-Parameters!$C$21<Parameters!$C$23,Parameters!$C$24,Parameters!$C$24 - Parameters!$C$25 / (Parameters!$C$23 - Parameters!$C$22) * (($K192-$C$8-Parameters!$C$21) - Parameters!$C$23)))) -> -100 | P192: 1.85 | Q192: 0 | R192: 0 | S192: =IF(ABS($K192-$C$8-Parameters!$C$21)>Parameters!$C$22,0,SQRT(Parameters!$C$22^2-($K192-$C$8-Parameters!$C$21)^2)) -> 0 | T192: =IF(ABS($K192-$C$8-Parameters!$C$21)>Parameters!$C$22,0,-SQRT(Parameters!$C$22^2-($K192-$C$8-Parameters!$C$21)^2)) -> 0
I193: 0.8238916739 | J193: 0.2550588647 | K193: 1.86 | L193: 2.78258214 | M193: 0.9393749284 | N193: =IF(ABS($K193-$C$8-Parameters!$C$21)>Parameters!$C$22,-100,IF($K193-$C$8-Parameters!$C$21<-Parameters!$C$23,Parameters!$C$24 + Parameters!$C$25 / (Parameters!$C$23 - Parameters!$C$22) * (($K193-$C$8-Parameters!$C$21) + Parameters!$C$23),IF($K193-$C$8-Parameters!$C$21<Parameters!$C$23,Parameters!$C$24,Parameters!$C$24 - Parameters!$C$25 / (Parameters!$C$23 - Parameters!$C$22) * (($K193-$C$8-Parameters!$C$21) - Parameters!$C$23)))) -> -100 | P193: 1.86 | Q193: 0 | R193: 0 | S193: =IF(ABS($K193-$C$8-Parameters!$C$21)>Parameters!$C$22,0,SQRT(Parameters!$C$22^2-($K193-$C$8-Parameters!$C$21)^2)) -> 0 | T193: =IF(ABS($K193-$C$8-Parameters!$C$21)>Parameters!$C$22,0,-SQRT(Parameters!$C$22^2-($K193-$C$8-Parameters!$C$21)^2)) -> 0
I194: 0.8283211991 | J194: 0.256430149 | K194: 1.87 | L194: 2.779563819 | M194: 0.942702302 | N194: =IF(ABS($K194-$C$8-Parameters!$C$21)>Parameters!$C$22,-100,IF($K194-$C$8-Parameters!$C$21<-Parameters!$C$23,Parameters!$C$24 + Parameters!$C$25 / (Parameters!$C$23 - Parameters!$C$22) * (($K194-$C$8-Parameters!$C$21) + Parameters!$C$23),IF($K194-$C$8-Parameters!$C$21<Parameters!$C$23,Parameters!$C$24,Parameters!$C$24 - Parameters!$C$25 / (Parameters!$C$23 - Parameters!$C$22) * (($K194-$C$8-Parameters!$C$21) - Parameters!$C$23)))) -> -100 | P194: 1.87 | Q194: 0 | R194: 0 | S194: =IF(ABS($K194-$C$8-Parameters!$C$21)>Parameters!$C$22,0,SQRT(Parameters!$C$22^2-($K194-$C$8-Parameters!$C$21)^2)) -> 0 | T194: =IF(ABS($K194-$C$8-Parameters!$C$21)>Parameters!$C$22,0,-SQRT(Parameters!$C$22^2-($K194-$C$8-Parameters!$C$21)^2)) -> 0
I195: 0.8327507242 | J195: 0.2578014332 | K195: 1.88 | L195: 2.776353214 | M195: 0.9460112475 | N195: =IF(ABS($K195-$C$8-Parameters!$C$21)>Parameters!$C$22,-100,IF($K195-$C$8-Parameters!$C$21<-Parameters!$C$23,Parameters!$C$24 + Parameters!$C$25 / (Parameters!$C$23 - Parameters!$C$22) * (($K195-$C$8-Parameters!$C$21) + Parameters!$C$23),IF($K195-$C$8-Parameters!$C$21<Parameters!$C$23,Parameters!$C$24,Parameters!$C$24 - Parameters!$C$25 / (Parameters!$C$23 - Parameters!$C$22) * (($K195-$C$8-Parameters!$C$21) - Parameters!$C$23)))) -> -100 | P195: 1.88 | Q195: 0 | R195: 0 | S195: =IF(ABS($K195-$C$8-Parameters!$C$21)>Parameters!$C$22,0,SQRT(Parameters!$C$22^2-($K195-$C$8-Parameters!$C$21)^2)) -> 0 | T195: =IF(ABS($K195-$C$8-Parameters!$C$21)>Parameters!$C$22,0,-SQRT(Parameters!$C$22^2-($K195-$C$8-Parameters!$C$21)^2)) -> 0
I196: 0.8371802493 | J196: 0.2591727174 | K196: 1.89 | L196: 2.772950327 | M196: 0.9493017649 | N196: =IF(ABS($K196-$C$8-Parameters!$C$21)>Parameters!$C$22,-100,IF($K196-$C$8-Parameters!$C$21<-Parameters!$C$23,Parameters!$C$24 + Parameters!$C$25 / (Parameters!$C$23 - Parameters!$C$22) * (($K196-$C$8-Parameters!$C$21) + Parameters!$C$23),IF($K196-$C$8-Parameters!$C$21<Parameters!$C$23,Parameters!$C$24,Parameters!$C$24 - Parameters!$C$25 / (Parameters!$C$23 - Parameters!$C$22) * (($K196-$C$8-Parameters!$C$21) - Parameters!$C$23)))) -> -100 | P196: 1.89 | Q196: 0 | R196: 0 | S196: =IF(ABS($K196-$C$8-Parameters!$C$21)>Parameters!$C$22,0,SQRT(Parameters!$C$22^2-($K196-$C$8-Parameters!$C$21)^2)) -> 0 | T196: =IF(ABS($K196-$C$8-Parameters!$C$21)>Parameters!$C$22,0,-SQRT(Parameters!$C$22^2-($K196-$C$8-Parameters!$C$21)^2)) -> 0
I197: 0.8416097745 | J197: 0.2605440016 | K197: 1.9 | L197: 2.769355156 | M197: 0.9525738541 | N197: =IF(ABS($K197-$C$8-Parameters!$C$21)>Parameters!$C$22,-100,IF($K197-$C$8-Parameters!$C$21<-Parameters!$C$23,Parameters!$C$24 + Parameters!$C$25 / (Parameters!$C$23 - Parameters!$C$22) * (($K197-$C$8-Parameters!$C$21) + Parameters!$C$23),IF($K197-$C$8-Parameters!$C$21<Parameters!$C$23,Parameters!$C$24,Parameters!$C$24 - Parameters!$C$25 / (Parameters!$C$23 - Parameters!$C$22) * (($K197-$C$8-Parameters!$C$21) - Parameters!$C$23)))) -> -100 | P197: 1.9 | Q197: 0 | R197: 0 | S197: =IF(ABS($K197-$C$8-Parameters!$C$21)>Parameters!$C$22,0,SQRT(Parameters!$C$22^2-($K197-$C$8-Parameters!$C$21)^2)) -> 0 | T197: =IF(ABS($K197-$C$8-Parameters!$C$21)>Parameters!$C$22,0,-SQRT(Parameters!$C$22^2-($K197-$C$8-Parameters!$C$21)^2)) -> 0
I198: 0.8460392996 | J198: 0.2619152858 | K198: 1.91 | L198: 2.765567703 | M198: 0.9558275153 | N198: =IF(ABS($K198-$C$8-Parameters!$C$21)>Parameters!$C$22,-100,IF($K198-$C$8-Parameters!$C$21<-Parameters!$C$23,Parameters!$C$24 + Parameters!$C$25 / (Parameters!$C$23 - Parameters!$C$22) * (($K198-$C$8-Parameters!$C$21) + Parameters!$C$23),IF($K198-$C$8-Parameters!$C$21<Parameters!$C$23,Parameters!$C$24,Parameters!$C$24 - Parameters!$C$25 / (Parameters!$C$23 - Parameters!$C$22) * (($K198-$C$8-Parameters!$C$21) - Parameters!$C$23)))) -> -100 | P198: 1.91 | Q198: 0 | R198: 0 | S198: =IF(ABS($K198-$C$8-Parameters!$C$21)>Parameters!$C$22,0,SQRT(Parameters!$C$22^2-($K198-$C$8-Parameters!$C$21)^2)) -> 0 | T198: =IF(ABS($K198-$C$8-Parameters!$C$21)>Parameters!$C$22,0,-SQRT(Parameters!$C$22^2-($K198-$C$8-Parameters!$C$21)^2)) -> 0
I199: 0.8504688247 | J199: 0.2632865701 | K199: 1.92 | L199: 2.761587968 | M199: 0.9590627483 | N199: =IF(ABS($K199-$C$8-Parameters!$C$21)>Parameters!$C$22,-100,IF($K199-$C$8-Parameters!$C$21<-Parameters!$C$23,Parameters!$C$24 + Parameters!$C$25 / (Parameters!$C$23 - Parameters!$C$22) * (($K199-$C$8-Parameters!$C$21) + Parameters!$C$23),IF($K199-$C$8-Parameters!$C$21<Parameters!$C$23,Parameters!$C$24,Parameters!$C$24 - Parameters!$C$25 / (Parameters!$C$23 - Parameters!$C$22) * (($K199-$C$8-Parameters!$C$21) - Parameters!$C$23)))) -> -100 | P199: 1.92 | Q199: 0 | R199: 0 | S199: =IF(ABS($K199-$C$8-Parameters!$C$21)>Parameters!$C$22,0,SQRT(Parameters!$C$22^2-($K199-$C$8-Parameters!$C$21)^2)) -> 0 | T199: =IF(ABS($K199-$C$8-Parameters!$C$21)>Parameters!$C$22,0,-SQRT(Parameters!$C$22^2-($K199-$C$8-Parameters!$C$21)^2)) -> 0
I200: 0.8548983498 | J200: 0.2646578543 | K200: 1.93 | L200: 2.757415949 | M200: 0.9622795532 | N200: =IF(ABS($K200-$C$8-Parameters!$C$21)>Parameters!$C$22,-100,IF($K200-$C$8-Parameters!$C$21<-Parameters!$C$23,Parameters!$C$24 + Parameters!$C$25 / (Parameters!$C$23 - Parameters!$C$22) * (($K200-$C$8-Parameters!$C$21) + Parameters!$C$23),IF($K200-$C$8-Parameters!$C$21<Parameters!$C$23,Parameters!$C$24,Parameters!$C$24 - Parameters!$C$25 / (Parameters!$C$23 - Parameters!$C$22) * (($K200-$C$8-Parameters!$C$21) - Parameters!$C$23)))) -> -100 | P200: =K200 -> 1.93 | Q200: =$I200*Q$4 -> 0 | R200: 0 | S200: =IF(ABS($K200-$C$8-Parameters!$C$21)>Parameters!$C$22,0,SQRT(Parameters!$C$22^2-($K200-$C$8-Parameters!$C$21)^2)) -> 0 | T200: =IF(ABS($K200-$C$8-Parameters!$C$21)>Parameters!$C$22,0,-SQRT(Parameters!$C$22^2-($K200-$C$8-Parameters!$C$21)^2)) -> 0
... 807 more rows

Sheet Raw Data
A1: X (m) | B1: Y (m) | C1: t (s) | F1: 1 | G1: Put X and Y data in columns A and B | Q1: X (m) | R1: Y (m) | S1: t (s)
A2: 0 | B2: 0.1 | C2: 0.6 | G2: Ensure that the Y data stays positive | Q2: 5.551115123e-17 | R2: 2.220446049e-16 | S2: 0
A3: 0.0564819 | B3: 0.1232332 | C3: 0.6166667 | F3: 2 | G3: Time data in column C is optional | Q3: 0.093 | R3: 0.224 | S3: 55
A4: 0.09242493 | B4: 0.2361971 | C4: 0.6333333 | Q4: 0.173 | R4: 0.447 | S4: 0.067
A5: 0.1232332 | B5: 0.3594303 | C5: 0.65 | Q5: 0.2605 | R5: 0.654 | S5: 0.1
A6: 0.164311 | B6: 0.4621247 | C6: 0.6666667 | Q6: 0.346 | R6: 0.8475 | S6: 0.133
A7: 0.2053887 | B7: 0.5699538 | C7: 0.6833333 | Q7: 0.425 | R7: 1.0445 | S7: 0.167
A8: 0.2310623 | B8: 0.657244 | C8: 0.7 | Q8: 0.510405 | R8: 1.217 | S8: 0.2
A9: 0.2721401 | B9: 0.7702078 | C9: 0.7166667 | Q9: 0.590405 | R9: 1.382 | S9: 0.233
A10: 0.3132178 | B10: 0.8677674 | C10: 0.7333333 | Q10: 0.6755 | R10: 1.5435 | S10: 0.267
A11: 0.3542956 | B11: 0.9601924 | C11: 0.75 | Q11: 0.747 | R11: 1.6925 | S11: 0.3
A12: 0.3851039 | B12: 1.052617 | C12: 0.7666667 | Q12: 0.8265 | R12: 1.828 | S12: 0.333
A13: 0.4261816 | B13: 1.139908 | C13: 0.7833333 | Q13: 0.904 | R13: 1.958 | S13: 0.367
A14: 0.4518552 | B14: 1.211794 | C14: 0.8 | Q14: 0.9805 | R14: 2.072 | S14: 0.4
A15: 0.4980677 | B15: 1.293949 | C15: 0.8166667 | Q15: 1.0555 | R15: 2.176 | S15: 0.433
A16: 0.5340107 | B16: 1.365835 | C16: 0.8333333 | Q16: 1.1325 | R16: 2.271 | S16: 0.467
A17: 0.5596843 | B17: 1.442856 | C17: 0.85 | Q17: 1.2095 | R17: 2.3565 | S17: 0.5
A18: 0.5853579 | B18: 1.514742 | C18: 0.8666667 | Q18: 1.2785 | R18: 2.4255 | S18: 0.533
A19: 0.6213009 | B19: 1.566089 | C19: 0.885 | Q19: 1.353 | R19: 2.4915 | S19: 0.09587900882
A20: 0.657244 | B20: 1.63284 | C20: 0.9016667 | Q20: 1.43 | R20: 2.5395 | S20: 0.04504464323
A21: 0.6983217 | B21: 1.694457 | C21: 0.9183333 | Q21: 1.5015 | R21: 2.582 | S21: 8.76589908
A22: 0.7137259 | B22: 1.735535 | C22: 0.935 | Q22: 1.5735 | R22: 2.611 | S22: -369.4842707
A23: 0.7548036 | B23: 1.802286 | C23: 0.9516667 | Q23: 1.648 | R23: 2.6345 | S23: 0
A24: 0.7804772 | B24: 1.858768 | C24: 0.9683333 | Q24: 1.7195 | R24: 2.6425 | S24: 0.1917580176
A25: 0.8164202 | B25: 1.904981 | C25: 0.985 | Q25: 1.788 | R25: 2.64 | S25: 0.06562636048
A26: 0.8369591 | B26: 1.935789 | C26: 1.001667 | Q26: 1.8605 | R26: 2.6235 | S26: 0.8
A27: 0.8729022 | B27: 1.987136 | C27: 1.018333 | Q27: 1.9295 | R27: 2.6025 | S27: 0.833
A28: 0.9037105 | B28: 2.023079 | C28: 1.035 | Q28: 1.9955 | R28: 2.5735 | S28: 0.867
A29: 0.9242493 | B29: 2.059022 | C29: 1.051667 | Q29: 2.062 | R29: 2.528 | S29: 0.096
A30: 0.9550576 | B30: 2.079561 | C30: 1.068333 | Q30: 2.1335 | R30: 2.4775 | S30: 0.0450445715
A31: 0.9807312 | B31: 2.115504 | C31: 1.085 | Q31: 2.203 | R31: 2.413 | S31: -1
A32: 1.01154 | B32: 2.141178 | C32: 1.101667 | Q32: 2.2695 | R32: 2.3365 | S32: -1.2
A33: 1.042348 | B33: 2.166851 | C33: 1.118333 | Q33: 2.333 | R33: 2.2535 | S33: 0
A34: 1.073156 | B34: 2.18739 | C34: 1.135 | Q34: 2.3995 | R34: 2.161 | S34: 0.1917580176
A35: 1.08856 | B35: 2.207929 | C35: 1.151667 | Q35: 2.463 | R35: 2.0595 | S35: 0
A36: 1.119369 | B36: 2.223333 | C36: 1.168333 | Q36: 2.5295 | R36: 1.9485 | S36: 1.133
A37: 1.160446 | B37: 2.233603 | C37: 1.185 | Q37: 2.585 | R37: 1.831 | S37: 1.167
A38: 1.18612 | B38: 2.238737 | C38: 1.201667 | Q38: 2.652 | R38: 1.69 | S38: 1.2
A39: 1.201524 | B39: 2.249007 | C39: 1.218333 | Q39: 2.7155 | R39: 1.5575 | S39: 1.233
A40: 1.227198 | B40: 2.238737 | C40: 1.235 | Q40: 2.7795 | R40: 1.4085 | S40: 1.267
A41: 1.252871 | B41: 2.249007 | C41: 1.251667 | Q41: 2.8405 | R41: 1.2645 | S41: 1.3
A42: 1.268275 | B42: 2.249007 | C42: 1.268333 | Q42: 2.8935 | R42: 1.1025 | S42: 1.333
A43: 1.304219 | B43: 2.249007 | C43: 1.285
A44: 1.329892 | B44: 2.238737 | C44: 1.301667
A45: 1.350431 | B45: 2.228468 | C45: 1.318333
A46: 1.37097 | B46: 2.223333 | C46: 1.335
A47: 1.406913 | B47: 2.207929 | C47: 1.351667
A48: 1.427452 | B48: 2.192525 | C48: 1.368333
A49: 1.447991 | B49: 2.177121 | C49: 1.385
A50: 1.473664 | B50: 2.141178 | C50: 1.401667
A51: 1.494203 | B51: 2.130908 | C51: 1.418333
A52: 1.519877 | B52: 2.1001 | C52: 1.435
A53: 1.540416 | B53: 2.074426 | C53: 1.451667
A54: 1.560954 | B54: 2.038483 | C54: 1.468333
A55: 1.581493 | B55: 2.007675 | C55: 1.485
A56: 1.607167 | B56: 1.971732 | C56: 1.501667
A57: 1.622571 | B57: 1.930654 | C57: 1.518333
A58: 1.648245 | B58: 1.889576 | C58: 1.535
A59: 1.663649 | B59: 1.843364 | C59: 1.551667
A60: 1.694457 | B60: 1.797151 | C60: 1.568333
A61: 1.709861 | B61: 1.750939 | C61: 1.585
A62: 1.725265 | B62: 1.704727 | C62: 1.601667
A63: 1.745804 | B63: 1.653379 | C63: 1.618333
A64: 1.771478 | B64: 1.602032 | C64: 1.635
A65: 1.797151 | B65: 1.540416 | C65: 1.651667
A66: 1.822825 | B66: 1.478799 | C66: 1.668333
A67: 1.833095 | B67: 1.422317 | C67: 1.685
A68: 1.848499 | B68: 1.3607 | C68: 1.701667
A69: 1.874172 | B69: 1.293949 | C69: 1.718333
A70: 1.894711 | B70: 1.232332 | C70: 1.735
A71: 1.910115 | B71: 1.175851 | C71: 1.751667

Sheet Parameters
A1: Parameter Calculator
A2: Parameter | B2: Formula | C2: Value | D2: Unit
A3: Roller Rotation Speed | C3: 46.331 | D3: rev/s
A4: Roller radius | C4: 0.05 | D4: m
A5: Ball Radius | B5: r | C5: 0.075 | D5: m
A6: Roller to Ball Slip factor | B6: k1 | C6: 1 | D6: n/a
A7: Ball to wall Slip factor | B7: k2 | C7: 1 | D7: n/a
A8: Air Density | B8: r | C8: 1.257 | D8: kg/m^3
A9: Air Viscosity | B9: m | C9: 1.8e-05 | D9: N*s/m^2
A10: Ball drag coefficient | C10: 0.52 | D10: n/a
A11: Surface-Air Coupling | B11: h | C11: 0.4 | D11: n/a
A12: Roller Tangental Speed | C12: =C3*C4*2*PI() -> 14.55531292 | D12: m/s
A13: Ball Speed | C13: =C6/(1+C7)*C12 -> 7.277656462 | D13: m/s
A14: Ball Rotation | C14: =C6*C7/(1+C7)*C12/C5/(2*PI()) -> 15.44366667 | D14: rev/s
A15: Cross Sectional Area (Ball) | C15: =PI()*C5^2 -> 0.01767145868 | D15: m^2
A16: Length (Ball) | C16: =C5*2 -> 0.15 | D16: m
A17: Reynold's Number | C17: =C8*C13*C16/C9 -> 76233.45144 | D17: m
A18: Quadratic Drag Coefficient | C18: =0.5*C8*C10*C15 -> 0.005775386125 | D18: N*(s/m)^2
A19: Linear Drag Coefficient | B19: C_d | C19: =6*PI()*C9*C5 -> 2.544690049e-05 | D19: N*s/m
A20: Magnus Force Coefficient | C20: =PI()*C8*C11*C5^3 -> 0.0006663907067 | D20: kg
A21: Target Drawing | B21: Offset | C21: 0 | D21: m
B22: Outer | C22: 0.5 | D22: m
B23: Inner | C23: 0.3 | D23: m
B24: Height | C24: 1.2 | D24: m
B25: Rim | C25: 0.387842272 | D25: m

Sheet 4th Order Polynomial Solver
A1: Quartic Equation Solution Method
A2: A | B2: ='Moving Turret No Air Model'!B15 -> -1.686380675
A3: B | B3: ='Moving Turret No Air Model'!B16 -> -0.4328323551
A4: C | B4: ='Moving Turret No Air Model'!B17 -> 0.4348188255
A6: First Solve the Cubic Equation
A8: a2 | B8: =-B2/2 -> 0.8431903374
A9: a1 | B9: =-B4 -> -0.4348188255
A10: a0 | B10: =(4*B2*B4-B3^2)/8 -> -0.3900530131
A12: Q | B12: =(3*B9-B8^2)/9 -> -0.2239362691
A13: R | B13: =(9*B9*B8-2*B8^3-27*B10)/54 -> 0.1117175942
A14: D | B14: =B13^2+B12^3 -> 0.001250987425
A16: D>=0 Case
A17: S | B17: =(B13+SQRT(B14))^(1/3) -> 0.527867179
A18: T | B18: =(B13-SQRT(B14))^(1/3) -> 0.4242284384
A19: u0 | B19: =B17+B18-B8/3 -> 0.6710321717
A21: D<0 Case | G21: Choose Root that makes 2u-A>0
B22: =ACOS(B13/SQRT(-B12^3)) -> 
B23: u0 | C23: 2u-A
A24: Choice1 | B24: =-B$8/3+2*SQRT(-B$12)*COS(B$22/3) ->  | C24: =2*B24-B2 -> 
A25: Choice2 | B25: =-B$8/3+2*SQRT(-B$12)*COS(B$22/3+2*PI()/3) ->  | C25: =2*B25-B3 -> 
A26: Choice3 | B26: =-B$8/3+2*SQRT(-B$12)*COS(B$22/3+4*PI()/3) ->  | C26: =2*B26-B4 -> 
A27: u0 | C27: =IF(C24>0,B24,IF(B25>0,C25,B26)) -> 
A29: Cubic Root Choice
A30: p0 | B30: =IF(B14<0,C27,B19) -> 0.6710321717
A31: p | B31: =SQRT(2*B30-B2) -> 1.740242804
A33: Quadratic Solution
A34: a | B34: 1 | C34: 1
A35: b | B35: =B31 -> 1.740242804 | C35: =-B35 -> -1.740242804
A36: c | B36: =B30-0.5*B3/B31 -> 0.7953919317 | C36: =B30+0.5*B3/B31 -> 0.5466724116
A38: Deteminant | B38: =B35^2-4*B34*B36 -> -0.1531227087 | C38: =C35^2-4*C34*C36 -> 0.8417553715
A40: t1 | B40: =IF(B38<0,"",(-B35+SQRT(B38))/2) ->  | C40: =IF(C36<0,"",(-C35+SQRT(C38))/2) -> 1.328857539
A41: t2 | B41: =IF(B38<0,"",(-B35-SQRT(B38))/2) ->  | C41: =IF(C38<0,"",(-C35-SQRT(C38))/2) -> 0.4113852657
A43: Final Answer
A44: t1 | B44: =MAX(B40:C41) -> 1.328857539 | D44: Longest Time
A45: t2 | B45: =MIN(B40:C41) -> 0.4113852657 | D45: Shortest Time
